Workbook

Sheet Master Data (hidden)
B2: Expiry Date | E2: Drop-down Selections | H2: HERDC | O2: Affiliates | R2: Org Structure | X2: Salaries | BC2: Operating Expenses | BG2: Stipends | BK2: Travel Expenses | BN2: Overhead Rates | BR2: Indirect Cost Allocation | BX2: CPI Rate | CA2: Collaborator Expenses
B4: Date | E4: Project Type | H4: HERDC Category | I4: HERDC Name | O4: Organisation | R4: Faculty | S4: ABLE | T4: HMS | U4: SET | X4: Cont & Fixed Term Salaries | Y4: 2024 | Z4: 2025 | AA4: 2026 | AB4: 2027 | AC4: 2028 | AD4: 2029 | AE4: 2030 | AF4: 2031 | AG4: 2032 | AH4: 2033 | AI4: 2034 | AJ4: 2035 | AL4: Segment | AN4: Levels | AO4: Employment Type | AQ4: Month | AR4: Period | AS4: No. of months left in the year | AU4: Rate | AV4: Unit | AW4: Amount | AY4: Continuing & Fixed Term Oncost Type | AZ4: % | BC4: Types | BD4: Quantity | BG4: Year | BH4: Amount | BK4: Purpose | BN4: Types | BO4: % | BR4: Project Type - % of expense | BS4: Faculty | BT4: School | BU4: DRI | BX4: Rate | CA4: Types
B5: 45657 | E5: Consultancy | H5: Category 1 | I5: Australian Competetive Grant R&D Income | O5: NO Affiliate | R5: ABLE | S5: Adelaide Business School | T5: Adelaide Dental School | U5: AIML - Projects | X5: Level A-1 | Y5: 78544 | Z5: 81293 | AA5: =Z5*(1+$X$120) -> 84138.255 | AB5: 87083.09392 | AC5: 90131.00221 | AD5: 93285.58729 | AE5: 96550.58284 | AF5: 99929.85324 | AG5: 103427.3981 | AH5: 107047.357 | AI5: 110794.0145 | AJ5: 114671.805 | AL5: Discretionary | AN5: Level A-1 | AO5: Academic | AQ5: January | AR5: 1 | AS5: 12 | AU5: Hourly | AV5: Number of hours | AW5: =AW7*36.75 -> 1617 | AY5: LSL | AZ5: 0.0325 | BC5: High Performing Computer | BD5: Not required | BG5: 2024 | BH5: 34125 | BK5: Conference | BN5: Salary Overhead | BO5: 0.55 | BR5: Contract Research | BS5: 0.1 | BT5: 0.05 | BU5: 0.05 | CA5: Salaries
E6: Contract Research | H6: Category 2 | I6: Other Public Sector R&D Income | O6: AWRI | R6: HMS | S6: Adelaide Law School | T6: Adelaide Medical School | U6: Centre for Auto Safety & Res | X6: Level A-2 | Y6: 82879 | Z6: 85780 | AA6: =Z6*(1+$X$120) -> 88782.3 | AB6: 91889.6805 | AC6: 95105.81932 | AD6: 98434.52299 | AE6: 101879.7313 | AF6: 105445.5219 | AG6: 109136.1152 | AH6: 112955.8792 | AI6: 116909.335 | AJ6: 121001.1617 | AL6: Tied | AN6: Level A-2 | AO6: Academic | AQ6: February | AR6: 2 | AS6: 11 | AU6: Daily | AV6: Number of days | AW6: =AW7*5 -> 220 | AY6: Payroll | AZ6: 0.0495 | BC6: Temporary/Agency Staff Costs | BD6: Hours per year | BG6: 2025 | BH6: =BH5*1.05 -> 35831.25 | BK6: Field | BN6: Operating Expenses Overhead | BO6: 0.15 | BR6: Consultancy | BS6: 0.1167 | BT6: 0.0667 | BU6: 0.0666 | BX6: 0.041 | CA6: Operating Expenses
E7: Grant | H7: Category 3 | I7: Industry and Other R&D Income | O7: PIRSA SARDI | R7: SET | S7: Arts, Bus, Law & Econ Office | T7: Adelaide Nursing School | U7: Ctr for STEM Education & Innov | X7: Level A-3 | Y7: 87204 | Z7: 90256 | AA7: =Z7*(1+$X$120) -> 93414.96 | AB7: 96684.4836 | AC7: 100068.4405 | AD7: 103570.8359 | AE7: 107195.8152 | AF7: 110947.6687 | AG7: 114830.8371 | AH7: 118849.9164 | AI7: 123009.6635 | AJ7: 127315.0017 | AL7: Combination | AN7: Level A-3 | AO7: Academic | AQ7: March | AR7: 3 | AS7: 10 | AU7: Weekly | AV7: Number of weeks | AW7: 44 | AY7: Super | AZ7: 0.17 | BC7: Collaborator Payments | BD7: Not required | BG7: 2026 | BH7: =BH6*1.05 -> 37622.8125 | BK7: Other | BN7: Other Overhead | BO7: 0.1 | BR7: Grant | BS7: 0 | BT7: 0 | BU7: 0 | CA7: Scholarships/Stipends
E8: Other | H8: Category 4 | I8: CRC R&D Income | O8: RAH | R8: Environment Institute | S8: Elder Conserv School Perf Arts | T8: Health & Med Sci Fac Office | U8: Sch Agriculture, Food & Wine | X8: Level A-4 | Y8: 91535 | Z8: 94739 | AA8: =Z8*(1+$X$120) -> 98054.865 | AB8: 101486.7853 | AC8: 105038.8228 | AD8: 108715.1816 | AE8: 112520.2129 | AF8: 116458.4204 | AG8: 120534.4651 | AH8: 124753.1714 | AI8: 129119.5324 | AJ8: 133638.716 | AN8: Level A-4 | AO8: Academic | AQ8: April | AR8: 4 | AS8: 9 | AY8: Leave Loading | AZ8: 0.015 | BC8: Subcontractor Payments | BD8: Not required | BG8: 2027 | BH8: 39503.95312 | BR8: Other | BS8: 0 | BT8: 0 | BU8: 0 | CA8: Travel Expenses
H9: Non HERDC | I9: Non HERDC | O9: SA Path | R9: Machine Learning | S9: Sch of Economics & Public Pol | T9: Sch of Allied Hlth Sci & Prac | U9: Sch of Arch & Civil Eng | X9: Level A-5 | Y9: 95053 | Z9: 98380 | AA9: =Z9*(1+$X$120) -> 101823.3 | AB9: 105387.1155 | AC9: 109075.6645 | AD9: 112893.3128 | AE9: 116844.5787 | AF9: 120934.139 | AG9: 125166.8339 | AH9: 129547.6731 | AI9: 134081.8416 | AJ9: 138774.7061 | AN9: Level A-5 | AO9: Academic | AQ9: May | AR9: 5 | AS9: 8 | AY9: Workcover | AZ9: 0.005 | BC9: Capital Item > $10k | BD9: Not required | BG9: 2028 | BH9: 41479.15078
O10: SAHMRI | R10: SAIGENCI | S10: School - Humanities | T10: School of Biomedicine | U10: Sch of Elec & Mech Engineering | X10: Level A-6 | Y10: 98574 | Z10: 102024 | AA10: =Z10*(1+$X$120) -> 105594.84 | AB10: 109290.6594 | AC10: 113115.8325 | AD10: 117074.8866 | AE10: 121172.5076 | AF10: 125413.5454 | AG10: 129803.0195 | AH10: 134346.1252 | AI10: 139048.2396 | AJ10: 143914.928 | AN10: Level A-6 | AO10: Academic | AQ10: June | AR10: 6 | AS10: 7 | AY10: Other Contributions (parenting leave, admin fee contributions) | AZ10: 0.028 | BC10: Other Operating Expenses | BD10: Quantity | BG10: 2029 | BH10: 43553.10832
O11: SAM | R11: Sustainability, Energy & Resources | S11: School - Social Sciences | T11: School of Psychology | U11: Sch of Phys, Chem & Earth Sci | X11: Level A-7 | Y11: 102096 | Z11: 105669 | AA11: =Z11*(1+$X$120) -> 109367.415 | AB11: 113195.2745 | AC11: 117157.1091 | AD11: 121257.608 | AE11: 125501.6242 | AF11: 129894.1811 | AG11: 134440.4774 | AH11: 139145.8941 | AI11: 144016.0004 | AJ11: 149056.5604 | AN11: Level A-7 | AO11: Academic | AQ11: July | AR11: 7 | AS11: 6 | AY11: Total | AZ11: =SUM(AZ5:AZ10) -> 0.3 | BG11: 2030 | BH11: 45730.76374
E12: Funding Source | H12: Category 1 | I12: Category 2 | J12: Category 3 | K12: Category 4 | L12: Non HERDC | O12: THRF | R12: Photonics & Advanced Sensing | S12: School of Education | T12: School of Public Health | U12: Schl Animal Veterinary Science | X12: Level A-8 | Y12: 105611 | Z12: 109307 | AA12: =Z12*(1+$X$120) -> 113132.745 | AB12: 117092.3911 | AC12: 121190.6248 | AD12: 125432.2966 | AE12: 129822.427 | AF12: 134366.212 | AG12: 139069.0294 | AH12: 143936.4454 | AI12: 148974.221 | AJ12: 154188.3187 | AN12: Level A-8 | AO12: Academic | AQ12: August | AR12: 8 | AS12: 5
E13: Funded | H13: 1.1 NHMRC | I13: 2.1 Commonwealth (Own Purpose) | J13: 3.1 Australian For Profit Organisations | K13: 4.1 Commonwealth Grant | L13: NA | O13: TQEH | R13: Robinson Research | S13: Stretton Institute | U13: School of Biological Sciences | X13: Level B-1 | Y13: 111031 | Z13: 114917 | AA13: =Z13*(1+$X$120) -> 118939.095 | AB13: 123101.9633 | AC13: 127410.532 | AD13: 131869.9007 | AE13: 136485.3472 | AF13: 141262.3343 | AG13: 146206.516 | AH13: 151323.7441 | AI13: 156620.0751 | AJ13: 162101.7778 | AN13: Level B-1 | AO13: Academic | AQ13: September | AR13: 9 | AS13: 4 | AY13: Casual Oncost Type - 2024 | AZ13: %
E14: Inkind | H14: 1.2 Research Council (ARC) | I14: 2.2 Commonwealth (Other) | J14: 3.2 Australian Not For Profit Organisations | K14: 4.2 Private Industry Participants | O14: WCHN | R14: Waite Research | U14: School of Chemical Engineering | X14: Level B-2 | Y14: 115090 | Z14: 119118 | AA14: =Z14*(1+$X$120) -> 123287.13 | AB14: 127602.1795 | AC14: 132068.2558 | AD14: 136690.6448 | AE14: 141474.8174 | AF14: 146426.436 | AG14: 151551.3612 | AH14: 156855.6589 | AI14: 162345.6069 | AJ14: 168027.7032 | AN14: Level B-2 | AO14: Academic | AQ14: October | AR14: 10 | AS14: 3 | AY14: Payroll | AZ14: 0.0495 | BG14: YoY Increase
E15: Ineligible Expense | H15: 1.3 Medical Research Future Fund (MRFF) | I15: 2.3 State/Territory/Local (Own Purpose) | J15: 3.3 Australian Philanthropy | K15: 4.3 Other Sources | O15: WCHRI | U15: School of Comp & Math Sciences | X15: Level B-3 | Y15: 119145 | Z15: 123315 | AA15: =Z15*(1+$X$120) -> 127631.025 | AB15: 132098.1109 | AC15: 136721.5448 | AD15: 141506.7988 | AE15: 146459.5368 | AF15: 151585.6206 | AG15: 156891.1173 | AH15: 162382.3064 | AI15: 168065.6871 | AJ15: 173947.9862 | AN15: Level B-3 | AO15: Academic | AQ15: November | AR15: 11 | AS15: 2 | AY15: Super | AZ15: 0.115 | BG15: 0.05
H16: 1.4 Rural R&D | I16: 2.4 State/Territory/Local (Other) | J16: 3.4 International For Profit Organisations | U16: Sci, Eng & Tech Faculty Office | X16: Level B-4 | Y16: 123210 | Z16: 127522 | AA16: =Z16*(1+$X$120) -> 131985.27 | AB16: 136604.7544 | AC16: 141385.9209 | AD16: 146334.4281 | AE16: 151456.1331 | AF16: 156757.0977 | AG16: 162243.5961 | AH16: 167922.122 | AI16: 173799.3963 | AJ16: 179882.3752 | AN16: Level B-4 | AO16: Academic | AQ16: December | AR16: 12 | AS16: 1 | AY16: Workcover | AZ16: 0.005
H17: 1.5 Commonwealth Other | J17: 3.5 International Not For Profit Organisations | U17: Veterinary Teaching Hospital | X17: Level B-5 | Y17: 127268 | Z17: 131722 | AA17: =Z17*(1+$X$120) -> 136332.27 | AB17: 141103.8994 | AC17: 146042.5359 | AD17: 151154.0247 | AE17: 156444.4156 | AF17: 161919.9701 | AG17: 167587.1691 | AH17: 173452.72 | AI17: 179523.5652 | AJ17: 185806.8899 | AN17: Level B-5 | AO17: Academic | AY17: Total | AZ17: =SUM(AZ14:AZ16) -> 0.1695 | BG17: Types
H18: 1.6 State/Territory/Local (Competitive) | J18: 3.6 International Philanthropy | U18: Waite Precinct | X18: Level B-6 | Y18: 131335 | Z18: 135932 | AA18: =Z18*(1+$X$120) -> 140689.62 | AB18: 145613.7567 | AC18: 150710.2382 | AD18: 155985.0965 | AE18: 161444.5749 | AF18: 167095.135 | AG18: 172943.4647 | AH18: 178996.486 | AI18: 185261.363 | AJ18: 191745.5107 | AN18: Level B-6 | AO18: Academic | BG18: University Rate
E19: Exclusion Type | H19: 1.7 Other | J19: 3.7 International Government (Own Purpose) | X19: Level C-1 | Y19: 135388 | Z19: 140127 | AA19: =Z19*(1+$X$120) -> 145031.445 | AB19: 150107.5456 | AC19: 155361.3097 | AD19: 160798.9555 | AE19: 166426.919 | AF19: 172251.8611 | AG19: 178280.6763 | AH19: 184520.4999 | AI19: 190978.7174 | AJ19: 197662.9725 | AN19: Level C-1 | AO19: Academic | AY19: Casual Oncost Type - 2025 onwards | AZ19: % | BG19: Industry Funded
E20: % | J20: 3.8 International Government (Other) | X20: Level C-2 | Y20: 139451 | Z20: 144332 | AA20: =Z20*(1+$X$120) -> 149383.62 | AB20: 154612.0467 | AC20: 160023.4683 | AD20: 165624.2897 | AE20: 171421.1399 | AF20: 177420.8798 | AG20: 183630.6106 | AH20: 190057.6819 | AI20: 196709.7008 | AJ20: 203594.5403 | AN20: Level C-2 | AO20: Academic | AY20: Payroll | AZ20: 0.0495 | BG20: Top-up to Industry Rate
E21: Amount | X21: Level C-3 | Y21: 143509 | Z21: 148532 | AA21: =Z21*(1+$X$120) -> 153730.62 | AB21: 159111.1917 | AC21: 164680.0834 | AD21: 170443.8863 | AE21: 176409.4224 | AF21: 182583.7521 | AG21: 188974.1835 | AH21: 195588.2799 | AI21: 202433.8697 | AJ21: 209519.0551 | AN21: Level C-3 | AO21: Academic | AY21: Super | AZ21: 0.12
X22: Level C-4 | Y22: 147566 | Z22: 152731 | AA22: =Z22*(1+$X$120) -> 158076.585 | AB22: 163609.2655 | AC22: 169335.5898 | AD22: 175262.3354 | AE22: 181396.5171 | AF22: 187745.3952 | AG22: 194316.4841 | AH22: 201117.561 | AI22: 208156.6757 | AJ22: 215442.1593 | AN22: Level C-4 | AO22: Academic | AY22: Workcover | AZ22: 0.005
X23: Level C-5 | Y23: 151628 | Z23: 156935 | AA23: =Z23*(1+$X$120) -> 162427.725 | AB23: 168112.6954 | AC23: 173996.6397 | AD23: 180086.5221 | AE23: 186389.5504 | AF23: 192913.1846 | AG23: 199665.1461 | AH23: 206653.4262 | AI23: 213886.2961 | AJ23: 221372.3165 | AN23: Level C-5 | AO23: Academic | AY23: Total | AZ23: =SUM(AZ20:AZ22) -> 0.1745
H24: RSP returns | I24: c/$ | X24: Level C-6 | Y24: 155696 | Z24: 161145 | AA24: =Z24*(1+$X$120) -> 166785.075 | AB24: 172622.5526 | AC24: 178664.342 | AD24: 184917.5939 | AE24: 191389.7097 | AF24: 198088.3496 | AG24: 205021.4418 | AH24: 212197.1923 | AI24: 219624.094 | AJ24: 227310.9373 | AN24: Level C-6 | AO24: Academic
E25: Surplus | H25: Category 1 | I25: 0.35 | X25: Level D-1 | Y25: 162460 | Z25: 168146 | AA25: =Z25*(1+$X$120) -> 174031.11 | AB25: 180122.1988 | AC25: 186426.4758 | AD25: 192951.4025 | AE25: 199704.7015 | AF25: 206694.3661 | AG25: 213928.6689 | AH25: 221416.1723 | AI25: 229165.7384 | AJ25: 237186.5392 | AN25: Level D-1 | AO25: Academic
E26: Fixed Amount | H26: Category 2-4 | I26: 0.24 | X26: Level D-2 | Y26: 167870 | Z26: 173745 | AA26: =Z26*(1+$X$120) -> 179826.075 | AB26: 186119.9876 | AC26: 192634.1872 | AD26: 199376.3837 | AE26: 206354.5572 | AF26: 213576.9667 | AG26: 221052.1605 | AH26: 228788.9861 | AI26: 236796.6006 | AJ26: 245084.4817 | AN26: Level D-2 | AO26: Academic
E27: % of Salary Expense | X27: Level D-3 | Y27: 173293 | Z27: 179358 | AA27: =Z27*(1+$X$120) -> 185635.53 | AB27: 192132.7735 | AC27: 198857.4206 | AD27: 205817.4303 | AE27: 213021.0404 | AF27: 220476.7768 | AG27: 228193.464 | AH27: 236180.2353 | AI27: 244446.5435 | AJ27: 253002.1725 | AN27: Level D-3 | AO27: Academic
E28: % of Operating Expense | X28: Level D-4 | Y28: 178700 | Z28: 184955 | AA28: =Z28*(1+$X$120) -> 191428.425 | AB28: 198128.4199 | AC28: 205062.9146 | AD28: 212240.1166 | AE28: 219668.5207 | AF28: 227356.9189 | AG28: 235314.411 | AH28: 243550.4154 | AI28: 252074.68 | AJ28: 260897.2938 | AN28: Level D-4 | AO28: Academic
X29: Level E | Y29: 208477 | Z29: 215774 | AA29: =Z29*(1+$X$120) -> 223326.09 | AB29: 231142.5031 | AC29: 239232.4908 | AD29: 247605.6279 | AE29: 256271.8249 | AF29: 265241.3388 | AG29: 274524.7856 | AH29: 284133.1531 | AI29: 294077.8135 | AJ29: 304370.537 | AN29: Level E | AO29: Academic
X30: HEO 1-4 | Y30: 55329 | Z30: 57266 | AA30: =Z30*(1+$X$120) -> 59270.31 | AB30: 61344.77085 | AC30: 63491.83783 | AD30: 65714.05215 | AE30: 68014.04398 | AF30: 70394.53552 | AG30: 72858.34426 | AH30: 75408.38631 | AI30: 78047.67983 | AJ30: 80779.34863 | AN30: Academic | AO30: Academic
X31: HEO 1-5 | Y31: 55921 | Z31: 57878 | AA31: =Z31*(1+$X$120) -> 59903.73 | AB31: 62000.36055 | AC31: 64170.37317 | AD31: 66416.33623 | AE31: 68740.908 | AF31: 71146.83978 | AG31: 73636.97917 | AH31: 76214.27344 | AI31: 78881.77301 | AJ31: 81642.63507 | AN31: HEO 1-4 | AO31: Professional
E32: Year | X32: HEO 1-6 | Y32: 56817 | Z32: 58806 | AA32: =Z32*(1+$X$120) -> 60864.21 | AB32: 62994.45735 | AC32: 65199.26336 | AD32: 67481.23757 | AE32: 69843.08089 | AF32: 72287.58872 | AG32: 74817.65433 | AH32: 77436.27223 | AI32: 80146.54176 | AJ32: 82951.67072 | AN32: HEO 1-5 | AO32: Professional
E33: 2024 | X33: HEO 1-7 | Y33: 57713 | Z33: 59733 | AA33: =Z33*(1+$X$120) -> 61823.655 | AB33: 63987.48292 | AC33: 66227.04483 | AD33: 68544.9914 | AE33: 70944.0661 | AF33: 73427.10841 | AG33: 75997.0572 | AH33: 78656.9542 | AI33: 81409.9476 | AJ33: 84259.29577 | AN33: HEO 1-6 | AO33: Professional
E34: =E33+1 -> 2025 | X34: HEO 2-4 | Y34: 59504 | Z34: 61587 | AA34: =Z34*(1+$X$120) -> 63742.545 | AB34: 65973.53407 | AC34: 68282.60777 | AD34: 70672.49904 | AE34: 73146.03651 | AF34: 75706.14778 | AG34: 78355.86296 | AH34: 81098.31816 | AI34: 83936.7593 | AJ34: 86874.54587 | AN34: HEO 1-7 | AO34: Professional
E35: =E34+1 -> 2026 | X35: HEO 2-5 | Y35: 60704 | Z35: 62829 | AA35: =Z35*(1+$X$120) -> 65028.015 | AB35: 67303.99552 | AC35: 69659.63537 | AD35: 72097.72261 | AE35: 74621.1429 | AF35: 77232.8829 | AG35: 79936.0338 | AH35: 82733.79498 | AI35: 85629.47781 | AJ35: 88626.50953 | AN35: HEO 2-4 | AO35: Professional
E36: =E35+1 -> 2027 | X36: HEO 2-6 | Y36: 61897 | Z36: 64063 | AA36: =Z36*(1+$X$120) -> 66305.205 | AB36: 68625.88717 | AC36: 71027.79323 | AD36: 73513.76599 | AE36: 76086.7478 | AF36: 78749.78397 | AG36: 81506.02641 | AH36: 84358.73733 | AI36: 87311.29314 | AJ36: 90367.1884 | AN36: HEO 2-5 | AO36: Professional
E37: 2028 | X37: HEO 2-7 | Y37: 63088 | Z37: 65296 | AA37: =Z37*(1+$X$120) -> 67581.36 | AB37: 69946.7076 | AC37: 72394.84237 | AD37: 74928.66185 | AE37: 77551.16501 | AF37: 80265.45579 | AG37: 83074.74674 | AH37: 85982.36288 | AI37: 88991.74558 | AJ37: 92106.45667 | AN37: HEO 2-6 | AO37: Professional
E38: 2029 | X38: HEO 3-4 | Y38: 62494 | Z38: 64681 | AA38: =Z38*(1+$X$120) -> 66944.835 | AB38: 69287.90422 | AC38: 71712.98087 | AD38: 74222.9352 | AE38: 76820.73794 | AF38: 79509.46376 | AG38: 82292.295 | AH38: 85172.52532 | AI38: 88153.56371 | AJ38: 91238.93844 | AN38: HEO 2-7 | AO38: Professional
E39: 2030 | X39: HEO 3-5 | Y39: 64583 | Z39: 66843 | AA39: =Z39*(1+$X$120) -> 69182.505 | AB39: 71603.89267 | AC39: 74110.02892 | AD39: 76703.87993 | AE39: 79388.51573 | AF39: 82167.11378 | AG39: 85042.96276 | AH39: 88019.46646 | AI39: 91100.14778 | AJ39: 94288.65296 | AN39: HEO 3-4 | AO39: Professional
E40: 2031 | X40: HEO 3-6 | Y40: 66681 | Z40: 69015 | AA40: =Z40*(1+$X$120) -> 71430.525 | AB40: 73930.59337 | AC40: 76518.16414 | AD40: 79196.29989 | AE40: 81968.17038 | AF40: 84837.05635 | AG40: 87806.35332 | AH40: 90879.57569 | AI40: 94060.36084 | AJ40: 97352.47346 | AN40: HEO 3-5 | AO40: Professional
E41: 2032 | X41: HEO 3-7 | Y41: 68770 | Z41: 71177 | AA41: =Z41*(1+$X$120) -> 73668.195 | AB41: 76246.58182 | AC41: 78915.21219 | AD41: 81677.24462 | AE41: 84535.94818 | AF41: 87494.70636 | AG41: 90557.02109 | AH41: 93726.51682 | AI41: 97006.94491 | AJ41: 100402.188 | AN41: HEO 3-6 | AO41: Professional
E42: 2033 | X42: HEO 3-8 | Y42: 70860 | Z42: 73340 | AA42: =Z42*(1+$X$120) -> 75906.9 | AB42: 78563.6415 | AC42: 81313.36895 | AD42: 84159.33687 | AE42: 87104.91366 | AF42: 90153.58563 | AG42: 93308.96113 | AH42: 96574.77477 | AI42: 99954.89189 | AJ42: 103453.3131 | AN42: HEO 3-7 | AO42: Professional
E43: 2034 | X43: HEO 4-1 | Y43: 71460 | Z43: 73961 | AA43: =Z43*(1+$X$120) -> 76549.635 | AB43: 79228.87222 | AC43: 82001.88275 | AD43: 84871.94865 | AE43: 87842.46685 | AF43: 90916.95319 | AG43: 94099.04655 | AH43: 97392.51318 | AI43: 100801.2511 | AJ43: 104329.2949 | AN43: HEO 3-8 | AO43: Professional
E44: 2035 | X44: HEO 4-2 | Y44: 73542 | Z44: 76116 | AA44: =Z44*(1+$X$120) -> 78780.06 | AB44: 81537.3621 | AC44: 84391.16977 | AD44: 87344.86072 | AE44: 90401.93084 | AF44: 93565.99842 | AG44: 96840.80836 | AH44: 100230.2367 | AI44: 103738.2949 | AJ44: 107369.1353 | AN44: HEO 4-1 | AO44: Professional
X45: HEO 4-3 | Y45: 75934 | Z45: 78592 | AA45: =Z45*(1+$X$120) -> 81342.72 | AB45: 84189.7152 | AC45: 87136.35523 | AD45: 90186.12767 | AE45: 93342.64213 | AF45: 96609.63461 | AG45: 99990.97182 | AH45: 103490.6558 | AI45: 107112.8288 | AJ45: 110861.7778 | AN45: HEO 4-2 | AO45: Professional
X46: HEO 4-4 | Y46: 78326 | Z46: 81067 | AA46: =Z46*(1+$X$120) -> 83904.345 | AB46: 86840.99707 | AC46: 89880.43197 | AD46: 93026.24709 | AE46: 96282.16574 | AF46: 99652.04154 | AG46: 103139.863 | AH46: 106749.7582 | AI46: 110485.9997 | AJ46: 114353.0097 | AN46: HEO 4-3 | AO46: Professional
X47: HEO 5-1 | Y47: 80118 | Z47: 82922 | AA47: =Z47*(1+$X$120) -> 85824.27 | AB47: 88828.11945 | AC47: 91937.10363 | AD47: 95154.90226 | AE47: 98485.32384 | AF47: 101932.3102 | AG47: 105499.941 | AH47: 109192.439 | AI47: 113014.1743 | AJ47: 116969.6704 | AN47: HEO 4-4 | AO47: Professional
X48: HEO 5-2 | Y48: 82804 | Z48: 85702 | AA48: =Z48*(1+$X$120) -> 88701.57 | AB48: 91806.12495 | AC48: 95019.33932 | AD48: 98345.0162 | AE48: 101787.0918 | AF48: 105349.64 | AG48: 109036.8774 | AH48: 112853.1681 | AI48: 116803.029 | AJ48: 120891.135 | AN48: HEO 5-1 | AO48: Professional
X49: HEO 5-3 | Y49: 85797 | Z49: 88800 | AA49: =Z49*(1+$X$120) -> 91908 | AB49: 95124.78 | AC49: 98454.1473 | AD49: 101900.0425 | AE49: 105466.5439 | AF49: 109157.873 | AG49: 112978.3985 | AH49: 116932.6425 | AI49: 121025.285 | AJ49: 125261.1699 | AN49: HEO 5-2 | AO49: Professional
X50: HEO 5-4 | Y50: 89085 | Z50: 92203 | AA50: =Z50*(1+$X$120) -> 95430.105 | AB50: 98770.15867 | AC50: 102227.1142 | AD50: 105805.0632 | AE50: 109508.2404 | AF50: 113341.0289 | AG50: 117307.9649 | AH50: 121413.7436 | AI50: 125663.2247 | AJ50: 130061.4375 | AN50: HEO 5-3 | AO50: Professional
X51: HEO 6-1 | Y51: 89383 | Z51: 92511 | AA51: =Z51*(1+$X$120) -> 95748.885 | AB51: 99100.09597 | AC51: 102568.5993 | AD51: 106158.5003 | AE51: 109874.0478 | AF51: 113719.6395 | AG51: 117699.8269 | AH51: 121819.3208 | AI51: 126082.997 | AJ51: 130495.9019 | AN51: HEO 5-4 | AO51: Professional
X52: HEO 6-2 | Y52: 91772 | Z52: 94984 | AA52: =Z52*(1+$X$120) -> 98308.44 | AB52: 101749.2354 | AC52: 105310.4586 | AD52: 108996.3247 | AE52: 112811.1961 | AF52: 116759.5879 | AG52: 120846.1735 | AH52: 125075.7896 | AI52: 129453.4422 | AJ52: 133984.3127 | AN52: HEO 6-1 | AO52: Professional
X53: HEO 6-3 | Y53: 94163 | Z53: 97459 | AA53: =Z53*(1+$X$120) -> 100870.065 | AB53: 104400.5173 | AC53: 108054.5354 | AD53: 111836.4441 | AE53: 115750.7197 | AF53: 119801.9949 | AG53: 123995.0647 | AH53: 128334.8919 | AI53: 132826.6132 | AJ53: 137475.5446 | AN53: HEO 6-2 | AO53: Professional
X54: HEO 6-4 | Y54: 96550 | Z54: 99929 | AA54: =Z54*(1+$X$120) -> 103426.515 | AB54: 107046.443 | AC54: 110793.0685 | AD54: 114670.8259 | AE54: 118684.3048 | AF54: 122838.2555 | AG54: 127137.5944 | AH54: 131587.4103 | AI54: 136192.9696 | AJ54: 140959.7236 | AN54: HEO 6-3 | AO54: Professional
X55: HEO 7-1 | Y55: 98343 | Z55: 101785 | AA55: =Z55*(1+$X$120) -> 105347.475 | AB55: 109034.6366 | AC55: 112850.8489 | AD55: 116800.6286 | AE55: 120888.6506 | AF55: 125119.7534 | AG55: 129498.9448 | AH55: 134031.4078 | AI55: 138722.5071 | AJ55: 143577.7948 | AN55: HEO 6-4 | AO55: Professional
X56: HEO 7-2 | Y56: 101028 | Z56: 104564 | AA56: =Z56*(1+$X$120) -> 108223.74 | AB56: 112011.5709 | AC56: 115931.9759 | AD56: 119989.595 | AE56: 124189.2309 | AF56: 128535.8539 | AG56: 133034.6088 | AH56: 137690.8201 | AI56: 142509.9988 | AJ56: 147497.8488 | AN56: HEO 7-1 | AO56: Professional
X57: HEO 7-3 | Y57: 104016 | Z57: 107657 | AA57: =Z57*(1+$X$120) -> 111424.995 | AB57: 115324.8698 | AC57: 119361.2403 | AD57: 123538.8837 | AE57: 127862.7446 | AF57: 132337.9407 | AG57: 136969.7686 | AH57: 141763.7105 | AI57: 146725.4404 | AJ57: 151860.8308 | AN57: HEO 7-2 | AO57: Professional
X58: HEO 7-4 | Y58: 107009 | Z58: 110754 | AA58: =Z58*(1+$X$120) -> 114630.39 | AB58: 118642.4536 | AC58: 122794.9395 | AD58: 127092.7624 | AE58: 131541.0091 | AF58: 136144.9444 | AG58: 140910.0175 | AH58: 145841.8681 | AI58: 150946.3335 | AJ58: 156229.4551 | AN58: HEO 7-3 | AO58: Professional
X59: HEO 7-5 | Y59: 109989 | Z59: 113839 | AA59: =Z59*(1+$X$120) -> 117823.365 | AB59: 121947.1828 | AC59: 126215.3342 | AD59: 130632.8709 | AE59: 135205.0213 | AF59: 139937.1971 | AG59: 144834.999 | AH59: 149904.224 | AI59: 155150.8718 | AJ59: 160581.1523 | AN59: HEO 7-4 | AO59: Professional
X60: HEO 8-1 | Y60: 110291 | Z60: 114151 | AA60: =Z60*(1+$X$120) -> 118146.285 | AB60: 122281.405 | AC60: 126561.2541 | AD60: 130990.898 | AE60: 135575.5795 | AF60: 140320.7248 | AG60: 145231.9501 | AH60: 150315.0684 | AI60: 155576.0958 | AJ60: 161021.2591 | AN60: HEO 7-5 | AO60: Professional
X61: HEO 8-2 | Y61: 113281 | Z61: 117246 | AA61: =Z61*(1+$X$120) -> 121349.61 | AB61: 125596.8463 | AC61: 129992.736 | AD61: 134542.4817 | AE61: 139251.4686 | AF61: 144125.27 | AG61: 149169.6544 | AH61: 154390.5923 | AI61: 159794.2631 | AJ61: 165387.0623 | AN61: HEO 8-1 | AO61: Professional
X62: HEO 8-3 | Y62: 116269 | Z62: 120338 | AA62: =Z62*(1+$X$120) -> 124549.83 | AB62: 128909.074 | AC62: 133420.8916 | AD62: 138090.6228 | AE62: 142923.7946 | AF62: 147926.1275 | AG62: 153103.5419 | AH62: 158462.1659 | AI62: 164008.3417 | AJ62: 169748.6337 | AN62: HEO 8-2 | AO62: Professional
X63: HEO 8-4 | Y63: 119847 | Z63: 124042 | AA63: =Z63*(1+$X$120) -> 128383.47 | AB63: 132876.8914 | AC63: 137527.5827 | AD63: 142341.048 | AE63: 147322.9847 | AF63: 152479.2892 | AG63: 157816.0643 | AH63: 163339.6266 | AI63: 169056.5135 | AJ63: 174973.4915 | AN63: HEO 8-3 | AO63: Professional
X64: HEO 8-5 | Y64: 123734 | Z64: 128065 | AA64: =Z64*(1+$X$120) -> 132547.275 | AB64: 137186.4296 | AC64: 141987.9547 | AD64: 146957.5331 | AE64: 152101.0467 | AF64: 157424.5834 | AG64: 162934.4438 | AH64: 168637.1493 | AI64: 174539.4495 | AJ64: 180648.3303 | AN64: HEO 8-4 | AO64: Professional
X65: HEO 9-1 | Y65: 128217 | Z65: 132705 | AA65: =Z65*(1+$X$120) -> 137349.675 | AB65: 142156.9136 | AC65: 147132.4056 | AD65: 152282.0398 | AE65: 157611.9112 | AF65: 163128.3281 | AG65: 168837.8196 | AH65: 174747.1433 | AI65: 180863.2933 | AJ65: 187193.5085 | AN65: HEO 8-5 | AO65: Professional
X66: HEO 9-2 | Y66: 132395 | Z66: 137029 | AA66: =Z66*(1+$X$120) -> 141825.015 | AB66: 146788.8905 | AC66: 151926.5017 | AD66: 157243.9293 | AE66: 162747.4668 | AF66: 168443.6281 | AG66: 174339.1551 | AH66: 180441.0255 | AI66: 186756.4614 | AJ66: 193292.9376 | AN66: HEO 9-1 | AO66: Professional
X67: HEO 9-3 | Y67: 137173 | Z67: 141974 | AA67: =Z67*(1+$X$120) -> 146943.09 | AB67: 152086.0981 | AC67: 157409.1116 | AD67: 162918.4305 | AE67: 168620.5756 | AF67: 174522.2957 | AG67: 180630.5761 | AH67: 186952.6462 | AI67: 193495.9888 | AJ67: 200268.3484 | AN67: HEO 9-2 | AO67: Professional
X68: HEO 10-1 | Y68: 141610 | Z68: 146566 | AA68: =Z68*(1+$X$120) -> 151695.81 | AB68: 157005.1633 | AC68: 162500.3441 | AD68: 168187.8561 | AE68: 174074.4311 | AF68: 180167.0362 | AG68: 186472.8824 | AH68: 192999.4333 | AI68: 199754.4135 | AJ68: 206745.8179 | AN68: HEO 9-3 | AO68: Professional
X69: HEO 10-2 | Y69: 146193 | Z69: 151310 | AA69: =Z69*(1+$X$120) -> 156605.85 | AB69: 162087.0547 | AC69: 167760.1017 | AD69: 173631.7052 | AE69: 179708.8149 | AF69: 185998.6234 | AG69: 192508.5752 | AH69: 199246.3754 | AI69: 206219.9985 | AJ69: 213437.6985 | AN69: HEO 10-1 | AO69: Professional
X70: HEO 10-3 | Y70: 150927 | Z70: 156209 | AA70: =Z70*(1+$X$120) -> 161676.315 | AB70: 167334.986 | AC70: 173191.7105 | AD70: 179253.4204 | AE70: 185527.2901 | AF70: 192020.7453 | AG70: 198741.4714 | AH70: 205697.4229 | AI70: 212896.8327 | AJ70: 220348.2218 | AN70: HEO 10-2 | AO70: Professional
X71: Senior Manager 1 | Y71: 161999 | Z71: 167669 | AA71: =Z71*(1+$X$120) -> 173537.415 | AB71: 179611.2245 | AC71: 185897.6174 | AD71: 192404.034 | AE71: 199138.1752 | AF71: 206108.0113 | AG71: 213321.7917 | AH71: 220788.0544 | AI71: 228515.6363 | AJ71: 236513.6836 | AN71: HEO 10-3 | AO71: Professional
X72: Senior Manager 2 | Y72: 181577 | Z72: 187932 | AA72: =Z72*(1+$X$120) -> 194509.62 | AB72: 201317.4567 | AC72: 208363.5677 | AD72: 215656.2926 | AE72: 223204.2628 | AF72: 231016.412 | AG72: 239101.9864 | AH72: 247470.5559 | AI72: 256132.0254 | AJ72: 265096.6463 | AN72: Senior Manager 1 | AO72: Professional
X73: Senior Manager 3 | Y73: 193809 | Z73: 200592 | AA73: =Z73*(1+$X$120) -> 207612.72 | AB73: 214879.1652 | AC73: 222399.936 | AD73: 230183.9337 | AE73: 238240.3714 | AF73: 246578.7844 | AG73: 255209.0419 | AH73: 264141.3583 | AI73: 273386.3059 | AJ73: 282954.8266 | AN73: Senior Manager 2 | AO73: Professional
AN74: Senior Manager 3 | AO74: Professional
X75: Casual Salaries | Y75: 2024 | Z75: 2025 | AA75: 2026 | AB75: 2027 | AC75: 2028 | AD75: 2029 | AE75: 2030 | AF75: 2031 | AG75: 2032 | AH75: 2033 | AI75: 2034 | AJ75: 2035
X76: Academic | Y76: 53.13 | Z76: 54.99 | AA76: =Z76*(1+$X$120) -> 56.91465 | AB76: 58.90666275 | AC76: 60.96839595 | AD76: 63.1022898 | AE76: 65.31086995 | AF76: 67.5967504 | AG76: 69.96263666 | AH76: 72.41132894 | AI76: 74.94572546 | AJ76: 77.56882585
X77: HEO 1-4 | Y77: 36.19 | Z77: 37.46 | AA77: =Z77*(1+$X$120) -> 38.7711 | AB77: 40.1280885 | AC77: 41.5325716 | AD77: 42.9862116 | AE77: 44.49072901 | AF77: 46.04790452 | AG77: 47.65958118 | AH77: 49.32766652 | AI77: 51.05413485 | AJ77: 52.84102957
X78: HEO 1-5 | Y78: 36.58 | Z78: 37.86 | AA78: =Z78*(1+$X$120) -> 39.1851 | AB78: 40.5565785 | AC78: 41.97605875 | AD78: 43.4452208 | AE78: 44.96580353 | AF78: 46.53960666 | AG78: 48.16849289 | AH78: 49.85439014 | AI78: 51.59929379 | AJ78: 53.40526908
X79: HEO 1-6 | Y79: 37.16 | Z79: 38.47 | AA79: =Z79*(1+$X$120) -> 39.81645 | AB79: 41.21002575 | AC79: 42.65237665 | AD79: 44.14520983 | AE79: 45.69029218 | AF79: 47.2894524 | AG79: 48.94458324 | AH79: 50.65764365 | AI79: 52.43066118 | AJ79: 54.26573432
X80: HEO 1-7 | Y80: 37.75 | Z80: 39.07 | AA80: =Z80*(1+$X$120) -> 40.43745 | AB80: 41.85276075 | AC80: 43.31760738 | AD80: 44.83372363 | AE80: 46.40290396 | AF80: 48.0270056 | AG80: 49.7079508 | AH80: 51.44772907 | AI80: 53.24839959 | AJ80: 55.11209358
X81: HEO 2-4 | Y81: 38.92 | Z81: 40.28 | AA81: =Z81*(1+$X$120) -> 41.6898 | AB81: 43.148943 | AC81: 44.659156 | AD81: 46.22222647 | AE81: 47.84000439 | AF81: 49.51440455 | AG81: 51.2474087 | AH81: 53.04106801 | AI81: 54.89750539 | AJ81: 56.81891808
X82: HEO 2-5 | Y82: 39.71 | Z82: 41.1 | AA82: =Z82*(1+$X$120) -> 42.5385 | AB82: 44.0273475 | AC82: 45.56830466 | AD82: 47.16319533 | AE82: 48.81390716 | AF82: 50.52239391 | AG82: 52.2906777 | AH82: 54.12085142 | AI82: 56.01508122 | AJ82: 57.97560906
X83: HEO 2-6 | Y83: 40.49 | Z83: 41.9 | AA83: =Z83*(1+$X$120) -> 43.3665 | AB83: 44.8843275 | AC83: 46.45527896 | AD83: 48.08121373 | AE83: 49.76405621 | AF83: 51.50579817 | AG83: 53.30850111 | AH83: 55.17429865 | AI83: 57.1053991 | AJ83: 59.10408807
X84: HEO 2-7 | Y84: 41.27 | Z84: 42.71 | AA84: =Z84*(1+$X$120) -> 44.20485 | AB84: 45.75201975 | AC84: 47.35334044 | AD84: 49.01070736 | AE84: 50.72608211 | AF84: 52.50149499 | AG84: 54.33904731 | AH84: 56.24091397 | AI84: 58.20934596 | AJ84: 60.24667307
X85: HEO 3-4 | Y85: 40.88 | Z85: 42.31 | AA85: =Z85*(1+$X$120) -> 43.79085 | AB85: 45.32352975 | AC85: 46.90985329 | AD85: 48.55169816 | AE85: 50.25100759 | AF85: 52.00979286 | AG85: 53.83013561 | AH85: 55.71419035 | AI85: 57.66418702 | AJ85: 59.68243356
X86: HEO 3-5 | Y86: 42.24 | Z86: 43.72 | AA86: =Z86*(1+$X$120) -> 45.2502 | AB86: 46.833957 | AC86: 48.47314549 | AD86: 50.16970559 | AE86: 51.92564528 | AF86: 53.74304287 | AG86: 55.62404937 | AH86: 57.5708911 | AI86: 59.58587228 | AJ86: 61.67137781
X87: HEO 3-6 | Y87: 43.62 | Z87: 45.14 | AA87: =Z87*(1+$X$120) -> 46.7199 | AB87: 48.3550965 | AC87: 50.04752488 | AD87: 51.79918825 | AE87: 53.61215984 | AF87: 55.48858543 | AG87: 57.43068592 | AH87: 59.44075993 | AI87: 61.52118653 | AJ87: 63.67442805
X88: HEO 3-7 | Y88: 44.98 | Z88: 46.56 | AA88: =Z88*(1+$X$120) -> 48.1896 | AB88: 49.876236 | AC88: 51.62190426 | AD88: 53.42867091 | AE88: 55.29867439 | AF88: 57.23412799 | AG88: 59.23732247 | AH88: 61.31062876 | AI88: 63.45650077 | AJ88: 65.67747829
X89: HEO 3-8 | Y89: 46.35 | Z89: 47.97 | AA89: =Z89*(1+$X$120) -> 49.64895 | AB89: 51.38666325 | AC89: 53.18519646 | AD89: 55.04667834 | AE89: 56.97331208 | AF89: 58.967378 | AG89: 61.03123623 | AH89: 63.1673295 | AI89: 65.37818604 | AJ89: 67.66642255
X90: HEO 4-1 | Y90: 46.74 | Z90: 48.38 | AA90: =Z90*(1+$X$120) -> 50.0733 | AB90: 51.8258655 | AC90: 53.63977079 | AD90: 55.51716277 | AE90: 57.46026347 | AF90: 59.47137269 | AG90: 61.55287073 | AH90: 63.70722121 | AI90: 65.93697395 | AJ90: 68.24476804
X91: HEO 4-2 | Y91: 48.1 | Z91: 49.79 | AA91: =Z91*(1+$X$120) -> 51.53265 | AB91: 53.33629275 | AC91: 55.203063 | AD91: 57.1351702 | AE91: 59.13490116 | AF91: 61.2046227 | AG91: 63.34678449 | AH91: 65.56392195 | AI91: 67.85865922 | AJ91: 70.23371229
X92: HEO 4-3 | Y92: 49.67 | Z92: 51.41 | AA92: =Z92*(1+$X$120) -> 53.20935 | AB92: 55.07167725 | AC92: 56.99918595 | AD92: 58.99415746 | AE92: 61.05895297 | AF92: 63.19601633 | AG92: 65.4078769 | AH92: 67.69715259 | AI92: 70.06655293 | AJ92: 72.51888228
X93: HEO 4-4 | Y93: 51.23 | Z93: 53.03 | AA93: =Z93*(1+$X$120) -> 54.88605 | AB93: 56.80706175 | AC93: 58.79530891 | AD93: 60.85314472 | AE93: 62.98300479 | AF93: 65.18740996 | AG93: 67.4689693 | AH93: 69.83038323 | AI93: 72.27444664 | AJ93: 74.80405228
X94: HEO 5-1 | Y94: 52.41 | Z94: 54.24 | AA94: =Z94*(1+$X$120) -> 56.1384 | AB94: 58.103244 | AC94: 60.13685754 | AD94: 62.24164755 | AE94: 64.42010522 | AF94: 66.6748089 | AG94: 69.00842721 | AH94: 71.42372216 | AI94: 73.92355244 | AJ94: 76.51087678
X95: HEO 5-2 | Y95: 54.16 | Z95: 56.06 | AA95: =Z95*(1+$X$120) -> 58.0221 | AB95: 60.0528735 | AC95: 62.15472407 | AD95: 64.33013942 | AE95: 66.58169429 | AF95: 68.91205359 | AG95: 71.32397547 | AH95: 73.82031461 | AI95: 76.40402562 | AJ95: 79.07816652
X96: HEO 5-3 | Y96: 56.12 | Z96: 58.08 | AA96: =Z96*(1+$X$120) -> 60.1128 | AB96: 62.216748 | AC96: 64.39433418 | AD96: 66.64813588 | AE96: 68.98082063 | AF96: 71.39514935 | AG96: 73.89397958 | AH96: 76.48026887 | AI96: 79.15707828 | AJ96: 81.92757602
X97: HEO 5-4 | Y97: 58.27 | Z97: 60.31 | AA97: =Z97*(1+$X$120) -> 62.42085 | AB97: 64.60557975 | AC97: 66.86677504 | AD97: 69.20711217 | AE97: 71.62936109 | AF97: 74.13638873 | AG97: 76.73116234 | AH97: 79.41675302 | AI97: 82.19633937 | AJ97: 85.07321125
X98: HEO 6-1 | Y98: 58.47 | Z98: 60.51 | AA98: =Z98*(1+$X$120) -> 62.62785 | AB98: 64.81982475 | AC98: 67.08851862 | AD98: 69.43661677 | AE98: 71.86689835 | AF98: 74.3822398 | AG98: 76.98561819 | AH98: 79.68011483 | AI98: 82.46891885 | AJ98: 85.35533101
X99: HEO 6-2 | Y99: 60.03 | Z99: 62.13 | AA99: =Z99*(1+$X$120) -> 64.30455 | AB99: 66.55520925 | AC99: 68.88464157 | AD99: 71.29560403 | AE99: 73.79095017 | AF99: 76.37363343 | AG99: 79.0467106 | AH99: 81.81334547 | AI99: 84.67681256 | AJ99: 87.640501
X100: HEO 6-3 | Y100: 61.59 | Z100: 63.75 | AA100: =Z100*(1+$X$120) -> 65.98125 | AB100: 68.29059375 | AC100: 70.68076453 | AD100: 73.15459129 | AE100: 75.71500198 | AF100: 78.36502705 | AG100: 81.107803 | AH100: 83.94657611 | AI100: 86.88470627 | AJ100: 89.92567099
X101: HEO 6-4 | Y101: 63.15 | Z101: 65.36 | AA101: =Z101*(1+$X$120) -> 67.6476 | AB101: 70.015266 | AC101: 72.46580031 | AD101: 75.00210332 | AE101: 77.62717694 | AF101: 80.34412813 | AG101: 83.15617261 | AH101: 86.06663866 | AI101: 89.07897101 | AJ101: 92.19673499
X102: HEO 7-1 | Y102: 64.33 | Z102: 66.58 | AA102: =Z102*(1+$X$120) -> 68.9103 | AB102: 71.3221605 | AC102: 73.81843612 | AD102: 76.40208138 | AE102: 79.07615423 | AF102: 81.84381963 | AG102: 84.70835331 | AH102: 87.67314568 | AI102: 90.74170578 | AJ102: 93.91766548
X103: HEO 7-2 | Y103: 66.08 | Z103: 68.4 | AA103: =Z103*(1+$X$120) -> 70.794 | AB103: 73.27179 | AC103: 75.83630265 | AD103: 78.49057324 | AE103: 81.23774331 | AF103: 84.08106432 | AG103: 87.02390157 | AH103: 90.06973813 | AI103: 93.22217896 | AJ103: 96.48495523
X104: HEO 7-3 | Y104: 68.04 | Z104: 70.42 | AA104: =Z104*(1+$X$120) -> 72.8847 | AB104: 75.4356645 | AC104: 78.07591276 | AD104: 80.8085697 | AE104: 83.63686964 | AF104: 86.56416008 | AG104: 89.59390568 | AH104: 92.72969238 | AI104: 95.97523162 | AJ104: 99.33436472
X105: HEO 7-4 | Y105: 70 | Z105: 72.45 | AA105: =Z105*(1+$X$120) -> 74.98575 | AB105: 77.61025125 | AC105: 80.32661004 | AD105: 83.1380414 | AE105: 86.04787284 | AF105: 89.05954839 | AG105: 92.17663259 | AH105: 95.40281473 | AI105: 98.74191324 | AJ105: 102.1978802
X106: HEO 7-5 | Y106: 71.94 | Z106: 74.46 | AA106: =Z106*(1+$X$120) -> 77.0661 | AB106: 79.7634135 | AC106: 82.55513297 | AD106: 85.44456263 | AE106: 88.43512232 | AF106: 91.5303516 | AG106: 94.73391391 | AH106: 98.04960089 | AI106: 101.4813369 | AJ106: 105.0331837
X107: HEO 8-1 | Y107: 72.14 | Z107: 74.67 | AA107: =Z107*(1+$X$120) -> 77.28345 | AB107: 79.98837075 | AC107: 82.78796373 | AD107: 85.68554246 | AE107: 88.68453644 | AF107: 91.78849522 | AG107: 95.00109255 | AH107: 98.32613079 | AI107: 101.7675454 | AJ107: 105.3294095
X108: HEO 8-2 | Y108: 74.1 | Z108: 76.69 | AA108: =Z108*(1+$X$120) -> 79.37415 | AB108: 82.15224525 | AC108: 85.02757383 | AD108: 88.00353892 | AE108: 91.08366278 | AF108: 94.27159098 | AG108: 97.57109666 | AH108: 100.986085 | AI108: 104.520598 | AJ108: 108.178819
X109: HEO 8-3 | Y109: 76.05 | Z109: 78.71 | AA109: =Z109*(1+$X$120) -> 81.46485 | AB109: 84.31611975 | AC109: 87.26718394 | AD109: 90.32153538 | AE109: 93.48278912 | AF109: 96.75468674 | AG109: 100.1411008 | AH109: 103.6460393 | AI109: 107.2736507 | AJ109: 111.0282284
X110: HEO 8-4 | Y110: 78.39 | Z110: 81.14 | AA110: =Z110*(1+$X$120) -> 83.9799 | AB110: 86.9191965 | AC110: 89.96136838 | AD110: 93.11001627 | AE110: 96.36886684 | AF110: 99.74177718 | AG110: 103.2327394 | AH110: 106.8458853 | AI110: 110.5854912 | AJ110: 114.4559834
X111: HEO 8-5 | Y111: 80.94 | Z111: 83.77 | AA111: =Z111*(1+$X$120) -> 86.70195 | AB111: 89.73651825 | AC111: 92.87729639 | AD111: 96.12800176 | AE111: 99.49248182 | AF111: 102.9747187 | AG111: 106.5788338 | AH111: 110.309093 | AI111: 114.1699113 | AJ111: 118.1658582
X112: HEO 9-1 | Y112: 83.87 | Z112: 86.8 | AA112: =Z112*(1+$X$120) -> 89.838 | AB112: 92.98233 | AC112: 96.23671155 | AD112: 99.60499645 | AE112: 103.0911713 | AF112: 106.6993623 | AG112: 110.43384 | AH112: 114.2990244 | AI112: 118.2994903 | AJ112: 122.4399724
X113: HEO 9-2 | Y113: 86.6 | Z113: 89.63 | AA113: =Z113*(1+$X$120) -> 92.76705 | AB113: 96.01389675 | AC113: 99.37438314 | AD113: 102.8524865 | AE113: 106.4523236 | AF113: 110.1781549 | AG113: 114.0343903 | AH113: 118.025594 | AI113: 122.1564898 | AJ113: 126.4319669
X114: HEO 9-3 | Y114: 89.73 | Z114: 92.87 | AA114: =Z114*(1+$X$120) -> 96.12045 | AB114: 99.48466575 | AC114: 102.9666291 | AD114: 106.5704611 | AE114: 110.3004272 | AF114: 114.1609422 | AG114: 118.1565751 | AH114: 122.2920553 | AI114: 126.5722772 | AJ114: 131.0023069
X115: HEO 10-1 | Y115: 92.63 | Z115: 95.87 | AA115: =Z115*(1+$X$120) -> 99.22545 | AB115: 102.6983407 | AC115: 106.2927827 | AD115: 110.0130301 | AE115: 113.8634861 | AF115: 117.8487081 | AG115: 121.9734129 | AH115: 126.2424824 | AI115: 130.6609693 | AJ115: 135.2341032
X116: HEO 10-2 | Y116: 95.63 | Z116: 98.97 | AA116: =Z116*(1+$X$120) -> 102.43395 | AB116: 106.0191382 | AC116: 109.7298081 | AD116: 113.5703514 | AE116: 117.5453137 | AF116: 121.6593996 | AG116: 125.9174786 | AH116: 130.3245904 | AI116: 134.8859511 | AJ116: 139.6069593
X117: HEO 10-3 | Y117: 98.72 | Z117: 102.18 | AA117: =Z117*(1+$X$120) -> 105.7563 | AB117: 109.4577705 | AC117: 113.2887925 | AD117: 117.2539002 | AE117: 121.3577867 | AF117: 125.6053092 | AG117: 130.0014951 | AH117: 134.5515474 | AI117: 139.2608516 | AJ117: 144.1349814
X119: Indexation %
X120: 0.035
X122: Year | Y122: Indexation
X123: 0
X124: 1 | Y124: 0.035
X125: 2 | Y125: =Y124+0.035 -> 0.07
X126: 3 | Y126: =Y125+0.03 -> 0.1
X127: 4 | Y127: =Y126+0.03 -> 0.13
X128: 5 | Y128: 0.16
X129: 6 | Y129: 0.19
X130: 7 | Y130: 0.22
X131: 8 | Y131: 0.25
X132: 9 | Y132: 0.28
X133: 10 | Y133: 0.31
X134: 11 | Y134: 0.34

Sheet Title
D1: This file has expired. Existing CPMs can still be viewed. However, for new applications, please download the current file from
D4: https://www.adelaide.edu.au/finance/
D6: UoA Costing Pricing Tool (CPT)
D26: Version: | F26: 2024.1
D27: Last updated: | F27: 2024-05-07

Sheet Instructions - detailed
C1: =Title!$D$1 -> This file has expired. Existing CPMs can still be viewed. However, for new applications, please download the current file from
C3: =Title!$D$4 -> https://www.adelaide.edu.au/finance/
C4: Please enter data in the yellow cells only in the "ENTER DETAILS HERE Costing tab".
B6: To access each section of the Costing Tab, press the Button at the top of the page.
B8: Project Details
B9: Information | C9: Cell Reference | D9: Data Entry Type | E9: Additional Information
B10: Preparation Date | C10: G13 | D10: Data entry
B11: Proposal Title | C11: G14 | D11: Data entry
B12: Sponsor Name (Funder) | C12: G15 | D12: Data entry
B13: Chief Investigator | C13: G16 | D13: Data entry
B14: Contract ID | C14: G17 | D14: Data entry
B15: Project ID (Internal Reference) | C15: G18 | D15: Data entry
B16: Funder ID (External Reference) | C16: G19 | D16: Data entry
B17: Lead Agency (Admin Organisation) | C17: G20 | D17: Data entry | E17: Use full name ie University of Adelaide
B18: Commencement Date | C18: G21 | D18: Data entry
B19: Completion Date | C19: G22 | D19: Data entry
B20: Project Type | C20: G24 | D20: Drop-down selection | E20: Consultancy, Contract Research, Limited Contract Research, Limited Consultancy, Grant, Collaboration Agreement, Other
B21: HERDC Category | C21: G25 | D21: Drop-down selection | E21: Category 1, Category 2, Category 3, Category 4
B22: HERDC SubCategory | C22: G27 | D22: Drop-down selection | E22: Selection is limited to the subcategories within the category selected in cell G25
B23: Affiliate Organisation | C23: G28 | D23: Drop-down selection | E23: E.g. PIRSA/SARDI
B24: Faculty/Institute | C24: G29 | D24: Drop-down selection | E24: ABLE, SET, H&MS
B25: School | C25: G30 | D25: Drop-down selection | E25: Selection is limited to the schools within the faculty selected in cell G29
B27: Total Project Budget
B28: - This section is only required to be completed if the University of Adelaide is not the lead agency.
B30: Additional question for consultancy projects (cell G32):
B31: Is salary listed already covered by other externally funded project and no back fill is required - if Yes finance will not transfer salaries to this project.
B33: Collaborators
B34: - This section allows users to list the collaborators working on the project.
B35: - This list is then available as a drop-down menu for each expense type (except for collaborator payments and subcontractor payments).
B37: Other Contributions
B38: Information | C38: Column Ref | D38: Data Entry Type
B39: Organisation | C39: Column E | D39: Data entry
B40: Brief Description | C40: Column G | D40: Data entry
B41: Start Year | C41: Column L | D41: Drop-down selection
B42: End Year | C42: Column M | D42: Drop-down selection
B43: Price | C43: Column N | D43: Data entry
B45: Salaries & Wages
B46: Continuing & Fixed Term Salaries - MONTHLY / ANNUAL
B47: Information | C47: Column Ref | D47: Data Entry Type | E47: Additional Information
B48: Salary Segment | C48: Column F | D48: Drop-down selection | E48: Discretionary, Tied, Combination
B49: Level of Staff Member | C49: Column G | D49: Drop-down selection
B50: Funding Source | C50: Column H | D50: Drop-down selection | E50: Funded, Inkind, Ineligible Expense
B51: Start Month | C51: Column I | D51: Drop-down selection
B52: Start Year | C52: Column J | D52: Drop-down selection
B53: End Month | C53: Column K | D53: Drop-down selection
B54: End Year | C54: Column L | D54: Drop-down selection
B55: FTE | C55: Column M | D55: Data entry
B56: Loadings | C56: Column N | D56: Data entry | E56: This will automatically increase with CPI. It will also take into if staff is only employed for part of the year.
B57: % included in Project Pricing | C57: Column Z | D57: Data entry | E57: Only required for funded expenses but the sponsor is only paying a % of the total cost
B58: Amount included in Project Pricing | C58: Column AA | D58: Data entry | E58: Only required for funded expenses but the sponsor's payment is capped
B59: Reason for the cost not being fully funded by the sponsor | C59: Column AB | D59: Data entry | E59: Only required for partly funded expenses
B61: Continuing & Fixed Term Salaries - HOURLY / DAILY / WEEKLY
B62: Information | C62: Column Ref | D62: Data Entry Type | E62: Additional Information
B63: Salary Segment | C63: Column F | D63: Drop-down selection | E63: Discretionary, Tied, Combination
B64: Level of Staff Member | C64: Column G | D64: Drop-down selection
B65: Funding Source | C65: Column H | D65: Drop-down selection | E65: Funded, Inkind, Ineligible Expense
B66: Year | C66: Column I | D66: Drop-down selection
B67: FTE | C67: Column J | D67: Data entry
B68: Rate | C68: Column K | D68: Drop-down selection | E68: Hourly, Daily, Weekly
B69: Unit | C69: Column L | D69: Data entry
B70: Loadings | C70: Column N | D70: Data entry | E70: This will automatically increase with CPI. It will also take into if staff is only employed for part of the year.
B71: % included in Project Pricing | C71: Column Z | D71: Data entry | E71: Only required for funded expenses but the sponsor is only paying a % of the total cost
B72: Amount included in Project Pricing | C72: Column AA | D72: Data entry | E72: Only required for funded expenses but the sponsor's payment is capped
B73: Reason for the cost not being fully funded by the sponsor | C73: Column AB | D73: Data entry | E73: Only required for partly funded expenses
B75: Casual Salaries
B76: Information | C76: Column Ref | D76: Data Entry Type | E76: Additional Information
B77: Salary Segment | C77: Column F | D77: Drop-down selection | E77: Discretionary, Tied
B78: Level of Staff Member | C78: Column H | D78: Drop-down selection
B79: Funding Source | C79: Column K | D79: Drop-down selection | E79: Funded, Inkind, Ineligible Expense
B80: Start Year | C80: Column L | D80: Drop-down selection
B81: End Year | C81: Column M | D81: Drop-down selection
B82: Hours per year | C82: Column N | D82: Data entry
B83: % included in Project Pricing | C83: Column Z | D83: Data entry | E83: Only required for funded expenses but the sponsor is only paying a % of the total cost
B84: Amount included in Project Pricing | C84: Column AA | D84: Data entry | E84: Only required for funded expenses but the sponsor's payment is capped
B85: Reason for the cost not being fully funded by the sponsor | C85: Column AB | D85: Data entry | E85: Only required for partly funded expenses
B87: Operating Expenses
B88: Operating Expenses - includes Temporary/Agency Staff Costs, Collaborator Payments, Subcontractor Payments, Capital Item > $10k, Other Operating Expenses
B89: Information | C89: Column Ref | D89: Data Entry Type | E89: Additional Information
B90: Expense Type | C90: Column E | D90: Drop-down selection | E90: Temporary/Agency Staff, Collaborator Payments, Subcontractor Payments, Capital Item > $10k, Other Operating Expenses
B91: Brief Description | C91: Column G | D91: Data entry
B92: Funding Source | C92: Column I | D92: Drop-down selection | E92: Funded, Inkind, Ineligible Expense
B93: Start Year | C93: Column J | D93: Drop-down selection
B94: End Year | C94: Column K | D94: Drop-down selection
B95: Quantity / Hours Per Year | C95: Column L | D95: Data entry | E95: Only required for Temporary/Agency Staff (hours per year) or Other Operating Expenses (quantity)
B96: Annual Cost / Hourly Rate | C96: Column N | D96: Data entry | E96: Hourly rate for Temporary/Agency Staff; Annual cost for other expense types
B97: % included in Project Pricing | C97: Column Z | D97: Data entry | E97: Only required for funded expenses but the sponsor is only paying a % of the total cost
B98: Amount included in Project Pricing | C98: Column AA | D98: Data entry | E98: Only required for funded expenses but the sponsor's payment is capped
B99: Reason for the cost not being fully funded by the sponsor | C99: Column AB | D99: Data entry | E99: Only required for partly funded expenses
B101: Stipends/Scholarships
B102: Information | C102: Column Ref | D102: Data Entry Type | E102: Additional Information
B103: Student Number (if known) | C103: Column E | D103: Data entry
B104: Student Name (if known) | C104: Column G | D104: Data entry
B105: Stipend Type | C105: Column I | D105: Drop-down selection | E105: University Rate, Industry Funded, Top-up to Industry Rate
B106: Funding Source | C106: Column J | D106: Drop-down selection | E106: Funded, Inkind, Ineligible Expense
B107: Start Year | C107: Column K | D107: Drop-down selection
B108: FTE | C108: Column L | D108: Data entry
B109: Amount | C109: Column M | D109: Data entry | E109: Only required for Industry Funded and Top-up to Industry Rate stipend types. This will be blank for University Rate stipend type.
B110: % included in Project Pricing | C110: Column Z | D110: Data entry | E110: Only required for funded expenses but the sponsor is only paying a % of the total cost
B111: Amount included in Project Pricing | C111: Column AA | D111: Data entry | E111: Only required for funded expenses but the sponsor's payment is capped
B112: Reason for the cost not being fully funded by the sponsor | C112: Column AB | D112: Data entry | E112: Only required for partly funded expenses
B114: Travel Expenses | C114: Enter Travel as allowed by Funder. Enter type of travel and destination
B115: Information | C115: Column Ref | D115: Data Entry Type | E115: Additional Information
B116: Destination & Type of Travel | C116: Column E | D116: Data entry
B117: Purpose | C117: Column H | D117: Drop-down selection | E117: Conference, Field, Other
B118: Funding Source | C118: Column I | D118: Drop-down selection | E118: Funded, Inkind, Ineligible Expense
B119: Year | C119: Column J | D119: Drop-down selection
B120: Airfares Cost | C120: Column K | D120: Data entry
B121: Accommodation Cost | C121: Column L | D121: Data entry
B122: Meals/Incidentals Cost | C122: Column M | D122: Data entry
B123: Other Cost | C123: Column N | D123: Data entry
B124: % included in Project Pricing | C124: Column Z | D124: Data entry | E124: Only required for funded expenses but the sponsor is only paying a % of the total cost
B125: Amount included in Project Pricing | C125: Column AA | D125: Data entry | E125: Only required for funded expenses but the sponsor's payment is capped
B126: Reason for the cost not being fully funded by the sponsor | C126: Column AB | D126: Data entry | E126: Only required for partly funded expenses
B128: Overhead Rates
B129: Rates used in the model:
B130: - Salary Recovery = 55%: Applied to direct salary costs
B131: - Operating Expenses Recovery = 15%: Applied to non salary costs except scholarships/stipends
B132: - Other = 10%: For consultancy & contract research projects only
B134: Information | C134: Column Ref | D134: Data Entry Type | E134: Additional Information
B135: Funding Source | C135: Column L | D135: Drop-down selection | E135: Funded, Inkind, Ineligible Expense
B136: Enter % if different from default rates | C136: Column M | D136: Data entry | E136: Optional; only required if % are different from the default rates
B138: Collaborator Epxenses (optional)
B139: Information | C139: Column Ref | D139: Data Entry Type | E139: Additional Information
B140: Collaborator | C140: Column E | D140: Data entry
B141: Expense Type | C141: Column I | D141: Drop-down selection | E141: Salaries, Operating Expenses, Scholarships/Stipends, Travel Expenses
B142: Brief description | C142: Column K | D142: Data entry
B143: Annual cost | C143: Columns O to U | D143: Data entry
B147: Notes
B148: Pricing entered; are what acceptable under the funders guidelines

Sheet Quick User Guide
C1: =Title!$D$1 -> This file has expired. Existing CPMs can still be viewed. However, for new applications, please download the current file from
C3: =Title!$D$4 -> https://www.adelaide.edu.au/finance/
C4: Please enter data in the yellow cells only in the "ENTER DETAILS HERE Costing tab".
B6: To access each section of the Costing Tab, press the Button at the top of the page.
B8: Project Details
B10: Enter Fields highlighted in yellow with in the the Project details box.
B11: - hover over each field for details on what is required.
B12: - fields G24 to G30 are drop down fields for you to select from
B15: Total Project Budget
B16: - ONLY completed if the University of Adelaide is not the lead agency.
B17: - Enter total project figures
B19: Additional question for consultancy projects ONLY (cell G32):
B20: - If salary/ FTE listed is already covered by other externally funded project and no back fill is required - Selct "Yes" - Finance will not transfer salaries to this project.
B22: Collaborators
B23: - This section allows users to enter collaborators working on the project.
B24: - This list is then available as a drop-down menu for each expense type (except for collaborator payments and subcontractor payments).
B26: Other Contributions
B27: - hover over each field title for details on what is required.
B29: Salaries & Wages
B30: Continuing & Fixed Term Salaries - MONTHLY / ANNUAL
B31: - hover over each field title for details on what is required.
B33: Continuing & Fixed Term Salaries - HOURLY / DAILY / WEEKLY
B34: - hover over each field title for details on what is required.
B36: Casual Salaries
B37: - hover over each field title for details on what is required.
B39: Operating Expenses
B40: Operating Expenses - includes Temporary/Agency Staff Costs, Collaborator Payments, Subcontractor Payments, Capital Item > $10k, Other Operating Expenses
B41: - hover over each field title for details on what is required.
B43: Stipends/Scholarships
B44: - hover over each field title for details on what is required.
B46: Travel Expenses | C46: Enter Travel as allowed by Funder. Enter type of travel and destination
B47: - hover over each field title for details on what is required.
B49: Overhead Rates
B50: Rates used in the model are set as per below:-
B51: - Salary Recovery = 55%: Applied to direct salary costs
B52: - Operating Expenses Recovery = 15%: Applied to non salary costs except scholarships/stipends
B53: - Other = 10%: Applied to direct salary costs
B55: - hover over each field title for details on what is required.
B57: Collaborator Expenses (optional)
B58: - enter the annual costs for each collaborator.
B60: - hover over each field title for details on what is required.

Sheet ENTER DETAILS HERE_Costing Tab
D1: 3 | E1: =" "&Title!$D$6 -> UoA Costing Pricing Tool (CPT) | Y1: Click on the "+" above to expand years | AN1: Click on the "+" above to expand years
F2: =Title!$D$1 -> This file has expired. Existing CPMs can still be viewed. However, for new applications, please download the current file from
F3: =Title!$D$4 -> https://www.adelaide.edu.au/finance/
E4: ** NOTE** Calculator for internal University of Adelaide use only. Must not be shared with External Parties. | O4: Project Costing | AD4: Project Pricing (Direct) | AP4: Inkind and Ineligible Expenses
E10: Click on Buttons above for sections to be completed | J10: *** Complete yellow cells only ***
E12: Project Details | K12: =IF($G$20="University of Adelaide","Total Project Budget Not Required","Must Complete Total Project Budget") -> Must Complete Total Project Budget
E13: Preparation Date | K13: Total Project Budget (Only required if UoA is not Lead Agency)
E14: Proposal Title | K14: =IF(ISBLANK($G$20),"",$G$20) ->  | L14: Funded | M14: Inkind | N14: TOTAL
E15: Sponsor Name (Funder) | K15: Salaries | N15: =SUM(L15:M15) -> 0 | Z15: =TODAY()>31/12/2023 -> TRUE
E16: Chief Investigator (First Named) | K16: Operating | N16: =SUM(L16:M16) -> 0
E17: Contract ID | K17: Indirect Costs | N17: =SUM(L17:M17) -> 0
E18: Project ID (Internal Reference) | K18: Infrastructure | N18: =SUM(L18:M18) -> 0
E19: Funder Id (External Reference)
E20: Lead Agency (Admin Organisation) | K20: Total Proj Budget | L20: =SUM(L15:L19) -> 0 | M20: =SUM(M15:M19) -> 0 | N20: 0
E21: Commencement Date (DD/MM/YEAR) | K21: =IF($G$20="University of Adelaide","","This table outlines the total project budget when UoA is not the lead.") -> This table outlines the total project budget when UoA is not the lead.
E22: Completion Date (DD/MM/YEAR)
E23: No of Years | G23: =IF(DATEDIF(G21,G22,"YM")+1=12,DATEDIF(G21,G22,"y")+1&" Years, 0 Months",DATEDIF(G21,G22,"y")&" Years, "&DATEDIF(G21,G22,"YM")+1&" Months") -> 0 Years, 1 Months
E24: Project Type
E25: HERDC Category
E26: HERDC Name | G26: =IFERROR(VLOOKUP($G$25,HERDC_Name,2,FALSE),"") -> 
E27: HERDC SubCategory
E28: Affiliate Organisation
E29: Faculty / Institute
E30: School
E32: Consultancy Projects Only Is salary listed already covered by other externally funded project and no back fill is required - if Yes finance will not transfer salaries to this project.
O33: =YEAR($G$21) -> 1900 | P33: =IFERROR(IF(O33+1<=YEAR($G$22),O38+1,""),"") ->  | Q33: =IFERROR(IF(P33+1<=YEAR($G$22),P38+1,""),"") ->  | R33: =IFERROR(IF(Q33+1<=YEAR($G$22),Q38+1,""),"") ->  | Y33: Total | AD33: =O33 -> 1900 | AN33: Total | AP33: Inkind | AQ33: Ineligible Expense | AR33: Total Inkind + Ineligible Exp
E34: * All values exclude GST.
D35: Other Contributions
E36: Organisation | G36: Brief Description | K36: Funding Source | L36: Start Year | M36: End Year | N36: Price (per year) | O36: Project Revenue | AD36: Project Eligible Revenue
O37: Year 1 | P37: Year 2 | Q37: Year 3 | R37: Year 4 | S37: Year 5 | T37: Year 6 | U37: Year 7 | V37: Year 8 | W37: Year 9 | X37: Year 10 | Y37: Total Revenue | AD37: Year 1 | AE37: Year 2 | AF37: Year 3 | AG37: Year 4 | AH37: Year 5 | AI37: Year 6 | AJ37: Year 7 | AK37: Year 8 | AL37: Year 9 | AM37: Year 10 | AN37: Total
O38: =O$33 -> 1900 | P38: =P$33 ->  | AD38: =AD$33 -> 1900 | AE38: =AE$33 -> 
D39: Example | E39: University of Adelaide | G39: Contribution from University of Adelaide | K39: Funded | L39: 2024 | M39: 2027 | N39: 25000 | O39: 25000 | P39: 25000 | Q39: 25000 | R39: 25000 | S39: 0 | T39: 0 | U39: 0 | V39: 0 | W39: 0 | X39: 0 | Y39: =SUM(O39:X39) -> 100000 | AD39: 25000 | AE39: 25000 | AF39: 25000 | AG39: 25000 | AH39: 0 | AI39: 0 | AJ39: 0 | AK39: 0 | AL39: 0 | AM39: 0 | AN39: =SUM(AD39:AM39) -> 100000
K40: =IF(ISBLANK($E40),"","Funded") ->  | O40: =IF(AND(O$38>=$L40,O$38<=$M40),$N40,0) -> 0 | P40: 0 | Q40: 0 | R40: 0 | S40: 0 | T40: 0 | U40: 0 | V40: 0 | W40: 0 | X40: 0 | Y40: =SUM(O40:X40) -> 0 | AD40: =O40 -> 0 | AE40: =P40 -> 0 | AF40: =Q40 -> 0 | AG40: =R40 -> 0 | AH40: =S40 -> 0 | AI40: =T40 -> 0 | AJ40: =U40 -> 0 | AK40: =V40 -> 0 | AL40: =W40 -> 0 | AM40: =X40 -> 0 | AN40: =SUM(AD40:AM40) -> 0
K41: =IF(ISBLANK($E41),"","Funded") ->  | O41: 0 | P41: 0 | Q41: 0 | R41: 0 | S41: 0 | T41: 0 | U41: 0 | V41: 0 | W41: 0 | X41: 0 | Y41: =SUM(O41:X41) -> 0 | AD41: =O41 -> 0 | AE41: 0 | AF41: 0 | AG41: 0 | AH41: 0 | AI41: 0 | AJ41: 0 | AK41: 0 | AL41: 0 | AM41: 0 | AN41: =SUM(AD41:AM41) -> 0
K42: =IF(ISBLANK($E42),"","Funded") ->  | O42: 0 | P42: 0 | Q42: 0 | R42: 0 | S42: 0 | T42: 0 | U42: 0 | V42: 0 | W42: 0 | X42: 0 | Y42: 0 | AD42: 0 | AE42: 0 | AF42: 0 | AG42: 0 | AH42: 0 | AI42: 0 | AJ42: 0 | AK42: 0 | AL42: 0 | AM42: 0 | AN42: 0
O43: 0 | P43: 0 | Q43: 0 | R43: 0 | S43: 0 | T43: 0 | U43: 0 | V43: 0 | W43: 0 | X43: 0 | Y43: 0 | AD43: 0 | AE43: 0 | AF43: 0 | AG43: 0 | AH43: 0 | AI43: 0 | AJ43: 0 | AK43: 0 | AL43: 0 | AM43: 0 | AN43: 0
O44: 0 | P44: 0 | Q44: 0 | R44: 0 | S44: 0 | T44: 0 | U44: 0 | V44: 0 | W44: 0 | X44: 0 | Y44: 0 | AD44: 0 | AE44: 0 | AF44: 0 | AG44: 0 | AH44: 0 | AI44: 0 | AJ44: 0 | AK44: 0 | AL44: 0 | AM44: 0 | AN44: 0
O45: 0 | P45: 0 | Q45: 0 | R45: 0 | S45: 0 | T45: 0 | U45: 0 | V45: 0 | W45: 0 | X45: 0 | Y45: 0 | AD45: 0 | AE45: 0 | AF45: 0 | AG45: 0 | AH45: 0 | AI45: 0 | AJ45: 0 | AK45: 0 | AL45: 0 | AM45: 0 | AN45: 0
O46: 0 | P46: 0 | Q46: 0 | R46: 0 | S46: 0 | T46: 0 | U46: 0 | V46: 0 | W46: 0 | X46: 0 | Y46: 0 | AD46: 0 | AE46: 0 | AF46: 0 | AG46: 0 | AH46: 0 | AI46: 0 | AJ46: 0 | AK46: 0 | AL46: 0 | AM46: 0 | AN46: 0
O47: 0 | P47: 0 | Q47: 0 | R47: 0 | S47: 0 | T47: 0 | U47: 0 | V47: 0 | W47: 0 | X47: 0 | Y47: 0 | AD47: 0 | AE47: 0 | AF47: 0 | AG47: 0 | AH47: 0 | AI47: 0 | AJ47: 0 | AK47: 0 | AL47: 0 | AM47: 0 | AN47: 0
O48: 0 | P48: 0 | Q48: 0 | R48: 0 | S48: 0 | T48: 0 | U48: 0 | V48: 0 | W48: 0 | X48: 0 | Y48: 0 | AD48: 0 | AE48: 0 | AF48: 0 | AG48: 0 | AH48: 0 | AI48: 0 | AJ48: 0 | AK48: 0 | AL48: 0 | AM48: 0 | AN48: 0
O49: 0 | P49: 0 | Q49: 0 | R49: 0 | S49: 0 | T49: 0 | U49: 0 | V49: 0 | W49: 0 | X49: 0 | Y49: 0 | AD49: 0 | AE49: 0 | AF49: 0 | AG49: 0 | AH49: 0 | AI49: 0 | AJ49: 0 | AK49: 0 | AL49: 0 | AM49: 0 | AN49: 0
O50: 0 | P50: 0 | Q50: 0 | R50: 0 | S50: 0 | T50: 0 | U50: 0 | V50: 0 | W50: 0 | X50: 0 | Y50: 0 | AD50: =O50 -> 0 | AE50: =P50 -> 0 | AF50: =Q50 -> 0 | AG50: =R50 -> 0 | AH50: =S50 -> 0 | AI50: =T50 -> 0 | AJ50: =U50 -> 0 | AK50: =V50 -> 0 | AL50: =W50 -> 0 | AM50: =X50 -> 0 | AN50: 0
O51: 0 | P51: 0 | Q51: 0 | R51: 0 | S51: 0 | T51: 0 | U51: 0 | V51: 0 | W51: 0 | X51: 0 | Y51: 0 | AD51: 0 | AE51: 0 | AF51: 0 | AG51: 0 | AH51: 0 | AI51: 0 | AJ51: 0 | AK51: 0 | AL51: 0 | AM51: 0 | AN51: 0
O52: 0 | P52: 0 | Q52: 0 | R52: 0 | S52: 0 | T52: 0 | U52: 0 | V52: 0 | W52: 0 | X52: 0 | Y52: 0 | AD52: 0 | AE52: 0 | AF52: 0 | AG52: 0 | AH52: 0 | AI52: 0 | AJ52: 0 | AK52: 0 | AL52: 0 | AM52: 0 | AN52: 0
O53: 0 | P53: 0 | Q53: 0 | R53: 0 | S53: 0 | T53: 0 | U53: 0 | V53: 0 | W53: 0 | X53: 0 | Y53: 0 | AD53: 0 | AE53: 0 | AF53: 0 | AG53: 0 | AH53: 0 | AI53: 0 | AJ53: 0 | AK53: 0 | AL53: 0 | AM53: 0 | AN53: 0
O54: 0 | P54: 0 | Q54: 0 | R54: 0 | S54: 0 | T54: 0 | U54: 0 | V54: 0 | W54: 0 | X54: 0 | Y54: 0 | AD54: 0 | AE54: 0 | AF54: 0 | AG54: 0 | AH54: 0 | AI54: 0 | AJ54: 0 | AK54: 0 | AL54: 0 | AM54: 0 | AN54: 0
D55: OTHER CONTRIBUTIONS TOTAL | O55: =SUM(O40:O54) -> 0 | P55: 0 | Q55: 0 | R55: 0 | S55: 0 | T55: 0 | U55: 0 | V55: 0 | W55: 0 | X55: 0 | Y55: 0 | AD55: =SUM(AD40:AD54) -> 0 | AE55: 0 | AF55: 0 | AG55: 0 | AH55: 0 | AI55: 0 | AJ55: 0 | AK55: =SUM(AK40:AK54) -> 0 | AL55: 0 | AM55: 0 | AN55: =SUM(AN40:AN54) -> 0
D57: Salaries/Wages (EB calculation included)
D58: University salary rates are available at: | I58: http://www.adelaide.edu.au/hr/handbook/rem-ben/salary/
M60: Oncost Rates | N60: =Cont_FT_Oncost_Rate -> 0.3
E61: Continuing & Fixed Term Salaries - MONTHLY / ANNUAL
E62: Employment Type | F62: Salary Segment (Optional) | G62: Level of Staff Member | H62: Funding Source | I62: Start Month | J62: Start Year | K62: End Month | L62: End Year | M62: FTE | N62: Loadings (optional) | O62: Project Costing (Direct) | AD62: Project Pricing (Direct) | AP62: Inkind & Ineligible Expenses | AT62: Price to Funder (inclusive of salary & other recoveries)
O63: =O$37 -> Year 1 | P63: Year 2 | Q63: Year 3 | R63: Year 4 | S63: Year 5 | T63: Year 6 | U63: Year 7 | V63: Year 8 | W63: Year 9 | X63: Year 10 | Y63: Total Project Cost (Direct) | Z63: % included in Project Pricing | AA63: Amount included in Project Pricing | AB63: Reason for the cost not being fully funded by the sponsor | AD63: =AD$37 -> Year 1 | AE63: Year 2 | AF63: Year 3 | AG63: Year 4 | AH63: Year 5 | AI63: Year 6 | AJ63: Year 7 | AK63: Year 8 | AL63: Year 9 | AM63: Year 10 | AN63: Total | AP63: Inkind | AQ63: Ineligible Expense | AR63: Total
A64: No. of mths in the yr | B64: No. of mths remaining in the 1st yr | C64: No. of mths remaining in the last yr | O64: =O$33 -> 1900 | P64: =P$33 ->  | Y64: =Y$38 -> 0 | AB64: =AB$38 -> 0 | AD64: =AD$33 -> 1900 | AE64: =AE$33 ->  | AN64: =AN$38 -> 0
D65: Example | E65: Academic | F65: Tied | G65: Level D-4 | H65: Funded | I65: January | J65: 2024 | K65: December | L65: 2028 | M65: 1 | N65: 50000 | O65: 297310 | P65: 305441.5 | Q65: 313856.9525 | R65: 322566.9458 | S65: 331581.7889 | T65: 0 | U65: 0 | V65: 0 | W65: 0 | X65: 0 | Y65: =SUM(O65:X65) -> 1570757.187 | AA65: 200000 | AB65: sponsor caps payment at $200k p.a. | AD65: 200000 | AE65: 200000 | AF65: 200000 | AG65: 200000 | AH65: 200000 | AI65: 0 | AJ65: 0 | AK65: 0 | AL65: 0 | AM65: 0 | AN65: =SUM(AD65:AM65) -> 1000000 | AP65: =IF($H65=AP$63,$Y65-$AN65,0) -> 0 | AQ65: =IF(NOT($H65="Inkind"),$Y65-$AN65,0) -> 570757.1873 | AR65: =SUM(AP65:AQ65) -> 570757.1873
D66: Example | E66: Professional | F66: Discretionary | G66: HEO 8-5 | H66: Ineligible Expense | I66: January | J66: 2024 | K66: December | L66: 2028 | M66: 1 | O66: 160854.2 | P66: 166484.5 | Q66: 172311.4575 | R66: 178342.3585 | S66: 184584.3411 | T66: 0 | U66: 0 | V66: 0 | W66: 0 | X66: 0 | Y66: =SUM(O66:X66) -> 862576.8571 | AD66: 0 | AE66: 0 | AF66: 0 | AG66: 0 | AH66: 0 | AI66: 0 | AJ66: 0 | AK66: 0 | AL66: 0 | AM66: 0 | AN66: =SUM(AD66:AM66) -> 0 | AP66: =IF($H66=AP$63,$Y66-$AN66,0) -> 0 | AQ66: 862576.8571 | AR66: =SUM(AP66:AQ66) -> 862576.8571
A67: =IFERROR(IF($J67=$L67,VLOOKUP($K67,'Master Data'!$AQ$5:$AR$16,2,FALSE)-VLOOKUP($I67,'Master Data'!$AQ$5:$AR$16,2,FALSE)+1,0),0) -> 0 | B67: =IFERROR(VLOOKUP($I67,'Master Data'!$AQ$5:$AS$16,3,FALSE),0) -> 0 | C67: =IFERROR(VLOOKUP($K67,'Master Data'!$AQ$5:$AR$16,2,FALSE),0) -> 0 | E67: =IFERROR(VLOOKUP($G67,Employment_Type,2,FALSE),"") ->  | O67: =IFERROR(IF(AND(O$64=$J67,$J67=$L67),(INDEX(Cont_FT_Salaries,MATCH($G67,Cont_FT_Levels,0),MATCH(O$64,Cont_FT_Years,0))+$N67)*$A67/12,IF(AND(O$64>=$J67,O$64<=$L67),IF(AND(O$64=$J67,$I67<>"January"),(INDEX('Master Data'!$Y$5:$AI$73,MATCH($G67,Cont_FT_Levels,0),MATCH(O$64,Cont_FT_Years,0))+$N67)*$B67/12,IF(AND(O$64=$L67,$K67<>"December"),(INDEX(Cont_FT_Salaries,MATCH($G67,Cont_FT_Levels,0),MATCH(O$64,Cont_FT_Years,0))+$N67)*$C67/12,(INDEX(Cont_FT_Salaries,MATCH($G67,Cont_FT_Levels,0),MATCH(O$64,Cont_FT_Years,0))+$N67)))))*(1+$N$60)*$M67,0) -> 0 | P67: =IFERROR(IF(AND(P$64=$J67,$J67=$L67),(INDEX(Cont_FT_Salaries,MATCH($G67,Cont_FT_Levels,0),MATCH(P$64,Cont_FT_Years,0))+$N67)*$A67/12,IF(AND(P$64>=$J67,P$64<=$L67),IF(AND(P$64=$J67,$I67<>"January"),(INDEX('Master Data'!$Y$5:$AI$73,MATCH($G67,Cont_FT_Levels,0),MATCH(P$64,Cont_FT_Years,0))+$N67)*$B67/12,IF(AND(P$64=$L67,$K67<>"December"),(INDEX(Cont_FT_Salaries,MATCH($G67,Cont_FT_Levels,0),MATCH(P$64,Cont_FT_Years,0))+$N67)*$C67/12,(INDEX(Cont_FT_Salaries,MATCH($G67,Cont_FT_Levels,0),MATCH(P$64,Cont_FT_Years,0))+$N67)))))*(1+$N$60)*$M67,0) -> 0 | Q67: =IFERROR(IF(AND(Q$64=$J67,$J67=$L67),(INDEX(Cont_FT_Salaries,MATCH($G67,Cont_FT_Levels,0),MATCH(Q$64,Cont_FT_Years,0))+$N67)*$A67/12,IF(AND(Q$64>=$J67,Q$64<=$L67),IF(AND(Q$64=$J67,$I67<>"January"),(INDEX('Master Data'!$Y$5:$AI$73,MATCH($G67,Cont_FT_Levels,0),MATCH(Q$64,Cont_FT_Years,0))+$N67)*$B67/12,IF(AND(Q$64=$L67,$K67<>"December"),(INDEX(Cont_FT_Salaries,MATCH($G67,Cont_FT_Levels,0),MATCH(Q$64,Cont_FT_Years,0))+$N67)*$C67/12,(INDEX(Cont_FT_Salaries,MATCH($G67,Cont_FT_Levels,0),MATCH(Q$64,Cont_FT_Years,0))+$N67)))))*(1+$N$60)*$M67,0) -> 0 | R67: =IFERROR(IF(AND(R$64=$J67,$J67=$L67),(INDEX(Cont_FT_Salaries,MATCH($G67,Cont_FT_Levels,0),MATCH(R$64,Cont_FT_Years,0))+$N67)*$A67/12,IF(AND(R$64>=$J67,R$64<=$L67),IF(AND(R$64=$J67,$I67<>"January"),(INDEX('Master Data'!$Y$5:$AI$73,MATCH($G67,Cont_FT_Levels,0),MATCH(R$64,Cont_FT_Years,0))+$N67)*$B67/12,IF(AND(R$64=$L67,$K67<>"December"),(INDEX(Cont_FT_Salaries,MATCH($G67,Cont_FT_Levels,0),MATCH(R$64,Cont_FT_Years,0))+$N67)*$C67/12,(INDEX(Cont_FT_Salaries,MATCH($G67,Cont_FT_Levels,0),MATCH(R$64,Cont_FT_Years,0))+$N67)))))*(1+$N$60)*$M67,0) -> 0 | S67: =IFERROR(IF(AND(S$64=$J67,$J67=$L67),(INDEX(Cont_FT_Salaries,MATCH($G67,Cont_FT_Levels,0),MATCH(S$64,Cont_FT_Years,0))+$N67)*$A67/12,IF(AND(S$64>=$J67,S$64<=$L67),IF(AND(S$64=$J67,$I67<>"January"),(INDEX('Master Data'!$Y$5:$AI$73,MATCH($G67,Cont_FT_Levels,0),MATCH(S$64,Cont_FT_Years,0))+$N67)*$B67/12,IF(AND(S$64=$L67,$K67<>"December"),(INDEX(Cont_FT_Salaries,MATCH($G67,Cont_FT_Levels,0),MATCH(S$64,Cont_FT_Years,0))+$N67)*$C67/12,(INDEX(Cont_FT_Salaries,MATCH($G67,Cont_FT_Levels,0),MATCH(S$64,Cont_FT_Years,0))+$N67)))))*(1+$N$60)*$M67,0) -> 0 | T67: =IFERROR(IF(AND(T$64=$J67,$J67=$L67),(INDEX(Cont_FT_Salaries,MATCH($G67,Cont_FT_Levels,0),MATCH(T$64,Cont_FT_Years,0))+$N67)*$A67/12,IF(AND(T$64>=$J67,T$64<=$L67),IF(AND(T$64=$J67,$I67<>"January"),(INDEX('Master Data'!$Y$5:$AI$73,MATCH($G67,Cont_FT_Levels,0),MATCH(T$64,Cont_FT_Years,0))+$N67)*$B67/12,IF(AND(T$64=$L67,$K67<>"December"),(INDEX(Cont_FT_Salaries,MATCH($G67,Cont_FT_Levels,0),MATCH(T$64,Cont_FT_Years,0))+$N67)*$C67/12,(INDEX(Cont_FT_Salaries,MATCH($G67,Cont_FT_Levels,0),MATCH(T$64,Cont_FT_Years,0))+$N67)))))*(1+$N$60)*$M67,0) -> 0 | U67: =IFERROR(IF(AND(U$64=$J67,$J67=$L67),(INDEX(Cont_FT_Salaries,MATCH($G67,Cont_FT_Levels,0),MATCH(U$64,Cont_FT_Years,0))+$N67)*$A67/12,IF(AND(U$64>=$J67,U$64<=$L67),IF(AND(U$64=$J67,$I67<>"January"),(INDEX('Master Data'!$Y$5:$AI$73,MATCH($G67,Cont_FT_Levels,0),MATCH(U$64,Cont_FT_Years,0))+$N67)*$B67/12,IF(AND(U$64=$L67,$K67<>"December"),(INDEX(Cont_FT_Salaries,MATCH($G67,Cont_FT_Levels,0),MATCH(U$64,Cont_FT_Years,0))+$N67)*$C67/12,(INDEX(Cont_FT_Salaries,MATCH($G67,Cont_FT_Levels,0),MATCH(U$64,Cont_FT_Years,0))+$N67)))))*(1+$N$60)*$M67,0) -> 0 | V67: =IFERROR(IF(AND(V$64=$J67,$J67=$L67),(INDEX(Cont_FT_Salaries,MATCH($G67,Cont_FT_Levels,0),MATCH(V$64,Cont_FT_Years,0))+$N67)*$A67/12,IF(AND(V$64>=$J67,V$64<=$L67),IF(AND(V$64=$J67,$I67<>"January"),(INDEX('Master Data'!$Y$5:$AI$73,MATCH($G67,Cont_FT_Levels,0),MATCH(V$64,Cont_FT_Years,0))+$N67)*$B67/12,IF(AND(V$64=$L67,$K67<>"December"),(INDEX(Cont_FT_Salaries,MATCH($G67,Cont_FT_Levels,0),MATCH(V$64,Cont_FT_Years,0))+$N67)*$C67/12,(INDEX(Cont_FT_Salaries,MATCH($G67,Cont_FT_Levels,0),MATCH(V$64,Cont_FT_Years,0))+$N67)))))*(1+$N$60)*$M67,0) -> 0 | W67: =IFERROR(IF(AND(W$64=$J67,$J67=$L67),(INDEX(Cont_FT_Salaries,MATCH($G67,Cont_FT_Levels,0),MATCH(W$64,Cont_FT_Years,0))+$N67)*$A67/12,IF(AND(W$64>=$J67,W$64<=$L67),IF(AND(W$64=$J67,$I67<>"January"),(INDEX('Master Data'!$Y$5:$AI$73,MATCH($G67,Cont_FT_Levels,0),MATCH(W$64,Cont_FT_Years,0))+$N67)*$B67/12,IF(AND(W$64=$L67,$K67<>"December"),(INDEX(Cont_FT_Salaries,MATCH($G67,Cont_FT_Levels,0),MATCH(W$64,Cont_FT_Years,0))+$N67)*$C67/12,(INDEX(Cont_FT_Salaries,MATCH($G67,Cont_FT_Levels,0),MATCH(W$64,Cont_FT_Years,0))+$N67)))))*(1+$N$60)*$M67,0) -> 0 | X67: =IFERROR(IF(AND(X$64=$J67,$J67=$L67),(INDEX(Cont_FT_Salaries,MATCH($G67,Cont_FT_Levels,0),MATCH(X$64,Cont_FT_Years,0))+$N67)*$A67/12,IF(AND(X$64>=$J67,X$64<=$L67),IF(AND(X$64=$J67,$I67<>"January"),(INDEX('Master Data'!$Y$5:$AI$73,MATCH($G67,Cont_FT_Levels,0),MATCH(X$64,Cont_FT_Years,0))+$N67)*$B67/12,IF(AND(X$64=$L67,$K67<>"December"),(INDEX(Cont_FT_Salaries,MATCH($G67,Cont_FT_Levels,0),MATCH(X$64,Cont_FT_Years,0))+$N67)*$C67/12,(INDEX(Cont_FT_Salaries,MATCH($G67,Cont_FT_Levels,0),MATCH(X$64,Cont_FT_Years,0))+$N67)))))*(1+$N$60)*$M67,0) -> 0 | Y67: =SUM(O67:X67) -> 0 | AD67: =IF($H67="Funded",IF(ISBLANK($Z67),IF(ISBLANK($AA67),O67,IF(O67=0,0,$AA67)),O67*$Z67),0) -> 0 | AE67: =IF($H67="Funded",IF(ISBLANK($Z67),IF(ISBLANK($AA67),P67,IF(P67=0,0,$AA67)),P67*$Z67),0) -> 0 | AF67: =IF($H67="Funded",IF(ISBLANK($Z67),IF(ISBLANK($AA67),Q67,IF(Q67=0,0,$AA67)),Q67*$Z67),0) -> 0 | AG67: =IF($H67="Funded",IF(ISBLANK($Z67),IF(ISBLANK($AA67),R67,IF(R67=0,0,$AA67)),R67*$Z67),0) -> 0 | AH67: =IF($H67="Funded",IF(ISBLANK($Z67),IF(ISBLANK($AA67),S67,IF(S67=0,0,$AA67)),S67*$Z67),0) -> 0 | AI67: =IF($H67="Funded",IF(ISBLANK($Z67),IF(ISBLANK($AA67),T67,IF(T67=0,0,$AA67)),T67*$Z67),0) -> 0 | AJ67: =IF($H67="Funded",IF(ISBLANK($Z67),IF(ISBLANK($AA67),U67,IF(U67=0,0,$AA67)),U67*$Z67),0) -> 0 | AK67: =IF($H67="Funded",IF(ISBLANK($Z67),IF(ISBLANK($AA67),V67,IF(V67=0,0,$AA67)),V67*$Z67),0) -> 0 | AL67: =IF($H67="Funded",IF(ISBLANK($Z67),IF(ISBLANK($AA67),W67,IF(W67=0,0,$AA67)),W67*$Z67),0) -> 0 | AM67: =IF($H67="Funded",IF(ISBLANK($Z67),IF(ISBLANK($AA67),X67,IF(X67=0,0,$AA67)),X67*$Z67),0) -> 0 | AN67: =SUM(AD67:AM67) -> 0 | AP67: =IF($H67=AP$63,$Y67-$AN67,0) -> 0 | AQ67: 0 | AR67: =SUM(AP67:AQ67) -> 0 | AT67: =IFERROR(AN67/$AN$133*SUM($AN$233,$AN$235)+AN67,0) -> 0
A68: =IFERROR(IF($J68=$L68,VLOOKUP($K68,'Master Data'!$AQ$5:$AR$16,2,FALSE)-VLOOKUP($I68,'Master Data'!$AQ$5:$AR$16,2,FALSE)+1,0),0) -> 0 | B68: =IFERROR(VLOOKUP($I68,'Master Data'!$AQ$5:$AS$16,3,FALSE),0) -> 0 | C68: =IFERROR(VLOOKUP($K68,'Master Data'!$AQ$5:$AR$16,2,FALSE),0) -> 0 | O68: =IFERROR(IF(AND(O$64=$J68,$J68=$L68),(INDEX(Cont_FT_Salaries,MATCH($G68,Cont_FT_Levels,0),MATCH(O$64,Cont_FT_Years,0))+$N68)*$A68/12,IF(AND(O$64>=$J68,O$64<=$L68),IF(AND(O$64=$J68,$I68<>"January"),(INDEX('Master Data'!$Y$5:$AI$73,MATCH($G68,Cont_FT_Levels,0),MATCH(O$64,Cont_FT_Years,0))+$N68)*$B68/12,IF(AND(O$64=$L68,$K68<>"December"),(INDEX(Cont_FT_Salaries,MATCH($G68,Cont_FT_Levels,0),MATCH(O$64,Cont_FT_Years,0))+$N68)*$C68/12,(INDEX(Cont_FT_Salaries,MATCH($G68,Cont_FT_Levels,0),MATCH(O$64,Cont_FT_Years,0))+$N68)))))*(1+$N$60)*$M68,0) -> 0 | P68: =IFERROR(IF(AND(P$64=$J68,$J68=$L68),(INDEX(Cont_FT_Salaries,MATCH($G68,Cont_FT_Levels,0),MATCH(P$64,Cont_FT_Years,0))+$N68)*$A68/12,IF(AND(P$64>=$J68,P$64<=$L68),IF(AND(P$64=$J68,$I68<>"January"),(INDEX('Master Data'!$Y$5:$AI$73,MATCH($G68,Cont_FT_Levels,0),MATCH(P$64,Cont_FT_Years,0))+$N68)*$B68/12,IF(AND(P$64=$L68,$K68<>"December"),(INDEX(Cont_FT_Salaries,MATCH($G68,Cont_FT_Levels,0),MATCH(P$64,Cont_FT_Years,0))+$N68)*$C68/12,(INDEX(Cont_FT_Salaries,MATCH($G68,Cont_FT_Levels,0),MATCH(P$64,Cont_FT_Years,0))+$N68)))))*(1+$N$60)*$M68,0) -> 0 | Q68: =IFERROR(IF(AND(Q$64=$J68,$J68=$L68),(INDEX(Cont_FT_Salaries,MATCH($G68,Cont_FT_Levels,0),MATCH(Q$64,Cont_FT_Years,0))+$N68)*$A68/12,IF(AND(Q$64>=$J68,Q$64<=$L68),IF(AND(Q$64=$J68,$I68<>"January"),(INDEX('Master Data'!$Y$5:$AI$73,MATCH($G68,Cont_FT_Levels,0),MATCH(Q$64,Cont_FT_Years,0))+$N68)*$B68/12,IF(AND(Q$64=$L68,$K68<>"December"),(INDEX(Cont_FT_Salaries,MATCH($G68,Cont_FT_Levels,0),MATCH(Q$64,Cont_FT_Years,0))+$N68)*$C68/12,(INDEX(Cont_FT_Salaries,MATCH($G68,Cont_FT_Levels,0),MATCH(Q$64,Cont_FT_Years,0))+$N68)))))*(1+$N$60)*$M68,0) -> 0 | R68: =IFERROR(IF(AND(R$64=$J68,$J68=$L68),(INDEX(Cont_FT_Salaries,MATCH($G68,Cont_FT_Levels,0),MATCH(R$64,Cont_FT_Years,0))+$N68)*$A68/12,IF(AND(R$64>=$J68,R$64<=$L68),IF(AND(R$64=$J68,$I68<>"January"),(INDEX('Master Data'!$Y$5:$AI$73,MATCH($G68,Cont_FT_Levels,0),MATCH(R$64,Cont_FT_Years,0))+$N68)*$B68/12,IF(AND(R$64=$L68,$K68<>"December"),(INDEX(Cont_FT_Salaries,MATCH($G68,Cont_FT_Levels,0),MATCH(R$64,Cont_FT_Years,0))+$N68)*$C68/12,(INDEX(Cont_FT_Salaries,MATCH($G68,Cont_FT_Levels,0),MATCH(R$64,Cont_FT_Years,0))+$N68)))))*(1+$N$60)*$M68,0) -> 0 | S68: =IFERROR(IF(AND(S$64=$J68,$J68=$L68),(INDEX(Cont_FT_Salaries,MATCH($G68,Cont_FT_Levels,0),MATCH(S$64,Cont_FT_Years,0))+$N68)*$A68/12,IF(AND(S$64>=$J68,S$64<=$L68),IF(AND(S$64=$J68,$I68<>"January"),(INDEX('Master Data'!$Y$5:$AI$73,MATCH($G68,Cont_FT_Levels,0),MATCH(S$64,Cont_FT_Years,0))+$N68)*$B68/12,IF(AND(S$64=$L68,$K68<>"December"),(INDEX(Cont_FT_Salaries,MATCH($G68,Cont_FT_Levels,0),MATCH(S$64,Cont_FT_Years,0))+$N68)*$C68/12,(INDEX(Cont_FT_Salaries,MATCH($G68,Cont_FT_Levels,0),MATCH(S$64,Cont_FT_Years,0))+$N68)))))*(1+$N$60)*$M68,0) -> 0 | T68: =IFERROR(IF(AND(T$64=$J68,$J68=$L68),(INDEX(Cont_FT_Salaries,MATCH($G68,Cont_FT_Levels,0),MATCH(T$64,Cont_FT_Years,0))+$N68)*$A68/12,IF(AND(T$64>=$J68,T$64<=$L68),IF(AND(T$64=$J68,$I68<>"January"),(INDEX('Master Data'!$Y$5:$AI$73,MATCH($G68,Cont_FT_Levels,0),MATCH(T$64,Cont_FT_Years,0))+$N68)*$B68/12,IF(AND(T$64=$L68,$K68<>"December"),(INDEX(Cont_FT_Salaries,MATCH($G68,Cont_FT_Levels,0),MATCH(T$64,Cont_FT_Years,0))+$N68)*$C68/12,(INDEX(Cont_FT_Salaries,MATCH($G68,Cont_FT_Levels,0),MATCH(T$64,Cont_FT_Years,0))+$N68)))))*(1+$N$60)*$M68,0) -> 0 | U68: =IFERROR(IF(AND(U$64=$J68,$J68=$L68),(INDEX(Cont_FT_Salaries,MATCH($G68,Cont_FT_Levels,0),MATCH(U$64,Cont_FT_Years,0))+$N68)*$A68/12,IF(AND(U$64>=$J68,U$64<=$L68),IF(AND(U$64=$J68,$I68<>"January"),(INDEX('Master Data'!$Y$5:$AI$73,MATCH($G68,Cont_FT_Levels,0),MATCH(U$64,Cont_FT_Years,0))+$N68)*$B68/12,IF(AND(U$64=$L68,$K68<>"December"),(INDEX(Cont_FT_Salaries,MATCH($G68,Cont_FT_Levels,0),MATCH(U$64,Cont_FT_Years,0))+$N68)*$C68/12,(INDEX(Cont_FT_Salaries,MATCH($G68,Cont_FT_Levels,0),MATCH(U$64,Cont_FT_Years,0))+$N68)))))*(1+$N$60)*$M68,0) -> 0 | V68: =IFERROR(IF(AND(V$64=$J68,$J68=$L68),(INDEX(Cont_FT_Salaries,MATCH($G68,Cont_FT_Levels,0),MATCH(V$64,Cont_FT_Years,0))+$N68)*$A68/12,IF(AND(V$64>=$J68,V$64<=$L68),IF(AND(V$64=$J68,$I68<>"January"),(INDEX('Master Data'!$Y$5:$AI$73,MATCH($G68,Cont_FT_Levels,0),MATCH(V$64,Cont_FT_Years,0))+$N68)*$B68/12,IF(AND(V$64=$L68,$K68<>"December"),(INDEX(Cont_FT_Salaries,MATCH($G68,Cont_FT_Levels,0),MATCH(V$64,Cont_FT_Years,0))+$N68)*$C68/12,(INDEX(Cont_FT_Salaries,MATCH($G68,Cont_FT_Levels,0),MATCH(V$64,Cont_FT_Years,0))+$N68)))))*(1+$N$60)*$M68,0) -> 0 | W68: =IFERROR(IF(AND(W$64=$J68,$J68=$L68),(INDEX(Cont_FT_Salaries,MATCH($G68,Cont_FT_Levels,0),MATCH(W$64,Cont_FT_Years,0))+$N68)*$A68/12,IF(AND(W$64>=$J68,W$64<=$L68),IF(AND(W$64=$J68,$I68<>"January"),(INDEX('Master Data'!$Y$5:$AI$73,MATCH($G68,Cont_FT_Levels,0),MATCH(W$64,Cont_FT_Years,0))+$N68)*$B68/12,IF(AND(W$64=$L68,$K68<>"December"),(INDEX(Cont_FT_Salaries,MATCH($G68,Cont_FT_Levels,0),MATCH(W$64,Cont_FT_Years,0))+$N68)*$C68/12,(INDEX(Cont_FT_Salaries,MATCH($G68,Cont_FT_Levels,0),MATCH(W$64,Cont_FT_Years,0))+$N68)))))*(1+$N$60)*$M68,0) -> 0 | X68: =IFERROR(IF(AND(X$64=$J68,$J68=$L68),(INDEX(Cont_FT_Salaries,MATCH($G68,Cont_FT_Levels,0),MATCH(X$64,Cont_FT_Years,0))+$N68)*$A68/12,IF(AND(X$64>=$J68,X$64<=$L68),IF(AND(X$64=$J68,$I68<>"January"),(INDEX('Master Data'!$Y$5:$AI$73,MATCH($G68,Cont_FT_Levels,0),MATCH(X$64,Cont_FT_Years,0))+$N68)*$B68/12,IF(AND(X$64=$L68,$K68<>"December"),(INDEX(Cont_FT_Salaries,MATCH($G68,Cont_FT_Levels,0),MATCH(X$64,Cont_FT_Years,0))+$N68)*$C68/12,(INDEX(Cont_FT_Salaries,MATCH($G68,Cont_FT_Levels,0),MATCH(X$64,Cont_FT_Years,0))+$N68)))))*(1+$N$60)*$M68,0) -> 0 | Y68: 0 | AD68: 0 | AE68: 0 | AF68: 0 | AG68: 0 | AH68: 0 | AI68: 0 | AJ68: 0 | AK68: 0 | AL68: 0 | AM68: 0 | AN68: 0 | AP68: 0 | AQ68: 0 | AR68: 0 | AT68: 0
A69: =IFERROR(IF($J69=$L69,VLOOKUP($K69,'Master Data'!$AQ$5:$AR$16,2,FALSE)-VLOOKUP($I69,'Master Data'!$AQ$5:$AR$16,2,FALSE)+1,0),0) -> 0 | B69: =IFERROR(VLOOKUP($I69,'Master Data'!$AQ$5:$AS$16,3,FALSE),0) -> 0 | C69: =IFERROR(VLOOKUP($K69,'Master Data'!$AQ$5:$AR$16,2,FALSE),0) -> 0 | O69: =IFERROR(IF(AND(O$64=$J69,$J69=$L69),(INDEX(Cont_FT_Salaries,MATCH($G69,Cont_FT_Levels,0),MATCH(O$64,Cont_FT_Years,0))+$N69)*$A69/12,IF(AND(O$64>=$J69,O$64<=$L69),IF(AND(O$64=$J69,$I69<>"January"),(INDEX('Master Data'!$Y$5:$AI$73,MATCH($G69,Cont_FT_Levels,0),MATCH(O$64,Cont_FT_Years,0))+$N69)*$B69/12,IF(AND(O$64=$L69,$K69<>"December"),(INDEX(Cont_FT_Salaries,MATCH($G69,Cont_FT_Levels,0),MATCH(O$64,Cont_FT_Years,0))+$N69)*$C69/12,(INDEX(Cont_FT_Salaries,MATCH($G69,Cont_FT_Levels,0),MATCH(O$64,Cont_FT_Years,0))+$N69)))))*(1+$N$60)*$M69,0) -> 0 | P69: =IFERROR(IF(AND(P$64=$J69,$J69=$L69),(INDEX(Cont_FT_Salaries,MATCH($G69,Cont_FT_Levels,0),MATCH(P$64,Cont_FT_Years,0))+$N69)*$A69/12,IF(AND(P$64>=$J69,P$64<=$L69),IF(AND(P$64=$J69,$I69<>"January"),(INDEX('Master Data'!$Y$5:$AI$73,MATCH($G69,Cont_FT_Levels,0),MATCH(P$64,Cont_FT_Years,0))+$N69)*$B69/12,IF(AND(P$64=$L69,$K69<>"December"),(INDEX(Cont_FT_Salaries,MATCH($G69,Cont_FT_Levels,0),MATCH(P$64,Cont_FT_Years,0))+$N69)*$C69/12,(INDEX(Cont_FT_Salaries,MATCH($G69,Cont_FT_Levels,0),MATCH(P$64,Cont_FT_Years,0))+$N69)))))*(1+$N$60)*$M69,0) -> 0 | Q69: =IFERROR(IF(AND(Q$64=$J69,$J69=$L69),(INDEX(Cont_FT_Salaries,MATCH($G69,Cont_FT_Levels,0),MATCH(Q$64,Cont_FT_Years,0))+$N69)*$A69/12,IF(AND(Q$64>=$J69,Q$64<=$L69),IF(AND(Q$64=$J69,$I69<>"January"),(INDEX('Master Data'!$Y$5:$AI$73,MATCH($G69,Cont_FT_Levels,0),MATCH(Q$64,Cont_FT_Years,0))+$N69)*$B69/12,IF(AND(Q$64=$L69,$K69<>"December"),(INDEX(Cont_FT_Salaries,MATCH($G69,Cont_FT_Levels,0),MATCH(Q$64,Cont_FT_Years,0))+$N69)*$C69/12,(INDEX(Cont_FT_Salaries,MATCH($G69,Cont_FT_Levels,0),MATCH(Q$64,Cont_FT_Years,0))+$N69)))))*(1+$N$60)*$M69,0) -> 0 | R69: =IFERROR(IF(AND(R$64=$J69,$J69=$L69),(INDEX(Cont_FT_Salaries,MATCH($G69,Cont_FT_Levels,0),MATCH(R$64,Cont_FT_Years,0))+$N69)*$A69/12,IF(AND(R$64>=$J69,R$64<=$L69),IF(AND(R$64=$J69,$I69<>"January"),(INDEX('Master Data'!$Y$5:$AI$73,MATCH($G69,Cont_FT_Levels,0),MATCH(R$64,Cont_FT_Years,0))+$N69)*$B69/12,IF(AND(R$64=$L69,$K69<>"December"),(INDEX(Cont_FT_Salaries,MATCH($G69,Cont_FT_Levels,0),MATCH(R$64,Cont_FT_Years,0))+$N69)*$C69/12,(INDEX(Cont_FT_Salaries,MATCH($G69,Cont_FT_Levels,0),MATCH(R$64,Cont_FT_Years,0))+$N69)))))*(1+$N$60)*$M69,0) -> 0 | S69: =IFERROR(IF(AND(S$64=$J69,$J69=$L69),(INDEX(Cont_FT_Salaries,MATCH($G69,Cont_FT_Levels,0),MATCH(S$64,Cont_FT_Years,0))+$N69)*$A69/12,IF(AND(S$64>=$J69,S$64<=$L69),IF(AND(S$64=$J69,$I69<>"January"),(INDEX('Master Data'!$Y$5:$AI$73,MATCH($G69,Cont_FT_Levels,0),MATCH(S$64,Cont_FT_Years,0))+$N69)*$B69/12,IF(AND(S$64=$L69,$K69<>"December"),(INDEX(Cont_FT_Salaries,MATCH($G69,Cont_FT_Levels,0),MATCH(S$64,Cont_FT_Years,0))+$N69)*$C69/12,(INDEX(Cont_FT_Salaries,MATCH($G69,Cont_FT_Levels,0),MATCH(S$64,Cont_FT_Years,0))+$N69)))))*(1+$N$60)*$M69,0) -> 0 | T69: =IFERROR(IF(AND(T$64=$J69,$J69=$L69),(INDEX(Cont_FT_Salaries,MATCH($G69,Cont_FT_Levels,0),MATCH(T$64,Cont_FT_Years,0))+$N69)*$A69/12,IF(AND(T$64>=$J69,T$64<=$L69),IF(AND(T$64=$J69,$I69<>"January"),(INDEX('Master Data'!$Y$5:$AI$73,MATCH($G69,Cont_FT_Levels,0),MATCH(T$64,Cont_FT_Years,0))+$N69)*$B69/12,IF(AND(T$64=$L69,$K69<>"December"),(INDEX(Cont_FT_Salaries,MATCH($G69,Cont_FT_Levels,0),MATCH(T$64,Cont_FT_Years,0))+$N69)*$C69/12,(INDEX(Cont_FT_Salaries,MATCH($G69,Cont_FT_Levels,0),MATCH(T$64,Cont_FT_Years,0))+$N69)))))*(1+$N$60)*$M69,0) -> 0 | U69: =IFERROR(IF(AND(U$64=$J69,$J69=$L69),(INDEX(Cont_FT_Salaries,MATCH($G69,Cont_FT_Levels,0),MATCH(U$64,Cont_FT_Years,0))+$N69)*$A69/12,IF(AND(U$64>=$J69,U$64<=$L69),IF(AND(U$64=$J69,$I69<>"January"),(INDEX('Master Data'!$Y$5:$AI$73,MATCH($G69,Cont_FT_Levels,0),MATCH(U$64,Cont_FT_Years,0))+$N69)*$B69/12,IF(AND(U$64=$L69,$K69<>"December"),(INDEX(Cont_FT_Salaries,MATCH($G69,Cont_FT_Levels,0),MATCH(U$64,Cont_FT_Years,0))+$N69)*$C69/12,(INDEX(Cont_FT_Salaries,MATCH($G69,Cont_FT_Levels,0),MATCH(U$64,Cont_FT_Years,0))+$N69)))))*(1+$N$60)*$M69,0) -> 0 | V69: =IFERROR(IF(AND(V$64=$J69,$J69=$L69),(INDEX(Cont_FT_Salaries,MATCH($G69,Cont_FT_Levels,0),MATCH(V$64,Cont_FT_Years,0))+$N69)*$A69/12,IF(AND(V$64>=$J69,V$64<=$L69),IF(AND(V$64=$J69,$I69<>"January"),(INDEX('Master Data'!$Y$5:$AI$73,MATCH($G69,Cont_FT_Levels,0),MATCH(V$64,Cont_FT_Years,0))+$N69)*$B69/12,IF(AND(V$64=$L69,$K69<>"December"),(INDEX(Cont_FT_Salaries,MATCH($G69,Cont_FT_Levels,0),MATCH(V$64,Cont_FT_Years,0))+$N69)*$C69/12,(INDEX(Cont_FT_Salaries,MATCH($G69,Cont_FT_Levels,0),MATCH(V$64,Cont_FT_Years,0))+$N69)))))*(1+$N$60)*$M69,0) -> 0 | W69: =IFERROR(IF(AND(W$64=$J69,$J69=$L69),(INDEX(Cont_FT_Salaries,MATCH($G69,Cont_FT_Levels,0),MATCH(W$64,Cont_FT_Years,0))+$N69)*$A69/12,IF(AND(W$64>=$J69,W$64<=$L69),IF(AND(W$64=$J69,$I69<>"January"),(INDEX('Master Data'!$Y$5:$AI$73,MATCH($G69,Cont_FT_Levels,0),MATCH(W$64,Cont_FT_Years,0))+$N69)*$B69/12,IF(AND(W$64=$L69,$K69<>"December"),(INDEX(Cont_FT_Salaries,MATCH($G69,Cont_FT_Levels,0),MATCH(W$64,Cont_FT_Years,0))+$N69)*$C69/12,(INDEX(Cont_FT_Salaries,MATCH($G69,Cont_FT_Levels,0),MATCH(W$64,Cont_FT_Years,0))+$N69)))))*(1+$N$60)*$M69,0) -> 0 | X69: =IFERROR(IF(AND(X$64=$J69,$J69=$L69),(INDEX(Cont_FT_Salaries,MATCH($G69,Cont_FT_Levels,0),MATCH(X$64,Cont_FT_Years,0))+$N69)*$A69/12,IF(AND(X$64>=$J69,X$64<=$L69),IF(AND(X$64=$J69,$I69<>"January"),(INDEX('Master Data'!$Y$5:$AI$73,MATCH($G69,Cont_FT_Levels,0),MATCH(X$64,Cont_FT_Years,0))+$N69)*$B69/12,IF(AND(X$64=$L69,$K69<>"December"),(INDEX(Cont_FT_Salaries,MATCH($G69,Cont_FT_Levels,0),MATCH(X$64,Cont_FT_Years,0))+$N69)*$C69/12,(INDEX(Cont_FT_Salaries,MATCH($G69,Cont_FT_Levels,0),MATCH(X$64,Cont_FT_Years,0))+$N69)))))*(1+$N$60)*$M69,0) -> 0 | Y69: 0 | AD69: 0 | AE69: 0 | AF69: 0 | AG69: 0 | AH69: 0 | AI69: 0 | AJ69: 0 | AK69: 0 | AL69: 0 | AM69: 0 | AN69: 0 | AP69: 0 | AQ69: 0 | AR69: 0 | AT69: 0
A70: =IFERROR(IF($J70=$L70,VLOOKUP($K70,'Master Data'!$AQ$5:$AR$16,2,FALSE)-VLOOKUP($I70,'Master Data'!$AQ$5:$AR$16,2,FALSE)+1,0),0) -> 0 | B70: =IFERROR(VLOOKUP($I70,'Master Data'!$AQ$5:$AS$16,3,FALSE),0) -> 0 | C70: =IFERROR(VLOOKUP($K70,'Master Data'!$AQ$5:$AR$16,2,FALSE),0) -> 0 | O70: =IFERROR(IF(AND(O$64=$J70,$J70=$L70),(INDEX(Cont_FT_Salaries,MATCH($G70,Cont_FT_Levels,0),MATCH(O$64,Cont_FT_Years,0))+$N70)*$A70/12,IF(AND(O$64>=$J70,O$64<=$L70),IF(AND(O$64=$J70,$I70<>"January"),(INDEX('Master Data'!$Y$5:$AI$73,MATCH($G70,Cont_FT_Levels,0),MATCH(O$64,Cont_FT_Years,0))+$N70)*$B70/12,IF(AND(O$64=$L70,$K70<>"December"),(INDEX(Cont_FT_Salaries,MATCH($G70,Cont_FT_Levels,0),MATCH(O$64,Cont_FT_Years,0))+$N70)*$C70/12,(INDEX(Cont_FT_Salaries,MATCH($G70,Cont_FT_Levels,0),MATCH(O$64,Cont_FT_Years,0))+$N70)))))*(1+$N$60)*$M70,0) -> 0 | P70: =IFERROR(IF(AND(P$64=$J70,$J70=$L70),(INDEX(Cont_FT_Salaries,MATCH($G70,Cont_FT_Levels,0),MATCH(P$64,Cont_FT_Years,0))+$N70)*$A70/12,IF(AND(P$64>=$J70,P$64<=$L70),IF(AND(P$64=$J70,$I70<>"January"),(INDEX('Master Data'!$Y$5:$AI$73,MATCH($G70,Cont_FT_Levels,0),MATCH(P$64,Cont_FT_Years,0))+$N70)*$B70/12,IF(AND(P$64=$L70,$K70<>"December"),(INDEX(Cont_FT_Salaries,MATCH($G70,Cont_FT_Levels,0),MATCH(P$64,Cont_FT_Years,0))+$N70)*$C70/12,(INDEX(Cont_FT_Salaries,MATCH($G70,Cont_FT_Levels,0),MATCH(P$64,Cont_FT_Years,0))+$N70)))))*(1+$N$60)*$M70,0) -> 0 | Q70: =IFERROR(IF(AND(Q$64=$J70,$J70=$L70),(INDEX(Cont_FT_Salaries,MATCH($G70,Cont_FT_Levels,0),MATCH(Q$64,Cont_FT_Years,0))+$N70)*$A70/12,IF(AND(Q$64>=$J70,Q$64<=$L70),IF(AND(Q$64=$J70,$I70<>"January"),(INDEX('Master Data'!$Y$5:$AI$73,MATCH($G70,Cont_FT_Levels,0),MATCH(Q$64,Cont_FT_Years,0))+$N70)*$B70/12,IF(AND(Q$64=$L70,$K70<>"December"),(INDEX(Cont_FT_Salaries,MATCH($G70,Cont_FT_Levels,0),MATCH(Q$64,Cont_FT_Years,0))+$N70)*$C70/12,(INDEX(Cont_FT_Salaries,MATCH($G70,Cont_FT_Levels,0),MATCH(Q$64,Cont_FT_Years,0))+$N70)))))*(1+$N$60)*$M70,0) -> 0 | R70: =IFERROR(IF(AND(R$64=$J70,$J70=$L70),(INDEX(Cont_FT_Salaries,MATCH($G70,Cont_FT_Levels,0),MATCH(R$64,Cont_FT_Years,0))+$N70)*$A70/12,IF(AND(R$64>=$J70,R$64<=$L70),IF(AND(R$64=$J70,$I70<>"January"),(INDEX('Master Data'!$Y$5:$AI$73,MATCH($G70,Cont_FT_Levels,0),MATCH(R$64,Cont_FT_Years,0))+$N70)*$B70/12,IF(AND(R$64=$L70,$K70<>"December"),(INDEX(Cont_FT_Salaries,MATCH($G70,Cont_FT_Levels,0),MATCH(R$64,Cont_FT_Years,0))+$N70)*$C70/12,(INDEX(Cont_FT_Salaries,MATCH($G70,Cont_FT_Levels,0),MATCH(R$64,Cont_FT_Years,0))+$N70)))))*(1+$N$60)*$M70,0) -> 0 | S70: =IFERROR(IF(AND(S$64=$J70,$J70=$L70),(INDEX(Cont_FT_Salaries,MATCH($G70,Cont_FT_Levels,0),MATCH(S$64,Cont_FT_Years,0))+$N70)*$A70/12,IF(AND(S$64>=$J70,S$64<=$L70),IF(AND(S$64=$J70,$I70<>"January"),(INDEX('Master Data'!$Y$5:$AI$73,MATCH($G70,Cont_FT_Levels,0),MATCH(S$64,Cont_FT_Years,0))+$N70)*$B70/12,IF(AND(S$64=$L70,$K70<>"December"),(INDEX(Cont_FT_Salaries,MATCH($G70,Cont_FT_Levels,0),MATCH(S$64,Cont_FT_Years,0))+$N70)*$C70/12,(INDEX(Cont_FT_Salaries,MATCH($G70,Cont_FT_Levels,0),MATCH(S$64,Cont_FT_Years,0))+$N70)))))*(1+$N$60)*$M70,0) -> 0 | T70: =IFERROR(IF(AND(T$64=$J70,$J70=$L70),(INDEX(Cont_FT_Salaries,MATCH($G70,Cont_FT_Levels,0),MATCH(T$64,Cont_FT_Years,0))+$N70)*$A70/12,IF(AND(T$64>=$J70,T$64<=$L70),IF(AND(T$64=$J70,$I70<>"January"),(INDEX('Master Data'!$Y$5:$AI$73,MATCH($G70,Cont_FT_Levels,0),MATCH(T$64,Cont_FT_Years,0))+$N70)*$B70/12,IF(AND(T$64=$L70,$K70<>"December"),(INDEX(Cont_FT_Salaries,MATCH($G70,Cont_FT_Levels,0),MATCH(T$64,Cont_FT_Years,0))+$N70)*$C70/12,(INDEX(Cont_FT_Salaries,MATCH($G70,Cont_FT_Levels,0),MATCH(T$64,Cont_FT_Years,0))+$N70)))))*(1+$N$60)*$M70,0) -> 0 | U70: =IFERROR(IF(AND(U$64=$J70,$J70=$L70),(INDEX(Cont_FT_Salaries,MATCH($G70,Cont_FT_Levels,0),MATCH(U$64,Cont_FT_Years,0))+$N70)*$A70/12,IF(AND(U$64>=$J70,U$64<=$L70),IF(AND(U$64=$J70,$I70<>"January"),(INDEX('Master Data'!$Y$5:$AI$73,MATCH($G70,Cont_FT_Levels,0),MATCH(U$64,Cont_FT_Years,0))+$N70)*$B70/12,IF(AND(U$64=$L70,$K70<>"December"),(INDEX(Cont_FT_Salaries,MATCH($G70,Cont_FT_Levels,0),MATCH(U$64,Cont_FT_Years,0))+$N70)*$C70/12,(INDEX(Cont_FT_Salaries,MATCH($G70,Cont_FT_Levels,0),MATCH(U$64,Cont_FT_Years,0))+$N70)))))*(1+$N$60)*$M70,0) -> 0 | V70: =IFERROR(IF(AND(V$64=$J70,$J70=$L70),(INDEX(Cont_FT_Salaries,MATCH($G70,Cont_FT_Levels,0),MATCH(V$64,Cont_FT_Years,0))+$N70)*$A70/12,IF(AND(V$64>=$J70,V$64<=$L70),IF(AND(V$64=$J70,$I70<>"January"),(INDEX('Master Data'!$Y$5:$AI$73,MATCH($G70,Cont_FT_Levels,0),MATCH(V$64,Cont_FT_Years,0))+$N70)*$B70/12,IF(AND(V$64=$L70,$K70<>"December"),(INDEX(Cont_FT_Salaries,MATCH($G70,Cont_FT_Levels,0),MATCH(V$64,Cont_FT_Years,0))+$N70)*$C70/12,(INDEX(Cont_FT_Salaries,MATCH($G70,Cont_FT_Levels,0),MATCH(V$64,Cont_FT_Years,0))+$N70)))))*(1+$N$60)*$M70,0) -> 0 | W70: =IFERROR(IF(AND(W$64=$J70,$J70=$L70),(INDEX(Cont_FT_Salaries,MATCH($G70,Cont_FT_Levels,0),MATCH(W$64,Cont_FT_Years,0))+$N70)*$A70/12,IF(AND(W$64>=$J70,W$64<=$L70),IF(AND(W$64=$J70,$I70<>"January"),(INDEX('Master Data'!$Y$5:$AI$73,MATCH($G70,Cont_FT_Levels,0),MATCH(W$64,Cont_FT_Years,0))+$N70)*$B70/12,IF(AND(W$64=$L70,$K70<>"December"),(INDEX(Cont_FT_Salaries,MATCH($G70,Cont_FT_Levels,0),MATCH(W$64,Cont_FT_Years,0))+$N70)*$C70/12,(INDEX(Cont_FT_Salaries,MATCH($G70,Cont_FT_Levels,0),MATCH(W$64,Cont_FT_Years,0))+$N70)))))*(1+$N$60)*$M70,0) -> 0 | X70: =IFERROR(IF(AND(X$64=$J70,$J70=$L70),(INDEX(Cont_FT_Salaries,MATCH($G70,Cont_FT_Levels,0),MATCH(X$64,Cont_FT_Years,0))+$N70)*$A70/12,IF(AND(X$64>=$J70,X$64<=$L70),IF(AND(X$64=$J70,$I70<>"January"),(INDEX('Master Data'!$Y$5:$AI$73,MATCH($G70,Cont_FT_Levels,0),MATCH(X$64,Cont_FT_Years,0))+$N70)*$B70/12,IF(AND(X$64=$L70,$K70<>"December"),(INDEX(Cont_FT_Salaries,MATCH($G70,Cont_FT_Levels,0),MATCH(X$64,Cont_FT_Years,0))+$N70)*$C70/12,(INDEX(Cont_FT_Salaries,MATCH($G70,Cont_FT_Levels,0),MATCH(X$64,Cont_FT_Years,0))+$N70)))))*(1+$N$60)*$M70,0) -> 0 | Y70: 0 | AD70: 0 | AE70: 0 | AF70: 0 | AG70: 0 | AH70: 0 | AI70: 0 | AJ70: 0 | AK70: 0 | AL70: 0 | AM70: 0 | AN70: 0 | AP70: 0 | AQ70: 0 | AR70: 0 | AT70: 0
A71: =IFERROR(IF($J71=$L71,VLOOKUP($K71,'Master Data'!$AQ$5:$AR$16,2,FALSE)-VLOOKUP($I71,'Master Data'!$AQ$5:$AR$16,2,FALSE)+1,0),0) -> 0 | B71: =IFERROR(VLOOKUP($I71,'Master Data'!$AQ$5:$AS$16,3,FALSE),0) -> 0 | C71: =IFERROR(VLOOKUP($K71,'Master Data'!$AQ$5:$AR$16,2,FALSE),0) -> 0 | O71: =IFERROR(IF(AND(O$64=$J71,$J71=$L71),(INDEX(Cont_FT_Salaries,MATCH($G71,Cont_FT_Levels,0),MATCH(O$64,Cont_FT_Years,0))+$N71)*$A71/12,IF(AND(O$64>=$J71,O$64<=$L71),IF(AND(O$64=$J71,$I71<>"January"),(INDEX('Master Data'!$Y$5:$AI$73,MATCH($G71,Cont_FT_Levels,0),MATCH(O$64,Cont_FT_Years,0))+$N71)*$B71/12,IF(AND(O$64=$L71,$K71<>"December"),(INDEX(Cont_FT_Salaries,MATCH($G71,Cont_FT_Levels,0),MATCH(O$64,Cont_FT_Years,0))+$N71)*$C71/12,(INDEX(Cont_FT_Salaries,MATCH($G71,Cont_FT_Levels,0),MATCH(O$64,Cont_FT_Years,0))+$N71)))))*(1+$N$60)*$M71,0) -> 0 | P71: =IFERROR(IF(AND(P$64=$J71,$J71=$L71),(INDEX(Cont_FT_Salaries,MATCH($G71,Cont_FT_Levels,0),MATCH(P$64,Cont_FT_Years,0))+$N71)*$A71/12,IF(AND(P$64>=$J71,P$64<=$L71),IF(AND(P$64=$J71,$I71<>"January"),(INDEX('Master Data'!$Y$5:$AI$73,MATCH($G71,Cont_FT_Levels,0),MATCH(P$64,Cont_FT_Years,0))+$N71)*$B71/12,IF(AND(P$64=$L71,$K71<>"December"),(INDEX(Cont_FT_Salaries,MATCH($G71,Cont_FT_Levels,0),MATCH(P$64,Cont_FT_Years,0))+$N71)*$C71/12,(INDEX(Cont_FT_Salaries,MATCH($G71,Cont_FT_Levels,0),MATCH(P$64,Cont_FT_Years,0))+$N71)))))*(1+$N$60)*$M71,0) -> 0 | Q71: =IFERROR(IF(AND(Q$64=$J71,$J71=$L71),(INDEX(Cont_FT_Salaries,MATCH($G71,Cont_FT_Levels,0),MATCH(Q$64,Cont_FT_Years,0))+$N71)*$A71/12,IF(AND(Q$64>=$J71,Q$64<=$L71),IF(AND(Q$64=$J71,$I71<>"January"),(INDEX('Master Data'!$Y$5:$AI$73,MATCH($G71,Cont_FT_Levels,0),MATCH(Q$64,Cont_FT_Years,0))+$N71)*$B71/12,IF(AND(Q$64=$L71,$K71<>"December"),(INDEX(Cont_FT_Salaries,MATCH($G71,Cont_FT_Levels,0),MATCH(Q$64,Cont_FT_Years,0))+$N71)*$C71/12,(INDEX(Cont_FT_Salaries,MATCH($G71,Cont_FT_Levels,0),MATCH(Q$64,Cont_FT_Years,0))+$N71)))))*(1+$N$60)*$M71,0) -> 0 | R71: =IFERROR(IF(AND(R$64=$J71,$J71=$L71),(INDEX(Cont_FT_Salaries,MATCH($G71,Cont_FT_Levels,0),MATCH(R$64,Cont_FT_Years,0))+$N71)*$A71/12,IF(AND(R$64>=$J71,R$64<=$L71),IF(AND(R$64=$J71,$I71<>"January"),(INDEX('Master Data'!$Y$5:$AI$73,MATCH($G71,Cont_FT_Levels,0),MATCH(R$64,Cont_FT_Years,0))+$N71)*$B71/12,IF(AND(R$64=$L71,$K71<>"December"),(INDEX(Cont_FT_Salaries,MATCH($G71,Cont_FT_Levels,0),MATCH(R$64,Cont_FT_Years,0))+$N71)*$C71/12,(INDEX(Cont_FT_Salaries,MATCH($G71,Cont_FT_Levels,0),MATCH(R$64,Cont_FT_Years,0))+$N71)))))*(1+$N$60)*$M71,0) -> 0 | S71: =IFERROR(IF(AND(S$64=$J71,$J71=$L71),(INDEX(Cont_FT_Salaries,MATCH($G71,Cont_FT_Levels,0),MATCH(S$64,Cont_FT_Years,0))+$N71)*$A71/12,IF(AND(S$64>=$J71,S$64<=$L71),IF(AND(S$64=$J71,$I71<>"January"),(INDEX('Master Data'!$Y$5:$AI$73,MATCH($G71,Cont_FT_Levels,0),MATCH(S$64,Cont_FT_Years,0))+$N71)*$B71/12,IF(AND(S$64=$L71,$K71<>"December"),(INDEX(Cont_FT_Salaries,MATCH($G71,Cont_FT_Levels,0),MATCH(S$64,Cont_FT_Years,0))+$N71)*$C71/12,(INDEX(Cont_FT_Salaries,MATCH($G71,Cont_FT_Levels,0),MATCH(S$64,Cont_FT_Years,0))+$N71)))))*(1+$N$60)*$M71,0) -> 0 | T71: =IFERROR(IF(AND(T$64=$J71,$J71=$L71),(INDEX(Cont_FT_Salaries,MATCH($G71,Cont_FT_Levels,0),MATCH(T$64,Cont_FT_Years,0))+$N71)*$A71/12,IF(AND(T$64>=$J71,T$64<=$L71),IF(AND(T$64=$J71,$I71<>"January"),(INDEX('Master Data'!$Y$5:$AI$73,MATCH($G71,Cont_FT_Levels,0),MATCH(T$64,Cont_FT_Years,0))+$N71)*$B71/12,IF(AND(T$64=$L71,$K71<>"December"),(INDEX(Cont_FT_Salaries,MATCH($G71,Cont_FT_Levels,0),MATCH(T$64,Cont_FT_Years,0))+$N71)*$C71/12,(INDEX(Cont_FT_Salaries,MATCH($G71,Cont_FT_Levels,0),MATCH(T$64,Cont_FT_Years,0))+$N71)))))*(1+$N$60)*$M71,0) -> 0 | U71: =IFERROR(IF(AND(U$64=$J71,$J71=$L71),(INDEX(Cont_FT_Salaries,MATCH($G71,Cont_FT_Levels,0),MATCH(U$64,Cont_FT_Years,0))+$N71)*$A71/12,IF(AND(U$64>=$J71,U$64<=$L71),IF(AND(U$64=$J71,$I71<>"January"),(INDEX('Master Data'!$Y$5:$AI$73,MATCH($G71,Cont_FT_Levels,0),MATCH(U$64,Cont_FT_Years,0))+$N71)*$B71/12,IF(AND(U$64=$L71,$K71<>"December"),(INDEX(Cont_FT_Salaries,MATCH($G71,Cont_FT_Levels,0),MATCH(U$64,Cont_FT_Years,0))+$N71)*$C71/12,(INDEX(Cont_FT_Salaries,MATCH($G71,Cont_FT_Levels,0),MATCH(U$64,Cont_FT_Years,0))+$N71)))))*(1+$N$60)*$M71,0) -> 0 | V71: =IFERROR(IF(AND(V$64=$J71,$J71=$L71),(INDEX(Cont_FT_Salaries,MATCH($G71,Cont_FT_Levels,0),MATCH(V$64,Cont_FT_Years,0))+$N71)*$A71/12,IF(AND(V$64>=$J71,V$64<=$L71),IF(AND(V$64=$J71,$I71<>"January"),(INDEX('Master Data'!$Y$5:$AI$73,MATCH($G71,Cont_FT_Levels,0),MATCH(V$64,Cont_FT_Years,0))+$N71)*$B71/12,IF(AND(V$64=$L71,$K71<>"December"),(INDEX(Cont_FT_Salaries,MATCH($G71,Cont_FT_Levels,0),MATCH(V$64,Cont_FT_Years,0))+$N71)*$C71/12,(INDEX(Cont_FT_Salaries,MATCH($G71,Cont_FT_Levels,0),MATCH(V$64,Cont_FT_Years,0))+$N71)))))*(1+$N$60)*$M71,0) -> 0 | W71: =IFERROR(IF(AND(W$64=$J71,$J71=$L71),(INDEX(Cont_FT_Salaries,MATCH($G71,Cont_FT_Levels,0),MATCH(W$64,Cont_FT_Years,0))+$N71)*$A71/12,IF(AND(W$64>=$J71,W$64<=$L71),IF(AND(W$64=$J71,$I71<>"January"),(INDEX('Master Data'!$Y$5:$AI$73,MATCH($G71,Cont_FT_Levels,0),MATCH(W$64,Cont_FT_Years,0))+$N71)*$B71/12,IF(AND(W$64=$L71,$K71<>"December"),(INDEX(Cont_FT_Salaries,MATCH($G71,Cont_FT_Levels,0),MATCH(W$64,Cont_FT_Years,0))+$N71)*$C71/12,(INDEX(Cont_FT_Salaries,MATCH($G71,Cont_FT_Levels,0),MATCH(W$64,Cont_FT_Years,0))+$N71)))))*(1+$N$60)*$M71,0) -> 0 | X71: =IFERROR(IF(AND(X$64=$J71,$J71=$L71),(INDEX(Cont_FT_Salaries,MATCH($G71,Cont_FT_Levels,0),MATCH(X$64,Cont_FT_Years,0))+$N71)*$A71/12,IF(AND(X$64>=$J71,X$64<=$L71),IF(AND(X$64=$J71,$I71<>"January"),(INDEX('Master Data'!$Y$5:$AI$73,MATCH($G71,Cont_FT_Levels,0),MATCH(X$64,Cont_FT_Years,0))+$N71)*$B71/12,IF(AND(X$64=$L71,$K71<>"December"),(INDEX(Cont_FT_Salaries,MATCH($G71,Cont_FT_Levels,0),MATCH(X$64,Cont_FT_Years,0))+$N71)*$C71/12,(INDEX(Cont_FT_Salaries,MATCH($G71,Cont_FT_Levels,0),MATCH(X$64,Cont_FT_Years,0))+$N71)))))*(1+$N$60)*$M71,0) -> 0 | Y71: 0 | AD71: 0 | AE71: 0 | AF71: 0 | AG71: 0 | AH71: 0 | AI71: 0 | AJ71: 0 | AK71: 0 | AL71: 0 | AM71: 0 | AN71: 0 | AP71: 0 | AQ71: 0 | AR71: 0 | AT71: 0
A72: =IFERROR(IF($J72=$L72,VLOOKUP($K72,'Master Data'!$AQ$5:$AR$16,2,FALSE)-VLOOKUP($I72,'Master Data'!$AQ$5:$AR$16,2,FALSE)+1,0),0) -> 0 | B72: =IFERROR(VLOOKUP($I72,'Master Data'!$AQ$5:$AS$16,3,FALSE),0) -> 0 | C72: =IFERROR(VLOOKUP($K72,'Master Data'!$AQ$5:$AR$16,2,FALSE),0) -> 0 | O72: =IFERROR(IF(AND(O$64=$J72,$J72=$L72),(INDEX(Cont_FT_Salaries,MATCH($G72,Cont_FT_Levels,0),MATCH(O$64,Cont_FT_Years,0))+$N72)*$A72/12,IF(AND(O$64>=$J72,O$64<=$L72),IF(AND(O$64=$J72,$I72<>"January"),(INDEX('Master Data'!$Y$5:$AI$73,MATCH($G72,Cont_FT_Levels,0),MATCH(O$64,Cont_FT_Years,0))+$N72)*$B72/12,IF(AND(O$64=$L72,$K72<>"December"),(INDEX(Cont_FT_Salaries,MATCH($G72,Cont_FT_Levels,0),MATCH(O$64,Cont_FT_Years,0))+$N72)*$C72/12,(INDEX(Cont_FT_Salaries,MATCH($G72,Cont_FT_Levels,0),MATCH(O$64,Cont_FT_Years,0))+$N72)))))*(1+$N$60)*$M72,0) -> 0 | P72: =IFERROR(IF(AND(P$64=$J72,$J72=$L72),(INDEX(Cont_FT_Salaries,MATCH($G72,Cont_FT_Levels,0),MATCH(P$64,Cont_FT_Years,0))+$N72)*$A72/12,IF(AND(P$64>=$J72,P$64<=$L72),IF(AND(P$64=$J72,$I72<>"January"),(INDEX('Master Data'!$Y$5:$AI$73,MATCH($G72,Cont_FT_Levels,0),MATCH(P$64,Cont_FT_Years,0))+$N72)*$B72/12,IF(AND(P$64=$L72,$K72<>"December"),(INDEX(Cont_FT_Salaries,MATCH($G72,Cont_FT_Levels,0),MATCH(P$64,Cont_FT_Years,0))+$N72)*$C72/12,(INDEX(Cont_FT_Salaries,MATCH($G72,Cont_FT_Levels,0),MATCH(P$64,Cont_FT_Years,0))+$N72)))))*(1+$N$60)*$M72,0) -> 0 | Q72: =IFERROR(IF(AND(Q$64=$J72,$J72=$L72),(INDEX(Cont_FT_Salaries,MATCH($G72,Cont_FT_Levels,0),MATCH(Q$64,Cont_FT_Years,0))+$N72)*$A72/12,IF(AND(Q$64>=$J72,Q$64<=$L72),IF(AND(Q$64=$J72,$I72<>"January"),(INDEX('Master Data'!$Y$5:$AI$73,MATCH($G72,Cont_FT_Levels,0),MATCH(Q$64,Cont_FT_Years,0))+$N72)*$B72/12,IF(AND(Q$64=$L72,$K72<>"December"),(INDEX(Cont_FT_Salaries,MATCH($G72,Cont_FT_Levels,0),MATCH(Q$64,Cont_FT_Years,0))+$N72)*$C72/12,(INDEX(Cont_FT_Salaries,MATCH($G72,Cont_FT_Levels,0),MATCH(Q$64,Cont_FT_Years,0))+$N72)))))*(1+$N$60)*$M72,0) -> 0 | R72: =IFERROR(IF(AND(R$64=$J72,$J72=$L72),(INDEX(Cont_FT_Salaries,MATCH($G72,Cont_FT_Levels,0),MATCH(R$64,Cont_FT_Years,0))+$N72)*$A72/12,IF(AND(R$64>=$J72,R$64<=$L72),IF(AND(R$64=$J72,$I72<>"January"),(INDEX('Master Data'!$Y$5:$AI$73,MATCH($G72,Cont_FT_Levels,0),MATCH(R$64,Cont_FT_Years,0))+$N72)*$B72/12,IF(AND(R$64=$L72,$K72<>"December"),(INDEX(Cont_FT_Salaries,MATCH($G72,Cont_FT_Levels,0),MATCH(R$64,Cont_FT_Years,0))+$N72)*$C72/12,(INDEX(Cont_FT_Salaries,MATCH($G72,Cont_FT_Levels,0),MATCH(R$64,Cont_FT_Years,0))+$N72)))))*(1+$N$60)*$M72,0) -> 0 | S72: =IFERROR(IF(AND(S$64=$J72,$J72=$L72),(INDEX(Cont_FT_Salaries,MATCH($G72,Cont_FT_Levels,0),MATCH(S$64,Cont_FT_Years,0))+$N72)*$A72/12,IF(AND(S$64>=$J72,S$64<=$L72),IF(AND(S$64=$J72,$I72<>"January"),(INDEX('Master Data'!$Y$5:$AI$73,MATCH($G72,Cont_FT_Levels,0),MATCH(S$64,Cont_FT_Years,0))+$N72)*$B72/12,IF(AND(S$64=$L72,$K72<>"December"),(INDEX(Cont_FT_Salaries,MATCH($G72,Cont_FT_Levels,0),MATCH(S$64,Cont_FT_Years,0))+$N72)*$C72/12,(INDEX(Cont_FT_Salaries,MATCH($G72,Cont_FT_Levels,0),MATCH(S$64,Cont_FT_Years,0))+$N72)))))*(1+$N$60)*$M72,0) -> 0 | T72: =IFERROR(IF(AND(T$64=$J72,$J72=$L72),(INDEX(Cont_FT_Salaries,MATCH($G72,Cont_FT_Levels,0),MATCH(T$64,Cont_FT_Years,0))+$N72)*$A72/12,IF(AND(T$64>=$J72,T$64<=$L72),IF(AND(T$64=$J72,$I72<>"January"),(INDEX('Master Data'!$Y$5:$AI$73,MATCH($G72,Cont_FT_Levels,0),MATCH(T$64,Cont_FT_Years,0))+$N72)*$B72/12,IF(AND(T$64=$L72,$K72<>"December"),(INDEX(Cont_FT_Salaries,MATCH($G72,Cont_FT_Levels,0),MATCH(T$64,Cont_FT_Years,0))+$N72)*$C72/12,(INDEX(Cont_FT_Salaries,MATCH($G72,Cont_FT_Levels,0),MATCH(T$64,Cont_FT_Years,0))+$N72)))))*(1+$N$60)*$M72,0) -> 0 | U72: =IFERROR(IF(AND(U$64=$J72,$J72=$L72),(INDEX(Cont_FT_Salaries,MATCH($G72,Cont_FT_Levels,0),MATCH(U$64,Cont_FT_Years,0))+$N72)*$A72/12,IF(AND(U$64>=$J72,U$64<=$L72),IF(AND(U$64=$J72,$I72<>"January"),(INDEX('Master Data'!$Y$5:$AI$73,MATCH($G72,Cont_FT_Levels,0),MATCH(U$64,Cont_FT_Years,0))+$N72)*$B72/12,IF(AND(U$64=$L72,$K72<>"December"),(INDEX(Cont_FT_Salaries,MATCH($G72,Cont_FT_Levels,0),MATCH(U$64,Cont_FT_Years,0))+$N72)*$C72/12,(INDEX(Cont_FT_Salaries,MATCH($G72,Cont_FT_Levels,0),MATCH(U$64,Cont_FT_Years,0))+$N72)))))*(1+$N$60)*$M72,0) -> 0 | V72: =IFERROR(IF(AND(V$64=$J72,$J72=$L72),(INDEX(Cont_FT_Salaries,MATCH($G72,Cont_FT_Levels,0),MATCH(V$64,Cont_FT_Years,0))+$N72)*$A72/12,IF(AND(V$64>=$J72,V$64<=$L72),IF(AND(V$64=$J72,$I72<>"January"),(INDEX('Master Data'!$Y$5:$AI$73,MATCH($G72,Cont_FT_Levels,0),MATCH(V$64,Cont_FT_Years,0))+$N72)*$B72/12,IF(AND(V$64=$L72,$K72<>"December"),(INDEX(Cont_FT_Salaries,MATCH($G72,Cont_FT_Levels,0),MATCH(V$64,Cont_FT_Years,0))+$N72)*$C72/12,(INDEX(Cont_FT_Salaries,MATCH($G72,Cont_FT_Levels,0),MATCH(V$64,Cont_FT_Years,0))+$N72)))))*(1+$N$60)*$M72,0) -> 0 | W72: =IFERROR(IF(AND(W$64=$J72,$J72=$L72),(INDEX(Cont_FT_Salaries,MATCH($G72,Cont_FT_Levels,0),MATCH(W$64,Cont_FT_Years,0))+$N72)*$A72/12,IF(AND(W$64>=$J72,W$64<=$L72),IF(AND(W$64=$J72,$I72<>"January"),(INDEX('Master Data'!$Y$5:$AI$73,MATCH($G72,Cont_FT_Levels,0),MATCH(W$64,Cont_FT_Years,0))+$N72)*$B72/12,IF(AND(W$64=$L72,$K72<>"December"),(INDEX(Cont_FT_Salaries,MATCH($G72,Cont_FT_Levels,0),MATCH(W$64,Cont_FT_Years,0))+$N72)*$C72/12,(INDEX(Cont_FT_Salaries,MATCH($G72,Cont_FT_Levels,0),MATCH(W$64,Cont_FT_Years,0))+$N72)))))*(1+$N$60)*$M72,0) -> 0 | X72: =IFERROR(IF(AND(X$64=$J72,$J72=$L72),(INDEX(Cont_FT_Salaries,MATCH($G72,Cont_FT_Levels,0),MATCH(X$64,Cont_FT_Years,0))+$N72)*$A72/12,IF(AND(X$64>=$J72,X$64<=$L72),IF(AND(X$64=$J72,$I72<>"January"),(INDEX('Master Data'!$Y$5:$AI$73,MATCH($G72,Cont_FT_Levels,0),MATCH(X$64,Cont_FT_Years,0))+$N72)*$B72/12,IF(AND(X$64=$L72,$K72<>"December"),(INDEX(Cont_FT_Salaries,MATCH($G72,Cont_FT_Levels,0),MATCH(X$64,Cont_FT_Years,0))+$N72)*$C72/12,(INDEX(Cont_FT_Salaries,MATCH($G72,Cont_FT_Levels,0),MATCH(X$64,Cont_FT_Years,0))+$N72)))))*(1+$N$60)*$M72,0) -> 0 | Y72: 0 | AD72: 0 | AE72: 0 | AF72: 0 | AG72: 0 | AH72: 0 | AI72: 0 | AJ72: 0 | AK72: 0 | AL72: 0 | AM72: 0 | AN72: 0 | AP72: 0 | AQ72: 0 | AR72: 0 | AT72: 0
A73: =IFERROR(IF($J73=$L73,VLOOKUP($K73,'Master Data'!$AQ$5:$AR$16,2,FALSE)-VLOOKUP($I73,'Master Data'!$AQ$5:$AR$16,2,FALSE)+1,0),0) -> 0 | B73: =IFERROR(VLOOKUP($I73,'Master Data'!$AQ$5:$AS$16,3,FALSE),0) -> 0 | C73: =IFERROR(VLOOKUP($K73,'Master Data'!$AQ$5:$AR$16,2,FALSE),0) -> 0 | O73: =IFERROR(IF(AND(O$64=$J73,$J73=$L73),(INDEX(Cont_FT_Salaries,MATCH($G73,Cont_FT_Levels,0),MATCH(O$64,Cont_FT_Years,0))+$N73)*$A73/12,IF(AND(O$64>=$J73,O$64<=$L73),IF(AND(O$64=$J73,$I73<>"January"),(INDEX('Master Data'!$Y$5:$AI$73,MATCH($G73,Cont_FT_Levels,0),MATCH(O$64,Cont_FT_Years,0))+$N73)*$B73/12,IF(AND(O$64=$L73,$K73<>"December"),(INDEX(Cont_FT_Salaries,MATCH($G73,Cont_FT_Levels,0),MATCH(O$64,Cont_FT_Years,0))+$N73)*$C73/12,(INDEX(Cont_FT_Salaries,MATCH($G73,Cont_FT_Levels,0),MATCH(O$64,Cont_FT_Years,0))+$N73)))))*(1+$N$60)*$M73,0) -> 0 | P73: =IFERROR(IF(AND(P$64=$J73,$J73=$L73),(INDEX(Cont_FT_Salaries,MATCH($G73,Cont_FT_Levels,0),MATCH(P$64,Cont_FT_Years,0))+$N73)*$A73/12,IF(AND(P$64>=$J73,P$64<=$L73),IF(AND(P$64=$J73,$I73<>"January"),(INDEX('Master Data'!$Y$5:$AI$73,MATCH($G73,Cont_FT_Levels,0),MATCH(P$64,Cont_FT_Years,0))+$N73)*$B73/12,IF(AND(P$64=$L73,$K73<>"December"),(INDEX(Cont_FT_Salaries,MATCH($G73,Cont_FT_Levels,0),MATCH(P$64,Cont_FT_Years,0))+$N73)*$C73/12,(INDEX(Cont_FT_Salaries,MATCH($G73,Cont_FT_Levels,0),MATCH(P$64,Cont_FT_Years,0))+$N73)))))*(1+$N$60)*$M73,0) -> 0 | Q73: =IFERROR(IF(AND(Q$64=$J73,$J73=$L73),(INDEX(Cont_FT_Salaries,MATCH($G73,Cont_FT_Levels,0),MATCH(Q$64,Cont_FT_Years,0))+$N73)*$A73/12,IF(AND(Q$64>=$J73,Q$64<=$L73),IF(AND(Q$64=$J73,$I73<>"January"),(INDEX('Master Data'!$Y$5:$AI$73,MATCH($G73,Cont_FT_Levels,0),MATCH(Q$64,Cont_FT_Years,0))+$N73)*$B73/12,IF(AND(Q$64=$L73,$K73<>"December"),(INDEX(Cont_FT_Salaries,MATCH($G73,Cont_FT_Levels,0),MATCH(Q$64,Cont_FT_Years,0))+$N73)*$C73/12,(INDEX(Cont_FT_Salaries,MATCH($G73,Cont_FT_Levels,0),MATCH(Q$64,Cont_FT_Years,0))+$N73)))))*(1+$N$60)*$M73,0) -> 0 | R73: =IFERROR(IF(AND(R$64=$J73,$J73=$L73),(INDEX(Cont_FT_Salaries,MATCH($G73,Cont_FT_Levels,0),MATCH(R$64,Cont_FT_Years,0))+$N73)*$A73/12,IF(AND(R$64>=$J73,R$64<=$L73),IF(AND(R$64=$J73,$I73<>"January"),(INDEX('Master Data'!$Y$5:$AI$73,MATCH($G73,Cont_FT_Levels,0),MATCH(R$64,Cont_FT_Years,0))+$N73)*$B73/12,IF(AND(R$64=$L73,$K73<>"December"),(INDEX(Cont_FT_Salaries,MATCH($G73,Cont_FT_Levels,0),MATCH(R$64,Cont_FT_Years,0))+$N73)*$C73/12,(INDEX(Cont_FT_Salaries,MATCH($G73,Cont_FT_Levels,0),MATCH(R$64,Cont_FT_Years,0))+$N73)))))*(1+$N$60)*$M73,0) -> 0 | S73: =IFERROR(IF(AND(S$64=$J73,$J73=$L73),(INDEX(Cont_FT_Salaries,MATCH($G73,Cont_FT_Levels,0),MATCH(S$64,Cont_FT_Years,0))+$N73)*$A73/12,IF(AND(S$64>=$J73,S$64<=$L73),IF(AND(S$64=$J73,$I73<>"January"),(INDEX('Master Data'!$Y$5:$AI$73,MATCH($G73,Cont_FT_Levels,0),MATCH(S$64,Cont_FT_Years,0))+$N73)*$B73/12,IF(AND(S$64=$L73,$K73<>"December"),(INDEX(Cont_FT_Salaries,MATCH($G73,Cont_FT_Levels,0),MATCH(S$64,Cont_FT_Years,0))+$N73)*$C73/12,(INDEX(Cont_FT_Salaries,MATCH($G73,Cont_FT_Levels,0),MATCH(S$64,Cont_FT_Years,0))+$N73)))))*(1+$N$60)*$M73,0) -> 0 | T73: =IFERROR(IF(AND(T$64=$J73,$J73=$L73),(INDEX(Cont_FT_Salaries,MATCH($G73,Cont_FT_Levels,0),MATCH(T$64,Cont_FT_Years,0))+$N73)*$A73/12,IF(AND(T$64>=$J73,T$64<=$L73),IF(AND(T$64=$J73,$I73<>"January"),(INDEX('Master Data'!$Y$5:$AI$73,MATCH($G73,Cont_FT_Levels,0),MATCH(T$64,Cont_FT_Years,0))+$N73)*$B73/12,IF(AND(T$64=$L73,$K73<>"December"),(INDEX(Cont_FT_Salaries,MATCH($G73,Cont_FT_Levels,0),MATCH(T$64,Cont_FT_Years,0))+$N73)*$C73/12,(INDEX(Cont_FT_Salaries,MATCH($G73,Cont_FT_Levels,0),MATCH(T$64,Cont_FT_Years,0))+$N73)))))*(1+$N$60)*$M73,0) -> 0 | U73: =IFERROR(IF(AND(U$64=$J73,$J73=$L73),(INDEX(Cont_FT_Salaries,MATCH($G73,Cont_FT_Levels,0),MATCH(U$64,Cont_FT_Years,0))+$N73)*$A73/12,IF(AND(U$64>=$J73,U$64<=$L73),IF(AND(U$64=$J73,$I73<>"January"),(INDEX('Master Data'!$Y$5:$AI$73,MATCH($G73,Cont_FT_Levels,0),MATCH(U$64,Cont_FT_Years,0))+$N73)*$B73/12,IF(AND(U$64=$L73,$K73<>"December"),(INDEX(Cont_FT_Salaries,MATCH($G73,Cont_FT_Levels,0),MATCH(U$64,Cont_FT_Years,0))+$N73)*$C73/12,(INDEX(Cont_FT_Salaries,MATCH($G73,Cont_FT_Levels,0),MATCH(U$64,Cont_FT_Years,0))+$N73)))))*(1+$N$60)*$M73,0) -> 0 | V73: =IFERROR(IF(AND(V$64=$J73,$J73=$L73),(INDEX(Cont_FT_Salaries,MATCH($G73,Cont_FT_Levels,0),MATCH(V$64,Cont_FT_Years,0))+$N73)*$A73/12,IF(AND(V$64>=$J73,V$64<=$L73),IF(AND(V$64=$J73,$I73<>"January"),(INDEX('Master Data'!$Y$5:$AI$73,MATCH($G73,Cont_FT_Levels,0),MATCH(V$64,Cont_FT_Years,0))+$N73)*$B73/12,IF(AND(V$64=$L73,$K73<>"December"),(INDEX(Cont_FT_Salaries,MATCH($G73,Cont_FT_Levels,0),MATCH(V$64,Cont_FT_Years,0))+$N73)*$C73/12,(INDEX(Cont_FT_Salaries,MATCH($G73,Cont_FT_Levels,0),MATCH(V$64,Cont_FT_Years,0))+$N73)))))*(1+$N$60)*$M73,0) -> 0 | W73: =IFERROR(IF(AND(W$64=$J73,$J73=$L73),(INDEX(Cont_FT_Salaries,MATCH($G73,Cont_FT_Levels,0),MATCH(W$64,Cont_FT_Years,0))+$N73)*$A73/12,IF(AND(W$64>=$J73,W$64<=$L73),IF(AND(W$64=$J73,$I73<>"January"),(INDEX('Master Data'!$Y$5:$AI$73,MATCH($G73,Cont_FT_Levels,0),MATCH(W$64,Cont_FT_Years,0))+$N73)*$B73/12,IF(AND(W$64=$L73,$K73<>"December"),(INDEX(Cont_FT_Salaries,MATCH($G73,Cont_FT_Levels,0),MATCH(W$64,Cont_FT_Years,0))+$N73)*$C73/12,(INDEX(Cont_FT_Salaries,MATCH($G73,Cont_FT_Levels,0),MATCH(W$64,Cont_FT_Years,0))+$N73)))))*(1+$N$60)*$M73,0) -> 0 | X73: =IFERROR(IF(AND(X$64=$J73,$J73=$L73),(INDEX(Cont_FT_Salaries,MATCH($G73,Cont_FT_Levels,0),MATCH(X$64,Cont_FT_Years,0))+$N73)*$A73/12,IF(AND(X$64>=$J73,X$64<=$L73),IF(AND(X$64=$J73,$I73<>"January"),(INDEX('Master Data'!$Y$5:$AI$73,MATCH($G73,Cont_FT_Levels,0),MATCH(X$64,Cont_FT_Years,0))+$N73)*$B73/12,IF(AND(X$64=$L73,$K73<>"December"),(INDEX(Cont_FT_Salaries,MATCH($G73,Cont_FT_Levels,0),MATCH(X$64,Cont_FT_Years,0))+$N73)*$C73/12,(INDEX(Cont_FT_Salaries,MATCH($G73,Cont_FT_Levels,0),MATCH(X$64,Cont_FT_Years,0))+$N73)))))*(1+$N$60)*$M73,0) -> 0 | Y73: 0 | AD73: 0 | AE73: 0 | AF73: 0 | AG73: 0 | AH73: 0 | AI73: 0 | AJ73: 0 | AK73: 0 | AL73: 0 | AM73: 0 | AN73: 0 | AP73: 0 | AQ73: 0 | AR73: 0 | AT73: 0
A74: =IFERROR(IF($J74=$L74,VLOOKUP($K74,'Master Data'!$AQ$5:$AR$16,2,FALSE)-VLOOKUP($I74,'Master Data'!$AQ$5:$AR$16,2,FALSE)+1,0),0) -> 0 | B74: =IFERROR(VLOOKUP($I74,'Master Data'!$AQ$5:$AS$16,3,FALSE),0) -> 0 | C74: =IFERROR(VLOOKUP($K74,'Master Data'!$AQ$5:$AR$16,2,FALSE),0) -> 0 | O74: =IFERROR(IF(AND(O$64=$J74,$J74=$L74),(INDEX(Cont_FT_Salaries,MATCH($G74,Cont_FT_Levels,0),MATCH(O$64,Cont_FT_Years,0))+$N74)*$A74/12,IF(AND(O$64>=$J74,O$64<=$L74),IF(AND(O$64=$J74,$I74<>"January"),(INDEX('Master Data'!$Y$5:$AI$73,MATCH($G74,Cont_FT_Levels,0),MATCH(O$64,Cont_FT_Years,0))+$N74)*$B74/12,IF(AND(O$64=$L74,$K74<>"December"),(INDEX(Cont_FT_Salaries,MATCH($G74,Cont_FT_Levels,0),MATCH(O$64,Cont_FT_Years,0))+$N74)*$C74/12,(INDEX(Cont_FT_Salaries,MATCH($G74,Cont_FT_Levels,0),MATCH(O$64,Cont_FT_Years,0))+$N74)))))*(1+$N$60)*$M74,0) -> 0 | P74: =IFERROR(IF(AND(P$64=$J74,$J74=$L74),(INDEX(Cont_FT_Salaries,MATCH($G74,Cont_FT_Levels,0),MATCH(P$64,Cont_FT_Years,0))+$N74)*$A74/12,IF(AND(P$64>=$J74,P$64<=$L74),IF(AND(P$64=$J74,$I74<>"January"),(INDEX('Master Data'!$Y$5:$AI$73,MATCH($G74,Cont_FT_Levels,0),MATCH(P$64,Cont_FT_Years,0))+$N74)*$B74/12,IF(AND(P$64=$L74,$K74<>"December"),(INDEX(Cont_FT_Salaries,MATCH($G74,Cont_FT_Levels,0),MATCH(P$64,Cont_FT_Years,0))+$N74)*$C74/12,(INDEX(Cont_FT_Salaries,MATCH($G74,Cont_FT_Levels,0),MATCH(P$64,Cont_FT_Years,0))+$N74)))))*(1+$N$60)*$M74,0) -> 0 | Q74: =IFERROR(IF(AND(Q$64=$J74,$J74=$L74),(INDEX(Cont_FT_Salaries,MATCH($G74,Cont_FT_Levels,0),MATCH(Q$64,Cont_FT_Years,0))+$N74)*$A74/12,IF(AND(Q$64>=$J74,Q$64<=$L74),IF(AND(Q$64=$J74,$I74<>"January"),(INDEX('Master Data'!$Y$5:$AI$73,MATCH($G74,Cont_FT_Levels,0),MATCH(Q$64,Cont_FT_Years,0))+$N74)*$B74/12,IF(AND(Q$64=$L74,$K74<>"December"),(INDEX(Cont_FT_Salaries,MATCH($G74,Cont_FT_Levels,0),MATCH(Q$64,Cont_FT_Years,0))+$N74)*$C74/12,(INDEX(Cont_FT_Salaries,MATCH($G74,Cont_FT_Levels,0),MATCH(Q$64,Cont_FT_Years,0))+$N74)))))*(1+$N$60)*$M74,0) -> 0 | R74: =IFERROR(IF(AND(R$64=$J74,$J74=$L74),(INDEX(Cont_FT_Salaries,MATCH($G74,Cont_FT_Levels,0),MATCH(R$64,Cont_FT_Years,0))+$N74)*$A74/12,IF(AND(R$64>=$J74,R$64<=$L74),IF(AND(R$64=$J74,$I74<>"January"),(INDEX('Master Data'!$Y$5:$AI$73,MATCH($G74,Cont_FT_Levels,0),MATCH(R$64,Cont_FT_Years,0))+$N74)*$B74/12,IF(AND(R$64=$L74,$K74<>"December"),(INDEX(Cont_FT_Salaries,MATCH($G74,Cont_FT_Levels,0),MATCH(R$64,Cont_FT_Years,0))+$N74)*$C74/12,(INDEX(Cont_FT_Salaries,MATCH($G74,Cont_FT_Levels,0),MATCH(R$64,Cont_FT_Years,0))+$N74)))))*(1+$N$60)*$M74,0) -> 0 | S74: =IFERROR(IF(AND(S$64=$J74,$J74=$L74),(INDEX(Cont_FT_Salaries,MATCH($G74,Cont_FT_Levels,0),MATCH(S$64,Cont_FT_Years,0))+$N74)*$A74/12,IF(AND(S$64>=$J74,S$64<=$L74),IF(AND(S$64=$J74,$I74<>"January"),(INDEX('Master Data'!$Y$5:$AI$73,MATCH($G74,Cont_FT_Levels,0),MATCH(S$64,Cont_FT_Years,0))+$N74)*$B74/12,IF(AND(S$64=$L74,$K74<>"December"),(INDEX(Cont_FT_Salaries,MATCH($G74,Cont_FT_Levels,0),MATCH(S$64,Cont_FT_Years,0))+$N74)*$C74/12,(INDEX(Cont_FT_Salaries,MATCH($G74,Cont_FT_Levels,0),MATCH(S$64,Cont_FT_Years,0))+$N74)))))*(1+$N$60)*$M74,0) -> 0 | T74: =IFERROR(IF(AND(T$64=$J74,$J74=$L74),(INDEX(Cont_FT_Salaries,MATCH($G74,Cont_FT_Levels,0),MATCH(T$64,Cont_FT_Years,0))+$N74)*$A74/12,IF(AND(T$64>=$J74,T$64<=$L74),IF(AND(T$64=$J74,$I74<>"January"),(INDEX('Master Data'!$Y$5:$AI$73,MATCH($G74,Cont_FT_Levels,0),MATCH(T$64,Cont_FT_Years,0))+$N74)*$B74/12,IF(AND(T$64=$L74,$K74<>"December"),(INDEX(Cont_FT_Salaries,MATCH($G74,Cont_FT_Levels,0),MATCH(T$64,Cont_FT_Years,0))+$N74)*$C74/12,(INDEX(Cont_FT_Salaries,MATCH($G74,Cont_FT_Levels,0),MATCH(T$64,Cont_FT_Years,0))+$N74)))))*(1+$N$60)*$M74,0) -> 0 | U74: =IFERROR(IF(AND(U$64=$J74,$J74=$L74),(INDEX(Cont_FT_Salaries,MATCH($G74,Cont_FT_Levels,0),MATCH(U$64,Cont_FT_Years,0))+$N74)*$A74/12,IF(AND(U$64>=$J74,U$64<=$L74),IF(AND(U$64=$J74,$I74<>"January"),(INDEX('Master Data'!$Y$5:$AI$73,MATCH($G74,Cont_FT_Levels,0),MATCH(U$64,Cont_FT_Years,0))+$N74)*$B74/12,IF(AND(U$64=$L74,$K74<>"December"),(INDEX(Cont_FT_Salaries,MATCH($G74,Cont_FT_Levels,0),MATCH(U$64,Cont_FT_Years,0))+$N74)*$C74/12,(INDEX(Cont_FT_Salaries,MATCH($G74,Cont_FT_Levels,0),MATCH(U$64,Cont_FT_Years,0))+$N74)))))*(1+$N$60)*$M74,0) -> 0 | V74: =IFERROR(IF(AND(V$64=$J74,$J74=$L74),(INDEX(Cont_FT_Salaries,MATCH($G74,Cont_FT_Levels,0),MATCH(V$64,Cont_FT_Years,0))+$N74)*$A74/12,IF(AND(V$64>=$J74,V$64<=$L74),IF(AND(V$64=$J74,$I74<>"January"),(INDEX('Master Data'!$Y$5:$AI$73,MATCH($G74,Cont_FT_Levels,0),MATCH(V$64,Cont_FT_Years,0))+$N74)*$B74/12,IF(AND(V$64=$L74,$K74<>"December"),(INDEX(Cont_FT_Salaries,MATCH($G74,Cont_FT_Levels,0),MATCH(V$64,Cont_FT_Years,0))+$N74)*$C74/12,(INDEX(Cont_FT_Salaries,MATCH($G74,Cont_FT_Levels,0),MATCH(V$64,Cont_FT_Years,0))+$N74)))))*(1+$N$60)*$M74,0) -> 0 | W74: =IFERROR(IF(AND(W$64=$J74,$J74=$L74),(INDEX(Cont_FT_Salaries,MATCH($G74,Cont_FT_Levels,0),MATCH(W$64,Cont_FT_Years,0))+$N74)*$A74/12,IF(AND(W$64>=$J74,W$64<=$L74),IF(AND(W$64=$J74,$I74<>"January"),(INDEX('Master Data'!$Y$5:$AI$73,MATCH($G74,Cont_FT_Levels,0),MATCH(W$64,Cont_FT_Years,0))+$N74)*$B74/12,IF(AND(W$64=$L74,$K74<>"December"),(INDEX(Cont_FT_Salaries,MATCH($G74,Cont_FT_Levels,0),MATCH(W$64,Cont_FT_Years,0))+$N74)*$C74/12,(INDEX(Cont_FT_Salaries,MATCH($G74,Cont_FT_Levels,0),MATCH(W$64,Cont_FT_Years,0))+$N74)))))*(1+$N$60)*$M74,0) -> 0 | X74: =IFERROR(IF(AND(X$64=$J74,$J74=$L74),(INDEX(Cont_FT_Salaries,MATCH($G74,Cont_FT_Levels,0),MATCH(X$64,Cont_FT_Years,0))+$N74)*$A74/12,IF(AND(X$64>=$J74,X$64<=$L74),IF(AND(X$64=$J74,$I74<>"January"),(INDEX('Master Data'!$Y$5:$AI$73,MATCH($G74,Cont_FT_Levels,0),MATCH(X$64,Cont_FT_Years,0))+$N74)*$B74/12,IF(AND(X$64=$L74,$K74<>"December"),(INDEX(Cont_FT_Salaries,MATCH($G74,Cont_FT_Levels,0),MATCH(X$64,Cont_FT_Years,0))+$N74)*$C74/12,(INDEX(Cont_FT_Salaries,MATCH($G74,Cont_FT_Levels,0),MATCH(X$64,Cont_FT_Years,0))+$N74)))))*(1+$N$60)*$M74,0) -> 0 | Y74: 0 | AD74: 0 | AE74: 0 | AF74: 0 | AG74: 0 | AH74: 0 | AI74: 0 | AJ74: 0 | AK74: 0 | AL74: 0 | AM74: 0 | AN74: 0 | AP74: 0 | AQ74: 0 | AR74: 0 | AT74: 0
A75: =IFERROR(IF($J75=$L75,VLOOKUP($K75,'Master Data'!$AQ$5:$AR$16,2,FALSE)-VLOOKUP($I75,'Master Data'!$AQ$5:$AR$16,2,FALSE)+1,0),0) -> 0 | B75: =IFERROR(VLOOKUP($I75,'Master Data'!$AQ$5:$AS$16,3,FALSE),0) -> 0 | C75: =IFERROR(VLOOKUP($K75,'Master Data'!$AQ$5:$AR$16,2,FALSE),0) -> 0 | O75: =IFERROR(IF(AND(O$64=$J75,$J75=$L75),(INDEX(Cont_FT_Salaries,MATCH($G75,Cont_FT_Levels,0),MATCH(O$64,Cont_FT_Years,0))+$N75)*$A75/12,IF(AND(O$64>=$J75,O$64<=$L75),IF(AND(O$64=$J75,$I75<>"January"),(INDEX('Master Data'!$Y$5:$AI$73,MATCH($G75,Cont_FT_Levels,0),MATCH(O$64,Cont_FT_Years,0))+$N75)*$B75/12,IF(AND(O$64=$L75,$K75<>"December"),(INDEX(Cont_FT_Salaries,MATCH($G75,Cont_FT_Levels,0),MATCH(O$64,Cont_FT_Years,0))+$N75)*$C75/12,(INDEX(Cont_FT_Salaries,MATCH($G75,Cont_FT_Levels,0),MATCH(O$64,Cont_FT_Years,0))+$N75)))))*(1+$N$60)*$M75,0) -> 0 | P75: =IFERROR(IF(AND(P$64=$J75,$J75=$L75),(INDEX(Cont_FT_Salaries,MATCH($G75,Cont_FT_Levels,0),MATCH(P$64,Cont_FT_Years,0))+$N75)*$A75/12,IF(AND(P$64>=$J75,P$64<=$L75),IF(AND(P$64=$J75,$I75<>"January"),(INDEX('Master Data'!$Y$5:$AI$73,MATCH($G75,Cont_FT_Levels,0),MATCH(P$64,Cont_FT_Years,0))+$N75)*$B75/12,IF(AND(P$64=$L75,$K75<>"December"),(INDEX(Cont_FT_Salaries,MATCH($G75,Cont_FT_Levels,0),MATCH(P$64,Cont_FT_Years,0))+$N75)*$C75/12,(INDEX(Cont_FT_Salaries,MATCH($G75,Cont_FT_Levels,0),MATCH(P$64,Cont_FT_Years,0))+$N75)))))*(1+$N$60)*$M75,0) -> 0 | Q75: =IFERROR(IF(AND(Q$64=$J75,$J75=$L75),(INDEX(Cont_FT_Salaries,MATCH($G75,Cont_FT_Levels,0),MATCH(Q$64,Cont_FT_Years,0))+$N75)*$A75/12,IF(AND(Q$64>=$J75,Q$64<=$L75),IF(AND(Q$64=$J75,$I75<>"January"),(INDEX('Master Data'!$Y$5:$AI$73,MATCH($G75,Cont_FT_Levels,0),MATCH(Q$64,Cont_FT_Years,0))+$N75)*$B75/12,IF(AND(Q$64=$L75,$K75<>"December"),(INDEX(Cont_FT_Salaries,MATCH($G75,Cont_FT_Levels,0),MATCH(Q$64,Cont_FT_Years,0))+$N75)*$C75/12,(INDEX(Cont_FT_Salaries,MATCH($G75,Cont_FT_Levels,0),MATCH(Q$64,Cont_FT_Years,0))+$N75)))))*(1+$N$60)*$M75,0) -> 0 | R75: =IFERROR(IF(AND(R$64=$J75,$J75=$L75),(INDEX(Cont_FT_Salaries,MATCH($G75,Cont_FT_Levels,0),MATCH(R$64,Cont_FT_Years,0))+$N75)*$A75/12,IF(AND(R$64>=$J75,R$64<=$L75),IF(AND(R$64=$J75,$I75<>"January"),(INDEX('Master Data'!$Y$5:$AI$73,MATCH($G75,Cont_FT_Levels,0),MATCH(R$64,Cont_FT_Years,0))+$N75)*$B75/12,IF(AND(R$64=$L75,$K75<>"December"),(INDEX(Cont_FT_Salaries,MATCH($G75,Cont_FT_Levels,0),MATCH(R$64,Cont_FT_Years,0))+$N75)*$C75/12,(INDEX(Cont_FT_Salaries,MATCH($G75,Cont_FT_Levels,0),MATCH(R$64,Cont_FT_Years,0))+$N75)))))*(1+$N$60)*$M75,0) -> 0 | S75: =IFERROR(IF(AND(S$64=$J75,$J75=$L75),(INDEX(Cont_FT_Salaries,MATCH($G75,Cont_FT_Levels,0),MATCH(S$64,Cont_FT_Years,0))+$N75)*$A75/12,IF(AND(S$64>=$J75,S$64<=$L75),IF(AND(S$64=$J75,$I75<>"January"),(INDEX('Master Data'!$Y$5:$AI$73,MATCH($G75,Cont_FT_Levels,0),MATCH(S$64,Cont_FT_Years,0))+$N75)*$B75/12,IF(AND(S$64=$L75,$K75<>"December"),(INDEX(Cont_FT_Salaries,MATCH($G75,Cont_FT_Levels,0),MATCH(S$64,Cont_FT_Years,0))+$N75)*$C75/12,(INDEX(Cont_FT_Salaries,MATCH($G75,Cont_FT_Levels,0),MATCH(S$64,Cont_FT_Years,0))+$N75)))))*(1+$N$60)*$M75,0) -> 0 | T75: =IFERROR(IF(AND(T$64=$J75,$J75=$L75),(INDEX(Cont_FT_Salaries,MATCH($G75,Cont_FT_Levels,0),MATCH(T$64,Cont_FT_Years,0))+$N75)*$A75/12,IF(AND(T$64>=$J75,T$64<=$L75),IF(AND(T$64=$J75,$I75<>"January"),(INDEX('Master Data'!$Y$5:$AI$73,MATCH($G75,Cont_FT_Levels,0),MATCH(T$64,Cont_FT_Years,0))+$N75)*$B75/12,IF(AND(T$64=$L75,$K75<>"December"),(INDEX(Cont_FT_Salaries,MATCH($G75,Cont_FT_Levels,0),MATCH(T$64,Cont_FT_Years,0))+$N75)*$C75/12,(INDEX(Cont_FT_Salaries,MATCH($G75,Cont_FT_Levels,0),MATCH(T$64,Cont_FT_Years,0))+$N75)))))*(1+$N$60)*$M75,0) -> 0 | U75: =IFERROR(IF(AND(U$64=$J75,$J75=$L75),(INDEX(Cont_FT_Salaries,MATCH($G75,Cont_FT_Levels,0),MATCH(U$64,Cont_FT_Years,0))+$N75)*$A75/12,IF(AND(U$64>=$J75,U$64<=$L75),IF(AND(U$64=$J75,$I75<>"January"),(INDEX('Master Data'!$Y$5:$AI$73,MATCH($G75,Cont_FT_Levels,0),MATCH(U$64,Cont_FT_Years,0))+$N75)*$B75/12,IF(AND(U$64=$L75,$K75<>"December"),(INDEX(Cont_FT_Salaries,MATCH($G75,Cont_FT_Levels,0),MATCH(U$64,Cont_FT_Years,0))+$N75)*$C75/12,(INDEX(Cont_FT_Salaries,MATCH($G75,Cont_FT_Levels,0),MATCH(U$64,Cont_FT_Years,0))+$N75)))))*(1+$N$60)*$M75,0) -> 0 | V75: =IFERROR(IF(AND(V$64=$J75,$J75=$L75),(INDEX(Cont_FT_Salaries,MATCH($G75,Cont_FT_Levels,0),MATCH(V$64,Cont_FT_Years,0))+$N75)*$A75/12,IF(AND(V$64>=$J75,V$64<=$L75),IF(AND(V$64=$J75,$I75<>"January"),(INDEX('Master Data'!$Y$5:$AI$73,MATCH($G75,Cont_FT_Levels,0),MATCH(V$64,Cont_FT_Years,0))+$N75)*$B75/12,IF(AND(V$64=$L75,$K75<>"December"),(INDEX(Cont_FT_Salaries,MATCH($G75,Cont_FT_Levels,0),MATCH(V$64,Cont_FT_Years,0))+$N75)*$C75/12,(INDEX(Cont_FT_Salaries,MATCH($G75,Cont_FT_Levels,0),MATCH(V$64,Cont_FT_Years,0))+$N75)))))*(1+$N$60)*$M75,0) -> 0 | W75: =IFERROR(IF(AND(W$64=$J75,$J75=$L75),(INDEX(Cont_FT_Salaries,MATCH($G75,Cont_FT_Levels,0),MATCH(W$64,Cont_FT_Years,0))+$N75)*$A75/12,IF(AND(W$64>=$J75,W$64<=$L75),IF(AND(W$64=$J75,$I75<>"January"),(INDEX('Master Data'!$Y$5:$AI$73,MATCH($G75,Cont_FT_Levels,0),MATCH(W$64,Cont_FT_Years,0))+$N75)*$B75/12,IF(AND(W$64=$L75,$K75<>"December"),(INDEX(Cont_FT_Salaries,MATCH($G75,Cont_FT_Levels,0),MATCH(W$64,Cont_FT_Years,0))+$N75)*$C75/12,(INDEX(Cont_FT_Salaries,MATCH($G75,Cont_FT_Levels,0),MATCH(W$64,Cont_FT_Years,0))+$N75)))))*(1+$N$60)*$M75,0) -> 0 | X75: =IFERROR(IF(AND(X$64=$J75,$J75=$L75),(INDEX(Cont_FT_Salaries,MATCH($G75,Cont_FT_Levels,0),MATCH(X$64,Cont_FT_Years,0))+$N75)*$A75/12,IF(AND(X$64>=$J75,X$64<=$L75),IF(AND(X$64=$J75,$I75<>"January"),(INDEX('Master Data'!$Y$5:$AI$73,MATCH($G75,Cont_FT_Levels,0),MATCH(X$64,Cont_FT_Years,0))+$N75)*$B75/12,IF(AND(X$64=$L75,$K75<>"December"),(INDEX(Cont_FT_Salaries,MATCH($G75,Cont_FT_Levels,0),MATCH(X$64,Cont_FT_Years,0))+$N75)*$C75/12,(INDEX(Cont_FT_Salaries,MATCH($G75,Cont_FT_Levels,0),MATCH(X$64,Cont_FT_Years,0))+$N75)))))*(1+$N$60)*$M75,0) -> 0 | Y75: 0 | AD75: 0 | AE75: 0 | AF75: 0 | AG75: 0 | AH75: 0 | AI75: 0 | AJ75: 0 | AK75: 0 | AL75: 0 | AM75: 0 | AN75: 0 | AP75: 0 | AQ75: 0 | AR75: 0 | AT75: 0
A76: =IFERROR(IF($J76=$L76,VLOOKUP($K76,'Master Data'!$AQ$5:$AR$16,2,FALSE)-VLOOKUP($I76,'Master Data'!$AQ$5:$AR$16,2,FALSE)+1,0),0) -> 0 | B76: =IFERROR(VLOOKUP($I76,'Master Data'!$AQ$5:$AS$16,3,FALSE),0) -> 0 | C76: =IFERROR(VLOOKUP($K76,'Master Data'!$AQ$5:$AR$16,2,FALSE),0) -> 0 | O76: =IFERROR(IF(AND(O$64=$J76,$J76=$L76),(INDEX(Cont_FT_Salaries,MATCH($G76,Cont_FT_Levels,0),MATCH(O$64,Cont_FT_Years,0))+$N76)*$A76/12,IF(AND(O$64>=$J76,O$64<=$L76),IF(AND(O$64=$J76,$I76<>"January"),(INDEX('Master Data'!$Y$5:$AI$73,MATCH($G76,Cont_FT_Levels,0),MATCH(O$64,Cont_FT_Years,0))+$N76)*$B76/12,IF(AND(O$64=$L76,$K76<>"December"),(INDEX(Cont_FT_Salaries,MATCH($G76,Cont_FT_Levels,0),MATCH(O$64,Cont_FT_Years,0))+$N76)*$C76/12,(INDEX(Cont_FT_Salaries,MATCH($G76,Cont_FT_Levels,0),MATCH(O$64,Cont_FT_Years,0))+$N76)))))*(1+$N$60)*$M76,0) -> 0 | P76: =IFERROR(IF(AND(P$64=$J76,$J76=$L76),(INDEX(Cont_FT_Salaries,MATCH($G76,Cont_FT_Levels,0),MATCH(P$64,Cont_FT_Years,0))+$N76)*$A76/12,IF(AND(P$64>=$J76,P$64<=$L76),IF(AND(P$64=$J76,$I76<>"January"),(INDEX('Master Data'!$Y$5:$AI$73,MATCH($G76,Cont_FT_Levels,0),MATCH(P$64,Cont_FT_Years,0))+$N76)*$B76/12,IF(AND(P$64=$L76,$K76<>"December"),(INDEX(Cont_FT_Salaries,MATCH($G76,Cont_FT_Levels,0),MATCH(P$64,Cont_FT_Years,0))+$N76)*$C76/12,(INDEX(Cont_FT_Salaries,MATCH($G76,Cont_FT_Levels,0),MATCH(P$64,Cont_FT_Years,0))+$N76)))))*(1+$N$60)*$M76,0) -> 0 | Q76: =IFERROR(IF(AND(Q$64=$J76,$J76=$L76),(INDEX(Cont_FT_Salaries,MATCH($G76,Cont_FT_Levels,0),MATCH(Q$64,Cont_FT_Years,0))+$N76)*$A76/12,IF(AND(Q$64>=$J76,Q$64<=$L76),IF(AND(Q$64=$J76,$I76<>"January"),(INDEX('Master Data'!$Y$5:$AI$73,MATCH($G76,Cont_FT_Levels,0),MATCH(Q$64,Cont_FT_Years,0))+$N76)*$B76/12,IF(AND(Q$64=$L76,$K76<>"December"),(INDEX(Cont_FT_Salaries,MATCH($G76,Cont_FT_Levels,0),MATCH(Q$64,Cont_FT_Years,0))+$N76)*$C76/12,(INDEX(Cont_FT_Salaries,MATCH($G76,Cont_FT_Levels,0),MATCH(Q$64,Cont_FT_Years,0))+$N76)))))*(1+$N$60)*$M76,0) -> 0 | R76: =IFERROR(IF(AND(R$64=$J76,$J76=$L76),(INDEX(Cont_FT_Salaries,MATCH($G76,Cont_FT_Levels,0),MATCH(R$64,Cont_FT_Years,0))+$N76)*$A76/12,IF(AND(R$64>=$J76,R$64<=$L76),IF(AND(R$64=$J76,$I76<>"January"),(INDEX('Master Data'!$Y$5:$AI$73,MATCH($G76,Cont_FT_Levels,0),MATCH(R$64,Cont_FT_Years,0))+$N76)*$B76/12,IF(AND(R$64=$L76,$K76<>"December"),(INDEX(Cont_FT_Salaries,MATCH($G76,Cont_FT_Levels,0),MATCH(R$64,Cont_FT_Years,0))+$N76)*$C76/12,(INDEX(Cont_FT_Salaries,MATCH($G76,Cont_FT_Levels,0),MATCH(R$64,Cont_FT_Years,0))+$N76)))))*(1+$N$60)*$M76,0) -> 0 | S76: =IFERROR(IF(AND(S$64=$J76,$J76=$L76),(INDEX(Cont_FT_Salaries,MATCH($G76,Cont_FT_Levels,0),MATCH(S$64,Cont_FT_Years,0))+$N76)*$A76/12,IF(AND(S$64>=$J76,S$64<=$L76),IF(AND(S$64=$J76,$I76<>"January"),(INDEX('Master Data'!$Y$5:$AI$73,MATCH($G76,Cont_FT_Levels,0),MATCH(S$64,Cont_FT_Years,0))+$N76)*$B76/12,IF(AND(S$64=$L76,$K76<>"December"),(INDEX(Cont_FT_Salaries,MATCH($G76,Cont_FT_Levels,0),MATCH(S$64,Cont_FT_Years,0))+$N76)*$C76/12,(INDEX(Cont_FT_Salaries,MATCH($G76,Cont_FT_Levels,0),MATCH(S$64,Cont_FT_Years,0))+$N76)))))*(1+$N$60)*$M76,0) -> 0 | T76: =IFERROR(IF(AND(T$64=$J76,$J76=$L76),(INDEX(Cont_FT_Salaries,MATCH($G76,Cont_FT_Levels,0),MATCH(T$64,Cont_FT_Years,0))+$N76)*$A76/12,IF(AND(T$64>=$J76,T$64<=$L76),IF(AND(T$64=$J76,$I76<>"January"),(INDEX('Master Data'!$Y$5:$AI$73,MATCH($G76,Cont_FT_Levels,0),MATCH(T$64,Cont_FT_Years,0))+$N76)*$B76/12,IF(AND(T$64=$L76,$K76<>"December"),(INDEX(Cont_FT_Salaries,MATCH($G76,Cont_FT_Levels,0),MATCH(T$64,Cont_FT_Years,0))+$N76)*$C76/12,(INDEX(Cont_FT_Salaries,MATCH($G76,Cont_FT_Levels,0),MATCH(T$64,Cont_FT_Years,0))+$N76)))))*(1+$N$60)*$M76,0) -> 0 | U76: =IFERROR(IF(AND(U$64=$J76,$J76=$L76),(INDEX(Cont_FT_Salaries,MATCH($G76,Cont_FT_Levels,0),MATCH(U$64,Cont_FT_Years,0))+$N76)*$A76/12,IF(AND(U$64>=$J76,U$64<=$L76),IF(AND(U$64=$J76,$I76<>"January"),(INDEX('Master Data'!$Y$5:$AI$73,MATCH($G76,Cont_FT_Levels,0),MATCH(U$64,Cont_FT_Years,0))+$N76)*$B76/12,IF(AND(U$64=$L76,$K76<>"December"),(INDEX(Cont_FT_Salaries,MATCH($G76,Cont_FT_Levels,0),MATCH(U$64,Cont_FT_Years,0))+$N76)*$C76/12,(INDEX(Cont_FT_Salaries,MATCH($G76,Cont_FT_Levels,0),MATCH(U$64,Cont_FT_Years,0))+$N76)))))*(1+$N$60)*$M76,0) -> 0 | V76: =IFERROR(IF(AND(V$64=$J76,$J76=$L76),(INDEX(Cont_FT_Salaries,MATCH($G76,Cont_FT_Levels,0),MATCH(V$64,Cont_FT_Years,0))+$N76)*$A76/12,IF(AND(V$64>=$J76,V$64<=$L76),IF(AND(V$64=$J76,$I76<>"January"),(INDEX('Master Data'!$Y$5:$AI$73,MATCH($G76,Cont_FT_Levels,0),MATCH(V$64,Cont_FT_Years,0))+$N76)*$B76/12,IF(AND(V$64=$L76,$K76<>"December"),(INDEX(Cont_FT_Salaries,MATCH($G76,Cont_FT_Levels,0),MATCH(V$64,Cont_FT_Years,0))+$N76)*$C76/12,(INDEX(Cont_FT_Salaries,MATCH($G76,Cont_FT_Levels,0),MATCH(V$64,Cont_FT_Years,0))+$N76)))))*(1+$N$60)*$M76,0) -> 0 | W76: =IFERROR(IF(AND(W$64=$J76,$J76=$L76),(INDEX(Cont_FT_Salaries,MATCH($G76,Cont_FT_Levels,0),MATCH(W$64,Cont_FT_Years,0))+$N76)*$A76/12,IF(AND(W$64>=$J76,W$64<=$L76),IF(AND(W$64=$J76,$I76<>"January"),(INDEX('Master Data'!$Y$5:$AI$73,MATCH($G76,Cont_FT_Levels,0),MATCH(W$64,Cont_FT_Years,0))+$N76)*$B76/12,IF(AND(W$64=$L76,$K76<>"December"),(INDEX(Cont_FT_Salaries,MATCH($G76,Cont_FT_Levels,0),MATCH(W$64,Cont_FT_Years,0))+$N76)*$C76/12,(INDEX(Cont_FT_Salaries,MATCH($G76,Cont_FT_Levels,0),MATCH(W$64,Cont_FT_Years,0))+$N76)))))*(1+$N$60)*$M76,0) -> 0 | X76: =IFERROR(IF(AND(X$64=$J76,$J76=$L76),(INDEX(Cont_FT_Salaries,MATCH($G76,Cont_FT_Levels,0),MATCH(X$64,Cont_FT_Years,0))+$N76)*$A76/12,IF(AND(X$64>=$J76,X$64<=$L76),IF(AND(X$64=$J76,$I76<>"January"),(INDEX('Master Data'!$Y$5:$AI$73,MATCH($G76,Cont_FT_Levels,0),MATCH(X$64,Cont_FT_Years,0))+$N76)*$B76/12,IF(AND(X$64=$L76,$K76<>"December"),(INDEX(Cont_FT_Salaries,MATCH($G76,Cont_FT_Levels,0),MATCH(X$64,Cont_FT_Years,0))+$N76)*$C76/12,(INDEX(Cont_FT_Salaries,MATCH($G76,Cont_FT_Levels,0),MATCH(X$64,Cont_FT_Years,0))+$N76)))))*(1+$N$60)*$M76,0) -> 0 | Y76: 0 | AD76: 0 | AE76: 0 | AF76: 0 | AG76: 0 | AH76: 0 | AI76: 0 | AJ76: 0 | AK76: 0 | AL76: 0 | AM76: 0 | AN76: =SUM(AD76:AM76) -> 0 | AP76: 0 | AQ76: 0 | AR76: =SUM(AP76:AQ76) -> 0 | AT76: 0
A77: =IFERROR(IF($J77=$L77,VLOOKUP($K77,'Master Data'!$AQ$5:$AR$16,2,FALSE)-VLOOKUP($I77,'Master Data'!$AQ$5:$AR$16,2,FALSE)+1,0),0) -> 0 | B77: =IFERROR(VLOOKUP($I77,'Master Data'!$AQ$5:$AS$16,3,FALSE),0) -> 0 | C77: =IFERROR(VLOOKUP($K77,'Master Data'!$AQ$5:$AR$16,2,FALSE),0) -> 0 | O77: =IFERROR(IF(AND(O$64=$J77,$J77=$L77),(INDEX(Cont_FT_Salaries,MATCH($G77,Cont_FT_Levels,0),MATCH(O$64,Cont_FT_Years,0))+$N77)*$A77/12,IF(AND(O$64>=$J77,O$64<=$L77),IF(AND(O$64=$J77,$I77<>"January"),(INDEX('Master Data'!$Y$5:$AI$73,MATCH($G77,Cont_FT_Levels,0),MATCH(O$64,Cont_FT_Years,0))+$N77)*$B77/12,IF(AND(O$64=$L77,$K77<>"December"),(INDEX(Cont_FT_Salaries,MATCH($G77,Cont_FT_Levels,0),MATCH(O$64,Cont_FT_Years,0))+$N77)*$C77/12,(INDEX(Cont_FT_Salaries,MATCH($G77,Cont_FT_Levels,0),MATCH(O$64,Cont_FT_Years,0))+$N77)))))*(1+$N$60)*$M77,0) -> 0 | P77: =IFERROR(IF(AND(P$64=$J77,$J77=$L77),(INDEX(Cont_FT_Salaries,MATCH($G77,Cont_FT_Levels,0),MATCH(P$64,Cont_FT_Years,0))+$N77)*$A77/12,IF(AND(P$64>=$J77,P$64<=$L77),IF(AND(P$64=$J77,$I77<>"January"),(INDEX('Master Data'!$Y$5:$AI$73,MATCH($G77,Cont_FT_Levels,0),MATCH(P$64,Cont_FT_Years,0))+$N77)*$B77/12,IF(AND(P$64=$L77,$K77<>"December"),(INDEX(Cont_FT_Salaries,MATCH($G77,Cont_FT_Levels,0),MATCH(P$64,Cont_FT_Years,0))+$N77)*$C77/12,(INDEX(Cont_FT_Salaries,MATCH($G77,Cont_FT_Levels,0),MATCH(P$64,Cont_FT_Years,0))+$N77)))))*(1+$N$60)*$M77,0) -> 0 | Q77: =IFERROR(IF(AND(Q$64=$J77,$J77=$L77),(INDEX(Cont_FT_Salaries,MATCH($G77,Cont_FT_Levels,0),MATCH(Q$64,Cont_FT_Years,0))+$N77)*$A77/12,IF(AND(Q$64>=$J77,Q$64<=$L77),IF(AND(Q$64=$J77,$I77<>"January"),(INDEX('Master Data'!$Y$5:$AI$73,MATCH($G77,Cont_FT_Levels,0),MATCH(Q$64,Cont_FT_Years,0))+$N77)*$B77/12,IF(AND(Q$64=$L77,$K77<>"December"),(INDEX(Cont_FT_Salaries,MATCH($G77,Cont_FT_Levels,0),MATCH(Q$64,Cont_FT_Years,0))+$N77)*$C77/12,(INDEX(Cont_FT_Salaries,MATCH($G77,Cont_FT_Levels,0),MATCH(Q$64,Cont_FT_Years,0))+$N77)))))*(1+$N$60)*$M77,0) -> 0 | R77: =IFERROR(IF(AND(R$64=$J77,$J77=$L77),(INDEX(Cont_FT_Salaries,MATCH($G77,Cont_FT_Levels,0),MATCH(R$64,Cont_FT_Years,0))+$N77)*$A77/12,IF(AND(R$64>=$J77,R$64<=$L77),IF(AND(R$64=$J77,$I77<>"January"),(INDEX('Master Data'!$Y$5:$AI$73,MATCH($G77,Cont_FT_Levels,0),MATCH(R$64,Cont_FT_Years,0))+$N77)*$B77/12,IF(AND(R$64=$L77,$K77<>"December"),(INDEX(Cont_FT_Salaries,MATCH($G77,Cont_FT_Levels,0),MATCH(R$64,Cont_FT_Years,0))+$N77)*$C77/12,(INDEX(Cont_FT_Salaries,MATCH($G77,Cont_FT_Levels,0),MATCH(R$64,Cont_FT_Years,0))+$N77)))))*(1+$N$60)*$M77,0) -> 0 | S77: =IFERROR(IF(AND(S$64=$J77,$J77=$L77),(INDEX(Cont_FT_Salaries,MATCH($G77,Cont_FT_Levels,0),MATCH(S$64,Cont_FT_Years,0))+$N77)*$A77/12,IF(AND(S$64>=$J77,S$64<=$L77),IF(AND(S$64=$J77,$I77<>"January"),(INDEX('Master Data'!$Y$5:$AI$73,MATCH($G77,Cont_FT_Levels,0),MATCH(S$64,Cont_FT_Years,0))+$N77)*$B77/12,IF(AND(S$64=$L77,$K77<>"December"),(INDEX(Cont_FT_Salaries,MATCH($G77,Cont_FT_Levels,0),MATCH(S$64,Cont_FT_Years,0))+$N77)*$C77/12,(INDEX(Cont_FT_Salaries,MATCH($G77,Cont_FT_Levels,0),MATCH(S$64,Cont_FT_Years,0))+$N77)))))*(1+$N$60)*$M77,0) -> 0 | T77: =IFERROR(IF(AND(T$64=$J77,$J77=$L77),(INDEX(Cont_FT_Salaries,MATCH($G77,Cont_FT_Levels,0),MATCH(T$64,Cont_FT_Years,0))+$N77)*$A77/12,IF(AND(T$64>=$J77,T$64<=$L77),IF(AND(T$64=$J77,$I77<>"January"),(INDEX('Master Data'!$Y$5:$AI$73,MATCH($G77,Cont_FT_Levels,0),MATCH(T$64,Cont_FT_Years,0))+$N77)*$B77/12,IF(AND(T$64=$L77,$K77<>"December"),(INDEX(Cont_FT_Salaries,MATCH($G77,Cont_FT_Levels,0),MATCH(T$64,Cont_FT_Years,0))+$N77)*$C77/12,(INDEX(Cont_FT_Salaries,MATCH($G77,Cont_FT_Levels,0),MATCH(T$64,Cont_FT_Years,0))+$N77)))))*(1+$N$60)*$M77,0) -> 0 | U77: =IFERROR(IF(AND(U$64=$J77,$J77=$L77),(INDEX(Cont_FT_Salaries,MATCH($G77,Cont_FT_Levels,0),MATCH(U$64,Cont_FT_Years,0))+$N77)*$A77/12,IF(AND(U$64>=$J77,U$64<=$L77),IF(AND(U$64=$J77,$I77<>"January"),(INDEX('Master Data'!$Y$5:$AI$73,MATCH($G77,Cont_FT_Levels,0),MATCH(U$64,Cont_FT_Years,0))+$N77)*$B77/12,IF(AND(U$64=$L77,$K77<>"December"),(INDEX(Cont_FT_Salaries,MATCH($G77,Cont_FT_Levels,0),MATCH(U$64,Cont_FT_Years,0))+$N77)*$C77/12,(INDEX(Cont_FT_Salaries,MATCH($G77,Cont_FT_Levels,0),MATCH(U$64,Cont_FT_Years,0))+$N77)))))*(1+$N$60)*$M77,0) -> 0 | V77: =IFERROR(IF(AND(V$64=$J77,$J77=$L77),(INDEX(Cont_FT_Salaries,MATCH($G77,Cont_FT_Levels,0),MATCH(V$64,Cont_FT_Years,0))+$N77)*$A77/12,IF(AND(V$64>=$J77,V$64<=$L77),IF(AND(V$64=$J77,$I77<>"January"),(INDEX('Master Data'!$Y$5:$AI$73,MATCH($G77,Cont_FT_Levels,0),MATCH(V$64,Cont_FT_Years,0))+$N77)*$B77/12,IF(AND(V$64=$L77,$K77<>"December"),(INDEX(Cont_FT_Salaries,MATCH($G77,Cont_FT_Levels,0),MATCH(V$64,Cont_FT_Years,0))+$N77)*$C77/12,(INDEX(Cont_FT_Salaries,MATCH($G77,Cont_FT_Levels,0),MATCH(V$64,Cont_FT_Years,0))+$N77)))))*(1+$N$60)*$M77,0) -> 0 | W77: =IFERROR(IF(AND(W$64=$J77,$J77=$L77),(INDEX(Cont_FT_Salaries,MATCH($G77,Cont_FT_Levels,0),MATCH(W$64,Cont_FT_Years,0))+$N77)*$A77/12,IF(AND(W$64>=$J77,W$64<=$L77),IF(AND(W$64=$J77,$I77<>"January"),(INDEX('Master Data'!$Y$5:$AI$73,MATCH($G77,Cont_FT_Levels,0),MATCH(W$64,Cont_FT_Years,0))+$N77)*$B77/12,IF(AND(W$64=$L77,$K77<>"December"),(INDEX(Cont_FT_Salaries,MATCH($G77,Cont_FT_Levels,0),MATCH(W$64,Cont_FT_Years,0))+$N77)*$C77/12,(INDEX(Cont_FT_Salaries,MATCH($G77,Cont_FT_Levels,0),MATCH(W$64,Cont_FT_Years,0))+$N77)))))*(1+$N$60)*$M77,0) -> 0 | X77: =IFERROR(IF(AND(X$64=$J77,$J77=$L77),(INDEX(Cont_FT_Salaries,MATCH($G77,Cont_FT_Levels,0),MATCH(X$64,Cont_FT_Years,0))+$N77)*$A77/12,IF(AND(X$64>=$J77,X$64<=$L77),IF(AND(X$64=$J77,$I77<>"January"),(INDEX('Master Data'!$Y$5:$AI$73,MATCH($G77,Cont_FT_Levels,0),MATCH(X$64,Cont_FT_Years,0))+$N77)*$B77/12,IF(AND(X$64=$L77,$K77<>"December"),(INDEX(Cont_FT_Salaries,MATCH($G77,Cont_FT_Levels,0),MATCH(X$64,Cont_FT_Years,0))+$N77)*$C77/12,(INDEX(Cont_FT_Salaries,MATCH($G77,Cont_FT_Levels,0),MATCH(X$64,Cont_FT_Years,0))+$N77)))))*(1+$N$60)*$M77,0) -> 0 | Y77: 0 | AD77: 0 | AE77: 0 | AF77: 0 | AG77: 0 | AH77: 0 | AI77: 0 | AJ77: 0 | AK77: 0 | AL77: 0 | AM77: 0 | AN77: 0 | AP77: 0 | AQ77: 0 | AR77: 0 | AT77: 0
A78: =IFERROR(IF($J78=$L78,VLOOKUP($K78,'Master Data'!$AQ$5:$AR$16,2,FALSE)-VLOOKUP($I78,'Master Data'!$AQ$5:$AR$16,2,FALSE)+1,0),0) -> 0 | B78: =IFERROR(VLOOKUP($I78,'Master Data'!$AQ$5:$AS$16,3,FALSE),0) -> 0 | C78: =IFERROR(VLOOKUP($K78,'Master Data'!$AQ$5:$AR$16,2,FALSE),0) -> 0 | O78: =IFERROR(IF(AND(O$64=$J78,$J78=$L78),(INDEX(Cont_FT_Salaries,MATCH($G78,Cont_FT_Levels,0),MATCH(O$64,Cont_FT_Years,0))+$N78)*$A78/12,IF(AND(O$64>=$J78,O$64<=$L78),IF(AND(O$64=$J78,$I78<>"January"),(INDEX('Master Data'!$Y$5:$AI$73,MATCH($G78,Cont_FT_Levels,0),MATCH(O$64,Cont_FT_Years,0))+$N78)*$B78/12,IF(AND(O$64=$L78,$K78<>"December"),(INDEX(Cont_FT_Salaries,MATCH($G78,Cont_FT_Levels,0),MATCH(O$64,Cont_FT_Years,0))+$N78)*$C78/12,(INDEX(Cont_FT_Salaries,MATCH($G78,Cont_FT_Levels,0),MATCH(O$64,Cont_FT_Years,0))+$N78)))))*(1+$N$60)*$M78,0) -> 0 | P78: =IFERROR(IF(AND(P$64=$J78,$J78=$L78),(INDEX(Cont_FT_Salaries,MATCH($G78,Cont_FT_Levels,0),MATCH(P$64,Cont_FT_Years,0))+$N78)*$A78/12,IF(AND(P$64>=$J78,P$64<=$L78),IF(AND(P$64=$J78,$I78<>"January"),(INDEX('Master Data'!$Y$5:$AI$73,MATCH($G78,Cont_FT_Levels,0),MATCH(P$64,Cont_FT_Years,0))+$N78)*$B78/12,IF(AND(P$64=$L78,$K78<>"December"),(INDEX(Cont_FT_Salaries,MATCH($G78,Cont_FT_Levels,0),MATCH(P$64,Cont_FT_Years,0))+$N78)*$C78/12,(INDEX(Cont_FT_Salaries,MATCH($G78,Cont_FT_Levels,0),MATCH(P$64,Cont_FT_Years,0))+$N78)))))*(1+$N$60)*$M78,0) -> 0 | Q78: =IFERROR(IF(AND(Q$64=$J78,$J78=$L78),(INDEX(Cont_FT_Salaries,MATCH($G78,Cont_FT_Levels,0),MATCH(Q$64,Cont_FT_Years,0))+$N78)*$A78/12,IF(AND(Q$64>=$J78,Q$64<=$L78),IF(AND(Q$64=$J78,$I78<>"January"),(INDEX('Master Data'!$Y$5:$AI$73,MATCH($G78,Cont_FT_Levels,0),MATCH(Q$64,Cont_FT_Years,0))+$N78)*$B78/12,IF(AND(Q$64=$L78,$K78<>"December"),(INDEX(Cont_FT_Salaries,MATCH($G78,Cont_FT_Levels,0),MATCH(Q$64,Cont_FT_Years,0))+$N78)*$C78/12,(INDEX(Cont_FT_Salaries,MATCH($G78,Cont_FT_Levels,0),MATCH(Q$64,Cont_FT_Years,0))+$N78)))))*(1+$N$60)*$M78,0) -> 0 | R78: =IFERROR(IF(AND(R$64=$J78,$J78=$L78),(INDEX(Cont_FT_Salaries,MATCH($G78,Cont_FT_Levels,0),MATCH(R$64,Cont_FT_Years,0))+$N78)*$A78/12,IF(AND(R$64>=$J78,R$64<=$L78),IF(AND(R$64=$J78,$I78<>"January"),(INDEX('Master Data'!$Y$5:$AI$73,MATCH($G78,Cont_FT_Levels,0),MATCH(R$64,Cont_FT_Years,0))+$N78)*$B78/12,IF(AND(R$64=$L78,$K78<>"December"),(INDEX(Cont_FT_Salaries,MATCH($G78,Cont_FT_Levels,0),MATCH(R$64,Cont_FT_Years,0))+$N78)*$C78/12,(INDEX(Cont_FT_Salaries,MATCH($G78,Cont_FT_Levels,0),MATCH(R$64,Cont_FT_Years,0))+$N78)))))*(1+$N$60)*$M78,0) -> 0 | S78: =IFERROR(IF(AND(S$64=$J78,$J78=$L78),(INDEX(Cont_FT_Salaries,MATCH($G78,Cont_FT_Levels,0),MATCH(S$64,Cont_FT_Years,0))+$N78)*$A78/12,IF(AND(S$64>=$J78,S$64<=$L78),IF(AND(S$64=$J78,$I78<>"January"),(INDEX('Master Data'!$Y$5:$AI$73,MATCH($G78,Cont_FT_Levels,0),MATCH(S$64,Cont_FT_Years,0))+$N78)*$B78/12,IF(AND(S$64=$L78,$K78<>"December"),(INDEX(Cont_FT_Salaries,MATCH($G78,Cont_FT_Levels,0),MATCH(S$64,Cont_FT_Years,0))+$N78)*$C78/12,(INDEX(Cont_FT_Salaries,MATCH($G78,Cont_FT_Levels,0),MATCH(S$64,Cont_FT_Years,0))+$N78)))))*(1+$N$60)*$M78,0) -> 0 | T78: =IFERROR(IF(AND(T$64=$J78,$J78=$L78),(INDEX(Cont_FT_Salaries,MATCH($G78,Cont_FT_Levels,0),MATCH(T$64,Cont_FT_Years,0))+$N78)*$A78/12,IF(AND(T$64>=$J78,T$64<=$L78),IF(AND(T$64=$J78,$I78<>"January"),(INDEX('Master Data'!$Y$5:$AI$73,MATCH($G78,Cont_FT_Levels,0),MATCH(T$64,Cont_FT_Years,0))+$N78)*$B78/12,IF(AND(T$64=$L78,$K78<>"December"),(INDEX(Cont_FT_Salaries,MATCH($G78,Cont_FT_Levels,0),MATCH(T$64,Cont_FT_Years,0))+$N78)*$C78/12,(INDEX(Cont_FT_Salaries,MATCH($G78,Cont_FT_Levels,0),MATCH(T$64,Cont_FT_Years,0))+$N78)))))*(1+$N$60)*$M78,0) -> 0 | U78: =IFERROR(IF(AND(U$64=$J78,$J78=$L78),(INDEX(Cont_FT_Salaries,MATCH($G78,Cont_FT_Levels,0),MATCH(U$64,Cont_FT_Years,0))+$N78)*$A78/12,IF(AND(U$64>=$J78,U$64<=$L78),IF(AND(U$64=$J78,$I78<>"January"),(INDEX('Master Data'!$Y$5:$AI$73,MATCH($G78,Cont_FT_Levels,0),MATCH(U$64,Cont_FT_Years,0))+$N78)*$B78/12,IF(AND(U$64=$L78,$K78<>"December"),(INDEX(Cont_FT_Salaries,MATCH($G78,Cont_FT_Levels,0),MATCH(U$64,Cont_FT_Years,0))+$N78)*$C78/12,(INDEX(Cont_FT_Salaries,MATCH($G78,Cont_FT_Levels,0),MATCH(U$64,Cont_FT_Years,0))+$N78)))))*(1+$N$60)*$M78,0) -> 0 | V78: =IFERROR(IF(AND(V$64=$J78,$J78=$L78),(INDEX(Cont_FT_Salaries,MATCH($G78,Cont_FT_Levels,0),MATCH(V$64,Cont_FT_Years,0))+$N78)*$A78/12,IF(AND(V$64>=$J78,V$64<=$L78),IF(AND(V$64=$J78,$I78<>"January"),(INDEX('Master Data'!$Y$5:$AI$73,MATCH($G78,Cont_FT_Levels,0),MATCH(V$64,Cont_FT_Years,0))+$N78)*$B78/12,IF(AND(V$64=$L78,$K78<>"December"),(INDEX(Cont_FT_Salaries,MATCH($G78,Cont_FT_Levels,0),MATCH(V$64,Cont_FT_Years,0))+$N78)*$C78/12,(INDEX(Cont_FT_Salaries,MATCH($G78,Cont_FT_Levels,0),MATCH(V$64,Cont_FT_Years,0))+$N78)))))*(1+$N$60)*$M78,0) -> 0 | W78: =IFERROR(IF(AND(W$64=$J78,$J78=$L78),(INDEX(Cont_FT_Salaries,MATCH($G78,Cont_FT_Levels,0),MATCH(W$64,Cont_FT_Years,0))+$N78)*$A78/12,IF(AND(W$64>=$J78,W$64<=$L78),IF(AND(W$64=$J78,$I78<>"January"),(INDEX('Master Data'!$Y$5:$AI$73,MATCH($G78,Cont_FT_Levels,0),MATCH(W$64,Cont_FT_Years,0))+$N78)*$B78/12,IF(AND(W$64=$L78,$K78<>"December"),(INDEX(Cont_FT_Salaries,MATCH($G78,Cont_FT_Levels,0),MATCH(W$64,Cont_FT_Years,0))+$N78)*$C78/12,(INDEX(Cont_FT_Salaries,MATCH($G78,Cont_FT_Levels,0),MATCH(W$64,Cont_FT_Years,0))+$N78)))))*(1+$N$60)*$M78,0) -> 0 | X78: =IFERROR(IF(AND(X$64=$J78,$J78=$L78),(INDEX(Cont_FT_Salaries,MATCH($G78,Cont_FT_Levels,0),MATCH(X$64,Cont_FT_Years,0))+$N78)*$A78/12,IF(AND(X$64>=$J78,X$64<=$L78),IF(AND(X$64=$J78,$I78<>"January"),(INDEX('Master Data'!$Y$5:$AI$73,MATCH($G78,Cont_FT_Levels,0),MATCH(X$64,Cont_FT_Years,0))+$N78)*$B78/12,IF(AND(X$64=$L78,$K78<>"December"),(INDEX(Cont_FT_Salaries,MATCH($G78,Cont_FT_Levels,0),MATCH(X$64,Cont_FT_Years,0))+$N78)*$C78/12,(INDEX(Cont_FT_Salaries,MATCH($G78,Cont_FT_Levels,0),MATCH(X$64,Cont_FT_Years,0))+$N78)))))*(1+$N$60)*$M78,0) -> 0 | Y78: 0 | AD78: 0 | AE78: 0 | AF78: 0 | AG78: 0 | AH78: 0 | AI78: 0 | AJ78: 0 | AK78: 0 | AL78: 0 | AM78: 0 | AN78: 0 | AP78: 0 | AQ78: 0 | AR78: 0 | AT78: 0
A79: =IFERROR(IF($J79=$L79,VLOOKUP($K79,'Master Data'!$AQ$5:$AR$16,2,FALSE)-VLOOKUP($I79,'Master Data'!$AQ$5:$AR$16,2,FALSE)+1,0),0) -> 0 | B79: =IFERROR(VLOOKUP($I79,'Master Data'!$AQ$5:$AS$16,3,FALSE),0) -> 0 | C79: =IFERROR(VLOOKUP($K79,'Master Data'!$AQ$5:$AR$16,2,FALSE),0) -> 0 | O79: =IFERROR(IF(AND(O$64=$J79,$J79=$L79),(INDEX(Cont_FT_Salaries,MATCH($G79,Cont_FT_Levels,0),MATCH(O$64,Cont_FT_Years,0))+$N79)*$A79/12,IF(AND(O$64>=$J79,O$64<=$L79),IF(AND(O$64=$J79,$I79<>"January"),(INDEX('Master Data'!$Y$5:$AI$73,MATCH($G79,Cont_FT_Levels,0),MATCH(O$64,Cont_FT_Years,0))+$N79)*$B79/12,IF(AND(O$64=$L79,$K79<>"December"),(INDEX(Cont_FT_Salaries,MATCH($G79,Cont_FT_Levels,0),MATCH(O$64,Cont_FT_Years,0))+$N79)*$C79/12,(INDEX(Cont_FT_Salaries,MATCH($G79,Cont_FT_Levels,0),MATCH(O$64,Cont_FT_Years,0))+$N79)))))*(1+$N$60)*$M79,0) -> 0 | P79: =IFERROR(IF(AND(P$64=$J79,$J79=$L79),(INDEX(Cont_FT_Salaries,MATCH($G79,Cont_FT_Levels,0),MATCH(P$64,Cont_FT_Years,0))+$N79)*$A79/12,IF(AND(P$64>=$J79,P$64<=$L79),IF(AND(P$64=$J79,$I79<>"January"),(INDEX('Master Data'!$Y$5:$AI$73,MATCH($G79,Cont_FT_Levels,0),MATCH(P$64,Cont_FT_Years,0))+$N79)*$B79/12,IF(AND(P$64=$L79,$K79<>"December"),(INDEX(Cont_FT_Salaries,MATCH($G79,Cont_FT_Levels,0),MATCH(P$64,Cont_FT_Years,0))+$N79)*$C79/12,(INDEX(Cont_FT_Salaries,MATCH($G79,Cont_FT_Levels,0),MATCH(P$64,Cont_FT_Years,0))+$N79)))))*(1+$N$60)*$M79,0) -> 0 | Q79: =IFERROR(IF(AND(Q$64=$J79,$J79=$L79),(INDEX(Cont_FT_Salaries,MATCH($G79,Cont_FT_Levels,0),MATCH(Q$64,Cont_FT_Years,0))+$N79)*$A79/12,IF(AND(Q$64>=$J79,Q$64<=$L79),IF(AND(Q$64=$J79,$I79<>"January"),(INDEX('Master Data'!$Y$5:$AI$73,MATCH($G79,Cont_FT_Levels,0),MATCH(Q$64,Cont_FT_Years,0))+$N79)*$B79/12,IF(AND(Q$64=$L79,$K79<>"December"),(INDEX(Cont_FT_Salaries,MATCH($G79,Cont_FT_Levels,0),MATCH(Q$64,Cont_FT_Years,0))+$N79)*$C79/12,(INDEX(Cont_FT_Salaries,MATCH($G79,Cont_FT_Levels,0),MATCH(Q$64,Cont_FT_Years,0))+$N79)))))*(1+$N$60)*$M79,0) -> 0 | R79: =IFERROR(IF(AND(R$64=$J79,$J79=$L79),(INDEX(Cont_FT_Salaries,MATCH($G79,Cont_FT_Levels,0),MATCH(R$64,Cont_FT_Years,0))+$N79)*$A79/12,IF(AND(R$64>=$J79,R$64<=$L79),IF(AND(R$64=$J79,$I79<>"January"),(INDEX('Master Data'!$Y$5:$AI$73,MATCH($G79,Cont_FT_Levels,0),MATCH(R$64,Cont_FT_Years,0))+$N79)*$B79/12,IF(AND(R$64=$L79,$K79<>"December"),(INDEX(Cont_FT_Salaries,MATCH($G79,Cont_FT_Levels,0),MATCH(R$64,Cont_FT_Years,0))+$N79)*$C79/12,(INDEX(Cont_FT_Salaries,MATCH($G79,Cont_FT_Levels,0),MATCH(R$64,Cont_FT_Years,0))+$N79)))))*(1+$N$60)*$M79,0) -> 0 | S79: =IFERROR(IF(AND(S$64=$J79,$J79=$L79),(INDEX(Cont_FT_Salaries,MATCH($G79,Cont_FT_Levels,0),MATCH(S$64,Cont_FT_Years,0))+$N79)*$A79/12,IF(AND(S$64>=$J79,S$64<=$L79),IF(AND(S$64=$J79,$I79<>"January"),(INDEX('Master Data'!$Y$5:$AI$73,MATCH($G79,Cont_FT_Levels,0),MATCH(S$64,Cont_FT_Years,0))+$N79)*$B79/12,IF(AND(S$64=$L79,$K79<>"December"),(INDEX(Cont_FT_Salaries,MATCH($G79,Cont_FT_Levels,0),MATCH(S$64,Cont_FT_Years,0))+$N79)*$C79/12,(INDEX(Cont_FT_Salaries,MATCH($G79,Cont_FT_Levels,0),MATCH(S$64,Cont_FT_Years,0))+$N79)))))*(1+$N$60)*$M79,0) -> 0 | T79: =IFERROR(IF(AND(T$64=$J79,$J79=$L79),(INDEX(Cont_FT_Salaries,MATCH($G79,Cont_FT_Levels,0),MATCH(T$64,Cont_FT_Years,0))+$N79)*$A79/12,IF(AND(T$64>=$J79,T$64<=$L79),IF(AND(T$64=$J79,$I79<>"January"),(INDEX('Master Data'!$Y$5:$AI$73,MATCH($G79,Cont_FT_Levels,0),MATCH(T$64,Cont_FT_Years,0))+$N79)*$B79/12,IF(AND(T$64=$L79,$K79<>"December"),(INDEX(Cont_FT_Salaries,MATCH($G79,Cont_FT_Levels,0),MATCH(T$64,Cont_FT_Years,0))+$N79)*$C79/12,(INDEX(Cont_FT_Salaries,MATCH($G79,Cont_FT_Levels,0),MATCH(T$64,Cont_FT_Years,0))+$N79)))))*(1+$N$60)*$M79,0) -> 0 | U79: =IFERROR(IF(AND(U$64=$J79,$J79=$L79),(INDEX(Cont_FT_Salaries,MATCH($G79,Cont_FT_Levels,0),MATCH(U$64,Cont_FT_Years,0))+$N79)*$A79/12,IF(AND(U$64>=$J79,U$64<=$L79),IF(AND(U$64=$J79,$I79<>"January"),(INDEX('Master Data'!$Y$5:$AI$73,MATCH($G79,Cont_FT_Levels,0),MATCH(U$64,Cont_FT_Years,0))+$N79)*$B79/12,IF(AND(U$64=$L79,$K79<>"December"),(INDEX(Cont_FT_Salaries,MATCH($G79,Cont_FT_Levels,0),MATCH(U$64,Cont_FT_Years,0))+$N79)*$C79/12,(INDEX(Cont_FT_Salaries,MATCH($G79,Cont_FT_Levels,0),MATCH(U$64,Cont_FT_Years,0))+$N79)))))*(1+$N$60)*$M79,0) -> 0 | V79: =IFERROR(IF(AND(V$64=$J79,$J79=$L79),(INDEX(Cont_FT_Salaries,MATCH($G79,Cont_FT_Levels,0),MATCH(V$64,Cont_FT_Years,0))+$N79)*$A79/12,IF(AND(V$64>=$J79,V$64<=$L79),IF(AND(V$64=$J79,$I79<>"January"),(INDEX('Master Data'!$Y$5:$AI$73,MATCH($G79,Cont_FT_Levels,0),MATCH(V$64,Cont_FT_Years,0))+$N79)*$B79/12,IF(AND(V$64=$L79,$K79<>"December"),(INDEX(Cont_FT_Salaries,MATCH($G79,Cont_FT_Levels,0),MATCH(V$64,Cont_FT_Years,0))+$N79)*$C79/12,(INDEX(Cont_FT_Salaries,MATCH($G79,Cont_FT_Levels,0),MATCH(V$64,Cont_FT_Years,0))+$N79)))))*(1+$N$60)*$M79,0) -> 0 | W79: =IFERROR(IF(AND(W$64=$J79,$J79=$L79),(INDEX(Cont_FT_Salaries,MATCH($G79,Cont_FT_Levels,0),MATCH(W$64,Cont_FT_Years,0))+$N79)*$A79/12,IF(AND(W$64>=$J79,W$64<=$L79),IF(AND(W$64=$J79,$I79<>"January"),(INDEX('Master Data'!$Y$5:$AI$73,MATCH($G79,Cont_FT_Levels,0),MATCH(W$64,Cont_FT_Years,0))+$N79)*$B79/12,IF(AND(W$64=$L79,$K79<>"December"),(INDEX(Cont_FT_Salaries,MATCH($G79,Cont_FT_Levels,0),MATCH(W$64,Cont_FT_Years,0))+$N79)*$C79/12,(INDEX(Cont_FT_Salaries,MATCH($G79,Cont_FT_Levels,0),MATCH(W$64,Cont_FT_Years,0))+$N79)))))*(1+$N$60)*$M79,0) -> 0 | X79: =IFERROR(IF(AND(X$64=$J79,$J79=$L79),(INDEX(Cont_FT_Salaries,MATCH($G79,Cont_FT_Levels,0),MATCH(X$64,Cont_FT_Years,0))+$N79)*$A79/12,IF(AND(X$64>=$J79,X$64<=$L79),IF(AND(X$64=$J79,$I79<>"January"),(INDEX('Master Data'!$Y$5:$AI$73,MATCH($G79,Cont_FT_Levels,0),MATCH(X$64,Cont_FT_Years,0))+$N79)*$B79/12,IF(AND(X$64=$L79,$K79<>"December"),(INDEX(Cont_FT_Salaries,MATCH($G79,Cont_FT_Levels,0),MATCH(X$64,Cont_FT_Years,0))+$N79)*$C79/12,(INDEX(Cont_FT_Salaries,MATCH($G79,Cont_FT_Levels,0),MATCH(X$64,Cont_FT_Years,0))+$N79)))))*(1+$N$60)*$M79,0) -> 0 | Y79: 0 | AD79: 0 | AE79: 0 | AF79: 0 | AG79: 0 | AH79: 0 | AI79: 0 | AJ79: 0 | AK79: 0 | AL79: 0 | AM79: 0 | AN79: 0 | AP79: 0 | AQ79: 0 | AR79: 0 | AT79: 0
A80: =IFERROR(IF($J80=$L80,VLOOKUP($K80,'Master Data'!$AQ$5:$AR$16,2,FALSE)-VLOOKUP($I80,'Master Data'!$AQ$5:$AR$16,2,FALSE)+1,0),0) -> 0 | B80: =IFERROR(VLOOKUP($I80,'Master Data'!$AQ$5:$AS$16,3,FALSE),0) -> 0 | C80: =IFERROR(VLOOKUP($K80,'Master Data'!$AQ$5:$AR$16,2,FALSE),0) -> 0 | O80: =IFERROR(IF(AND(O$64=$J80,$J80=$L80),(INDEX(Cont_FT_Salaries,MATCH($G80,Cont_FT_Levels,0),MATCH(O$64,Cont_FT_Years,0))+$N80)*$A80/12,IF(AND(O$64>=$J80,O$64<=$L80),IF(AND(O$64=$J80,$I80<>"January"),(INDEX('Master Data'!$Y$5:$AI$73,MATCH($G80,Cont_FT_Levels,0),MATCH(O$64,Cont_FT_Years,0))+$N80)*$B80/12,IF(AND(O$64=$L80,$K80<>"December"),(INDEX(Cont_FT_Salaries,MATCH($G80,Cont_FT_Levels,0),MATCH(O$64,Cont_FT_Years,0))+$N80)*$C80/12,(INDEX(Cont_FT_Salaries,MATCH($G80,Cont_FT_Levels,0),MATCH(O$64,Cont_FT_Years,0))+$N80)))))*(1+$N$60)*$M80,0) -> 0 | P80: =IFERROR(IF(AND(P$64=$J80,$J80=$L80),(INDEX(Cont_FT_Salaries,MATCH($G80,Cont_FT_Levels,0),MATCH(P$64,Cont_FT_Years,0))+$N80)*$A80/12,IF(AND(P$64>=$J80,P$64<=$L80),IF(AND(P$64=$J80,$I80<>"January"),(INDEX('Master Data'!$Y$5:$AI$73,MATCH($G80,Cont_FT_Levels,0),MATCH(P$64,Cont_FT_Years,0))+$N80)*$B80/12,IF(AND(P$64=$L80,$K80<>"December"),(INDEX(Cont_FT_Salaries,MATCH($G80,Cont_FT_Levels,0),MATCH(P$64,Cont_FT_Years,0))+$N80)*$C80/12,(INDEX(Cont_FT_Salaries,MATCH($G80,Cont_FT_Levels,0),MATCH(P$64,Cont_FT_Years,0))+$N80)))))*(1+$N$60)*$M80,0) -> 0 | Q80: =IFERROR(IF(AND(Q$64=$J80,$J80=$L80),(INDEX(Cont_FT_Salaries,MATCH($G80,Cont_FT_Levels,0),MATCH(Q$64,Cont_FT_Years,0))+$N80)*$A80/12,IF(AND(Q$64>=$J80,Q$64<=$L80),IF(AND(Q$64=$J80,$I80<>"January"),(INDEX('Master Data'!$Y$5:$AI$73,MATCH($G80,Cont_FT_Levels,0),MATCH(Q$64,Cont_FT_Years,0))+$N80)*$B80/12,IF(AND(Q$64=$L80,$K80<>"December"),(INDEX(Cont_FT_Salaries,MATCH($G80,Cont_FT_Levels,0),MATCH(Q$64,Cont_FT_Years,0))+$N80)*$C80/12,(INDEX(Cont_FT_Salaries,MATCH($G80,Cont_FT_Levels,0),MATCH(Q$64,Cont_FT_Years,0))+$N80)))))*(1+$N$60)*$M80,0) -> 0 | R80: =IFERROR(IF(AND(R$64=$J80,$J80=$L80),(INDEX(Cont_FT_Salaries,MATCH($G80,Cont_FT_Levels,0),MATCH(R$64,Cont_FT_Years,0))+$N80)*$A80/12,IF(AND(R$64>=$J80,R$64<=$L80),IF(AND(R$64=$J80,$I80<>"January"),(INDEX('Master Data'!$Y$5:$AI$73,MATCH($G80,Cont_FT_Levels,0),MATCH(R$64,Cont_FT_Years,0))+$N80)*$B80/12,IF(AND(R$64=$L80,$K80<>"December"),(INDEX(Cont_FT_Salaries,MATCH($G80,Cont_FT_Levels,0),MATCH(R$64,Cont_FT_Years,0))+$N80)*$C80/12,(INDEX(Cont_FT_Salaries,MATCH($G80,Cont_FT_Levels,0),MATCH(R$64,Cont_FT_Years,0))+$N80)))))*(1+$N$60)*$M80,0) -> 0 | S80: =IFERROR(IF(AND(S$64=$J80,$J80=$L80),(INDEX(Cont_FT_Salaries,MATCH($G80,Cont_FT_Levels,0),MATCH(S$64,Cont_FT_Years,0))+$N80)*$A80/12,IF(AND(S$64>=$J80,S$64<=$L80),IF(AND(S$64=$J80,$I80<>"January"),(INDEX('Master Data'!$Y$5:$AI$73,MATCH($G80,Cont_FT_Levels,0),MATCH(S$64,Cont_FT_Years,0))+$N80)*$B80/12,IF(AND(S$64=$L80,$K80<>"December"),(INDEX(Cont_FT_Salaries,MATCH($G80,Cont_FT_Levels,0),MATCH(S$64,Cont_FT_Years,0))+$N80)*$C80/12,(INDEX(Cont_FT_Salaries,MATCH($G80,Cont_FT_Levels,0),MATCH(S$64,Cont_FT_Years,0))+$N80)))))*(1+$N$60)*$M80,0) -> 0 | T80: =IFERROR(IF(AND(T$64=$J80,$J80=$L80),(INDEX(Cont_FT_Salaries,MATCH($G80,Cont_FT_Levels,0),MATCH(T$64,Cont_FT_Years,0))+$N80)*$A80/12,IF(AND(T$64>=$J80,T$64<=$L80),IF(AND(T$64=$J80,$I80<>"January"),(INDEX('Master Data'!$Y$5:$AI$73,MATCH($G80,Cont_FT_Levels,0),MATCH(T$64,Cont_FT_Years,0))+$N80)*$B80/12,IF(AND(T$64=$L80,$K80<>"December"),(INDEX(Cont_FT_Salaries,MATCH($G80,Cont_FT_Levels,0),MATCH(T$64,Cont_FT_Years,0))+$N80)*$C80/12,(INDEX(Cont_FT_Salaries,MATCH($G80,Cont_FT_Levels,0),MATCH(T$64,Cont_FT_Years,0))+$N80)))))*(1+$N$60)*$M80,0) -> 0 | U80: =IFERROR(IF(AND(U$64=$J80,$J80=$L80),(INDEX(Cont_FT_Salaries,MATCH($G80,Cont_FT_Levels,0),MATCH(U$64,Cont_FT_Years,0))+$N80)*$A80/12,IF(AND(U$64>=$J80,U$64<=$L80),IF(AND(U$64=$J80,$I80<>"January"),(INDEX('Master Data'!$Y$5:$AI$73,MATCH($G80,Cont_FT_Levels,0),MATCH(U$64,Cont_FT_Years,0))+$N80)*$B80/12,IF(AND(U$64=$L80,$K80<>"December"),(INDEX(Cont_FT_Salaries,MATCH($G80,Cont_FT_Levels,0),MATCH(U$64,Cont_FT_Years,0))+$N80)*$C80/12,(INDEX(Cont_FT_Salaries,MATCH($G80,Cont_FT_Levels,0),MATCH(U$64,Cont_FT_Years,0))+$N80)))))*(1+$N$60)*$M80,0) -> 0 | V80: =IFERROR(IF(AND(V$64=$J80,$J80=$L80),(INDEX(Cont_FT_Salaries,MATCH($G80,Cont_FT_Levels,0),MATCH(V$64,Cont_FT_Years,0))+$N80)*$A80/12,IF(AND(V$64>=$J80,V$64<=$L80),IF(AND(V$64=$J80,$I80<>"January"),(INDEX('Master Data'!$Y$5:$AI$73,MATCH($G80,Cont_FT_Levels,0),MATCH(V$64,Cont_FT_Years,0))+$N80)*$B80/12,IF(AND(V$64=$L80,$K80<>"December"),(INDEX(Cont_FT_Salaries,MATCH($G80,Cont_FT_Levels,0),MATCH(V$64,Cont_FT_Years,0))+$N80)*$C80/12,(INDEX(Cont_FT_Salaries,MATCH($G80,Cont_FT_Levels,0),MATCH(V$64,Cont_FT_Years,0))+$N80)))))*(1+$N$60)*$M80,0) -> 0 | W80: =IFERROR(IF(AND(W$64=$J80,$J80=$L80),(INDEX(Cont_FT_Salaries,MATCH($G80,Cont_FT_Levels,0),MATCH(W$64,Cont_FT_Years,0))+$N80)*$A80/12,IF(AND(W$64>=$J80,W$64<=$L80),IF(AND(W$64=$J80,$I80<>"January"),(INDEX('Master Data'!$Y$5:$AI$73,MATCH($G80,Cont_FT_Levels,0),MATCH(W$64,Cont_FT_Years,0))+$N80)*$B80/12,IF(AND(W$64=$L80,$K80<>"December"),(INDEX(Cont_FT_Salaries,MATCH($G80,Cont_FT_Levels,0),MATCH(W$64,Cont_FT_Years,0))+$N80)*$C80/12,(INDEX(Cont_FT_Salaries,MATCH($G80,Cont_FT_Levels,0),MATCH(W$64,Cont_FT_Years,0))+$N80)))))*(1+$N$60)*$M80,0) -> 0 | X80: =IFERROR(IF(AND(X$64=$J80,$J80=$L80),(INDEX(Cont_FT_Salaries,MATCH($G80,Cont_FT_Levels,0),MATCH(X$64,Cont_FT_Years,0))+$N80)*$A80/12,IF(AND(X$64>=$J80,X$64<=$L80),IF(AND(X$64=$J80,$I80<>"January"),(INDEX('Master Data'!$Y$5:$AI$73,MATCH($G80,Cont_FT_Levels,0),MATCH(X$64,Cont_FT_Years,0))+$N80)*$B80/12,IF(AND(X$64=$L80,$K80<>"December"),(INDEX(Cont_FT_Salaries,MATCH($G80,Cont_FT_Levels,0),MATCH(X$64,Cont_FT_Years,0))+$N80)*$C80/12,(INDEX(Cont_FT_Salaries,MATCH($G80,Cont_FT_Levels,0),MATCH(X$64,Cont_FT_Years,0))+$N80)))))*(1+$N$60)*$M80,0) -> 0 | Y80: 0 | AD80: 0 | AE80: 0 | AF80: 0 | AG80: 0 | AH80: 0 | AI80: 0 | AJ80: 0 | AK80: 0 | AL80: 0 | AM80: 0 | AN80: 0 | AP80: 0 | AQ80: 0 | AR80: 0 | AT80: 0
A81: =IFERROR(IF($J81=$L81,VLOOKUP($K81,'Master Data'!$AQ$5:$AR$16,2,FALSE)-VLOOKUP($I81,'Master Data'!$AQ$5:$AR$16,2,FALSE)+1,0),0) -> 0 | B81: =IFERROR(VLOOKUP($I81,'Master Data'!$AQ$5:$AS$16,3,FALSE),0) -> 0 | C81: =IFERROR(VLOOKUP($K81,'Master Data'!$AQ$5:$AR$16,2,FALSE),0) -> 0 | O81: =IFERROR(IF(AND(O$64=$J81,$J81=$L81),(INDEX(Cont_FT_Salaries,MATCH($G81,Cont_FT_Levels,0),MATCH(O$64,Cont_FT_Years,0))+$N81)*$A81/12,IF(AND(O$64>=$J81,O$64<=$L81),IF(AND(O$64=$J81,$I81<>"January"),(INDEX('Master Data'!$Y$5:$AI$73,MATCH($G81,Cont_FT_Levels,0),MATCH(O$64,Cont_FT_Years,0))+$N81)*$B81/12,IF(AND(O$64=$L81,$K81<>"December"),(INDEX(Cont_FT_Salaries,MATCH($G81,Cont_FT_Levels,0),MATCH(O$64,Cont_FT_Years,0))+$N81)*$C81/12,(INDEX(Cont_FT_Salaries,MATCH($G81,Cont_FT_Levels,0),MATCH(O$64,Cont_FT_Years,0))+$N81)))))*(1+$N$60)*$M81,0) -> 0 | P81: =IFERROR(IF(AND(P$64=$J81,$J81=$L81),(INDEX(Cont_FT_Salaries,MATCH($G81,Cont_FT_Levels,0),MATCH(P$64,Cont_FT_Years,0))+$N81)*$A81/12,IF(AND(P$64>=$J81,P$64<=$L81),IF(AND(P$64=$J81,$I81<>"January"),(INDEX('Master Data'!$Y$5:$AI$73,MATCH($G81,Cont_FT_Levels,0),MATCH(P$64,Cont_FT_Years,0))+$N81)*$B81/12,IF(AND(P$64=$L81,$K81<>"December"),(INDEX(Cont_FT_Salaries,MATCH($G81,Cont_FT_Levels,0),MATCH(P$64,Cont_FT_Years,0))+$N81)*$C81/12,(INDEX(Cont_FT_Salaries,MATCH($G81,Cont_FT_Levels,0),MATCH(P$64,Cont_FT_Years,0))+$N81)))))*(1+$N$60)*$M81,0) -> 0 | Q81: =IFERROR(IF(AND(Q$64=$J81,$J81=$L81),(INDEX(Cont_FT_Salaries,MATCH($G81,Cont_FT_Levels,0),MATCH(Q$64,Cont_FT_Years,0))+$N81)*$A81/12,IF(AND(Q$64>=$J81,Q$64<=$L81),IF(AND(Q$64=$J81,$I81<>"January"),(INDEX('Master Data'!$Y$5:$AI$73,MATCH($G81,Cont_FT_Levels,0),MATCH(Q$64,Cont_FT_Years,0))+$N81)*$B81/12,IF(AND(Q$64=$L81,$K81<>"December"),(INDEX(Cont_FT_Salaries,MATCH($G81,Cont_FT_Levels,0),MATCH(Q$64,Cont_FT_Years,0))+$N81)*$C81/12,(INDEX(Cont_FT_Salaries,MATCH($G81,Cont_FT_Levels,0),MATCH(Q$64,Cont_FT_Years,0))+$N81)))))*(1+$N$60)*$M81,0) -> 0 | R81: =IFERROR(IF(AND(R$64=$J81,$J81=$L81),(INDEX(Cont_FT_Salaries,MATCH($G81,Cont_FT_Levels,0),MATCH(R$64,Cont_FT_Years,0))+$N81)*$A81/12,IF(AND(R$64>=$J81,R$64<=$L81),IF(AND(R$64=$J81,$I81<>"January"),(INDEX('Master Data'!$Y$5:$AI$73,MATCH($G81,Cont_FT_Levels,0),MATCH(R$64,Cont_FT_Years,0))+$N81)*$B81/12,IF(AND(R$64=$L81,$K81<>"December"),(INDEX(Cont_FT_Salaries,MATCH($G81,Cont_FT_Levels,0),MATCH(R$64,Cont_FT_Years,0))+$N81)*$C81/12,(INDEX(Cont_FT_Salaries,MATCH($G81,Cont_FT_Levels,0),MATCH(R$64,Cont_FT_Years,0))+$N81)))))*(1+$N$60)*$M81,0) -> 0 | S81: =IFERROR(IF(AND(S$64=$J81,$J81=$L81),(INDEX(Cont_FT_Salaries,MATCH($G81,Cont_FT_Levels,0),MATCH(S$64,Cont_FT_Years,0))+$N81)*$A81/12,IF(AND(S$64>=$J81,S$64<=$L81),IF(AND(S$64=$J81,$I81<>"January"),(INDEX('Master Data'!$Y$5:$AI$73,MATCH($G81,Cont_FT_Levels,0),MATCH(S$64,Cont_FT_Years,0))+$N81)*$B81/12,IF(AND(S$64=$L81,$K81<>"December"),(INDEX(Cont_FT_Salaries,MATCH($G81,Cont_FT_Levels,0),MATCH(S$64,Cont_FT_Years,0))+$N81)*$C81/12,(INDEX(Cont_FT_Salaries,MATCH($G81,Cont_FT_Levels,0),MATCH(S$64,Cont_FT_Years,0))+$N81)))))*(1+$N$60)*$M81,0) -> 0 | T81: =IFERROR(IF(AND(T$64=$J81,$J81=$L81),(INDEX(Cont_FT_Salaries,MATCH($G81,Cont_FT_Levels,0),MATCH(T$64,Cont_FT_Years,0))+$N81)*$A81/12,IF(AND(T$64>=$J81,T$64<=$L81),IF(AND(T$64=$J81,$I81<>"January"),(INDEX('Master Data'!$Y$5:$AI$73,MATCH($G81,Cont_FT_Levels,0),MATCH(T$64,Cont_FT_Years,0))+$N81)*$B81/12,IF(AND(T$64=$L81,$K81<>"December"),(INDEX(Cont_FT_Salaries,MATCH($G81,Cont_FT_Levels,0),MATCH(T$64,Cont_FT_Years,0))+$N81)*$C81/12,(INDEX(Cont_FT_Salaries,MATCH($G81,Cont_FT_Levels,0),MATCH(T$64,Cont_FT_Years,0))+$N81)))))*(1+$N$60)*$M81,0) -> 0 | U81: =IFERROR(IF(AND(U$64=$J81,$J81=$L81),(INDEX(Cont_FT_Salaries,MATCH($G81,Cont_FT_Levels,0),MATCH(U$64,Cont_FT_Years,0))+$N81)*$A81/12,IF(AND(U$64>=$J81,U$64<=$L81),IF(AND(U$64=$J81,$I81<>"January"),(INDEX('Master Data'!$Y$5:$AI$73,MATCH($G81,Cont_FT_Levels,0),MATCH(U$64,Cont_FT_Years,0))+$N81)*$B81/12,IF(AND(U$64=$L81,$K81<>"December"),(INDEX(Cont_FT_Salaries,MATCH($G81,Cont_FT_Levels,0),MATCH(U$64,Cont_FT_Years,0))+$N81)*$C81/12,(INDEX(Cont_FT_Salaries,MATCH($G81,Cont_FT_Levels,0),MATCH(U$64,Cont_FT_Years,0))+$N81)))))*(1+$N$60)*$M81,0) -> 0 | V81: =IFERROR(IF(AND(V$64=$J81,$J81=$L81),(INDEX(Cont_FT_Salaries,MATCH($G81,Cont_FT_Levels,0),MATCH(V$64,Cont_FT_Years,0))+$N81)*$A81/12,IF(AND(V$64>=$J81,V$64<=$L81),IF(AND(V$64=$J81,$I81<>"January"),(INDEX('Master Data'!$Y$5:$AI$73,MATCH($G81,Cont_FT_Levels,0),MATCH(V$64,Cont_FT_Years,0))+$N81)*$B81/12,IF(AND(V$64=$L81,$K81<>"December"),(INDEX(Cont_FT_Salaries,MATCH($G81,Cont_FT_Levels,0),MATCH(V$64,Cont_FT_Years,0))+$N81)*$C81/12,(INDEX(Cont_FT_Salaries,MATCH($G81,Cont_FT_Levels,0),MATCH(V$64,Cont_FT_Years,0))+$N81)))))*(1+$N$60)*$M81,0) -> 0 | W81: =IFERROR(IF(AND(W$64=$J81,$J81=$L81),(INDEX(Cont_FT_Salaries,MATCH($G81,Cont_FT_Levels,0),MATCH(W$64,Cont_FT_Years,0))+$N81)*$A81/12,IF(AND(W$64>=$J81,W$64<=$L81),IF(AND(W$64=$J81,$I81<>"January"),(INDEX('Master Data'!$Y$5:$AI$73,MATCH($G81,Cont_FT_Levels,0),MATCH(W$64,Cont_FT_Years,0))+$N81)*$B81/12,IF(AND(W$64=$L81,$K81<>"December"),(INDEX(Cont_FT_Salaries,MATCH($G81,Cont_FT_Levels,0),MATCH(W$64,Cont_FT_Years,0))+$N81)*$C81/12,(INDEX(Cont_FT_Salaries,MATCH($G81,Cont_FT_Levels,0),MATCH(W$64,Cont_FT_Years,0))+$N81)))))*(1+$N$60)*$M81,0) -> 0 | X81: =IFERROR(IF(AND(X$64=$J81,$J81=$L81),(INDEX(Cont_FT_Salaries,MATCH($G81,Cont_FT_Levels,0),MATCH(X$64,Cont_FT_Years,0))+$N81)*$A81/12,IF(AND(X$64>=$J81,X$64<=$L81),IF(AND(X$64=$J81,$I81<>"January"),(INDEX('Master Data'!$Y$5:$AI$73,MATCH($G81,Cont_FT_Levels,0),MATCH(X$64,Cont_FT_Years,0))+$N81)*$B81/12,IF(AND(X$64=$L81,$K81<>"December"),(INDEX(Cont_FT_Salaries,MATCH($G81,Cont_FT_Levels,0),MATCH(X$64,Cont_FT_Years,0))+$N81)*$C81/12,(INDEX(Cont_FT_Salaries,MATCH($G81,Cont_FT_Levels,0),MATCH(X$64,Cont_FT_Years,0))+$N81)))))*(1+$N$60)*$M81,0) -> 0 | Y81: 0 | AD81: 0 | AE81: 0 | AF81: 0 | AG81: 0 | AH81: 0 | AI81: 0 | AJ81: 0 | AK81: 0 | AL81: 0 | AM81: 0 | AN81: 0 | AP81: 0 | AQ81: 0 | AR81: 0 | AT81: 0
E82: Total Continuing & Fixed Term Salaries - MONTHLY / ANNUAL | O82: =SUM(O67:O81) -> 0 | P82: 0 | Q82: 0 | R82: 0 | S82: 0 | T82: 0 | U82: 0 | V82: 0 | W82: 0 | X82: 0 | Y82: 0 | AD82: =SUM(AD67:AD81) -> 0 | AE82: 0 | AF82: 0 | AG82: 0 | AH82: 0 | AI82: 0 | AJ82: 0 | AK82: 0 | AL82: 0 | AM82: 0 | AN82: 0 | AP82: =SUM(AP67:AP81) -> 0 | AQ82: =SUM(AQ67:AQ81) -> 0 | AR82: =SUM(AR67:AR81) -> 0 | AT82: =SUM(AT67:AT81) -> 0
E85: Continuing & Fixed Term Salaries - HOURLY / DAILY / WEEKLY
E86: Employment Type | F86: Salary Segment (Optional) | G86: Level of Staff Member | H86: Funding Source | I86: Year | J86: FTE | K86: Rate | L86: Unit | N86: Loadings (optional) | O86: Project Costing (Direct) | AD86: Project Pricing (Direct) | AP86: Inkind & Ineligible Expenses | AT86: Price to Funder (inclusive of salary & other recoveries)
O87: =O$37 -> Year 1 | P87: Year 2 | Q87: Year 3 | R87: Year 4 | S87: Year 5 | T87: Year 6 | U87: Year 7 | V87: Year 8 | W87: Year 9 | X87: Year 10 | Y87: =Y$63 -> Total Project Cost (Direct) | Z87: % included in Project Pricing | AA87: Amount included in Project Pricing | AB87: Reason for the cost not being fully funded by the sponsor | AD87: =AD$37 -> Year 1 | AE87: Year 2 | AF87: Year 3 | AG87: Year 4 | AH87: Year 5 | AI87: Year 6 | AJ87: Year 7 | AK87: Year 8 | AL87: Year 9 | AM87: Year 10 | AN87: Total Project Price (Direct) | AP87: =AP$63 -> Inkind | AQ87: =AQ$63 -> Ineligible Expense | AR87: =AR$63 -> Total
O88: =O$33 -> 1900 | P88: =P$33 ->  | AD88: =AD$33 -> 1900 | AE88: =AE$33 ->  | AN88: =AN$38 -> 0
E89: Academic | F89: Tied | G89: Level B-4 | H89: Funded | I89: 2024 | J89: 1 | K89: Hourly | L89: 1000 | M89: Number of hours | O89: 99055.65863 | P89: 0 | Q89: 0 | R89: 0 | S89: 0 | T89: 0 | U89: 0 | V89: 0 | W89: 0 | X89: 0 | Y89: =SUM(O89:X89) -> 99055.65863 | AD89: 99055.65863 | AE89: 0 | AF89: 0 | AG89: 0 | AH89: 0 | AI89: 0 | AJ89: 0 | AK89: 0 | AL89: 0 | AM89: 0 | AN89: =SUM(AD89:AM89) -> 99055.65863 | AP89: 0 | AQ89: 0 | AR89: =SUM(AP89:AQ89) -> 0
E90: Professional | F90: Discretionary | G90: HEO 7-1 | H90: Inkind | I90: 2025 | J90: 1 | K90: Weekly | L90: 20 | M90: Number of weeks | O90: 0 | P90: 60145.68182 | Q90: 0 | R90: 0 | S90: 0 | T90: 0 | U90: 0 | V90: 0 | W90: 0 | X90: 0 | Y90: =SUM(O90:X90) -> 60145.68182 | AD90: 0 | AE90: 0 | AF90: 0 | AG90: 0 | AH90: 0 | AI90: 0 | AJ90: 0 | AK90: 0 | AL90: 0 | AM90: 0 | AN90: =SUM(AD90:AM90) -> 0 | AP90: 60145.68182 | AQ90: 0 | AR90: =SUM(AP90:AQ90) -> 60145.68182
E91: =IFERROR(VLOOKUP($G91,Employment_Type,2,FALSE),"") ->  | M91: =IFERROR(VLOOKUP($K91,Rate,2,FALSE),"") ->  | O91: =IFERROR((IF(O$64=$I91,(INDEX(Cont_FT_Salaries,MATCH($G91,Cont_FT_Levels,0),MATCH(O$64,Cont_FT_Years,0))+$N91),0)*(1+$N$60))/VLOOKUP($K91,Rate,3,FALSE)*$J91*$L91,0) -> 0 | P91: 0 | Q91: 0 | R91: 0 | S91: 0 | T91: 0 | U91: 0 | V91: 0 | W91: 0 | X91: 0 | Y91: =SUM(O91:X91) -> 0 | AD91: =IF($H91="Funded",IF(ISBLANK($Z91),IF(ISBLANK($AA91),O91,IF(O91=0,0,$AA91)),O91*$Z91),0) -> 0 | AE91: =IF($H91="Funded",IF(ISBLANK($Z91),IF(ISBLANK($AA91),P91,IF(P91=0,0,$AA91)),P91*$Z91),0) -> 0 | AF91: =IF($H91="Funded",IF(ISBLANK($Z91),IF(ISBLANK($AA91),Q91,IF(Q91=0,0,$AA91)),Q91*$Z91),0) -> 0 | AG91: =IF($H91="Funded",IF(ISBLANK($Z91),IF(ISBLANK($AA91),R91,IF(R91=0,0,$AA91)),R91*$Z91),0) -> 0 | AH91: =IF($H91="Funded",IF(ISBLANK($Z91),IF(ISBLANK($AA91),S91,IF(S91=0,0,$AA91)),S91*$Z91),0) -> 0 | AI91: =IF($H91="Funded",IF(ISBLANK($Z91),IF(ISBLANK($AA91),T91,IF(T91=0,0,$AA91)),T91*$Z91),0) -> 0 | AJ91: =IF($H91="Funded",IF(ISBLANK($Z91),IF(ISBLANK($AA91),U91,IF(U91=0,0,$AA91)),U91*$Z91),0) -> 0 | AK91: =IF($H91="Funded",IF(ISBLANK($Z91),IF(ISBLANK($AA91),V91,IF(V91=0,0,$AA91)),V91*$Z91),0) -> 0 | AL91: =IF($H91="Funded",IF(ISBLANK($Z91),IF(ISBLANK($AA91),W91,IF(W91=0,0,$AA91)),W91*$Z91),0) -> 0 | AM91: =IF($H91="Funded",IF(ISBLANK($Z91),IF(ISBLANK($AA91),X91,IF(X91=0,0,$AA91)),X91*$Z91),0) -> 0 | AN91: =SUM(AD91:AM91) -> 0 | AP91: =IF($H91=AP$63,$Y91-$AN91,0) -> 0 | AQ91: =IF(NOT($H91="Inkind"),$Y91-$AN91,0) -> 0 | AR91: =SUM(AP91:AQ91) -> 0 | AT91: =IFERROR(AN91/$AN$133*SUM($AN$233,$AN$235)+AN91,0) -> 0
O92: 0 | P92: 0 | Q92: 0 | R92: 0 | S92: 0 | T92: 0 | U92: 0 | V92: 0 | W92: 0 | X92: 0 | Y92: 0 | AD92: 0 | AE92: 0 | AF92: 0 | AG92: 0 | AH92: 0 | AI92: 0 | AJ92: 0 | AK92: 0 | AL92: 0 | AM92: 0 | AN92: 0 | AP92: =IF($H92=AP$63,$Y92-$AN92,0) -> 0 | AQ92: =IF(NOT($H92="Inkind"),$Y92-$AN92,0) -> 0 | AR92: 0 | AT92: 0
O93: 0 | P93: 0 | Q93: 0 | R93: 0 | S93: 0 | T93: 0 | U93: 0 | V93: 0 | W93: 0 | X93: 0 | Y93: 0 | AD93: 0 | AE93: 0 | AF93: 0 | AG93: 0 | AH93: 0 | AI93: 0 | AJ93: 0 | AK93: 0 | AL93: 0 | AM93: 0 | AN93: 0 | AP93: 0 | AQ93: 0 | AR93: 0 | AT93: 0
O94: 0 | P94: 0 | Q94: 0 | R94: 0 | S94: 0 | T94: 0 | U94: 0 | V94: 0 | W94: 0 | X94: 0 | Y94: 0 | AD94: 0 | AE94: 0 | AF94: 0 | AG94: 0 | AH94: 0 | AI94: 0 | AJ94: 0 | AK94: 0 | AL94: 0 | AM94: 0 | AN94: 0 | AP94: 0 | AQ94: 0 | AR94: 0 | AT94: 0
O95: 0 | P95: 0 | Q95: 0 | R95: 0 | S95: 0 | T95: 0 | U95: 0 | V95: 0 | W95: 0 | X95: 0 | Y95: 0 | AD95: 0 | AE95: 0 | AF95: 0 | AG95: 0 | AH95: 0 | AI95: 0 | AJ95: 0 | AK95: 0 | AL95: 0 | AM95: 0 | AN95: 0 | AP95: 0 | AQ95: 0 | AR95: 0 | AT95: 0
O96: 0 | P96: 0 | Q96: 0 | R96: 0 | S96: 0 | T96: 0 | U96: 0 | V96: 0 | W96: 0 | X96: 0 | Y96: 0 | AD96: 0 | AE96: 0 | AF96: 0 | AG96: 0 | AH96: 0 | AI96: 0 | AJ96: 0 | AK96: 0 | AL96: 0 | AM96: 0 | AN96: 0 | AP96: 0 | AQ96: 0 | AR96: 0 | AT96: 0
O97: 0 | P97: 0 | Q97: 0 | R97: 0 | S97: 0 | T97: 0 | U97: 0 | V97: 0 | W97: 0 | X97: 0 | Y97: 0 | AD97: 0 | AE97: 0 | AF97: 0 | AG97: 0 | AH97: 0 | AI97: 0 | AJ97: 0 | AK97: 0 | AL97: 0 | AM97: 0 | AN97: 0 | AP97: 0 | AQ97: 0 | AR97: 0 | AT97: 0
O98: 0 | P98: 0 | Q98: 0 | R98: 0 | S98: 0 | T98: 0 | U98: 0 | V98: 0 | W98: 0 | X98: 0 | Y98: 0 | AD98: 0 | AE98: 0 | AF98: 0 | AG98: 0 | AH98: 0 | AI98: 0 | AJ98: 0 | AK98: 0 | AL98: 0 | AM98: 0 | AN98: 0 | AP98: 0 | AQ98: 0 | AR98: 0 | AT98: 0
O99: 0 | P99: 0 | Q99: 0 | R99: 0 | S99: 0 | T99: 0 | U99: 0 | V99: 0 | W99: 0 | X99: 0 | Y99: 0 | AD99: 0 | AE99: 0 | AF99: 0 | AG99: 0 | AH99: 0 | AI99: 0 | AJ99: 0 | AK99: 0 | AL99: 0 | AM99: 0 | AN99: 0 | AP99: 0 | AQ99: 0 | AR99: 0 | AT99: 0
O100: 0 | P100: 0 | Q100: 0 | R100: 0 | S100: 0 | T100: 0 | U100: 0 | V100: 0 | W100: 0 | X100: 0 | Y100: 0 | AD100: 0 | AE100: 0 | AF100: 0 | AG100: 0 | AH100: 0 | AI100: 0 | AJ100: 0 | AK100: 0 | AL100: 0 | AM100: 0 | AN100: 0 | AP100: 0 | AQ100: 0 | AR100: =SUM(AP100:AQ100) -> 0 | AT100: 0
O101: 0 | P101: 0 | Q101: 0 | R101: 0 | S101: 0 | T101: 0 | U101: 0 | V101: 0 | W101: 0 | X101: 0 | Y101: =SUM(O101:X101) -> 0 | AD101: 0 | AE101: 0 | AF101: 0 | AG101: 0 | AH101: 0 | AI101: 0 | AJ101: 0 | AK101: 0 | AL101: 0 | AM101: 0 | AN101: =SUM(AD101:AM101) -> 0 | AP101: 0 | AQ101: 0 | AR101: =SUM(AP101:AQ101) -> 0 | AT101: 0
O102: 0 | P102: 0 | Q102: 0 | R102: 0 | S102: 0 | T102: 0 | U102: 0 | V102: 0 | W102: 0 | X102: 0 | Y102: 0 | AD102: 0 | AE102: 0 | AF102: 0 | AG102: 0 | AH102: 0 | AI102: 0 | AJ102: 0 | AK102: 0 | AL102: 0 | AM102: 0 | AN102: 0 | AP102: 0 | AQ102: 0 | AR102: 0 | AT102: 0
O103: 0 | P103: 0 | Q103: 0 | R103: 0 | S103: 0 | T103: 0 | U103: 0 | V103: 0 | W103: 0 | X103: 0 | Y103: 0 | AD103: 0 | AE103: 0 | AF103: 0 | AG103: 0 | AH103: 0 | AI103: 0 | AJ103: 0 | AK103: 0 | AL103: 0 | AM103: 0 | AN103: 0 | AP103: 0 | AQ103: 0 | AR103: 0 | AT103: 0
E104: =IFERROR(VLOOKUP($G104,Employment_Type,2,FALSE),"") ->  | O104: 0 | P104: 0 | Q104: 0 | R104: 0 | S104: 0 | T104: 0 | U104: 0 | V104: 0 | W104: 0 | X104: 0 | Y104: 0 | AD104: 0 | AE104: 0 | AF104: 0 | AG104: 0 | AH104: 0 | AI104: 0 | AJ104: 0 | AK104: 0 | AL104: 0 | AM104: 0 | AN104: 0 | AP104: 0 | AQ104: 0 | AR104: 0 | AT104: 0
E105: =IFERROR(VLOOKUP($G105,Employment_Type,2,FALSE),"") ->  | O105: 0 | P105: 0 | Q105: 0 | R105: 0 | S105: 0 | T105: 0 | U105: 0 | V105: 0 | W105: 0 | X105: 0 | Y105: 0 | AD105: 0 | AE105: 0 | AF105: 0 | AG105: 0 | AH105: 0 | AI105: 0 | AJ105: 0 | AK105: 0 | AL105: 0 | AM105: 0 | AN105: 0 | AP105: 0 | AQ105: 0 | AR105: 0 | AT105: 0
E106: Total Continuing & Fixed Term Salaries - HOURLY / DAILY / WEEKLY | O106: =SUM(O91:O105) -> 0 | P106: 0 | Q106: 0 | R106: 0 | S106: 0 | T106: 0 | U106: 0 | V106: 0 | W106: 0 | X106: 0 | Y106: 0 | AD106: =SUM(AD91:AD105) -> 0 | AE106: 0 | AF106: 0 | AG106: 0 | AH106: 0 | AI106: 0 | AJ106: 0 | AK106: 0 | AL106: 0 | AM106: 0 | AN106: 0 | AP106: 0 | AQ106: 0 | AR106: 0 | AT106: =SUM(AT91:AT105) -> 0
L108: Oncost Rates | M108: 2024 | N108: 2025 onwards
M109: =Casual_2024_Oncost_Rate -> 0.1695 | N109: =Casual_2025_Oncost_Rate -> 0.1745
E110: Casual Salaries
E111: Employment Type | F111: Salary Segment | H111: Level of Staff Member | K111: Funding Source | L111: Start Year | M111: End Year | N111: Hours Per Year | O111: Project Costing (Direct) | AD111: Project Pricing (Direct) | AP111: Inkind & Ineligible Expenses | AT111: Price to Funder (inclusive of salary & other recoveries)
O112: =O$37 -> Year 1 | P112: Year 2 | Q112: Year 3 | R112: Year 4 | S112: Year 5 | T112: Year 6 | U112: Year 7 | V112: Year 8 | W112: Year 9 | X112: Year 10 | Y112: =Y$63 -> Total Project Cost (Direct) | Z112: % included in Project Pricing | AA112: Amount included in Project Pricing | AB112: =AB$63 -> Reason for the cost not being fully funded by the sponsor | AD112: =AD$37 -> Year 1 | AE112: =AE$37 -> Year 2 | AF112: Year 3 | AG112: Year 4 | AH112: Year 5 | AI112: Year 6 | AJ112: Year 7 | AK112: Year 8 | AL112: Year 9 | AM112: Year 10 | AN112: Total Project Price | AP112: =AP$63 -> Inkind | AQ112: =AQ$63 -> Ineligible Expense | AR112: =AR$63 -> Total
O113: =O$33 -> 1900 | P113: =P$33 ->  | AD113: =AD$33 -> 1900 | AE113: =AE$33 ->  | AN113: =AN$38 -> 0
D114: Example | E114: Professional | F114: Discretionary | H114: HEO 5-4 | K114: Funded | L114: 2024 | M114: 2028 | N114: 1000 | O114: 68146.765 | P114: 70834.095 | Q114: 73313.28833 | R114: 75879.25342 | S114: 78535.02729 | T114: 0 | U114: 0 | V114: 0 | W114: 0 | X114: 0 | Y114: =SUM(O114:X114) -> 366708.429 | Z114: 0.1 | AB114: sponsor is only paying 10% of the cost | AD114: 6814.6765 | AE114: 7083.4095 | AF114: 7331.328833 | AG114: 7587.925342 | AH114: 7853.502729 | AI114: 0 | AJ114: 0 | AK114: 0 | AL114: 0 | AM114: 0 | AN114: =SUM(AD114:AM114) -> 36670.8429 | AP114: 0 | AQ114: 365593.6496 | AR114: =SUM(AP114:AQ114) -> 365593.6496
D115: Example | E115: Academic | F115: Discretionary | H115: HEO 6-1 | K115: Inkind | L115: 2025 | M115: 2027 | N115: 2000 | O115: 0 | P115: 157326 | Q115: 162832.41 | R115: 168531.5443 | S115: 0 | T115: 0 | U115: 0 | V115: 0 | W115: 0 | X115: 0 | Y115: 488689.9543 | AD115: 0 | AE115: 0 | AF115: 0 | AG115: 0 | AH115: 0 | AI115: 0 | AJ115: 0 | AK115: 0 | AL115: 0 | AM115: 0 | AN115: 0 | AP115: 488689.9543 | AQ115: 0 | AR115: 488689.9543
E116: =IFERROR(VLOOKUP($H116,Employment_Type,2,FALSE),"") ->  | O116: =IFERROR(IF(AND(O$113>=$L116,O$113<=$M116),INDEX('Master Data'!$Y$76:$AJ$117,MATCH($H116,'Master Data'!$X$76:$X$117,0),MATCH(O$113,'Master Data'!$Y$75:$AJ$75,0)),0)*IF(O$113=2024,1+$M$109,1+$N$109)*$N116,0) -> 0 | P116: =IFERROR(IF(AND(P$113>=$L116,P$113<=$M116),INDEX('Master Data'!$Y$76:$AJ$117,MATCH($H116,'Master Data'!$X$76:$X$117,0),MATCH(P$113,'Master Data'!$Y$75:$AJ$75,0)),0)*IF(P$113=2024,1+$M$109,1+$N$109)*$N116,0) -> 0 | Q116: =IFERROR(IF(AND(Q$113>=$L116,Q$113<=$M116),INDEX('Master Data'!$Y$76:$AJ$117,MATCH($H116,'Master Data'!$X$76:$X$117,0),MATCH(Q$113,'Master Data'!$Y$75:$AJ$75,0)),0)*IF(Q$113=2024,1+$M$109,1+$N$109)*$N116,0) -> 0 | R116: =IFERROR(IF(AND(R$113>=$L116,R$113<=$M116),INDEX('Master Data'!$Y$76:$AJ$117,MATCH($H116,'Master Data'!$X$76:$X$117,0),MATCH(R$113,'Master Data'!$Y$75:$AJ$75,0)),0)*IF(R$113=2024,1+$M$109,1+$N$109)*$N116,0) -> 0 | S116: =IFERROR(IF(AND(S$113>=$L116,S$113<=$M116),INDEX('Master Data'!$Y$76:$AJ$117,MATCH($H116,'Master Data'!$X$76:$X$117,0),MATCH(S$113,'Master Data'!$Y$75:$AJ$75,0)),0)*IF(S$113=2024,1+$M$109,1+$N$109)*$N116,0) -> 0 | T116: =IFERROR(IF(AND(T$113>=$L116,T$113<=$M116),INDEX('Master Data'!$Y$76:$AJ$117,MATCH($H116,'Master Data'!$X$76:$X$117,0),MATCH(T$113,'Master Data'!$Y$75:$AJ$75,0)),0)*IF(T$113=2024,1+$M$109,1+$N$109)*$N116,0) -> 0 | U116: =IFERROR(IF(AND(U$113>=$L116,U$113<=$M116),INDEX('Master Data'!$Y$76:$AJ$117,MATCH($H116,'Master Data'!$X$76:$X$117,0),MATCH(U$113,'Master Data'!$Y$75:$AJ$75,0)),0)*IF(U$113=2024,1+$M$109,1+$N$109)*$N116,0) -> 0 | V116: =IFERROR(IF(AND(V$113>=$L116,V$113<=$M116),INDEX('Master Data'!$Y$76:$AJ$117,MATCH($H116,'Master Data'!$X$76:$X$117,0),MATCH(V$113,'Master Data'!$Y$75:$AJ$75,0)),0)*IF(V$113=2024,1+$M$109,1+$N$109)*$N116,0) -> 0 | W116: =IFERROR(IF(AND(W$113>=$L116,W$113<=$M116),INDEX('Master Data'!$Y$76:$AJ$117,MATCH($H116,'Master Data'!$X$76:$X$117,0),MATCH(W$113,'Master Data'!$Y$75:$AJ$75,0)),0)*IF(W$113=2024,1+$M$109,1+$N$109)*$N116,0) -> 0 | X116: =IFERROR(IF(AND(X$113>=$L116,X$113<=$M116),INDEX('Master Data'!$Y$76:$AJ$117,MATCH($H116,'Master Data'!$X$76:$X$117,0),MATCH(X$113,'Master Data'!$Y$75:$AJ$75,0)),0)*IF(X$113=2024,1+$M$109,1+$N$109)*$N116,0) -> 0 | Y116: 0 | AD116: =IF($K116="Funded",IF(ISBLANK($Z116),IF(ISBLANK($AA116),O116,IF(O116=0,0,$AA116)),O116*$Z116),0) -> 0 | AE116: =IF($K116="Funded",IF(ISBLANK($Z116),IF(ISBLANK($AA116),P116,IF(P116=0,0,$AA116)),P116*$Z116),0) -> 0 | AF116: =IF($K116="Funded",IF(ISBLANK($Z116),IF(ISBLANK($AA116),Q116,IF(Q116=0,0,$AA116)),Q116*$Z116),0) -> 0 | AG116: =IF($K116="Funded",IF(ISBLANK($Z116),IF(ISBLANK($AA116),R116,IF(R116=0,0,$AA116)),R116*$Z116),0) -> 0 | AH116: =IF($K116="Funded",IF(ISBLANK($Z116),IF(ISBLANK($AA116),S116,IF(S116=0,0,$AA116)),S116*$Z116),0) -> 0 | AI116: =IF($K116="Funded",IF(ISBLANK($Z116),IF(ISBLANK($AA116),T116,IF(T116=0,0,$AA116)),T116*$Z116),0) -> 0 | AJ116: =IF($K116="Funded",IF(ISBLANK($Z116),IF(ISBLANK($AA116),U116,IF(U116=0,0,$AA116)),U116*$Z116),0) -> 0 | AK116: =IF($K116="Funded",IF(ISBLANK($Z116),IF(ISBLANK($AA116),V116,IF(V116=0,0,$AA116)),V116*$Z116),0) -> 0 | AL116: =IF($K116="Funded",IF(ISBLANK($Z116),IF(ISBLANK($AA116),W116,IF(W116=0,0,$AA116)),W116*$Z116),0) -> 0 | AM116: =IF($K116="Funded",IF(ISBLANK($Z116),IF(ISBLANK($AA116),X116,IF(X116=0,0,$AA116)),X116*$Z116),0) -> 0 | AN116: 0 | AP116: =IF($K116=AP$112,$Y116-$AN116,0) -> 0 | AQ116: =IF(NOT($K116="Inkind"),$Y116-$AN116,0) -> 0 | AR116: 0 | AT116: =IFERROR(AN116/$AN$133*SUM($AN$233,$AN$235)+AN116,0) -> 0
O117: =IFERROR(IF(AND(O$113>=$L117,O$113<=$M117),INDEX('Master Data'!$Y$76:$AJ$117,MATCH($H117,'Master Data'!$X$76:$X$117,0),MATCH(O$113,'Master Data'!$Y$75:$AJ$75,0)),0)*IF(O$113=2024,1+$M$109,1+$N$109)*$N117,0) -> 0 | P117: =IFERROR(IF(AND(P$113>=$L117,P$113<=$M117),INDEX('Master Data'!$Y$76:$AJ$117,MATCH($H117,'Master Data'!$X$76:$X$117,0),MATCH(P$113,'Master Data'!$Y$75:$AJ$75,0)),0)*IF(P$113=2024,1+$M$109,1+$N$109)*$N117,0) -> 0 | Q117: =IFERROR(IF(AND(Q$113>=$L117,Q$113<=$M117),INDEX('Master Data'!$Y$76:$AJ$117,MATCH($H117,'Master Data'!$X$76:$X$117,0),MATCH(Q$113,'Master Data'!$Y$75:$AJ$75,0)),0)*IF(Q$113=2024,1+$M$109,1+$N$109)*$N117,0) -> 0 | R117: =IFERROR(IF(AND(R$113>=$L117,R$113<=$M117),INDEX('Master Data'!$Y$76:$AJ$117,MATCH($H117,'Master Data'!$X$76:$X$117,0),MATCH(R$113,'Master Data'!$Y$75:$AJ$75,0)),0)*IF(R$113=2024,1+$M$109,1+$N$109)*$N117,0) -> 0 | S117: =IFERROR(IF(AND(S$113>=$L117,S$113<=$M117),INDEX('Master Data'!$Y$76:$AJ$117,MATCH($H117,'Master Data'!$X$76:$X$117,0),MATCH(S$113,'Master Data'!$Y$75:$AJ$75,0)),0)*IF(S$113=2024,1+$M$109,1+$N$109)*$N117,0) -> 0 | T117: =IFERROR(IF(AND(T$113>=$L117,T$113<=$M117),INDEX('Master Data'!$Y$76:$AJ$117,MATCH($H117,'Master Data'!$X$76:$X$117,0),MATCH(T$113,'Master Data'!$Y$75:$AJ$75,0)),0)*IF(T$113=2024,1+$M$109,1+$N$109)*$N117,0) -> 0 | U117: =IFERROR(IF(AND(U$113>=$L117,U$113<=$M117),INDEX('Master Data'!$Y$76:$AJ$117,MATCH($H117,'Master Data'!$X$76:$X$117,0),MATCH(U$113,'Master Data'!$Y$75:$AJ$75,0)),0)*IF(U$113=2024,1+$M$109,1+$N$109)*$N117,0) -> 0 | V117: =IFERROR(IF(AND(V$113>=$L117,V$113<=$M117),INDEX('Master Data'!$Y$76:$AJ$117,MATCH($H117,'Master Data'!$X$76:$X$117,0),MATCH(V$113,'Master Data'!$Y$75:$AJ$75,0)),0)*IF(V$113=2024,1+$M$109,1+$N$109)*$N117,0) -> 0 | W117: =IFERROR(IF(AND(W$113>=$L117,W$113<=$M117),INDEX('Master Data'!$Y$76:$AJ$117,MATCH($H117,'Master Data'!$X$76:$X$117,0),MATCH(W$113,'Master Data'!$Y$75:$AJ$75,0)),0)*IF(W$113=2024,1+$M$109,1+$N$109)*$N117,0) -> 0 | X117: =IFERROR(IF(AND(X$113>=$L117,X$113<=$M117),INDEX('Master Data'!$Y$76:$AJ$117,MATCH($H117,'Master Data'!$X$76:$X$117,0),MATCH(X$113,'Master Data'!$Y$75:$AJ$75,0)),0)*IF(X$113=2024,1+$M$109,1+$N$109)*$N117,0) -> 0 | Y117: 0 | AD117: =IF($K117="Funded",IF(ISBLANK($Z117),IF(ISBLANK($AA117),O117,IF(O117=0,0,$AA117)),O117*$Z117),0) -> 0 | AE117: 0 | AF117: 0 | AG117: 0 | AH117: 0 | AI117: 0 | AJ117: 0 | AK117: 0 | AL117: 0 | AM117: 0 | AN117: 0 | AP117: =IF($K117=AP$112,$Y117-$AN117,0) -> 0 | AQ117: =IF(NOT($K117="Inkind"),$Y117-$AN117,0) -> 0 | AR117: 0 | AT117: =IFERROR(AN117/$AN$133*SUM($AN$233,$AN$235)+AN117,0) -> 0
O118: =IFERROR(IF(AND(O$113>=$L118,O$113<=$M118),INDEX('Master Data'!$Y$76:$AJ$117,MATCH($H118,'Master Data'!$X$76:$X$117,0),MATCH(O$113,'Master Data'!$Y$75:$AJ$75,0)),0)*IF(O$113=2024,1+$M$109,1+$N$109)*$N118,0) -> 0 | P118: =IFERROR(IF(AND(P$113>=$L118,P$113<=$M118),INDEX('Master Data'!$Y$76:$AJ$117,MATCH($H118,'Master Data'!$X$76:$X$117,0),MATCH(P$113,'Master Data'!$Y$75:$AJ$75,0)),0)*IF(P$113=2024,1+$M$109,1+$N$109)*$N118,0) -> 0 | Q118: =IFERROR(IF(AND(Q$113>=$L118,Q$113<=$M118),INDEX('Master Data'!$Y$76:$AJ$117,MATCH($H118,'Master Data'!$X$76:$X$117,0),MATCH(Q$113,'Master Data'!$Y$75:$AJ$75,0)),0)*IF(Q$113=2024,1+$M$109,1+$N$109)*$N118,0) -> 0 | R118: =IFERROR(IF(AND(R$113>=$L118,R$113<=$M118),INDEX('Master Data'!$Y$76:$AJ$117,MATCH($H118,'Master Data'!$X$76:$X$117,0),MATCH(R$113,'Master Data'!$Y$75:$AJ$75,0)),0)*IF(R$113=2024,1+$M$109,1+$N$109)*$N118,0) -> 0 | S118: =IFERROR(IF(AND(S$113>=$L118,S$113<=$M118),INDEX('Master Data'!$Y$76:$AJ$117,MATCH($H118,'Master Data'!$X$76:$X$117,0),MATCH(S$113,'Master Data'!$Y$75:$AJ$75,0)),0)*IF(S$113=2024,1+$M$109,1+$N$109)*$N118,0) -> 0 | T118: =IFERROR(IF(AND(T$113>=$L118,T$113<=$M118),INDEX('Master Data'!$Y$76:$AJ$117,MATCH($H118,'Master Data'!$X$76:$X$117,0),MATCH(T$113,'Master Data'!$Y$75:$AJ$75,0)),0)*IF(T$113=2024,1+$M$109,1+$N$109)*$N118,0) -> 0 | U118: =IFERROR(IF(AND(U$113>=$L118,U$113<=$M118),INDEX('Master Data'!$Y$76:$AJ$117,MATCH($H118,'Master Data'!$X$76:$X$117,0),MATCH(U$113,'Master Data'!$Y$75:$AJ$75,0)),0)*IF(U$113=2024,1+$M$109,1+$N$109)*$N118,0) -> 0 | V118: =IFERROR(IF(AND(V$113>=$L118,V$113<=$M118),INDEX('Master Data'!$Y$76:$AJ$117,MATCH($H118,'Master Data'!$X$76:$X$117,0),MATCH(V$113,'Master Data'!$Y$75:$AJ$75,0)),0)*IF(V$113=2024,1+$M$109,1+$N$109)*$N118,0) -> 0 | W118: =IFERROR(IF(AND(W$113>=$L118,W$113<=$M118),INDEX('Master Data'!$Y$76:$AJ$117,MATCH($H118,'Master Data'!$X$76:$X$117,0),MATCH(W$113,'Master Data'!$Y$75:$AJ$75,0)),0)*IF(W$113=2024,1+$M$109,1+$N$109)*$N118,0) -> 0 | X118: =IFERROR(IF(AND(X$113>=$L118,X$113<=$M118),INDEX('Master Data'!$Y$76:$AJ$117,MATCH($H118,'Master Data'!$X$76:$X$117,0),MATCH(X$113,'Master Data'!$Y$75:$AJ$75,0)),0)*IF(X$113=2024,1+$M$109,1+$N$109)*$N118,0) -> 0 | Y118: 0 | AD118: 0 | AE118: 0 | AF118: 0 | AG118: 0 | AH118: 0 | AI118: 0 | AJ118: 0 | AK118: 0 | AL118: 0 | AM118: 0 | AN118: 0 | AP118: 0 | AQ118: 0 | AR118: 0 | AT118: 0
O119: =IFERROR(IF(AND(O$113>=$L119,O$113<=$M119),INDEX('Master Data'!$Y$76:$AJ$117,MATCH($H119,'Master Data'!$X$76:$X$117,0),MATCH(O$113,'Master Data'!$Y$75:$AJ$75,0)),0)*IF(O$113=2024,1+$M$109,1+$N$109)*$N119,0) -> 0 | P119: =IFERROR(IF(AND(P$113>=$L119,P$113<=$M119),INDEX('Master Data'!$Y$76:$AJ$117,MATCH($H119,'Master Data'!$X$76:$X$117,0),MATCH(P$113,'Master Data'!$Y$75:$AJ$75,0)),0)*IF(P$113=2024,1+$M$109,1+$N$109)*$N119,0) -> 0 | Q119: =IFERROR(IF(AND(Q$113>=$L119,Q$113<=$M119),INDEX('Master Data'!$Y$76:$AJ$117,MATCH($H119,'Master Data'!$X$76:$X$117,0),MATCH(Q$113,'Master Data'!$Y$75:$AJ$75,0)),0)*IF(Q$113=2024,1+$M$109,1+$N$109)*$N119,0) -> 0 | R119: =IFERROR(IF(AND(R$113>=$L119,R$113<=$M119),INDEX('Master Data'!$Y$76:$AJ$117,MATCH($H119,'Master Data'!$X$76:$X$117,0),MATCH(R$113,'Master Data'!$Y$75:$AJ$75,0)),0)*IF(R$113=2024,1+$M$109,1+$N$109)*$N119,0) -> 0 | S119: =IFERROR(IF(AND(S$113>=$L119,S$113<=$M119),INDEX('Master Data'!$Y$76:$AJ$117,MATCH($H119,'Master Data'!$X$76:$X$117,0),MATCH(S$113,'Master Data'!$Y$75:$AJ$75,0)),0)*IF(S$113=2024,1+$M$109,1+$N$109)*$N119,0) -> 0 | T119: =IFERROR(IF(AND(T$113>=$L119,T$113<=$M119),INDEX('Master Data'!$Y$76:$AJ$117,MATCH($H119,'Master Data'!$X$76:$X$117,0),MATCH(T$113,'Master Data'!$Y$75:$AJ$75,0)),0)*IF(T$113=2024,1+$M$109,1+$N$109)*$N119,0) -> 0 | U119: =IFERROR(IF(AND(U$113>=$L119,U$113<=$M119),INDEX('Master Data'!$Y$76:$AJ$117,MATCH($H119,'Master Data'!$X$76:$X$117,0),MATCH(U$113,'Master Data'!$Y$75:$AJ$75,0)),0)*IF(U$113=2024,1+$M$109,1+$N$109)*$N119,0) -> 0 | V119: =IFERROR(IF(AND(V$113>=$L119,V$113<=$M119),INDEX('Master Data'!$Y$76:$AJ$117,MATCH($H119,'Master Data'!$X$76:$X$117,0),MATCH(V$113,'Master Data'!$Y$75:$AJ$75,0)),0)*IF(V$113=2024,1+$M$109,1+$N$109)*$N119,0) -> 0 | W119: =IFERROR(IF(AND(W$113>=$L119,W$113<=$M119),INDEX('Master Data'!$Y$76:$AJ$117,MATCH($H119,'Master Data'!$X$76:$X$117,0),MATCH(W$113,'Master Data'!$Y$75:$AJ$75,0)),0)*IF(W$113=2024,1+$M$109,1+$N$109)*$N119,0) -> 0 | X119: =IFERROR(IF(AND(X$113>=$L119,X$113<=$M119),INDEX('Master Data'!$Y$76:$AJ$117,MATCH($H119,'Master Data'!$X$76:$X$117,0),MATCH(X$113,'Master Data'!$Y$75:$AJ$75,0)),0)*IF(X$113=2024,1+$M$109,1+$N$109)*$N119,0) -> 0 | Y119: 0 | AD119: 0 | AE119: 0 | AF119: 0 | AG119: 0 | AH119: 0 | AI119: 0 | AJ119: 0 | AK119: 0 | AL119: 0 | AM119: 0 | AN119: 0 | AP119: 0 | AQ119: 0 | AR119: 0 | AT119: 0
O120: =IFERROR(IF(AND(O$113>=$L120,O$113<=$M120),INDEX('Master Data'!$Y$76:$AJ$117,MATCH($H120,'Master Data'!$X$76:$X$117,0),MATCH(O$113,'Master Data'!$Y$75:$AJ$75,0)),0)*IF(O$113=2024,1+$M$109,1+$N$109)*$N120,0) -> 0 | P120: =IFERROR(IF(AND(P$113>=$L120,P$113<=$M120),INDEX('Master Data'!$Y$76:$AJ$117,MATCH($H120,'Master Data'!$X$76:$X$117,0),MATCH(P$113,'Master Data'!$Y$75:$AJ$75,0)),0)*IF(P$113=2024,1+$M$109,1+$N$109)*$N120,0) -> 0 | Q120: =IFERROR(IF(AND(Q$113>=$L120,Q$113<=$M120),INDEX('Master Data'!$Y$76:$AJ$117,MATCH($H120,'Master Data'!$X$76:$X$117,0),MATCH(Q$113,'Master Data'!$Y$75:$AJ$75,0)),0)*IF(Q$113=2024,1+$M$109,1+$N$109)*$N120,0) -> 0 | R120: =IFERROR(IF(AND(R$113>=$L120,R$113<=$M120),INDEX('Master Data'!$Y$76:$AJ$117,MATCH($H120,'Master Data'!$X$76:$X$117,0),MATCH(R$113,'Master Data'!$Y$75:$AJ$75,0)),0)*IF(R$113=2024,1+$M$109,1+$N$109)*$N120,0) -> 0 | S120: =IFERROR(IF(AND(S$113>=$L120,S$113<=$M120),INDEX('Master Data'!$Y$76:$AJ$117,MATCH($H120,'Master Data'!$X$76:$X$117,0),MATCH(S$113,'Master Data'!$Y$75:$AJ$75,0)),0)*IF(S$113=2024,1+$M$109,1+$N$109)*$N120,0) -> 0 | T120: =IFERROR(IF(AND(T$113>=$L120,T$113<=$M120),INDEX('Master Data'!$Y$76:$AJ$117,MATCH($H120,'Master Data'!$X$76:$X$117,0),MATCH(T$113,'Master Data'!$Y$75:$AJ$75,0)),0)*IF(T$113=2024,1+$M$109,1+$N$109)*$N120,0) -> 0 | U120: =IFERROR(IF(AND(U$113>=$L120,U$113<=$M120),INDEX('Master Data'!$Y$76:$AJ$117,MATCH($H120,'Master Data'!$X$76:$X$117,0),MATCH(U$113,'Master Data'!$Y$75:$AJ$75,0)),0)*IF(U$113=2024,1+$M$109,1+$N$109)*$N120,0) -> 0 | V120: =IFERROR(IF(AND(V$113>=$L120,V$113<=$M120),INDEX('Master Data'!$Y$76:$AJ$117,MATCH($H120,'Master Data'!$X$76:$X$117,0),MATCH(V$113,'Master Data'!$Y$75:$AJ$75,0)),0)*IF(V$113=2024,1+$M$109,1+$N$109)*$N120,0) -> 0 | W120: =IFERROR(IF(AND(W$113>=$L120,W$113<=$M120),INDEX('Master Data'!$Y$76:$AJ$117,MATCH($H120,'Master Data'!$X$76:$X$117,0),MATCH(W$113,'Master Data'!$Y$75:$AJ$75,0)),0)*IF(W$113=2024,1+$M$109,1+$N$109)*$N120,0) -> 0 | X120: =IFERROR(IF(AND(X$113>=$L120,X$113<=$M120),INDEX('Master Data'!$Y$76:$AJ$117,MATCH($H120,'Master Data'!$X$76:$X$117,0),MATCH(X$113,'Master Data'!$Y$75:$AJ$75,0)),0)*IF(X$113=2024,1+$M$109,1+$N$109)*$N120,0) -> 0 | Y120: 0 | AD120: 0 | AE120: 0 | AF120: 0 | AG120: 0 | AH120: 0 | AI120: 0 | AJ120: 0 | AK120: 0 | AL120: 0 | AM120: 0 | AN120: 0 | AP120: =IF($K120=AP$112,$Y120-$AN120,0) -> 0 | AQ120: 0 | AR120: 0 | AT120: 0
O121: =IFERROR(IF(AND(O$113>=$L121,O$113<=$M121),INDEX('Master Data'!$Y$76:$AJ$117,MATCH($H121,'Master Data'!$X$76:$X$117,0),MATCH(O$113,'Master Data'!$Y$75:$AJ$75,0)),0)*IF(O$113=2024,1+$M$109,1+$N$109)*$N121,0) -> 0 | P121: =IFERROR(IF(AND(P$113>=$L121,P$113<=$M121),INDEX('Master Data'!$Y$76:$AJ$117,MATCH($H121,'Master Data'!$X$76:$X$117,0),MATCH(P$113,'Master Data'!$Y$75:$AJ$75,0)),0)*IF(P$113=2024,1+$M$109,1+$N$109)*$N121,0) -> 0 | Q121: =IFERROR(IF(AND(Q$113>=$L121,Q$113<=$M121),INDEX('Master Data'!$Y$76:$AJ$117,MATCH($H121,'Master Data'!$X$76:$X$117,0),MATCH(Q$113,'Master Data'!$Y$75:$AJ$75,0)),0)*IF(Q$113=2024,1+$M$109,1+$N$109)*$N121,0) -> 0 | R121: =IFERROR(IF(AND(R$113>=$L121,R$113<=$M121),INDEX('Master Data'!$Y$76:$AJ$117,MATCH($H121,'Master Data'!$X$76:$X$117,0),MATCH(R$113,'Master Data'!$Y$75:$AJ$75,0)),0)*IF(R$113=2024,1+$M$109,1+$N$109)*$N121,0) -> 0 | S121: =IFERROR(IF(AND(S$113>=$L121,S$113<=$M121),INDEX('Master Data'!$Y$76:$AJ$117,MATCH($H121,'Master Data'!$X$76:$X$117,0),MATCH(S$113,'Master Data'!$Y$75:$AJ$75,0)),0)*IF(S$113=2024,1+$M$109,1+$N$109)*$N121,0) -> 0 | T121: =IFERROR(IF(AND(T$113>=$L121,T$113<=$M121),INDEX('Master Data'!$Y$76:$AJ$117,MATCH($H121,'Master Data'!$X$76:$X$117,0),MATCH(T$113,'Master Data'!$Y$75:$AJ$75,0)),0)*IF(T$113=2024,1+$M$109,1+$N$109)*$N121,0) -> 0 | U121: =IFERROR(IF(AND(U$113>=$L121,U$113<=$M121),INDEX('Master Data'!$Y$76:$AJ$117,MATCH($H121,'Master Data'!$X$76:$X$117,0),MATCH(U$113,'Master Data'!$Y$75:$AJ$75,0)),0)*IF(U$113=2024,1+$M$109,1+$N$109)*$N121,0) -> 0 | V121: =IFERROR(IF(AND(V$113>=$L121,V$113<=$M121),INDEX('Master Data'!$Y$76:$AJ$117,MATCH($H121,'Master Data'!$X$76:$X$117,0),MATCH(V$113,'Master Data'!$Y$75:$AJ$75,0)),0)*IF(V$113=2024,1+$M$109,1+$N$109)*$N121,0) -> 0 | W121: =IFERROR(IF(AND(W$113>=$L121,W$113<=$M121),INDEX('Master Data'!$Y$76:$AJ$117,MATCH($H121,'Master Data'!$X$76:$X$117,0),MATCH(W$113,'Master Data'!$Y$75:$AJ$75,0)),0)*IF(W$113=2024,1+$M$109,1+$N$109)*$N121,0) -> 0 | X121: =IFERROR(IF(AND(X$113>=$L121,X$113<=$M121),INDEX('Master Data'!$Y$76:$AJ$117,MATCH($H121,'Master Data'!$X$76:$X$117,0),MATCH(X$113,'Master Data'!$Y$75:$AJ$75,0)),0)*IF(X$113=2024,1+$M$109,1+$N$109)*$N121,0) -> 0 | Y121: 0 | AD121: 0 | AE121: 0 | AF121: 0 | AG121: 0 | AH121: 0 | AI121: 0 | AJ121: 0 | AK121: 0 | AL121: 0 | AM121: 0 | AN121: 0 | AP121: 0 | AQ121: 0 | AR121: 0 | AT121: 0
O122: =IFERROR(IF(AND(O$113>=$L122,O$113<=$M122),INDEX('Master Data'!$Y$76:$AJ$117,MATCH($H122,'Master Data'!$X$76:$X$117,0),MATCH(O$113,'Master Data'!$Y$75:$AJ$75,0)),0)*IF(O$113=2024,1+$M$109,1+$N$109)*$N122,0) -> 0 | P122: =IFERROR(IF(AND(P$113>=$L122,P$113<=$M122),INDEX('Master Data'!$Y$76:$AJ$117,MATCH($H122,'Master Data'!$X$76:$X$117,0),MATCH(P$113,'Master Data'!$Y$75:$AJ$75,0)),0)*IF(P$113=2024,1+$M$109,1+$N$109)*$N122,0) -> 0 | Q122: =IFERROR(IF(AND(Q$113>=$L122,Q$113<=$M122),INDEX('Master Data'!$Y$76:$AJ$117,MATCH($H122,'Master Data'!$X$76:$X$117,0),MATCH(Q$113,'Master Data'!$Y$75:$AJ$75,0)),0)*IF(Q$113=2024,1+$M$109,1+$N$109)*$N122,0) -> 0 | R122: =IFERROR(IF(AND(R$113>=$L122,R$113<=$M122),INDEX('Master Data'!$Y$76:$AJ$117,MATCH($H122,'Master Data'!$X$76:$X$117,0),MATCH(R$113,'Master Data'!$Y$75:$AJ$75,0)),0)*IF(R$113=2024,1+$M$109,1+$N$109)*$N122,0) -> 0 | S122: =IFERROR(IF(AND(S$113>=$L122,S$113<=$M122),INDEX('Master Data'!$Y$76:$AJ$117,MATCH($H122,'Master Data'!$X$76:$X$117,0),MATCH(S$113,'Master Data'!$Y$75:$AJ$75,0)),0)*IF(S$113=2024,1+$M$109,1+$N$109)*$N122,0) -> 0 | T122: =IFERROR(IF(AND(T$113>=$L122,T$113<=$M122),INDEX('Master Data'!$Y$76:$AJ$117,MATCH($H122,'Master Data'!$X$76:$X$117,0),MATCH(T$113,'Master Data'!$Y$75:$AJ$75,0)),0)*IF(T$113=2024,1+$M$109,1+$N$109)*$N122,0) -> 0 | U122: =IFERROR(IF(AND(U$113>=$L122,U$113<=$M122),INDEX('Master Data'!$Y$76:$AJ$117,MATCH($H122,'Master Data'!$X$76:$X$117,0),MATCH(U$113,'Master Data'!$Y$75:$AJ$75,0)),0)*IF(U$113=2024,1+$M$109,1+$N$109)*$N122,0) -> 0 | V122: =IFERROR(IF(AND(V$113>=$L122,V$113<=$M122),INDEX('Master Data'!$Y$76:$AJ$117,MATCH($H122,'Master Data'!$X$76:$X$117,0),MATCH(V$113,'Master Data'!$Y$75:$AJ$75,0)),0)*IF(V$113=2024,1+$M$109,1+$N$109)*$N122,0) -> 0 | W122: =IFERROR(IF(AND(W$113>=$L122,W$113<=$M122),INDEX('Master Data'!$Y$76:$AJ$117,MATCH($H122,'Master Data'!$X$76:$X$117,0),MATCH(W$113,'Master Data'!$Y$75:$AJ$75,0)),0)*IF(W$113=2024,1+$M$109,1+$N$109)*$N122,0) -> 0 | X122: =IFERROR(IF(AND(X$113>=$L122,X$113<=$M122),INDEX('Master Data'!$Y$76:$AJ$117,MATCH($H122,'Master Data'!$X$76:$X$117,0),MATCH(X$113,'Master Data'!$Y$75:$AJ$75,0)),0)*IF(X$113=2024,1+$M$109,1+$N$109)*$N122,0) -> 0 | Y122: 0 | AD122: 0 | AE122: 0 | AF122: 0 | AG122: 0 | AH122: 0 | AI122: 0 | AJ122: 0 | AK122: 0 | AL122: 0 | AM122: 0 | AN122: 0 | AP122: 0 | AQ122: 0 | AR122: 0 | AT122: 0
O123: =IFERROR(IF(AND(O$113>=$L123,O$113<=$M123),INDEX('Master Data'!$Y$76:$AJ$117,MATCH($H123,'Master Data'!$X$76:$X$117,0),MATCH(O$113,'Master Data'!$Y$75:$AJ$75,0)),0)*IF(O$113=2024,1+$M$109,1+$N$109)*$N123,0) -> 0 | P123: =IFERROR(IF(AND(P$113>=$L123,P$113<=$M123),INDEX('Master Data'!$Y$76:$AJ$117,MATCH($H123,'Master Data'!$X$76:$X$117,0),MATCH(P$113,'Master Data'!$Y$75:$AJ$75,0)),0)*IF(P$113=2024,1+$M$109,1+$N$109)*$N123,0) -> 0 | Q123: =IFERROR(IF(AND(Q$113>=$L123,Q$113<=$M123),INDEX('Master Data'!$Y$76:$AJ$117,MATCH($H123,'Master Data'!$X$76:$X$117,0),MATCH(Q$113,'Master Data'!$Y$75:$AJ$75,0)),0)*IF(Q$113=2024,1+$M$109,1+$N$109)*$N123,0) -> 0 | R123: =IFERROR(IF(AND(R$113>=$L123,R$113<=$M123),INDEX('Master Data'!$Y$76:$AJ$117,MATCH($H123,'Master Data'!$X$76:$X$117,0),MATCH(R$113,'Master Data'!$Y$75:$AJ$75,0)),0)*IF(R$113=2024,1+$M$109,1+$N$109)*$N123,0) -> 0 | S123: =IFERROR(IF(AND(S$113>=$L123,S$113<=$M123),INDEX('Master Data'!$Y$76:$AJ$117,MATCH($H123,'Master Data'!$X$76:$X$117,0),MATCH(S$113,'Master Data'!$Y$75:$AJ$75,0)),0)*IF(S$113=2024,1+$M$109,1+$N$109)*$N123,0) -> 0 | T123: =IFERROR(IF(AND(T$113>=$L123,T$113<=$M123),INDEX('Master Data'!$Y$76:$AJ$117,MATCH($H123,'Master Data'!$X$76:$X$117,0),MATCH(T$113,'Master Data'!$Y$75:$AJ$75,0)),0)*IF(T$113=2024,1+$M$109,1+$N$109)*$N123,0) -> 0 | U123: =IFERROR(IF(AND(U$113>=$L123,U$113<=$M123),INDEX('Master Data'!$Y$76:$AJ$117,MATCH($H123,'Master Data'!$X$76:$X$117,0),MATCH(U$113,'Master Data'!$Y$75:$AJ$75,0)),0)*IF(U$113=2024,1+$M$109,1+$N$109)*$N123,0) -> 0 | V123: =IFERROR(IF(AND(V$113>=$L123,V$113<=$M123),INDEX('Master Data'!$Y$76:$AJ$117,MATCH($H123,'Master Data'!$X$76:$X$117,0),MATCH(V$113,'Master Data'!$Y$75:$AJ$75,0)),0)*IF(V$113=2024,1+$M$109,1+$N$109)*$N123,0) -> 0 | W123: =IFERROR(IF(AND(W$113>=$L123,W$113<=$M123),INDEX('Master Data'!$Y$76:$AJ$117,MATCH($H123,'Master Data'!$X$76:$X$117,0),MATCH(W$113,'Master Data'!$Y$75:$AJ$75,0)),0)*IF(W$113=2024,1+$M$109,1+$N$109)*$N123,0) -> 0 | X123: =IFERROR(IF(AND(X$113>=$L123,X$113<=$M123),INDEX('Master Data'!$Y$76:$AJ$117,MATCH($H123,'Master Data'!$X$76:$X$117,0),MATCH(X$113,'Master Data'!$Y$75:$AJ$75,0)),0)*IF(X$113=2024,1+$M$109,1+$N$109)*$N123,0) -> 0 | Y123: =SUM(O123:X123) -> 0 | AD123: 0 | AE123: 0 | AF123: 0 | AG123: 0 | AH123: 0 | AI123: 0 | AJ123: 0 | AK123: 0 | AL123: 0 | AM123: 0 | AN123: 0 | AP123: 0 | AQ123: 0 | AR123: 0 | AT123: 0
O124: =IFERROR(IF(AND(O$113>=$L124,O$113<=$M124),INDEX('Master Data'!$Y$76:$AJ$117,MATCH($H124,'Master Data'!$X$76:$X$117,0),MATCH(O$113,'Master Data'!$Y$75:$AJ$75,0)),0)*IF(O$113=2024,1+$M$109,1+$N$109)*$N124,0) -> 0 | P124: =IFERROR(IF(AND(P$113>=$L124,P$113<=$M124),INDEX('Master Data'!$Y$76:$AJ$117,MATCH($H124,'Master Data'!$X$76:$X$117,0),MATCH(P$113,'Master Data'!$Y$75:$AJ$75,0)),0)*IF(P$113=2024,1+$M$109,1+$N$109)*$N124,0) -> 0 | Q124: =IFERROR(IF(AND(Q$113>=$L124,Q$113<=$M124),INDEX('Master Data'!$Y$76:$AJ$117,MATCH($H124,'Master Data'!$X$76:$X$117,0),MATCH(Q$113,'Master Data'!$Y$75:$AJ$75,0)),0)*IF(Q$113=2024,1+$M$109,1+$N$109)*$N124,0) -> 0 | R124: =IFERROR(IF(AND(R$113>=$L124,R$113<=$M124),INDEX('Master Data'!$Y$76:$AJ$117,MATCH($H124,'Master Data'!$X$76:$X$117,0),MATCH(R$113,'Master Data'!$Y$75:$AJ$75,0)),0)*IF(R$113=2024,1+$M$109,1+$N$109)*$N124,0) -> 0 | S124: =IFERROR(IF(AND(S$113>=$L124,S$113<=$M124),INDEX('Master Data'!$Y$76:$AJ$117,MATCH($H124,'Master Data'!$X$76:$X$117,0),MATCH(S$113,'Master Data'!$Y$75:$AJ$75,0)),0)*IF(S$113=2024,1+$M$109,1+$N$109)*$N124,0) -> 0 | T124: =IFERROR(IF(AND(T$113>=$L124,T$113<=$M124),INDEX('Master Data'!$Y$76:$AJ$117,MATCH($H124,'Master Data'!$X$76:$X$117,0),MATCH(T$113,'Master Data'!$Y$75:$AJ$75,0)),0)*IF(T$113=2024,1+$M$109,1+$N$109)*$N124,0) -> 0 | U124: =IFERROR(IF(AND(U$113>=$L124,U$113<=$M124),INDEX('Master Data'!$Y$76:$AJ$117,MATCH($H124,'Master Data'!$X$76:$X$117,0),MATCH(U$113,'Master Data'!$Y$75:$AJ$75,0)),0)*IF(U$113=2024,1+$M$109,1+$N$109)*$N124,0) -> 0 | V124: =IFERROR(IF(AND(V$113>=$L124,V$113<=$M124),INDEX('Master Data'!$Y$76:$AJ$117,MATCH($H124,'Master Data'!$X$76:$X$117,0),MATCH(V$113,'Master Data'!$Y$75:$AJ$75,0)),0)*IF(V$113=2024,1+$M$109,1+$N$109)*$N124,0) -> 0 | W124: =IFERROR(IF(AND(W$113>=$L124,W$113<=$M124),INDEX('Master Data'!$Y$76:$AJ$117,MATCH($H124,'Master Data'!$X$76:$X$117,0),MATCH(W$113,'Master Data'!$Y$75:$AJ$75,0)),0)*IF(W$113=2024,1+$M$109,1+$N$109)*$N124,0) -> 0 | X124: =IFERROR(IF(AND(X$113>=$L124,X$113<=$M124),INDEX('Master Data'!$Y$76:$AJ$117,MATCH($H124,'Master Data'!$X$76:$X$117,0),MATCH(X$113,'Master Data'!$Y$75:$AJ$75,0)),0)*IF(X$113=2024,1+$M$109,1+$N$109)*$N124,0) -> 0 | Y124: 0 | AD124: 0 | AE124: 0 | AF124: 0 | AG124: 0 | AH124: 0 | AI124: 0 | AJ124: 0 | AK124: 0 | AL124: 0 | AM124: 0 | AN124: 0 | AP124: 0 | AQ124: 0 | AR124: 0 | AT124: 0
O125: =IFERROR(IF(AND(O$113>=$L125,O$113<=$M125),INDEX('Master Data'!$Y$76:$AJ$117,MATCH($H125,'Master Data'!$X$76:$X$117,0),MATCH(O$113,'Master Data'!$Y$75:$AJ$75,0)),0)*IF(O$113=2024,1+$M$109,1+$N$109)*$N125,0) -> 0 | P125: =IFERROR(IF(AND(P$113>=$L125,P$113<=$M125),INDEX('Master Data'!$Y$76:$AJ$117,MATCH($H125,'Master Data'!$X$76:$X$117,0),MATCH(P$113,'Master Data'!$Y$75:$AJ$75,0)),0)*IF(P$113=2024,1+$M$109,1+$N$109)*$N125,0) -> 0 | Q125: =IFERROR(IF(AND(Q$113>=$L125,Q$113<=$M125),INDEX('Master Data'!$Y$76:$AJ$117,MATCH($H125,'Master Data'!$X$76:$X$117,0),MATCH(Q$113,'Master Data'!$Y$75:$AJ$75,0)),0)*IF(Q$113=2024,1+$M$109,1+$N$109)*$N125,0) -> 0 | R125: =IFERROR(IF(AND(R$113>=$L125,R$113<=$M125),INDEX('Master Data'!$Y$76:$AJ$117,MATCH($H125,'Master Data'!$X$76:$X$117,0),MATCH(R$113,'Master Data'!$Y$75:$AJ$75,0)),0)*IF(R$113=2024,1+$M$109,1+$N$109)*$N125,0) -> 0 | S125: =IFERROR(IF(AND(S$113>=$L125,S$113<=$M125),INDEX('Master Data'!$Y$76:$AJ$117,MATCH($H125,'Master Data'!$X$76:$X$117,0),MATCH(S$113,'Master Data'!$Y$75:$AJ$75,0)),0)*IF(S$113=2024,1+$M$109,1+$N$109)*$N125,0) -> 0 | T125: =IFERROR(IF(AND(T$113>=$L125,T$113<=$M125),INDEX('Master Data'!$Y$76:$AJ$117,MATCH($H125,'Master Data'!$X$76:$X$117,0),MATCH(T$113,'Master Data'!$Y$75:$AJ$75,0)),0)*IF(T$113=2024,1+$M$109,1+$N$109)*$N125,0) -> 0 | U125: =IFERROR(IF(AND(U$113>=$L125,U$113<=$M125),INDEX('Master Data'!$Y$76:$AJ$117,MATCH($H125,'Master Data'!$X$76:$X$117,0),MATCH(U$113,'Master Data'!$Y$75:$AJ$75,0)),0)*IF(U$113=2024,1+$M$109,1+$N$109)*$N125,0) -> 0 | V125: =IFERROR(IF(AND(V$113>=$L125,V$113<=$M125),INDEX('Master Data'!$Y$76:$AJ$117,MATCH($H125,'Master Data'!$X$76:$X$117,0),MATCH(V$113,'Master Data'!$Y$75:$AJ$75,0)),0)*IF(V$113=2024,1+$M$109,1+$N$109)*$N125,0) -> 0 | W125: =IFERROR(IF(AND(W$113>=$L125,W$113<=$M125),INDEX('Master Data'!$Y$76:$AJ$117,MATCH($H125,'Master Data'!$X$76:$X$117,0),MATCH(W$113,'Master Data'!$Y$75:$AJ$75,0)),0)*IF(W$113=2024,1+$M$109,1+$N$109)*$N125,0) -> 0 | X125: =IFERROR(IF(AND(X$113>=$L125,X$113<=$M125),INDEX('Master Data'!$Y$76:$AJ$117,MATCH($H125,'Master Data'!$X$76:$X$117,0),MATCH(X$113,'Master Data'!$Y$75:$AJ$75,0)),0)*IF(X$113=2024,1+$M$109,1+$N$109)*$N125,0) -> 0 | Y125: =SUM(O125:X125) -> 0 | AD125: 0 | AE125: 0 | AF125: 0 | AG125: 0 | AH125: 0 | AI125: 0 | AJ125: 0 | AK125: 0 | AL125: 0 | AM125: 0 | AN125: =SUM(AD125:AM125) -> 0 | AP125: 0 | AQ125: 0 | AR125: =SUM(AP125:AQ125) -> 0 | AT125: 0
O126: =IFERROR(IF(AND(O$113>=$L126,O$113<=$M126),INDEX('Master Data'!$Y$76:$AJ$117,MATCH($H126,'Master Data'!$X$76:$X$117,0),MATCH(O$113,'Master Data'!$Y$75:$AJ$75,0)),0)*IF(O$113=2024,1+$M$109,1+$N$109)*$N126,0) -> 0 | P126: =IFERROR(IF(AND(P$113>=$L126,P$113<=$M126),INDEX('Master Data'!$Y$76:$AJ$117,MATCH($H126,'Master Data'!$X$76:$X$117,0),MATCH(P$113,'Master Data'!$Y$75:$AJ$75,0)),0)*IF(P$113=2024,1+$M$109,1+$N$109)*$N126,0) -> 0 | Q126: =IFERROR(IF(AND(Q$113>=$L126,Q$113<=$M126),INDEX('Master Data'!$Y$76:$AJ$117,MATCH($H126,'Master Data'!$X$76:$X$117,0),MATCH(Q$113,'Master Data'!$Y$75:$AJ$75,0)),0)*IF(Q$113=2024,1+$M$109,1+$N$109)*$N126,0) -> 0 | R126: =IFERROR(IF(AND(R$113>=$L126,R$113<=$M126),INDEX('Master Data'!$Y$76:$AJ$117,MATCH($H126,'Master Data'!$X$76:$X$117,0),MATCH(R$113,'Master Data'!$Y$75:$AJ$75,0)),0)*IF(R$113=2024,1+$M$109,1+$N$109)*$N126,0) -> 0 | S126: =IFERROR(IF(AND(S$113>=$L126,S$113<=$M126),INDEX('Master Data'!$Y$76:$AJ$117,MATCH($H126,'Master Data'!$X$76:$X$117,0),MATCH(S$113,'Master Data'!$Y$75:$AJ$75,0)),0)*IF(S$113=2024,1+$M$109,1+$N$109)*$N126,0) -> 0 | T126: =IFERROR(IF(AND(T$113>=$L126,T$113<=$M126),INDEX('Master Data'!$Y$76:$AJ$117,MATCH($H126,'Master Data'!$X$76:$X$117,0),MATCH(T$113,'Master Data'!$Y$75:$AJ$75,0)),0)*IF(T$113=2024,1+$M$109,1+$N$109)*$N126,0) -> 0 | U126: =IFERROR(IF(AND(U$113>=$L126,U$113<=$M126),INDEX('Master Data'!$Y$76:$AJ$117,MATCH($H126,'Master Data'!$X$76:$X$117,0),MATCH(U$113,'Master Data'!$Y$75:$AJ$75,0)),0)*IF(U$113=2024,1+$M$109,1+$N$109)*$N126,0) -> 0 | V126: =IFERROR(IF(AND(V$113>=$L126,V$113<=$M126),INDEX('Master Data'!$Y$76:$AJ$117,MATCH($H126,'Master Data'!$X$76:$X$117,0),MATCH(V$113,'Master Data'!$Y$75:$AJ$75,0)),0)*IF(V$113=2024,1+$M$109,1+$N$109)*$N126,0) -> 0 | W126: =IFERROR(IF(AND(W$113>=$L126,W$113<=$M126),INDEX('Master Data'!$Y$76:$AJ$117,MATCH($H126,'Master Data'!$X$76:$X$117,0),MATCH(W$113,'Master Data'!$Y$75:$AJ$75,0)),0)*IF(W$113=2024,1+$M$109,1+$N$109)*$N126,0) -> 0 | X126: =IFERROR(IF(AND(X$113>=$L126,X$113<=$M126),INDEX('Master Data'!$Y$76:$AJ$117,MATCH($H126,'Master Data'!$X$76:$X$117,0),MATCH(X$113,'Master Data'!$Y$75:$AJ$75,0)),0)*IF(X$113=2024,1+$M$109,1+$N$109)*$N126,0) -> 0 | Y126: 0 | AD126: 0 | AE126: 0 | AF126: 0 | AG126: 0 | AH126: 0 | AI126: 0 | AJ126: 0 | AK126: 0 | AL126: 0 | AM126: 0 | AN126: 0 | AP126: 0 | AQ126: 0 | AR126: 0 | AT126: 0
O127: =IFERROR(IF(AND(O$113>=$L127,O$113<=$M127),INDEX('Master Data'!$Y$76:$AJ$117,MATCH($H127,'Master Data'!$X$76:$X$117,0),MATCH(O$113,'Master Data'!$Y$75:$AJ$75,0)),0)*IF(O$113=2024,1+$M$109,1+$N$109)*$N127,0) -> 0 | P127: =IFERROR(IF(AND(P$113>=$L127,P$113<=$M127),INDEX('Master Data'!$Y$76:$AJ$117,MATCH($H127,'Master Data'!$X$76:$X$117,0),MATCH(P$113,'Master Data'!$Y$75:$AJ$75,0)),0)*IF(P$113=2024,1+$M$109,1+$N$109)*$N127,0) -> 0 | Q127: =IFERROR(IF(AND(Q$113>=$L127,Q$113<=$M127),INDEX('Master Data'!$Y$76:$AJ$117,MATCH($H127,'Master Data'!$X$76:$X$117,0),MATCH(Q$113,'Master Data'!$Y$75:$AJ$75,0)),0)*IF(Q$113=2024,1+$M$109,1+$N$109)*$N127,0) -> 0 | R127: =IFERROR(IF(AND(R$113>=$L127,R$113<=$M127),INDEX('Master Data'!$Y$76:$AJ$117,MATCH($H127,'Master Data'!$X$76:$X$117,0),MATCH(R$113,'Master Data'!$Y$75:$AJ$75,0)),0)*IF(R$113=2024,1+$M$109,1+$N$109)*$N127,0) -> 0 | S127: =IFERROR(IF(AND(S$113>=$L127,S$113<=$M127),INDEX('Master Data'!$Y$76:$AJ$117,MATCH($H127,'Master Data'!$X$76:$X$117,0),MATCH(S$113,'Master Data'!$Y$75:$AJ$75,0)),0)*IF(S$113=2024,1+$M$109,1+$N$109)*$N127,0) -> 0 | T127: =IFERROR(IF(AND(T$113>=$L127,T$113<=$M127),INDEX('Master Data'!$Y$76:$AJ$117,MATCH($H127,'Master Data'!$X$76:$X$117,0),MATCH(T$113,'Master Data'!$Y$75:$AJ$75,0)),0)*IF(T$113=2024,1+$M$109,1+$N$109)*$N127,0) -> 0 | U127: =IFERROR(IF(AND(U$113>=$L127,U$113<=$M127),INDEX('Master Data'!$Y$76:$AJ$117,MATCH($H127,'Master Data'!$X$76:$X$117,0),MATCH(U$113,'Master Data'!$Y$75:$AJ$75,0)),0)*IF(U$113=2024,1+$M$109,1+$N$109)*$N127,0) -> 0 | V127: =IFERROR(IF(AND(V$113>=$L127,V$113<=$M127),INDEX('Master Data'!$Y$76:$AJ$117,MATCH($H127,'Master Data'!$X$76:$X$117,0),MATCH(V$113,'Master Data'!$Y$75:$AJ$75,0)),0)*IF(V$113=2024,1+$M$109,1+$N$109)*$N127,0) -> 0 | W127: =IFERROR(IF(AND(W$113>=$L127,W$113<=$M127),INDEX('Master Data'!$Y$76:$AJ$117,MATCH($H127,'Master Data'!$X$76:$X$117,0),MATCH(W$113,'Master Data'!$Y$75:$AJ$75,0)),0)*IF(W$113=2024,1+$M$109,1+$N$109)*$N127,0) -> 0 | X127: =IFERROR(IF(AND(X$113>=$L127,X$113<=$M127),INDEX('Master Data'!$Y$76:$AJ$117,MATCH($H127,'Master Data'!$X$76:$X$117,0),MATCH(X$113,'Master Data'!$Y$75:$AJ$75,0)),0)*IF(X$113=2024,1+$M$109,1+$N$109)*$N127,0) -> 0 | Y127: 0 | AD127: 0 | AE127: 0 | AF127: 0 | AG127: 0 | AH127: 0 | AI127: 0 | AJ127: 0 | AK127: 0 | AL127: 0 | AM127: 0 | AN127: 0 | AP127: 0 | AQ127: 0 | AR127: 0 | AT127: 0
O128: =IFERROR(IF(AND(O$113>=$L128,O$113<=$M128),INDEX('Master Data'!$Y$76:$AJ$117,MATCH($H128,'Master Data'!$X$76:$X$117,0),MATCH(O$113,'Master Data'!$Y$75:$AJ$75,0)),0)*IF(O$113=2024,1+$M$109,1+$N$109)*$N128,0) -> 0 | P128: =IFERROR(IF(AND(P$113>=$L128,P$113<=$M128),INDEX('Master Data'!$Y$76:$AJ$117,MATCH($H128,'Master Data'!$X$76:$X$117,0),MATCH(P$113,'Master Data'!$Y$75:$AJ$75,0)),0)*IF(P$113=2024,1+$M$109,1+$N$109)*$N128,0) -> 0 | Q128: =IFERROR(IF(AND(Q$113>=$L128,Q$113<=$M128),INDEX('Master Data'!$Y$76:$AJ$117,MATCH($H128,'Master Data'!$X$76:$X$117,0),MATCH(Q$113,'Master Data'!$Y$75:$AJ$75,0)),0)*IF(Q$113=2024,1+$M$109,1+$N$109)*$N128,0) -> 0 | R128: =IFERROR(IF(AND(R$113>=$L128,R$113<=$M128),INDEX('Master Data'!$Y$76:$AJ$117,MATCH($H128,'Master Data'!$X$76:$X$117,0),MATCH(R$113,'Master Data'!$Y$75:$AJ$75,0)),0)*IF(R$113=2024,1+$M$109,1+$N$109)*$N128,0) -> 0 | S128: =IFERROR(IF(AND(S$113>=$L128,S$113<=$M128),INDEX('Master Data'!$Y$76:$AJ$117,MATCH($H128,'Master Data'!$X$76:$X$117,0),MATCH(S$113,'Master Data'!$Y$75:$AJ$75,0)),0)*IF(S$113=2024,1+$M$109,1+$N$109)*$N128,0) -> 0 | T128: =IFERROR(IF(AND(T$113>=$L128,T$113<=$M128),INDEX('Master Data'!$Y$76:$AJ$117,MATCH($H128,'Master Data'!$X$76:$X$117,0),MATCH(T$113,'Master Data'!$Y$75:$AJ$75,0)),0)*IF(T$113=2024,1+$M$109,1+$N$109)*$N128,0) -> 0 | U128: =IFERROR(IF(AND(U$113>=$L128,U$113<=$M128),INDEX('Master Data'!$Y$76:$AJ$117,MATCH($H128,'Master Data'!$X$76:$X$117,0),MATCH(U$113,'Master Data'!$Y$75:$AJ$75,0)),0)*IF(U$113=2024,1+$M$109,1+$N$109)*$N128,0) -> 0 | V128: =IFERROR(IF(AND(V$113>=$L128,V$113<=$M128),INDEX('Master Data'!$Y$76:$AJ$117,MATCH($H128,'Master Data'!$X$76:$X$117,0),MATCH(V$113,'Master Data'!$Y$75:$AJ$75,0)),0)*IF(V$113=2024,1+$M$109,1+$N$109)*$N128,0) -> 0 | W128: =IFERROR(IF(AND(W$113>=$L128,W$113<=$M128),INDEX('Master Data'!$Y$76:$AJ$117,MATCH($H128,'Master Data'!$X$76:$X$117,0),MATCH(W$113,'Master Data'!$Y$75:$AJ$75,0)),0)*IF(W$113=2024,1+$M$109,1+$N$109)*$N128,0) -> 0 | X128: =IFERROR(IF(AND(X$113>=$L128,X$113<=$M128),INDEX('Master Data'!$Y$76:$AJ$117,MATCH($H128,'Master Data'!$X$76:$X$117,0),MATCH(X$113,'Master Data'!$Y$75:$AJ$75,0)),0)*IF(X$113=2024,1+$M$109,1+$N$109)*$N128,0) -> 0 | Y128: 0 | AD128: 0 | AE128: 0 | AF128: 0 | AG128: 0 | AH128: 0 | AI128: 0 | AJ128: 0 | AK128: 0 | AL128: 0 | AM128: 0 | AN128: 0 | AP128: 0 | AQ128: 0 | AR128: 0 | AT128: 0
O129: =IFERROR(IF(AND(O$113>=$L129,O$113<=$M129),INDEX('Master Data'!$Y$76:$AJ$117,MATCH($H129,'Master Data'!$X$76:$X$117,0),MATCH(O$113,'Master Data'!$Y$75:$AJ$75,0)),0)*IF(O$113=2024,1+$M$109,1+$N$109)*$N129,0) -> 0 | P129: =IFERROR(IF(AND(P$113>=$L129,P$113<=$M129),INDEX('Master Data'!$Y$76:$AJ$117,MATCH($H129,'Master Data'!$X$76:$X$117,0),MATCH(P$113,'Master Data'!$Y$75:$AJ$75,0)),0)*IF(P$113=2024,1+$M$109,1+$N$109)*$N129,0) -> 0 | Q129: =IFERROR(IF(AND(Q$113>=$L129,Q$113<=$M129),INDEX('Master Data'!$Y$76:$AJ$117,MATCH($H129,'Master Data'!$X$76:$X$117,0),MATCH(Q$113,'Master Data'!$Y$75:$AJ$75,0)),0)*IF(Q$113=2024,1+$M$109,1+$N$109)*$N129,0) -> 0 | R129: =IFERROR(IF(AND(R$113>=$L129,R$113<=$M129),INDEX('Master Data'!$Y$76:$AJ$117,MATCH($H129,'Master Data'!$X$76:$X$117,0),MATCH(R$113,'Master Data'!$Y$75:$AJ$75,0)),0)*IF(R$113=2024,1+$M$109,1+$N$109)*$N129,0) -> 0 | S129: =IFERROR(IF(AND(S$113>=$L129,S$113<=$M129),INDEX('Master Data'!$Y$76:$AJ$117,MATCH($H129,'Master Data'!$X$76:$X$117,0),MATCH(S$113,'Master Data'!$Y$75:$AJ$75,0)),0)*IF(S$113=2024,1+$M$109,1+$N$109)*$N129,0) -> 0 | T129: =IFERROR(IF(AND(T$113>=$L129,T$113<=$M129),INDEX('Master Data'!$Y$76:$AJ$117,MATCH($H129,'Master Data'!$X$76:$X$117,0),MATCH(T$113,'Master Data'!$Y$75:$AJ$75,0)),0)*IF(T$113=2024,1+$M$109,1+$N$109)*$N129,0) -> 0 | U129: =IFERROR(IF(AND(U$113>=$L129,U$113<=$M129),INDEX('Master Data'!$Y$76:$AJ$117,MATCH($H129,'Master Data'!$X$76:$X$117,0),MATCH(U$113,'Master Data'!$Y$75:$AJ$75,0)),0)*IF(U$113=2024,1+$M$109,1+$N$109)*$N129,0) -> 0 | V129: =IFERROR(IF(AND(V$113>=$L129,V$113<=$M129),INDEX('Master Data'!$Y$76:$AJ$117,MATCH($H129,'Master Data'!$X$76:$X$117,0),MATCH(V$113,'Master Data'!$Y$75:$AJ$75,0)),0)*IF(V$113=2024,1+$M$109,1+$N$109)*$N129,0) -> 0 | W129: =IFERROR(IF(AND(W$113>=$L129,W$113<=$M129),INDEX('Master Data'!$Y$76:$AJ$117,MATCH($H129,'Master Data'!$X$76:$X$117,0),MATCH(W$113,'Master Data'!$Y$75:$AJ$75,0)),0)*IF(W$113=2024,1+$M$109,1+$N$109)*$N129,0) -> 0 | X129: =IFERROR(IF(AND(X$113>=$L129,X$113<=$M129),INDEX('Master Data'!$Y$76:$AJ$117,MATCH($H129,'Master Data'!$X$76:$X$117,0),MATCH(X$113,'Master Data'!$Y$75:$AJ$75,0)),0)*IF(X$113=2024,1+$M$109,1+$N$109)*$N129,0) -> 0 | Y129: 0 | AD129: 0 | AE129: 0 | AF129: 0 | AG129: 0 | AH129: 0 | AI129: 0 | AJ129: 0 | AK129: 0 | AL129: 0 | AM129: 0 | AN129: 0 | AP129: 0 | AQ129: 0 | AR129: 0 | AT129: 0
O130: =IFERROR(IF(AND(O$113>=$L130,O$113<=$M130),INDEX('Master Data'!$Y$76:$AJ$117,MATCH($H130,'Master Data'!$X$76:$X$117,0),MATCH(O$113,'Master Data'!$Y$75:$AJ$75,0)),0)*IF(O$113=2024,1+$M$109,1+$N$109)*$N130,0) -> 0 | P130: =IFERROR(IF(AND(P$113>=$L130,P$113<=$M130),INDEX('Master Data'!$Y$76:$AJ$117,MATCH($H130,'Master Data'!$X$76:$X$117,0),MATCH(P$113,'Master Data'!$Y$75:$AJ$75,0)),0)*IF(P$113=2024,1+$M$109,1+$N$109)*$N130,0) -> 0 | Q130: =IFERROR(IF(AND(Q$113>=$L130,Q$113<=$M130),INDEX('Master Data'!$Y$76:$AJ$117,MATCH($H130,'Master Data'!$X$76:$X$117,0),MATCH(Q$113,'Master Data'!$Y$75:$AJ$75,0)),0)*IF(Q$113=2024,1+$M$109,1+$N$109)*$N130,0) -> 0 | R130: =IFERROR(IF(AND(R$113>=$L130,R$113<=$M130),INDEX('Master Data'!$Y$76:$AJ$117,MATCH($H130,'Master Data'!$X$76:$X$117,0),MATCH(R$113,'Master Data'!$Y$75:$AJ$75,0)),0)*IF(R$113=2024,1+$M$109,1+$N$109)*$N130,0) -> 0 | S130: =IFERROR(IF(AND(S$113>=$L130,S$113<=$M130),INDEX('Master Data'!$Y$76:$AJ$117,MATCH($H130,'Master Data'!$X$76:$X$117,0),MATCH(S$113,'Master Data'!$Y$75:$AJ$75,0)),0)*IF(S$113=2024,1+$M$109,1+$N$109)*$N130,0) -> 0 | T130: =IFERROR(IF(AND(T$113>=$L130,T$113<=$M130),INDEX('Master Data'!$Y$76:$AJ$117,MATCH($H130,'Master Data'!$X$76:$X$117,0),MATCH(T$113,'Master Data'!$Y$75:$AJ$75,0)),0)*IF(T$113=2024,1+$M$109,1+$N$109)*$N130,0) -> 0 | U130: =IFERROR(IF(AND(U$113>=$L130,U$113<=$M130),INDEX('Master Data'!$Y$76:$AJ$117,MATCH($H130,'Master Data'!$X$76:$X$117,0),MATCH(U$113,'Master Data'!$Y$75:$AJ$75,0)),0)*IF(U$113=2024,1+$M$109,1+$N$109)*$N130,0) -> 0 | V130: =IFERROR(IF(AND(V$113>=$L130,V$113<=$M130),INDEX('Master Data'!$Y$76:$AJ$117,MATCH($H130,'Master Data'!$X$76:$X$117,0),MATCH(V$113,'Master Data'!$Y$75:$AJ$75,0)),0)*IF(V$113=2024,1+$M$109,1+$N$109)*$N130,0) -> 0 | W130: =IFERROR(IF(AND(W$113>=$L130,W$113<=$M130),INDEX('Master Data'!$Y$76:$AJ$117,MATCH($H130,'Master Data'!$X$76:$X$117,0),MATCH(W$113,'Master Data'!$Y$75:$AJ$75,0)),0)*IF(W$113=2024,1+$M$109,1+$N$109)*$N130,0) -> 0 | X130: =IFERROR(IF(AND(X$113>=$L130,X$113<=$M130),INDEX('Master Data'!$Y$76:$AJ$117,MATCH($H130,'Master Data'!$X$76:$X$117,0),MATCH(X$113,'Master Data'!$Y$75:$AJ$75,0)),0)*IF(X$113=2024,1+$M$109,1+$N$109)*$N130,0) -> 0 | Y130: 0 | AD130: 0 | AE130: 0 | AF130: 0 | AG130: 0 | AH130: 0 | AI130: 0 | AJ130: 0 | AK130: 0 | AL130: 0 | AM130: 0 | AN130: 0 | AP130: 0 | AQ130: 0 | AR130: 0 | AT130: 0
E131: Total Casual Salaries | O131: =SUM(O116:O130) -> 0 | P131: 0 | Q131: 0 | R131: 0 | S131: 0 | T131: 0 | U131: 0 | V131: =SUM(V116:V130) -> 0 | W131: 0 | X131: 0 | Y131: =SUM(Y116:Y130) -> 0 | AD131: =SUM(AD116:AD130) -> 0 | AE131: 0 | AF131: 0 | AG131: 0 | AH131: 0 | AI131: 0 | AJ131: 0 | AK131: =SUM(AK116:AK130) -> 0 | AL131: 0 | AM131: 0 | AN131: 0 | AP131: =SUM(AP116:AP130) -> 0 | AQ131: =SUM(AQ116:AQ130) -> 0 | AR131: =SUM(AR116:AR130) -> 0 | AT131: =SUM(AT116:AT130) -> 0
D133: DIRECT SALARY COSTS TOTAL | O133: =SUM(O82,O106,O131) -> 0 | P133: 0 | Q133: 0 | R133: 0 | S133: 0 | T133: 0 | U133: 0 | V133: 0 | W133: 0 | X133: 0 | Y133: 0 | AD133: =SUM(AD82,AD106,AD131) -> 0 | AE133: 0 | AF133: 0 | AG133: 0 | AH133: 0 | AI133: 0 | AJ133: 0 | AK133: 0 | AL133: 0 | AM133: 0 | AN133: 0 | AP133: =SUM(AP82,AP106,AP131) -> 0 | AQ133: =SUM(AQ82,AQ106,AQ131) -> 0 | AR133: =SUM(AR82,AR106,AR131) -> 0 | AT133: =SUM(AT82,AT106,AT131) -> 0 | AU133: =AT133-SUM($AN$133,$AN$233,$AN$235) -> 0
D135: Operating Expense (remember to include CPI for outer years - inflation)
M137: Current CPI Rate | N137: ='Master Data'!BX6 -> 0.041
E138: Operating Expenses (including High Performance Computer charges)
E139: Expense Type | G139: Brief Description | I139: Funding Source | J139: Start Year | K139: End Year | L139: Quantity / Hours Per Year | N139: Annual Cost / Hourly Rate | O139: Project Costing | AD139: Project Pricing (Direct) | AP139: Inkind & Ineligible Expenses
O140: =O$63 -> Year 1 | P140: Year 2 | Q140: Year 3 | R140: Year 4 | S140: Year 5 | T140: Year 6 | U140: Year 7 | V140: Year 8 | W140: Year 9 | X140: Year 10 | Y140: Total Project Cost (Direct) | Z140: % included in Project Pricing | AA140: Amount included in Project Pricing | AB140: =AB$63 -> Reason for the cost not being fully funded by the sponsor | AD140: =AD$63 -> Year 1 | AE140: Year 2 | AF140: Year 3 | AG140: Year 4 | AH140: Year 5 | AI140: Year 6 | AJ140: Year 7 | AK140: Year 8 | AL140: Year 9 | AM140: Year 10 | AN140: Total | AP140: =AP$63 -> Inkind | AQ140: =AQ$63 -> Ineligible Expense | AR140: =AR$63 -> Total
O141: =O$33 -> 1900 | P141: =P$33 ->  | AD141: =AD$33 -> 1900 | AE141: =AE$33 -> 
D142: Example | E142: High Performing Computer | G142: HPC charges | I142: Funded | J142: 2024 | K142: 2024 | M142: Not required | N142: 100000 | O142: 100000 | P142: 0 | Q142: 0 | R142: 0 | S142: 0 | T142: 0 | U142: 0 | V142: 0 | W142: 0 | X142: 0 | Y142: =SUM(O142:X142) -> 100000 | AD142: 100000 | AE142: 0 | AF142: 0 | AG142: 0 | AH142: 0 | AI142: 0 | AJ142: 0 | AK142: 0 | AL142: 0 | AM142: 0 | AN142: =SUM(AD142:AM142) -> 100000 | AP142: 0 | AQ142: 0 | AR142: =SUM(AP142:AQ142) -> 0
D143: Example | E143: Other Operating | G143: Laboratory Materials | I143: Funded | J143: 2024 | K143: 2028 | L143: 1 | M143: Quantity | N143: 80000 | O143: 80000 | P143: 83280 | Q143: 86694.48 | R143: 90248.95368 | S143: 93949.16078 | T143: 0 | U143: 0 | V143: 0 | W143: 0 | X143: 0 | Y143: =SUM(O143:X143) -> 434172.5945 | AA143: 50000 | AB143: sponsor caps payment at $50k p.a. | AD143: 50000 | AE143: 50000 | AF143: 50000 | AG143: 50000 | AH143: 50000 | AI143: 0 | AJ143: 0 | AK143: 0 | AL143: 0 | AM143: 0 | AN143: 250000 | AP143: 0 | AQ143: 184172.5945 | AR143: 184172.5945
M144: =IFERROR(VLOOKUP($E144,'Master Data'!$BC$5:$BD$10,2,FALSE),"") ->  | O144: =IF(O$141=$J144,IF(ISBLANK($L144),$N144,$L144*$N144),IF(AND(O$141>=$J144,O$141<=$K144),N144,0)) -> 0 | P144: =IF(P$141=$J144,IF(ISBLANK($L144),$N144,$L144*$N144),IF(AND(P$141>=$J144,P$141<=$K144),O144*(1+$N$137),0)) -> 0 | Q144: 0 | R144: 0 | S144: 0 | T144: 0 | U144: 0 | V144: 0 | W144: 0 | X144: 0 | Y144: =SUM(O144:X144) -> 0 | AD144: =IF($I144="Funded",IF(ISBLANK($Z144),IF(ISBLANK($AA144),O144,IF(O144=0,0,$AA144)),O144*$Z144),0) -> 0 | AE144: =IF($I144="Funded",IF(ISBLANK($Z144),IF(ISBLANK($AA144),P144,IF(P144=0,0,$AA144)),P144*$Z144),0) -> 0 | AF144: =IF($I144="Funded",IF(ISBLANK($Z144),IF(ISBLANK($AA144),Q144,IF(Q144=0,0,$AA144)),Q144*$Z144),0) -> 0 | AG144: =IF($I144="Funded",IF(ISBLANK($Z144),IF(ISBLANK($AA144),R144,IF(R144=0,0,$AA144)),R144*$Z144),0) -> 0 | AH144: =IF($I144="Funded",IF(ISBLANK($Z144),IF(ISBLANK($AA144),S144,IF(S144=0,0,$AA144)),S144*$Z144),0) -> 0 | AI144: =IF($I144="Funded",IF(ISBLANK($Z144),IF(ISBLANK($AA144),T144,IF(T144=0,0,$AA144)),T144*$Z144),0) -> 0 | AJ144: =IF($I144="Funded",IF(ISBLANK($Z144),IF(ISBLANK($AA144),U144,IF(U144=0,0,$AA144)),U144*$Z144),0) -> 0 | AK144: =IF($I144="Funded",IF(ISBLANK($Z144),IF(ISBLANK($AA144),V144,IF(V144=0,0,$AA144)),V144*$Z144),0) -> 0 | AL144: =IF($I144="Funded",IF(ISBLANK($Z144),IF(ISBLANK($AA144),W144,IF(W144=0,0,$AA144)),W144*$Z144),0) -> 0 | AM144: =IF($I144="Funded",IF(ISBLANK($Z144),IF(ISBLANK($AA144),X144,IF(X144=0,0,$AA144)),X144*$Z144),0) -> 0 | AN144: 0 | AP144: =IF($I144=AP$140,$Y144-$AN144,0) -> 0 | AQ144: =IF(NOT($I144="Inkind"),$Y144-$AN144,0) -> 0 | AR144: =SUM(AP144:AQ144) -> 0
M145: =IFERROR(VLOOKUP($E145,'Master Data'!$BC$5:$BD$10,2,FALSE),"") ->  | O145: 0 | P145: =IF(P$141=$J145,IF(ISBLANK($L145),$N145,$L145*$N145),IF(AND(P$141>=$J145,P$141<=$K145),O145*(1+$N$137),0)) -> 0 | Q145: 0 | R145: 0 | S145: 0 | T145: 0 | U145: 0 | V145: 0 | W145: 0 | X145: 0 | Y145: 0 | AD145: 0 | AE145: 0 | AF145: 0 | AG145: 0 | AH145: 0 | AI145: 0 | AJ145: 0 | AK145: 0 | AL145: 0 | AM145: 0 | AN145: 0 | AP145: =IF($I145=AP$140,$Y145-$AN145,0) -> 0 | AQ145: 0 | AR145: =SUM(AP145:AQ145) -> 0
M146: =IFERROR(VLOOKUP($E146,'Master Data'!$BC$5:$BD$10,2,FALSE),"") ->  | O146: 0 | P146: =IF(P$141=$J146,IF(ISBLANK($L146),$N146,$L146*$N146),IF(AND(P$141>=$J146,P$141<=$K146),O146*(1+$N$137),0)) -> 0 | Q146: 0 | R146: 0 | S146: 0 | T146: 0 | U146: 0 | V146: 0 | W146: 0 | X146: 0 | Y146: 0 | AD146: 0 | AE146: 0 | AF146: 0 | AG146: 0 | AH146: 0 | AI146: 0 | AJ146: 0 | AK146: 0 | AL146: 0 | AM146: 0 | AN146: 0 | AP146: 0 | AQ146: 0 | AR146: 0
M147: =IFERROR(VLOOKUP($E147,'Master Data'!$BC$5:$BD$10,2,FALSE),"") ->  | O147: 0 | P147: =IF(P$141=$J147,IF(ISBLANK($L147),$N147,$L147*$N147),IF(AND(P$141>=$J147,P$141<=$K147),O147*(1+$N$137),0)) -> 0 | Q147: 0 | R147: 0 | S147: 0 | T147: 0 | U147: 0 | V147: 0 | W147: 0 | X147: 0 | Y147: 0 | AD147: 0 | AE147: 0 | AF147: 0 | AG147: 0 | AH147: 0 | AI147: 0 | AJ147: 0 | AK147: 0 | AL147: 0 | AM147: 0 | AN147: 0 | AP147: 0 | AQ147: 0 | AR147: 0
M148: =IFERROR(VLOOKUP($E148,'Master Data'!$BC$5:$BD$10,2,FALSE),"") ->  | O148: 0 | P148: =IF(P$141=$J148,IF(ISBLANK($L148),$N148,$L148*$N148),IF(AND(P$141>=$J148,P$141<=$K148),O148*(1+$N$137),0)) -> 0 | Q148: 0 | R148: 0 | S148: 0 | T148: 0 | U148: 0 | V148: 0 | W148: 0 | X148: 0 | Y148: 0 | AD148: 0 | AE148: 0 | AF148: 0 | AG148: 0 | AH148: 0 | AI148: 0 | AJ148: 0 | AK148: 0 | AL148: 0 | AM148: 0 | AN148: 0 | AP148: 0 | AQ148: 0 | AR148: 0
M149: =IFERROR(VLOOKUP($E149,'Master Data'!$BC$5:$BD$10,2,FALSE),"") ->  | O149: 0 | P149: =IF(P$141=$J149,IF(ISBLANK($L149),$N149,$L149*$N149),IF(AND(P$141>=$J149,P$141<=$K149),O149*(1+$N$137),0)) -> 0 | Q149: 0 | R149: 0 | S149: 0 | T149: 0 | U149: 0 | V149: 0 | W149: 0 | X149: 0 | Y149: 0 | AD149: 0 | AE149: 0 | AF149: 0 | AG149: 0 | AH149: 0 | AI149: 0 | AJ149: 0 | AK149: 0 | AL149: 0 | AM149: 0 | AN149: 0 | AP149: 0 | AQ149: 0 | AR149: 0
M150: =IFERROR(VLOOKUP($E150,'Master Data'!$BC$5:$BD$10,2,FALSE),"") ->  | O150: 0 | P150: =IF(P$141=$J150,IF(ISBLANK($L150),$N150,$L150*$N150),IF(AND(P$141>=$J150,P$141<=$K150),O150*(1+$N$137),0)) -> 0 | Q150: 0 | R150: 0 | S150: 0 | T150: 0 | U150: 0 | V150: 0 | W150: 0 | X150: 0 | Y150: 0 | AD150: 0 | AE150: 0 | AF150: 0 | AG150: 0 | AH150: 0 | AI150: 0 | AJ150: 0 | AK150: 0 | AL150: 0 | AM150: 0 | AN150: 0 | AP150: 0 | AQ150: 0 | AR150: 0
M151: =IFERROR(VLOOKUP($E151,'Master Data'!$BC$5:$BD$10,2,FALSE),"") ->  | O151: 0 | P151: =IF(P$141=$J151,IF(ISBLANK($L151),$N151,$L151*$N151),IF(AND(P$141>=$J151,P$141<=$K151),O151*(1+$N$137),0)) -> 0 | Q151: 0 | R151: 0 | S151: 0 | T151: 0 | U151: 0 | V151: 0 | W151: 0 | X151: 0 | Y151: 0 | AD151: 0 | AE151: 0 | AF151: 0 | AG151: 0 | AH151: 0 | AI151: 0 | AJ151: 0 | AK151: 0 | AL151: 0 | AM151: 0 | AN151: 0 | AP151: 0 | AQ151: 0 | AR151: 0
M152: =IFERROR(VLOOKUP($E152,'Master Data'!$BC$5:$BD$10,2,FALSE),"") ->  | O152: 0 | P152: =IF(P$141=$J152,IF(ISBLANK($L152),$N152,$L152*$N152),IF(AND(P$141>=$J152,P$141<=$K152),O152*(1+$N$137),0)) -> 0 | Q152: 0 | R152: 0 | S152: 0 | T152: 0 | U152: 0 | V152: 0 | W152: 0 | X152: 0 | Y152: 0 | AD152: 0 | AE152: 0 | AF152: 0 | AG152: 0 | AH152: 0 | AI152: 0 | AJ152: 0 | AK152: 0 | AL152: 0 | AM152: 0 | AN152: 0 | AP152: 0 | AQ152: 0 | AR152: 0
M153: =IFERROR(VLOOKUP($E153,'Master Data'!$BC$5:$BD$10,2,FALSE),"") ->  | O153: 0 | P153: =IF(P$141=$J153,IF(ISBLANK($L153),$N153,$L153*$N153),IF(AND(P$141>=$J153,P$141<=$K153),O153*(1+$N$137),0)) -> 0 | Q153: 0 | R153: 0 | S153: 0 | T153: 0 | U153: 0 | V153: 0 | W153: 0 | X153: 0 | Y153: 0 | AD153: 0 | AE153: 0 | AF153: 0 | AG153: 0 | AH153: 0 | AI153: 0 | AJ153: 0 | AK153: 0 | AL153: 0 | AM153: 0 | AN153: 0 | AP153: 0 | AQ153: 0 | AR153: =SUM(AP153:AQ153) -> 0
M154: =IFERROR(VLOOKUP($E154,'Master Data'!$BC$5:$BD$10,2,FALSE),"") ->  | O154: 0 | P154: =IF(P$141=$J154,IF(ISBLANK($L154),$N154,$L154*$N154),IF(AND(P$141>=$J154,P$141<=$K154),O154*(1+$N$137),0)) -> 0 | Q154: 0 | R154: 0 | S154: 0 | T154: 0 | U154: 0 | V154: 0 | W154: 0 | X154: 0 | Y154: 0 | AD154: 0 | AE154: 0 | AF154: 0 | AG154: 0 | AH154: 0 | AI154: 0 | AJ154: 0 | AK154: 0 | AL154: 0 | AM154: 0 | AN154: 0 | AP154: 0 | AQ154: 0 | AR154: 0
M155: =IFERROR(VLOOKUP($E155,'Master Data'!$BC$5:$BD$10,2,FALSE),"") ->  | O155: 0 | P155: =IF(P$141=$J155,IF(ISBLANK($L155),$N155,$L155*$N155),IF(AND(P$141>=$J155,P$141<=$K155),O155*(1+$N$137),0)) -> 0 | Q155: 0 | R155: 0 | S155: 0 | T155: 0 | U155: 0 | V155: 0 | W155: 0 | X155: 0 | Y155: 0 | AD155: 0 | AE155: 0 | AF155: 0 | AG155: 0 | AH155: 0 | AI155: 0 | AJ155: 0 | AK155: 0 | AL155: 0 | AM155: 0 | AN155: 0 | AP155: 0 | AQ155: 0 | AR155: 0
M156: =IFERROR(VLOOKUP($E156,'Master Data'!$BC$5:$BD$10,2,FALSE),"") ->  | O156: 0 | P156: =IF(P$141=$J156,IF(ISBLANK($L156),$N156,$L156*$N156),IF(AND(P$141>=$J156,P$141<=$K156),O156*(1+$N$137),0)) -> 0 | Q156: 0 | R156: 0 | S156: 0 | T156: 0 | U156: 0 | V156: 0 | W156: 0 | X156: 0 | Y156: 0 | AD156: 0 | AE156: 0 | AF156: 0 | AG156: 0 | AH156: 0 | AI156: 0 | AJ156: 0 | AK156: 0 | AL156: 0 | AM156: 0 | AN156: 0 | AP156: 0 | AQ156: 0 | AR156: 0
M157: =IFERROR(VLOOKUP($E157,'Master Data'!$BC$5:$BD$10,2,FALSE),"") ->  | O157: 0 | P157: =IF(P$141=$J157,IF(ISBLANK($L157),$N157,$L157*$N157),IF(AND(P$141>=$J157,P$141<=$K157),O157*(1+$N$137),0)) -> 0 | Q157: 0 | R157: 0 | S157: 0 | T157: 0 | U157: 0 | V157: 0 | W157: 0 | X157: 0 | Y157: 0 | AD157: 0 | AE157: 0 | AF157: 0 | AG157: 0 | AH157: 0 | AI157: 0 | AJ157: 0 | AK157: 0 | AL157: 0 | AM157: 0 | AN157: 0 | AP157: 0 | AQ157: 0 | AR157: 0
M158: =IFERROR(VLOOKUP($E158,'Master Data'!$BC$5:$BD$10,2,FALSE),"") ->  | O158: 0 | P158: =IF(P$141=$J158,IF(ISBLANK($L158),$N158,$L158*$N158),IF(AND(P$141>=$J158,P$141<=$K158),O158*(1+$N$137),0)) -> 0 | Q158: 0 | R158: 0 | S158: 0 | T158: 0 | U158: 0 | V158: 0 | W158: 0 | X158: 0 | Y158: 0 | AD158: 0 | AE158: 0 | AF158: 0 | AG158: 0 | AH158: 0 | AI158: 0 | AJ158: 0 | AK158: 0 | AL158: 0 | AM158: 0 | AN158: 0 | AP158: 0 | AQ158: 0 | AR158: 0
E159: Total Operating Expenses | O159: =SUM(O144:O158) -> 0 | P159: =SUM(P144:P158) -> 0 | Q159: 0 | R159: 0 | S159: 0 | T159: 0 | U159: 0 | V159: =SUM(V144:V158) -> 0 | W159: 0 | X159: 0 | Y159: 0 | AD159: =SUM(AD144:AD158) -> 0 | AE159: =SUM(AE144:AE158) -> 0 | AF159: 0 | AG159: 0 | AH159: 0 | AI159: 0 | AJ159: 0 | AK159: =SUM(AK144:AK158) -> 0 | AL159: 0 | AM159: 0 | AN159: 0 | AP159: 0 | AQ159: 0 | AR159: 0
M161: Annual Increase | N161: =Stipend_YoY_Increase -> 0.05
E162: Scholarships/Stipends
E163: Student 'a' Number (Optional) | G163: Student Name (Optional) | I163: Stipend Type | J163: Funding Source | K163: Start Year | L163: FTE | M163: Amount | N163: Stipend Rate for the 1st Year | O163: Project Costing | AD163: Project Pricing (Direct) | AP163: Inkind & Ineligible Expenses
O164: =O$63 -> Year 1 | P164: Year 2 | Q164: Year 3 | R164: Year 4 | S164: Year 5 | T164: Year 6 | U164: Year 7 | V164: Year 8 | W164: Year 9 | X164: Year 10 | Y164: Total Project Cost (Direct) | Z164: % included in Project Pricing | AA164: Amount included in Project Pricing | AB164: =AB$63 -> Reason for the cost not being fully funded by the sponsor | AD164: =AD$63 -> Year 1 | AE164: Year 2 | AF164: Year 3 | AG164: Year 4 | AH164: Year 5 | AI164: Year 6 | AJ164: Year 7 | AK164: Year 8 | AL164: Year 9 | AM164: Year 10 | AN164: Total | AP164: =AP$63 -> Inkind | AQ164: =AQ$63 -> Ineligible Expense | AR164: =AR$63 -> Total
O165: =O$33 -> 1900 | P165: =P$33 ->  | AD165: =AD$33 -> 1900 | AE165: =AE$33 -> 
D166: Example | E166: a1234567 | G166: Henry Student | I166: University Rate | J166: Inkind | K166: 2024 | L166: 1 | N166: 34125 | O166: 34125 | P166: 35831.25 | Q166: 37622.8125 | R166: 19751.97656 | S166: 0 | T166: 0 | U166: 0 | V166: 0 | W166: 0 | X166: 0 | Y166: =SUM(O166:U166) -> 127331.0391 | AD166: 0 | AE166: 0 | AF166: 0 | AG166: 0 | AH166: 0 | AI166: 0 | AJ166: 0 | AK166: 0 | AL166: 0 | AM166: 0 | AN166: =SUM(AD166:AM166) -> 0 | AP166: 127331.0391 | AQ166: 0 | AR166: =SUM(AP166:AQ166) -> 127331.0391
D167: Example | E167: a1234567 | G167: Henry Student | I167: Industry Funded | J167: Funded | K167: 2025 | L167: 1 | M167: 50000 | N167: 50000 | O167: 0 | P167: 50000 | Q167: 52500 | R167: 55125 | S167: 28940.625 | T167: 0 | U167: 0 | V167: 0 | W167: 0 | X167: 0 | Y167: 186565.625 | Z167: 0.2 | AB167: sponsor is only paying 20% of the cost | AD167: 0 | AE167: 10000 | AF167: 10500 | AG167: 11025 | AH167: 5788.125 | AI167: 0 | AJ167: 0 | AK167: 0 | AL167: 0 | AM167: 0 | AN167: =SUM(AD167:AM167) -> 37313.125 | AP167: 0 | AQ167: 149252.5 | AR167: 149252.5
N168: =IF(ISBLANK($L168),0,IF($I168="University Rate",VLOOKUP($K168,Stipend,2,FALSE),$M168)) -> 0 | O168: =IF(O$165=$K168,$N168*$L168,IF(O$165=$K168+1,$N168*(1+$N$161)*$L168,IF(O$165=$K168+2,$N168*(1+$N$161)^2*$L168,IF(O$165=$K168+3,$N168*(1+$N$161)^3/2*$L168,0)))) -> 0 | P168: =IF(P$165=$K168,$N168*$L168,IF(P$165=$K168+1,$N168*(1+$N$161)*$L168,IF(P$165=$K168+2,$N168*(1+$N$161)^2*$L168,IF(P$165=$K168+3,$N168*(1+$N$161)^3/2*$L168,0)))) -> 0 | Q168: 0 | R168: 0 | S168: 0 | T168: 0 | U168: 0 | V168: 0 | W168: 0 | X168: 0 | Y168: =SUM(O168:U168) -> 0 | AD168: =IF($J168="Funded",IF(ISBLANK($Z168),IF(ISBLANK($AA168),O168,IF(O168=0,0,$AA168)),O168*$Z168),0) -> 0 | AE168: =IF($J168="Funded",IF(ISBLANK($Z168),IF(ISBLANK($AA168),P168,IF(P168=0,0,$AA168)),P168*$Z168),0) -> 0 | AF168: =IF($J168="Funded",IF(ISBLANK($Z168),IF(ISBLANK($AA168),Q168,IF(Q168=0,0,$AA168)),Q168*$Z168),0) -> 0 | AG168: =IF($J168="Funded",IF(ISBLANK($Z168),IF(ISBLANK($AA168),R168,IF(R168=0,0,$AA168)),R168*$Z168),0) -> 0 | AH168: =IF($J168="Funded",IF(ISBLANK($Z168),IF(ISBLANK($AA168),S168,IF(S168=0,0,$AA168)),S168*$Z168),0) -> 0 | AI168: =IF($J168="Funded",IF(ISBLANK($Z168),IF(ISBLANK($AA168),T168,IF(T168=0,0,$AA168)),T168*$Z168),0) -> 0 | AJ168: =IF($J168="Funded",IF(ISBLANK($Z168),IF(ISBLANK($AA168),U168,IF(U168=0,0,$AA168)),U168*$Z168),0) -> 0 | AK168: =IF($J168="Funded",IF(ISBLANK($Z168),IF(ISBLANK($AA168),V168,IF(V168=0,0,$AA168)),V168*$Z168),0) -> 0 | AL168: =IF($J168="Funded",IF(ISBLANK($Z168),IF(ISBLANK($AA168),W168,IF(W168=0,0,$AA168)),W168*$Z168),0) -> 0 | AM168: =IF($J168="Funded",IF(ISBLANK($Z168),IF(ISBLANK($AA168),X168,IF(X168=0,0,$AA168)),X168*$Z168),0) -> 0 | AN168: =SUM(AD168:AM168) -> 0 | AP168: =IF($J168=AP$164,$Y168-$AN168,0) -> 0 | AQ168: =IF(NOT($J168="Inkind"),$Y168-$AN168,0) -> 0 | AR168: =SUM(AP168:AQ168) -> 0
N169: 0 | O169: =IF(O$165=$K169,$N169*$L169,IF(O$165=$K169+1,$N169*(1+$N$161)*$L169,IF(O$165=$K169+2,$N169*(1+$N$161)^2*$L169,IF(O$165=$K169+3,$N169*(1+$N$161)^3/2*$L169,0)))) -> 0 | P169: 0 | Q169: 0 | R169: 0 | S169: 0 | T169: 0 | U169: 0 | V169: 0 | W169: 0 | X169: 0 | Y169: =SUM(O169:U169) -> 0 | AD169: =IF($J169="Funded",IF(ISBLANK($Z169),IF(ISBLANK($AA169),O169,IF(O169=0,0,$AA169)),O169*$Z169),0) -> 0 | AE169: 0 | AF169: 0 | AG169: 0 | AH169: 0 | AI169: 0 | AJ169: 0 | AK169: 0 | AL169: 0 | AM169: 0 | AN169: 0 | AP169: =IF($J169=AP$164,$Y169-$AN169,0) -> 0 | AQ169: =IF(NOT($J169="Inkind"),$Y169-$AN169,0) -> 0 | AR169: =SUM(AP169:AQ169) -> 0
N170: 0 | O170: 0 | P170: 0 | Q170: 0 | R170: 0 | S170: 0 | T170: 0 | U170: 0 | V170: 0 | W170: 0 | X170: 0 | Y170: 0 | AD170: 0 | AE170: 0 | AF170: 0 | AG170: 0 | AH170: 0 | AI170: 0 | AJ170: 0 | AK170: 0 | AL170: 0 | AM170: 0 | AN170: 0 | AP170: 0 | AQ170: 0 | AR170: 0
N171: 0 | O171: 0 | P171: 0 | Q171: 0 | R171: 0 | S171: 0 | T171: 0 | U171: 0 | V171: 0 | W171: 0 | X171: 0 | Y171: 0 | AD171: 0 | AE171: 0 | AF171: 0 | AG171: 0 | AH171: 0 | AI171: 0 | AJ171: 0 | AK171: 0 | AL171: 0 | AM171: 0 | AN171: 0 | AP171: 0 | AQ171: 0 | AR171: 0
N172: 0 | O172: 0 | P172: 0 | Q172: 0 | R172: 0 | S172: 0 | T172: 0 | U172: 0 | V172: 0 | W172: 0 | X172: 0 | Y172: 0 | AD172: 0 | AE172: 0 | AF172: 0 | AG172: 0 | AH172: 0 | AI172: 0 | AJ172: 0 | AK172: 0 | AL172: 0 | AM172: 0 | AN172: 0 | AP172: 0 | AQ172: 0 | AR172: 0
N173: 0 | O173: 0 | P173: 0 | Q173: 0 | R173: 0 | S173: 0 | T173: 0 | U173: 0 | V173: 0 | W173: 0 | X173: 0 | Y173: 0 | AD173: 0 | AE173: 0 | AF173: 0 | AG173: 0 | AH173: 0 | AI173: 0 | AJ173: 0 | AK173: 0 | AL173: 0 | AM173: 0 | AN173: 0 | AP173: 0 | AQ173: 0 | AR173: 0
N174: 0 | O174: 0 | P174: 0 | Q174: 0 | R174: 0 | S174: 0 | T174: 0 | U174: 0 | V174: 0 | W174: 0 | X174: 0 | Y174: 0 | AD174: 0 | AE174: 0 | AF174: 0 | AG174: 0 | AH174: 0 | AI174: 0 | AJ174: 0 | AK174: 0 | AL174: 0 | AM174: 0 | AN174: 0 | AP174: 0 | AQ174: 0 | AR174: 0
N175: 0 | O175: 0 | P175: 0 | Q175: 0 | R175: 0 | S175: 0 | T175: 0 | U175: 0 | V175: 0 | W175: 0 | X175: 0 | Y175: 0 | AD175: 0 | AE175: 0 | AF175: 0 | AG175: 0 | AH175: 0 | AI175: 0 | AJ175: 0 | AK175: 0 | AL175: 0 | AM175: 0 | AN175: 0 | AP175: 0 | AQ175: 0 | AR175: 0
N176: 0 | O176: 0 | P176: 0 | Q176: 0 | R176: 0 | S176: 0 | T176: 0 | U176: 0 | V176: 0 | W176: 0 | X176: 0 | Y176: 0 | AD176: 0 | AE176: 0 | AF176: 0 | AG176: 0 | AH176: 0 | AI176: 0 | AJ176: 0 | AK176: 0 | AL176: 0 | AM176: 0 | AN176: 0 | AP176: 0 | AQ176: 0 | AR176: 0
N177: 0 | O177: 0 | P177: 0 | Q177: 0 | R177: 0 | S177: 0 | T177: 0 | U177: 0 | V177: 0 | W177: 0 | X177: 0 | Y177: =SUM(O177:U177) -> 0 | AD177: 0 | AE177: 0 | AF177: 0 | AG177: 0 | AH177: 0 | AI177: 0 | AJ177: 0 | AK177: 0 | AL177: 0 | AM177: 0 | AN177: =SUM(AD177:AM177) -> 0 | AP177: 0 | AQ177: 0 | AR177: =SUM(AP177:AQ177) -> 0
N178: 0 | O178: 0 | P178: 0 | Q178: 0 | R178: 0 | S178: 0 | T178: 0 | U178: 0 | V178: 0 | W178: 0 | X178: 0 | Y178: 0 | AD178: 0 | AE178: 0 | AF178: 0 | AG178: 0 | AH178: 0 | AI178: 0 | AJ178: 0 | AK178: 0 | AL178: 0 | AM178: 0 | AN178: 0 | AP178: 0 | AQ178: 0 | AR178: 0
N179: 0 | O179: 0 | P179: 0 | Q179: 0 | R179: 0 | S179: 0 | T179: 0 | U179: 0 | V179: 0 | W179: 0 | X179: 0 | Y179: 0 | AD179: 0 | AE179: 0 | AF179: 0 | AG179: 0 | AH179: 0 | AI179: 0 | AJ179: 0 | AK179: 0 | AL179: 0 | AM179: 0 | AN179: 0 | AP179: 0 | AQ179: 0 | AR179: 0
N180: 0 | O180: 0 | P180: 0 | Q180: 0 | R180: 0 | S180: 0 | T180: 0 | U180: 0 | V180: 0 | W180: 0 | X180: 0 | Y180: 0 | AD180: 0 | AE180: 0 | AF180: 0 | AG180: 0 | AH180: 0 | AI180: 0 | AJ180: 0 | AK180: 0 | AL180: 0 | AM180: 0 | AN180: 0 | AP180: 0 | AQ180: 0 | AR180: 0
N181: 0 | O181: 0 | P181: 0 | Q181: 0 | R181: 0 | S181: 0 | T181: 0 | U181: 0 | V181: 0 | W181: 0 | X181: 0 | Y181: 0 | AD181: 0 | AE181: 0 | AF181: 0 | AG181: 0 | AH181: 0 | AI181: 0 | AJ181: 0 | AK181: 0 | AL181: 0 | AM181: 0 | AN181: 0 | AP181: 0 | AQ181: 0 | AR181: 0
N182: 0 | O182: 0 | P182: 0 | Q182: 0 | R182: 0 | S182: 0 | T182: 0 | U182: 0 | V182: 0 | W182: 0 | X182: 0 | Y182: 0 | AD182: 0 | AE182: 0 | AF182: 0 | AG182: 0 | AH182: 0 | AI182: 0 | AJ182: 0 | AK182: 0 | AL182: 0 | AM182: 0 | AN182: 0 | AP182: 0 | AQ182: 0 | AR182: 0
E183: Total Scholarship/Stipend Costs | O183: =SUM(O168:O182) -> 0 | P183: =SUM(P168:P182) -> 0 | Q183: 0 | R183: 0 | S183: 0 | T183: 0 | U183: 0 | V183: 0 | W183: 0 | X183: 0 | Y183: 0 | AD183: =SUM(AD168:AD182) -> 0 | AE183: =SUM(AE168:AE182) -> 0 | AF183: 0 | AG183: 0 | AH183: 0 | AI183: 0 | AJ183: 0 | AK183: 0 | AL183: 0 | AM183: 0 | AN183: 0 | AP183: 0 | AQ183: 0 | AR183: 0
E185: Travel Expenses
E186: Destination & Type of Travel | H186: Purpose | I186: Funding Source | J186: Year | K186: Airfares | L186: Accommodation | M186: Meals / Incidentals | N186: Other | O186: Project Costing | AD186: Project Pricing (Direct) | AP186: Inkind & Ineligible Expenses
O187: =O$63 -> Year 1 | P187: Year 2 | Q187: Year 3 | R187: Year 4 | S187: Year 5 | T187: Year 6 | U187: Year 7 | V187: Year 8 | W187: Year 9 | X187: Year 10 | Y187: Total Project Cost (Direct) | Z187: % included in Project Pricing | AA187: Amount included in Project Pricing | AB187: =AB$63 -> Reason for the cost not being fully funded by the sponsor | AD187: =AD$63 -> Year 1 | AE187: Year 2 | AF187: Year 3 | AG187: Year 4 | AH187: Year 5 | AI187: Year 6 | AJ187: Year 7 | AK187: Year 8 | AL187: Year 9 | AM187: Year 10 | AN187: Total | AP187: =AP$63 -> Inkind | AQ187: =AQ$63 -> Ineligible Expense | AR187: =AR$63 -> Total
O188: =O$33 -> 1900 | P188: =P$33 ->  | AD188: =AD$33 -> 1900 | AE188: =AE$33 -> 
D189: Example | E189: Fiji - Grain Growers Conference | H189: Conference | I189: Funded | J189: 2024 | K189: 2000 | L189: 1200 | M189: 500 | N189: 50 | O189: 3750 | P189: 0 | Q189: 0 | R189: 0 | S189: 0 | T189: 0 | U189: 0 | V189: 0 | W189: 0 | X189: 0 | Y189: 3750 | AA189: 2000 | AB189: sponsor only pays for the airfares | AD189: 2000 | AE189: 0 | AF189: 0 | AG189: 0 | AH189: 0 | AI189: 0 | AJ189: 0 | AK189: 0 | AL189: 0 | AM189: 0 | AN189: =SUM(AD189:AM189) -> 2000 | AP189: 0 | AQ189: 3750 | AR189: =SUM(AP189:AQ189) -> 3750
D190: Example | E190: Fiji - Grain Growers Conference | H190: Field | I190: Inkind | J190: 2025 | K190: 2500 | L190: 1500 | M190: 1000 | N190: 100 | O190: 0 | P190: 5100 | Q190: 0 | R190: 0 | S190: 0 | T190: 0 | U190: 0 | V190: 0 | W190: 0 | X190: 0 | Y190: 5350 | AD190: 0 | AE190: 0 | AF190: 0 | AG190: 0 | AH190: 0 | AI190: 0 | AJ190: 0 | AK190: 0 | AL190: 0 | AM190: 0 | AN190: =SUM(AD190:AM190) -> 0 | AP190: 5100 | AQ190: 0 | AR190: 5100
O191: =IF($J191=O$188,SUM($K191:$N191),0) -> 0 | P191: 0 | Q191: 0 | R191: 0 | S191: 0 | T191: 0 | U191: 0 | V191: 0 | W191: 0 | X191: 0 | Y191: =SUM(O191:X191) -> 0 | AD191: =IF($I191="Funded",IF(ISBLANK($Z191),IF(ISBLANK($AA191),O191,IF(O191=0,0,$AA191)),O191*$Z191),0) -> 0 | AE191: =IF($I191="Funded",IF(ISBLANK($Z191),IF(ISBLANK($AA191),P191,IF(P191=0,0,$AA191)),P191*$Z191),0) -> 0 | AF191: =IF($I191="Funded",IF(ISBLANK($Z191),IF(ISBLANK($AA191),Q191,IF(Q191=0,0,$AA191)),Q191*$Z191),0) -> 0 | AG191: =IF($I191="Funded",IF(ISBLANK($Z191),IF(ISBLANK($AA191),R191,IF(R191=0,0,$AA191)),R191*$Z191),0) -> 0 | AH191: =IF($I191="Funded",IF(ISBLANK($Z191),IF(ISBLANK($AA191),S191,IF(S191=0,0,$AA191)),S191*$Z191),0) -> 0 | AI191: =IF($I191="Funded",IF(ISBLANK($Z191),IF(ISBLANK($AA191),T191,IF(T191=0,0,$AA191)),T191*$Z191),0) -> 0 | AJ191: =IF($I191="Funded",IF(ISBLANK($Z191),IF(ISBLANK($AA191),U191,IF(U191=0,0,$AA191)),U191*$Z191),0) -> 0 | AK191: =IF($I191="Funded",IF(ISBLANK($Z191),IF(ISBLANK($AA191),V191,IF(V191=0,0,$AA191)),V191*$Z191),0) -> 0 | AL191: =IF($I191="Funded",IF(ISBLANK($Z191),IF(ISBLANK($AA191),W191,IF(W191=0,0,$AA191)),W191*$Z191),0) -> 0 | AM191: =IF($I191="Funded",IF(ISBLANK($Z191),IF(ISBLANK($AA191),X191,IF(X191=0,0,$AA191)),X191*$Z191),0) -> 0 | AN191: =SUM(AD191:AM191) -> 0 | AP191: =IF($I191=AP$187,$Y191-$AN191,0) -> 0 | AQ191: =IF(NOT($I191="Inkind"),$Y191-$AN191,0) -> 0 | AR191: =SUM(AP191:AQ191) -> 0
O192: 0 | P192: 0 | Q192: 0 | R192: 0 | S192: 0 | T192: 0 | U192: 0 | V192: 0 | W192: 0 | X192: 0 | Y192: =SUM(O192:X192) -> 0 | AD192: =IF($I192="Funded",IF(ISBLANK($Z192),IF(ISBLANK($AA192),O192,IF(O192=0,0,$AA192)),O192*$Z192),0) -> 0 | AE192: 0 | AF192: 0 | AG192: 0 | AH192: 0 | AI192: 0 | AJ192: 0 | AK192: 0 | AL192: 0 | AM192: 0 | AN192: 0 | AP192: =IF($I192=AP$187,$Y192-$AN192,0) -> 0 | AQ192: =IF(NOT($I192="Inkind"),$Y192-$AN192,0) -> 0 | AR192: =SUM(AP192:AQ192) -> 0
O193: 0 | P193: 0 | Q193: 0 | R193: 0 | S193: 0 | T193: 0 | U193: 0 | V193: 0 | W193: 0 | X193: 0 | Y193: 0 | AD193: 0 | AE193: 0 | AF193: 0 | AG193: 0 | AH193: 0 | AI193: 0 | AJ193: 0 | AK193: 0 | AL193: 0 | AM193: 0 | AN193: 0 | AP193: 0 | AQ193: 0 | AR193: 0
O194: 0 | P194: 0 | Q194: 0 | R194: 0 | S194: 0 | T194: 0 | U194: 0 | V194: 0 | W194: 0 | X194: 0 | Y194: 0 | AD194: 0 | AE194: 0 | AF194: 0 | AG194: 0 | AH194: 0 | AI194: 0 | AJ194: 0 | AK194: 0 | AL194: 0 | AM194: 0 | AN194: 0 | AP194: 0 | AQ194: 0 | AR194: 0
O195: 0 | P195: 0 | Q195: 0 | R195: 0 | S195: 0 | T195: 0 | U195: 0 | V195: 0 | W195: 0 | X195: 0 | Y195: 0 | AD195: 0 | AE195: 0 | AF195: 0 | AG195: 0 | AH195: 0 | AI195: 0 | AJ195: 0 | AK195: 0 | AL195: 0 | AM195: 0 | AN195: 0 | AP195: 0 | AQ195: 0 | AR195: 0
O196: 0 | P196: 0 | Q196: 0 | R196: 0 | S196: 0 | T196: 0 | U196: 0 | V196: 0 | W196: 0 | X196: 0 | Y196: 0 | AD196: 0 | AE196: 0 | AF196: 0 | AG196: 0 | AH196: 0 | AI196: 0 | AJ196: 0 | AK196: 0 | AL196: 0 | AM196: 0 | AN196: 0 | AP196: 0 | AQ196: 0 | AR196: 0
O197: 0 | P197: 0 | Q197: 0 | R197: 0 | S197: 0 | T197: 0 | U197: 0 | V197: 0 | W197: 0 | X197: 0 | Y197: 0 | AD197: 0 | AE197: 0 | AF197: 0 | AG197: 0 | AH197: 0 | AI197: 0 | AJ197: 0 | AK197: 0 | AL197: 0 | AM197: 0 | AN197: 0 | AP197: 0 | AQ197: 0 | AR197: 0
O198: 0 | P198: 0 | Q198: 0 | R198: 0 | S198: 0 | T198: 0 | U198: 0 | V198: 0 | W198: 0 | X198: 0 | Y198: 0 | AD198: 0 | AE198: 0 | AF198: 0 | AG198: 0 | AH198: 0 | AI198: 0 | AJ198: 0 | AK198: 0 | AL198: 0 | AM198: 0 | AN198: 0 | AP198: 0 | AQ198: 0 | AR198: 0
O199: 0 | P199: 0 | Q199: 0 | R199: 0 | S199: 0 | T199: 0 | U199: 0 | V199: 0 | W199: 0 | X199: 0 | Y199: 0 | AD199: 0 | AE199: 0 | AF199: 0 | AG199: 0 | AH199: 0 | AI199: 0 | AJ199: 0 | AK199: 0 | AL199: 0 | AM199: 0 | AN199: 0 | AP199: 0 | AQ199: 0 | AR199: 0
O200: 0 | P200: 0 | Q200: 0 | R200: 0 | S200: 0 | T200: 0 | U200: 0 | V200: 0 | W200: 0 | X200: 0 | Y200: =SUM(O200:X200) -> 0 | AD200: 0 | AE200: 0 | AF200: 0 | AG200: 0 | AH200: 0 | AI200: 0 | AJ200: 0 | AK200: 0 | AL200: 0 | AM200: 0 | AN200: 0 | AP200: 0 | AQ200: 0 | AR200: =SUM(AP200:AQ200) -> 0
O201: 0 | P201: 0 | Q201: 0 | R201: 0 | S201: 0 | T201: 0 | U201: 0 | V201: 0 | W201: 0 | X201: 0 | Y201: 0 | AD201: 0 | AE201: 0 | AF201: 0 | AG201: 0 | AH201: 0 | AI201: 0 | AJ201: 0 | AK201: 0 | AL201: 0 | AM201: 0 | AN201: =IF($H201="Funded",IF(ISBLANK($Z201),IF(ISBLANK($AA201),Y201,IF(Y201=0,0,$AA201)),Y201*$Z201),0) -> 0 | AP201: 0 | AQ201: 0 | AR201: 0
O202: 0 | P202: 0 | Q202: 0 | R202: 0 | S202: 0 | T202: 0 | U202: 0 | V202: 0 | W202: 0 | X202: 0 | Y202: 0 | AD202: 0 | AE202: 0 | AF202: 0 | AG202: 0 | AH202: 0 | AI202: 0 | AJ202: 0 | AK202: 0 | AL202: 0 | AM202: 0 | AN202: 0 | AP202: 0 | AQ202: 0 | AR202: 0
O203: 0 | P203: 0 | Q203: 0 | R203: 0 | S203: 0 | T203: 0 | U203: 0 | V203: 0 | W203: 0 | X203: 0 | Y203: 0 | AD203: 0 | AE203: 0 | AF203: 0 | AG203: 0 | AH203: 0 | AI203: 0 | AJ203: 0 | AK203: 0 | AL203: 0 | AM203: 0 | AN203: 0 | AP203: 0 | AQ203: 0 | AR203: 0
O204: 0 | P204: 0 | Q204: 0 | R204: 0 | S204: 0 | T204: 0 | U204: 0 | V204: 0 | W204: 0 | X204: 0 | Y204: 0 | AD204: 0 | AE204: 0 | AF204: 0 | AG204: 0 | AH204: 0 | AI204: 0 | AJ204: 0 | AK204: 0 | AL204: 0 | AM204: 0 | AN204: 0 | AP204: 0 | AQ204: 0 | AR204: 0
O205: 0 | P205: 0 | Q205: 0 | R205: 0 | S205: 0 | T205: 0 | U205: 0 | V205: 0 | W205: 0 | X205: 0 | Y205: 0 | AD205: 0 | AE205: 0 | AF205: 0 | AG205: 0 | AH205: 0 | AI205: 0 | AJ205: 0 | AK205: 0 | AL205: 0 | AM205: 0 | AN205: 0 | AP205: =IF($I205=AP$187,$Y205-$AN205,0) -> 0 | AQ205: 0 | AR205: 0
E206: Total Travel Costs | O206: =SUM(O191:O205) -> 0 | P206: =SUM(P191:P205) -> 0 | Q206: 0 | R206: 0 | S206: 0 | T206: 0 | U206: 0 | V206: =SUM(V191:V205) -> 0 | W206: 0 | X206: 0 | Y206: 0 | AD206: =SUM(AD191:AD205) -> 0 | AE206: 0 | AF206: 0 | AG206: 0 | AH206: 0 | AI206: 0 | AJ206: 0 | AK206: =SUM(AK191:AK205) -> 0 | AL206: 0 | AM206: 0 | AN206: 0 | AP206: 0 | AQ206: 0 | AR206: 0
D208: OPERATING EXPENSES TOTAL (Operating + Stipends/Scholarships + Travel) | O208: =SUM(O159,O183,O206) -> 0 | P208: 0 | Q208: 0 | R208: 0 | S208: 0 | T208: 0 | U208: 0 | V208: 0 | W208: 0 | X208: 0 | Y208: 0 | AD208: =SUM(AD159,AD183,AD206) -> 0 | AE208: 0 | AF208: 0 | AG208: 0 | AH208: 0 | AI208: 0 | AJ208: 0 | AK208: 0 | AL208: 0 | AM208: 0 | AN208: 0 | AP208: 0 | AQ208: 0 | AR208: 0
D210: Recharge Equipment and Facility Use - NEW Section to be developed in future; Will have drop down menu for price
E211: Item | K211: Funding Source | L211: Year | M211: Qty | N211: Price | O211: Project Costing | AD211: Project Pricing (Direct) | AP211: Inkind & Ineligible Expenses
O212: =O$63 -> Year 1 | P212: Year 2 | Q212: Year 3 | R212: Year 4 | S212: Year 5 | T212: Year 6 | U212: Year 7 | V212: Year 8 | W212: Year 9 | X212: Year 10 | Y212: Total Project Cost (Direct) | Z212: % included in Project Pricing | AA212: Amount included in Project Pricing | AB212: =AB$63 -> Reason for the cost not being fully funded by the sponsor | AD212: =AD$63 -> Year 1 | AE212: Year 2 | AF212: Year 3 | AG212: Year 4 | AH212: Year 5 | AI212: Year 6 | AJ212: Year 7 | AK212: Year 8 | AL212: Year 9 | AM212: Year 10 | AN212: Total | AP212: =AP$63 -> Inkind | AQ212: =AQ$63 -> Ineligible Expense | AR212: =AR$63 -> Total
O213: =O$33 -> 1900 | P213: =P$33 ->  | AD213: =AD$33 -> 1900 | AE213: =AE$33 -> 
D214: Example | E214: High Performance Computing | L214: 2024 | M214: 1 | N214: 2500 | AA214: 5000
O215: =IF($L215=O$213,$M215*$N215,0) -> 0 | P215: 0 | Q215: 0 | R215: 0 | S215: 0 | T215: 0 | U215: 0 | V215: 0 | W215: 0 | X215: 0 | Y215: =SUM(O215:X215) -> 0 | AD215: =IF($K215="Funded",IF(ISBLANK($Z215),IF(ISBLANK($AA215),O215,IF(O215=0,0,$AA215)),O215*$Z215),0) -> 0 | AE215: =IF($K215="Funded",IF(ISBLANK($Z215),IF(ISBLANK($AA215),P215,IF(P215=0,0,$AA215)),P215*$Z215),0) -> 0 | AF215: =IF($K215="Funded",IF(ISBLANK($Z215),IF(ISBLANK($AA215),Q215,IF(Q215=0,0,$AA215)),Q215*$Z215),0) -> 0 | AG215: =IF($K215="Funded",IF(ISBLANK($Z215),IF(ISBLANK($AA215),R215,IF(R215=0,0,$AA215)),R215*$Z215),0) -> 0 | AH215: =IF($K215="Funded",IF(ISBLANK($Z215),IF(ISBLANK($AA215),S215,IF(S215=0,0,$AA215)),S215*$Z215),0) -> 0 | AI215: =IF($K215="Funded",IF(ISBLANK($Z215),IF(ISBLANK($AA215),T215,IF(T215=0,0,$AA215)),T215*$Z215),0) -> 0 | AJ215: =IF($K215="Funded",IF(ISBLANK($Z215),IF(ISBLANK($AA215),U215,IF(U215=0,0,$AA215)),U215*$Z215),0) -> 0 | AK215: =IF($K215="Funded",IF(ISBLANK($Z215),IF(ISBLANK($AA215),V215,IF(V215=0,0,$AA215)),V215*$Z215),0) -> 0 | AL215: =IF($K215="Funded",IF(ISBLANK($Z215),IF(ISBLANK($AA215),W215,IF(W215=0,0,$AA215)),W215*$Z215),0) -> 0 | AM215: =IF($K215="Funded",IF(ISBLANK($Z215),IF(ISBLANK($AA215),X215,IF(X215=0,0,$AA215)),X215*$Z215),0) -> 0 | AN215: =SUM(AD215:AM215) -> 0 | AP215: =IF($K215=AP$212,$Y215-$AN215,0) -> 0 | AQ215: =IF(NOT($K215="Inkind"),$Y215-$AN215,0) -> 0 | AR215: =SUM(AP215:AQ215) -> 0
O216: 0 | P216: 0 | Q216: 0 | R216: 0 | S216: 0 | T216: 0 | U216: 0 | V216: 0 | W216: 0 | X216: 0 | Y216: =SUM(O216:X216) -> 0 | AD216: =IF($K216="Funded",IF(ISBLANK($Z216),IF(ISBLANK($AA216),O216,IF(O216=0,0,$AA216)),O216*$Z216),0) -> 0 | AE216: 0 | AF216: 0 | AG216: 0 | AH216: 0 | AI216: 0 | AJ216: 0 | AK216: 0 | AL216: 0 | AM216: 0 | AN216: =SUM(AD216:AM216) -> 0 | AP216: =IF($K216=AP$212,$Y216-$AN216,0) -> 0 | AQ216: =IF(NOT($K216="Inkind"),$Y216-$AN216,0) -> 0 | AR216: =SUM(AP216:AQ216) -> 0
O217: 0 | P217: 0 | Q217: 0 | R217: 0 | S217: 0 | T217: 0 | U217: 0 | V217: 0 | W217: 0 | X217: 0 | Y217: 0 | AD217: 0 | AE217: 0 | AF217: 0 | AG217: 0 | AH217: 0 | AI217: 0 | AJ217: 0 | AK217: 0 | AL217: 0 | AM217: 0 | AN217: 0 | AP217: 0 | AQ217: 0 | AR217: 0
O218: 0 | P218: 0 | Q218: 0 | R218: 0 | S218: 0 | T218: 0 | U218: 0 | V218: 0 | W218: 0 | X218: 0 | Y218: 0 | AD218: 0 | AE218: 0 | AF218: 0 | AG218: 0 | AH218: 0 | AI218: 0 | AJ218: 0 | AK218: 0 | AL218: 0 | AM218: 0 | AN218: 0 | AP218: 0 | AQ218: 0 | AR218: 0
O219: 0 | P219: 0 | Q219: 0 | R219: 0 | S219: 0 | T219: 0 | U219: 0 | V219: 0 | W219: 0 | X219: 0 | Y219: 0 | AD219: 0 | AE219: 0 | AF219: 0 | AG219: 0 | AH219: 0 | AI219: 0 | AJ219: 0 | AK219: 0 | AL219: 0 | AM219: 0 | AN219: 0 | AP219: 0 | AQ219: 0 | AR219: 0
... 41 more rows

Sheet Summary
B1: =" "&Title!$D$6 -> UoA Costing Pricing Tool (CPT) | G1: Automatically populated
C2: =Title!$D$1 -> This file has expired. Existing CPMs can still be viewed. However, for new applications, please download the current file from
C4: =Title!$D$4 -> https://www.adelaide.edu.au/finance/
B5: ** NOTE** Calculator for internal University of Adelaide use only. Must not be shared with External Parties.
B7: Project Details | F7: ='ENTER DETAILS HERE_Costing Tab'!$K$13 -> Total Project Budget (Only required if UoA is not Lead Agency)
B8: Proposal Title | C8: =IF(ISBLANK('ENTER DETAILS HERE_Costing Tab'!G14),"",'ENTER DETAILS HERE_Costing Tab'!G14) ->  | F8: ='ENTER DETAILS HERE_Costing Tab'!$K$14 ->  | H8: Funded | I8: Inkind | J8: TOTAL
B9: Sponsor Name (Funder) | C9: =IF(ISBLANK('ENTER DETAILS HERE_Costing Tab'!G15),"",'ENTER DETAILS HERE_Costing Tab'!G15) ->  | F9: Staff Costs | H9: ='ENTER DETAILS HERE_Costing Tab'!L15 -> 0 | I9: ='ENTER DETAILS HERE_Costing Tab'!M15 -> 0 | J9: =SUM(H9:I9) -> 0
B10: Chief Investigator | C10: =IF(ISBLANK('ENTER DETAILS HERE_Costing Tab'!G16),"",'ENTER DETAILS HERE_Costing Tab'!G16) ->  | F10: Non Staff Costs | H10: ='ENTER DETAILS HERE_Costing Tab'!L16 -> 0 | I10: ='ENTER DETAILS HERE_Costing Tab'!M16 -> 0 | J10: =SUM(H10:I10) -> 0
B11: Contract ID | C11: =IF(ISBLANK('ENTER DETAILS HERE_Costing Tab'!G17),"",'ENTER DETAILS HERE_Costing Tab'!G17) ->  | F11: Indirect Costs/Overheads | H11: ='ENTER DETAILS HERE_Costing Tab'!L17 -> 0 | I11: ='ENTER DETAILS HERE_Costing Tab'!M17 -> 0 | J11: =SUM(H11:I11) -> 0
B12: Lead Agency | C12: =IF(ISBLANK('ENTER DETAILS HERE_Costing Tab'!G20),"",'ENTER DETAILS HERE_Costing Tab'!G20) ->  | H12: ='ENTER DETAILS HERE_Costing Tab'!L18 -> 0 | I12: ='ENTER DETAILS HERE_Costing Tab'!M18 -> 0 | J12: =SUM(H12:I12) -> 0
B13: Commencement Date | C13: =IF(ISBLANK('ENTER DETAILS HERE_Costing Tab'!G21),"",'ENTER DETAILS HERE_Costing Tab'!G21) -> 
B14: Completion Date | C14: =IF(ISBLANK('ENTER DETAILS HERE_Costing Tab'!G22),"",'ENTER DETAILS HERE_Costing Tab'!G22) ->  | F14: Total Project Budget | H14: =SUM(H9:H13) -> 0 | I14: =SUM(I9:I13) -> 0 | J14: =SUM(J9:J13) -> 0
B15: No of Years | C15: =IF(ISBLANK('ENTER DETAILS HERE_Costing Tab'!G23),"",'ENTER DETAILS HERE_Costing Tab'!G23) -> 0 Years, 1 Months
B16: Project Type | C16: =IF(ISBLANK('ENTER DETAILS HERE_Costing Tab'!G24),"",'ENTER DETAILS HERE_Costing Tab'!G24) -> 
B17: HERDC Category | C17: =IF(ISBLANK('ENTER DETAILS HERE_Costing Tab'!G25),"",'ENTER DETAILS HERE_Costing Tab'!G25) -> 
B18: Affiliate Organisation | C18: =IF(ISBLANK('ENTER DETAILS HERE_Costing Tab'!G28),"",'ENTER DETAILS HERE_Costing Tab'!G28) -> 
B19: Faculty | C19: =IF(ISBLANK('ENTER DETAILS HERE_Costing Tab'!G29),"",'ENTER DETAILS HERE_Costing Tab'!G29) -> 
B20: School | C20: =IF(ISBLANK('ENTER DETAILS HERE_Costing Tab'!G30),"",'ENTER DETAILS HERE_Costing Tab'!G30) -> 
B22: Summary of Project | H22: Definitions
B25: Items | C25: Cost | D25: Pricing (to Funder) | E25: Inkind | F25: Ineligible Expenses | H25: Cost includes all expenses incurred by UoA including inkind, ineligible expenses; and any surplus.
B26: Staff Costs (direct) | C26: ='ENTER DETAILS HERE_Costing Tab'!Y133 -> 0 | D26: ='ENTER DETAILS HERE_Costing Tab'!AN133 -> 0 | E26: ='ENTER DETAILS HERE_Costing Tab'!AP133 -> 0 | F26: ='ENTER DETAILS HERE_Costing Tab'!AQ133 -> 0
B27: Operating Expenses excl Collaborators | C27: ='ENTER DETAILS HERE_Costing Tab'!Y208-C28 -> 0 | D27: ='ENTER DETAILS HERE_Costing Tab'!AN208-D28 -> 0 | E27: ='ENTER DETAILS HERE_Costing Tab'!AP208-E28 -> 0 | F27: ='ENTER DETAILS HERE_Costing Tab'!AQ208-F28 -> 0 | H27: Pricing is price the Funder will pay (excluding inkind and ineligible expenses and UoA and other cash contributions)
B28: Collaborators | C28: =SUMIFS('ENTER DETAILS HERE_Costing Tab'!$Y$144:$Y$158,'ENTER DETAILS HERE_Costing Tab'!$E$144:$E$158,"Collaborator Payments") -> 0 | D28: =SUMIFS('ENTER DETAILS HERE_Costing Tab'!$AN$144:$AN$158,'ENTER DETAILS HERE_Costing Tab'!$E$144:$E$158,"Collaborator Payments") -> 0 | E28: =SUMIFS('ENTER DETAILS HERE_Costing Tab'!$AP$144:$AP$158,'ENTER DETAILS HERE_Costing Tab'!$E$144:$E$158,"Collaborator Payments") -> 0 | F28: =SUMIFS('ENTER DETAILS HERE_Costing Tab'!$AQ$144:$AQ$158,'ENTER DETAILS HERE_Costing Tab'!$E$144:$E$158,"Collaborator Payments") -> 0
B29: Indirect Cost Allocation (ICA) | C29: =C43 -> 0 | D29: =C43 -> 0 | E29: 0 | F29: 0 | H29: Inkind includes items UoA are supplying/contributing to project
B30: Operating Expenses Overhead | C30: =SUM('ENTER DETAILS HERE_Costing Tab'!Y234) -> 0 | D30: =SUM('ENTER DETAILS HERE_Costing Tab'!AN234) -> 0 | E30: ='ENTER DETAILS HERE_Costing Tab'!AP234 -> 0 | F30: ='ENTER DETAILS HERE_Costing Tab'!AQ234 -> 0
B31: Other Overhead / Surplus | C31: ='ENTER DETAILS HERE_Costing Tab'!Y240-SUM(C26:C30) -> 0 | D31: ='ENTER DETAILS HERE_Costing Tab'!AN240-SUM(D26:D30) -> 0 | E31: ='ENTER DETAILS HERE_Costing Tab'!AP240-SUM(E26:E30) -> 0 | F31: ='ENTER DETAILS HERE_Costing Tab'!AQ240-SUM(F26:F30) -> 0 | H31: Ineligible Expenses are the items Funder will not fund; Note as this is not funded, it may need to be covered within the Faculty/School
B32: Less UoA Cash Contributions | C32: =-SUMIF('ENTER DETAILS HERE_Costing Tab'!$E$40:$F$54,"University of Adelaide",'ENTER DETAILS HERE_Costing Tab'!$Y$40:$Y$54) -> 0 | D32: =-SUMIF('ENTER DETAILS HERE_Costing Tab'!$E$40:$F$54,"University of Adelaide",'ENTER DETAILS HERE_Costing Tab'!$Y$40:$Y$54) -> 0 | E32: 0 | F32: 0
B33: Less Other Cash Contributions | C33: =-'ENTER DETAILS HERE_Costing Tab'!Y55-C32 -> 0 | D33: =-'ENTER DETAILS HERE_Costing Tab'!Y55-D32 -> 0 | E33: 0 | F33: 0 | H33: Other Contributionsare cash contributions from sources; not from the sponsor
B34: Total | C34: =SUM(C26:C33) -> 0 | D34: =SUM(D26:D33) -> 0 | E34: =SUM(E26:E33) -> 0 | F34: =SUM(F26:F33) -> 0
H35: Overhead refers to the charges above cost consisting of overheads and margin applied to the labour component. Policy states it should be no lower than 35% and competitively neutral i.e. market rate (whichever is the greater). This is currently calculated to be ~ 65%. With 10-15% margin, it equates to 75% to 80% overall. This is market dependent.
B39: Indirect Cost Allocation | C39: Amount | D39: % of Exp | E39: % of Rev | H39: Definitions
B40: Faculty | C40: =SUM('ENTER DETAILS HERE_Costing Tab'!$AN$133,'ENTER DETAILS HERE_Costing Tab'!$AN$233,'ENTER DETAILS HERE_Costing Tab'!$AN$235)*$D40 -> 0 | D40: =IFERROR(VLOOKUP($C$16,ICA,2,FALSE),0) -> 0 | E40: =C40/$D$34 ->  | H40: Indirect Cost allocation: Reflects the recovery of costs (overheads) and built into the price. Set at 20% for contract research and 25% for consultancies (off of the labour component only).
B41: School | C41: =SUM('ENTER DETAILS HERE_Costing Tab'!$AN$133,'ENTER DETAILS HERE_Costing Tab'!$AN$233,'ENTER DETAILS HERE_Costing Tab'!$AN$235)*$D41 -> 0 | D41: =IFERROR(VLOOKUP($C$16,ICA,3,FALSE),0) -> 0 | E41: =C41/$D$34 -> 
B42: DRI | C42: =SUM('ENTER DETAILS HERE_Costing Tab'!$AN$133,'ENTER DETAILS HERE_Costing Tab'!$AN$233,'ENTER DETAILS HERE_Costing Tab'!$AN$235)*$D42 -> 0 | D42: =IFERROR(VLOOKUP($C$16,ICA,4,FALSE),0) -> 0 | E42: =C42/$D$34 ->  | H42: % of Expenses calculation: % of staff costs, salaries overhead and other overhead that the funder will pay
B43: Total Indirect Cost Allocation | C43: =SUM(C40:C42) -> 0 | D43: =SUM(D40:D42) -> 0 | E43: =SUM(E40:E42) -> 
H44: % of Revenue calculation: Indirect cost allocation amount as % a of total price the funder will pay
H46: Exemption process: Controlled by DRI
H47: Approval process: Required prior to contract
H48: - Head of School to waive their component 25% of ICA
H49: - Faculty to waive their component 50% of ICA
H50: - DRI to waive their component 25% of ICA
B52: Authorisation Workflow
B53: RECOMMENDED FOR EXECUTION
B54: Title | C54: Name | E54: Signature | G54: Date
B55: Chief Investigator | C55: ='ENTER DETAILS HERE_Costing Tab'!G16 -> 0
B56: Head of School
B57: Head of Faculty
B59: For reference only
B60: RSP Estimation Only | C60: Total | E60: NOTE - RSP is allocated at Faculty level, not to individual projects
B61: Total Research Revenue | C61: =D34 -> 0 | E61: RSP = Research Support Program - it provides funding to HEPs to support the systemic costs of research such as libraries, laboratories, consumables, computing centres and the salaries of support and technical staff, as well as research costs not supported directly through Australian competitive grants and other sources.
B62: Less: Collaborator Payments | C62: =-D28 -> 0
B63: Research Revenue (net collaborator payments) | C63: =SUM(C61:C62) -> 0 | E63: Total Research Revenue is Project Pricing + Other Revenue Contribution (excludes UoA contributions)
B64: Total RSP Estimated Range ($'000) | C64: =IF($C17="Non HERDC",0,IF(ROUNDDOWN(IF($C17="Category 1",C$67,C$68)*$C$63,-3)-50000<0,0,ROUNDDOWN(IF($C17="Category 1",C$67,C$68)*$C$63,-3)-50000)/1000&"-"&ROUNDDOWN(IF($C17="Category 1",C$67,C$68)*$C$63,-3)/1000) -> 0-0 | E64: RSP is paid 50% in 2 years and remaining 50% in year 3
B66: Estimated RSP Rates | C66: c/$
B67: Category 1 | C67: =VLOOKUP($B67,RSP_Returns,2,FALSE) -> 0.35 | E67: Rates based last RSP payment received
B68: Category 2-4 | C68: =VLOOKUP($B68,RSP_Returns,2,FALSE) -> 0.24
B70: Return on Investment | C70: $
B71: Pricing (to funder) | C71: =D34 -> 0
B72: Other Cash Contributions | C72: =-D33 -> 0
B73: Total Funds to UoA | C73: =SUM(C71:C72) -> 0
B74: UoA Cash Contributions | C74: =-D32 -> 0
B75: Total Return on Investment | C75: =IFERROR(C73/C74,0) -> 0 | E75: Note: This ROI calculation is based on money only (calculated as total funds to UoA divided by UoA cash contributions); additional ROI may be reputation, future opportunities, prestige, rankings etc

Sheet Major Funder Tables (DRAFT) (hidden)
A1: Tables linked to pricing - formated to suit major funders submission formats
A3: ARC
A4: NHRMC
A5: DSTG
A7: Example | B7: Year 1 | C7: Year 2 | D7: Year 3 | E7: Year 4 | F7: Year 5 | G7: Year 6 | H7: Year 7 | I7: TOTAL
A8: Other Revenue | I8: =SUM(B8:H8) -> 0
A9: Salaries | I9: =SUM(B9:H9) -> 0
A10: Salaries oncosts | I10: 0
A11: Operating | I11: 0
A12: Travel | I12: 0
A13: Infrastructure | I13: 0
A14: Indirect/Overheads | I14: 0
A15: TOTAL FUNDED | B15: =SUM(B8:B14) -> 0 | C15: =SUM(C8:C14) -> 0 | D15: 0 | E15: 0 | F15: 0 | G15: 0 | H15: 0
A16: TOTAL INKIND | I16: =SUM(B16:G16) -> 0

Sheet Expenditure Plan
B2: Project Expenditure Authority
B3: =IF(ISBLANK($D$21),"",$D$21) ->  | C3: Funded
B4: Salaries | C4: =Summary!D26 -> 0
B5: Stipend | C5: ='ENTER DETAILS HERE_Costing Tab'!AN183 -> 0
B6: Travel | C6: ='ENTER DETAILS HERE_Costing Tab'!AN206 -> 0
B7: Capital | C7: =SUMIFS('ENTER DETAILS HERE_Costing Tab'!$AN$144:$AN$158,'ENTER DETAILS HERE_Costing Tab'!$E$144:$E$158,"Capital Item > $10k") -> 0
B8: Operating | C8: =SUMIFS('ENTER DETAILS HERE_Costing Tab'!$AN$144:$AN$158,'ENTER DETAILS HERE_Costing Tab'!$E$144:$E$158,"Temporary/Agency Staff Costs")+SUMIFS('ENTER DETAILS HERE_Costing Tab'!$AN$144:$AN$158,'ENTER DETAILS HERE_Costing Tab'!$E$144:$E$158,"Other Operating Expenses") -> 0
B9: Collaborator Payment Cat 1 | C9: =IF(Summary!$C$17="Category 1",Summary!$D$28,0) -> 0
B10: Collaborator Payment Cat 2 | C10: =IF(Summary!$C$17="Category 2",Summary!$D$28,0) -> 0
B11: Collaborator Payment Cat 3 | C11: =IF(Summary!$C$17="Category 3",Summary!$D$28,0) -> 0
B12: Collaborator Payment Cat 4 | C12: =IF(Summary!$C$17="Category 4",Summary!$D$28,0) -> 0
B13: Collaborator Payment Non Res | C13: =IF(Summary!$C$17="Non HERDC",Summary!$D$28,0) -> 0
B14: Subcontractor | C14: =SUMIFS('ENTER DETAILS HERE_Costing Tab'!$AN$144:$AN$158,'ENTER DETAILS HERE_Costing Tab'!$E$144:$E$158,"Subcontractor Payments") -> 0
B15: Indirect Cost Allocation | C15: =Summary!D29 -> 0
B16: Operating Expenses Recover | C16: =SUM(Summary!D30:D30) -> 0
B17: UoA Cash Contributions | C17: =Summary!D32 -> 0
B18: Other Cash Contributions | C18: =Summary!D33 -> 0
B19: Surplus | C19: =Summary!D31 -> 0
B21: TOTAL Project Price | C21: =SUM(C4:C20) -> 0
B23: *** This table only shows the total amount that the funder will pay. ***

Sheet Foreign Exchange - OPTIONAL
B2: Foreign Exchange | C2: Pricing (to Funder)
C3: AUD | D3: =IF(ISBLANK($C$15),"",$C$15) -> 
B4: Staff Costs | C4: =Summary!D26 -> 0 | D4: =C4*$C$16 -> 0
B5: Operating Expenses excl Collaborators | C5: =Summary!D27 -> 0 | D5: =C5*$C$16 -> 0
B6: Collaborators | C6: =Summary!D28 -> 0 | D6: 0
B7: Indirect Cost Allocation (ICA) | C7: =Summary!D29 -> 0 | D7: 0
B8: Operating Expenses Recovery | C8: =Summary!D30 -> 0 | D8: 0
B9: Less UoA Cash Contributions | C9: =Summary!D32 -> 0 | D9: 0
B10: Less Other Cash Contributions | C10: =Summary!D33 -> 0 | D10: 0
B11: Surplus | C11: =Summary!D31 -> 0 | D11: 0
B12: Total | C12: =SUM(C4:C11) -> 0 | D12: =SUM(D4:D11) -> 0
B14: Foreign Currency details:
B15: Currency
B16: Exchange rate

Sheet In-kind Calculator - OPTIONAL
A1: Calculating University In-kind (Direct and Indirect) for Research Grants (typically used for RDCs and other industry grants)
A3: Indirect costs represent the cost to the University in providing its personnel with the infrastructure necessary to support the research activity undertaken.
A4: This includes:
A5: - the provision and maintenance of buildings and physical infrastructure including access to equipment and lab facilities
A6: - university-wide information resources and technology
A7: - basic telecommunications
A8: - insurance and legal services
A9: - financial management services
A10: - administrative services at central, Faculty and School level
A13: A. For all University personnel Level A or above whose salary is funded by UA:
A15: Annual direct in-kind costs
A16: Annual staff salary | C16: Enter annual staff salary (available https://www.adelaide.edu.au/hr/salary-and-benefits/salary-and-pay-rates)
A17: Time to be spent on the project | C17: Enter FTE spent on the project (value should be 0 to 1)
A18: Salary (plus 29.5% on-costs) | B18: =B16*B17*1.295 -> 0 | C18: University direct In-kind
A20: AND
A22: Annual indirect in-kind costs for lab-based research staff (x 1.25 multiplier)
A23: Annual staff salary | C23: Enter annual staff salary (available https://www.adelaide.edu.au/hr/salary-and-benefits/salary-and-pay-rates)
A24: Time to be spent on the project | C24: Enter FTE spent on the project (value should be 0 to 1)
A25: Annual salary (plus 29.5% on-costs) | B25: =B23*B24*1.295 -> 0
B26: =B25*1.25 -> 0 | C26: University indirect In-kind
A28: OR
A30: Annual indirect in-kind costs for non lab-based research staff (x 0.92)
A31: Annual staff salary | C31: Enter annual staff salary (available https://www.adelaide.edu.au/hr/salary-and-benefits/salary-and-pay-rates)
A32: Time to be spent on the project | C32: Enter FTE spent on the project (value should be 0 to 1)
A33: Annual salary (plus 29.5% on-costs) | B33: =B31*B32*1.295 -> 0
B34: =B33*0.92 -> 0 | C34: University indirect In-kind
B37: =B18+B26 -> 0 | C37: Total University in-kind for lab-based research staff whose salary is funded by UA
B38: OR
B39: =B18+B34 -> 0 | C39: Total University in-kind for non lab-based research staff whose salary is funded by UA
A43: B. For all University personnel Level A or above whose salary is funded by the sponsor:
A45: Annual direct in-kind costs | C45: Not applicable for personnel funded by the sponsor
B46: 0 | C46: University direct In-kind
A48: Annual indirect in-kind costs for lab-based research staff (x 1.25 multiplier)
A49: Annual staff salary | C49: Enter annual staff salary (available https://www.adelaide.edu.au/hr/salary-and-benefits/salary-and-pay-rates)
A50: Time to be spent on the project | C50: Enter FTE spent on the project (value should be 0 to 1)
A51: Annual salary (plus 29.5% on-costs) | B51: =B49*B50*1.295 -> 0
B52: =B51*1.25 -> 0
A54: OR
A56: Annual indirect in-kind costs for non lab-based research staff (x 0.92 mulitplier)
A57: Annual staff salary | C57: Enter annual staff salary (available https://www.adelaide.edu.au/hr/salary-and-benefits/salary-and-pay-rates)
A58: Time to be spent on the project | C58: Enter FTE spent on the project (value should be 0 to 1)
A59: Annual salary (plus 29.5% on-costs) | B59: =B57*B58*1.295 -> 0
B60: =B59*0.92 -> 0 | C60: University indirect In-kind
B63: =B46+B52 -> 0 | C63: Total University in-kind for lab-based research staff whose salary is funded by UA
B64: OR
B65: =B46+B60 -> 0 | C65: Total University in-kind for non lab-based research staff whose salary is funded by UA
A70: Justification or explanation of formulae to be used for research grant applications, when sought by the sponsor:
A71: UA provides the direct in-kind support of the cost of the salary and on-costs (29.5%) of all University personnel at Level A or above whose salary is paid by UA.
A72: UA also uses the standard AVCC/Universities Australia multipliers of 125% of salary + on-costs (for lab-based research) or 92% (for non lab-based research) to calculate the indirect or “infrastructure” overheads incurred in supporting University research personnel at Level A or above working on the project.
A73: This project has been identified as laboratory-based research / non-lab-based research (delete as appropriate).

Sheet Quick Salary Calc - OPTIONAL
A1: 1
C2: SALARY ESTIMATOR
C4: Input | J4: Workings
C5: Position: | K5: Year: | L5: =+YEAR(TODAY()) -> 2024 | M5: =+L5+1 -> 2025 | N5: =+M5+1 -> 2026 | O5: =+N5+1 -> 2027 | P5: =+O5+1 -> 2028 | Q5: =+P5+1 -> 2029 | R5: Total
K6: Step: | L6: =IF(E13=L5,IF(D10="UNK","N/A",D10),0) -> 0 | M6: =IFERROR(IF(L6=0,IF($E13=M5,$D10,0),IF(M5>$E14,0,IF((L6+1)>'Staff Salaries'!$AB$20,'Staff Salaries'!$AB$20,(L6+1)))),"N/A") -> 0 | N6: =IFERROR(IF(M6=0,IF($E13=N5,$D10,0),IF(N5>$E14,0,IF((M6+1)>'Staff Salaries'!$AB$20,'Staff Salaries'!$AB$20,(M6+1)))),"N/A") -> 0 | O6: =IFERROR(IF(N6=0,IF($E13=O5,$D10,0),IF(O5>$E14,0,IF((N6+1)>'Staff Salaries'!$AB$20,'Staff Salaries'!$AB$20,(N6+1)))),"N/A") -> 0 | P6: =IFERROR(IF(O6=0,IF($E13=P5,$D10,0),IF(P5>$E14,0,IF((O6+1)>'Staff Salaries'!$AB$20,'Staff Salaries'!$AB$20,(O6+1)))),"N/A") -> 0 | Q6: =IFERROR(IF(P6=0,IF($E13=Q5,$D10,0),IF(Q5>$E14,0,IF((P6+1)>'Staff Salaries'!$AB$20,'Staff Salaries'!$AB$20,(P6+1)))),"N/A") -> 0
C7: FTE: | K7: Inflation Increase:
C8: Salary Code: | K8: Salary (Full Year): | L8: =IF(AND($D$8="UNK",L5<=$E$14,L5>=$E$13),$E$8*(1+L7),SUM(('Staff Salaries'!$A3:$A774='Quick Salary Calc - OPTIONAL'!$D$8)*('Staff Salaries'!$B$3:$B$774='Quick Salary Calc - OPTIONAL'!$D$9)*('Staff Salaries'!$C$3:$C$774=L6)*('Staff Salaries'!$D3:$D774='Quick Salary Calc - OPTIONAL'!L$5)*('Staff Salaries'!$E$3:$E$774))*(1+L7)) -> 0 | M8: =IF(AND($D$8="UNK",M5<=$E$14,M5>=$E$13),IF(L8=0,$E$8,L8*(1+M7)),SUM(('Staff Salaries'!$A3:$A774='Quick Salary Calc - OPTIONAL'!$D$8)*('Staff Salaries'!$B$3:$B$774='Quick Salary Calc - OPTIONAL'!$D$9)*('Staff Salaries'!$C$3:$C$774=M6)*('Staff Salaries'!$D3:$D774='Quick Salary Calc - OPTIONAL'!M$5)*('Staff Salaries'!$E$3:$E$774))*(1+M7)) -> 0 | N8: =IF(AND($D$8="UNK",N5<=$E$14,N5>=$E$13),IF(M8=0,$E$8,M8*(1+N7)),SUM(('Staff Salaries'!$A3:$A774='Quick Salary Calc - OPTIONAL'!$D$8)*('Staff Salaries'!$B$3:$B$774='Quick Salary Calc - OPTIONAL'!$D$9)*('Staff Salaries'!$C$3:$C$774=N6)*('Staff Salaries'!$D3:$D774='Quick Salary Calc - OPTIONAL'!N$5)*('Staff Salaries'!$E$3:$E$774))*(1+N7)) -> 0 | O8: =IF(AND($D$8="UNK",O5<=$E$14,O5>=$E$13),IF(N8=0,$E$8,N8*(1+O7)),SUM(('Staff Salaries'!$A3:$A774='Quick Salary Calc - OPTIONAL'!$D$8)*('Staff Salaries'!$B$3:$B$774='Quick Salary Calc - OPTIONAL'!$D$9)*('Staff Salaries'!$C$3:$C$774=O6)*('Staff Salaries'!$D3:$D774='Quick Salary Calc - OPTIONAL'!O$5)*('Staff Salaries'!$E$3:$E$774))*(1+O7)) -> 0 | P8: =IF(AND($D$8="UNK",P5<=$E$14,P5>=$E$13),IF(O8=0,$E$8,O8*(1+P7)),SUM(('Staff Salaries'!$A3:$A774='Quick Salary Calc - OPTIONAL'!$D$8)*('Staff Salaries'!$B$3:$B$774='Quick Salary Calc - OPTIONAL'!$D$9)*('Staff Salaries'!$C$3:$C$774=P6)*('Staff Salaries'!$D3:$D774='Quick Salary Calc - OPTIONAL'!P$5)*('Staff Salaries'!$E$3:$E$774))*(1+P7)) -> 0 | Q8: =IF(AND($D$8="UNK",Q5<=$E$14,Q5>=$E$13),IF(P8=0,$E$8,P8*(1+Q7)),SUM(('Staff Salaries'!$A3:$A774='Quick Salary Calc - OPTIONAL'!$D$8)*('Staff Salaries'!$B$3:$B$774='Quick Salary Calc - OPTIONAL'!$D$9)*('Staff Salaries'!$C$3:$C$774=Q6)*('Staff Salaries'!$D3:$D774='Quick Salary Calc - OPTIONAL'!Q$5)*('Staff Salaries'!$E$3:$E$774))*(1+Q7)) -> 0
C9: Band: | K9: Months: | L9: =IF(AND($E$13=$E$14, $E$13 =L$5),$D$14-$D$13+1,IF($E$13=L$5,12-$D$13+1,IF($E$14=L$5,$D$14,IF(AND(L$5>$E$13,L$5<$E$14),12,0)))) -> 0 | M9: =IF(AND($E$13=$E$14, $E$13=M$5),$D$14-$D$13+1,IF($E$13=M$5,12-$D$13+1,IF($E$14=M$5,$D$14,IF(AND(M$5>$E$13,M$5<$E$14),12,0)))) -> 0 | N9: =IF(AND($E$13=$E$14, $E$13 =N$5),$D$14-$D$13+1,IF($E$13=N$5,12-$D$13+1,IF($E$14=N$5,$D$14,IF(AND(N$5>$E$13,N$5<$E$14),12,0)))) -> 0 | O9: =IF(AND($E$13=$E$14, $E$13 =O$5),$D$14-$D$13+1,IF($E$13=O$5,12-$D$13+1,IF($E$14=O$5,$D$14,IF(AND(O$5>$E$13,O$5<$E$14),12,0)))) -> 0 | P9: =IF(AND($E$13=$E$14, $E$13 =P$5),$D$14-$D$13+1,IF($E$13=P$5,12-$D$13+1,IF($E$14=P$5,$D$14,IF(AND(P$5>$E$13,P$5<$E$14),12,0)))) -> 0 | Q9: =IF(AND($E$13=$E$14, $E$13 =Q$5),$D$14-$D$13+1,IF($E$13=Q$5,12-$D$13+1,IF($E$14=Q$5,$D$14,IF(AND(Q$5>$E$13,Q$5<$E$14),12,0)))) -> 0 | R9: =+SUM(L9:Q9) -> 0
C10: Step: | L10: =IF(D17>L9, L9, D17) -> 0 | M10: =IF(D17>L9, IF(D17>L9+12, 12, D17-L9), ) -> 0 | N10: =IF(D17>L9+M9, IF(D17>L9+M9+12, 12, D17-L9-M9), ) -> 0 | O10: =IF(D17>L9+M9+N9, IF(D17>L9+M9+N9+12, 12, D17-L9-M9-N9), ) -> 0 | P10: =IF(D17>L9+M9+N9+O9, IF(D17>L9+M9+N9+O9+12, 12, D17-L9-M9-N9-O9), ) -> 0 | Q10: =IF(D17>L9+M9+N9+O9+P9, IF(D17>L9+M9+N9+O9+P9+12, 12, D17-L9-M9-N9-O9-P9), ) -> 0 | R10: 0
C11: Super: | D11: 0.17 | K11: Base Salary: | L11: =(IF(AND($D$8="UNK",L5<=$E$14,L5>=$E$13),$E$8*(L9/12)*(1+L7),SUM(('Staff Salaries'!$A3:$A774='Quick Salary Calc - OPTIONAL'!$D$8)*('Staff Salaries'!$B$3:$B$774='Quick Salary Calc - OPTIONAL'!$D$9)*('Staff Salaries'!$C$3:$C$774=L6)*('Staff Salaries'!$D3:$D774='Quick Salary Calc - OPTIONAL'!L$5-1)*('Staff Salaries'!$F$3:$F$774)/12*(IF(AND(L5=$E$14,$D$14<6),$L$9,IF($E13<L5,6,7-$D$13))*(1+L7)))+MAX(IF(AND($D$8="UNK",L5<=$D$14,L5>=$D$13),$E$8*(1+L7),SUM(('Staff Salaries'!$A3:$A774='Quick Salary Calc - OPTIONAL'!$D$8)*('Staff Salaries'!$B$3:$B$774='Quick Salary Calc - OPTIONAL'!$D$9)*('Staff Salaries'!$C$3:$C$774=L6)*('Staff Salaries'!$D3:$D774='Quick Salary Calc - OPTIONAL'!L$5)*('Staff Salaries'!$F$3:$F$774)/12*(IF($E$14>L$5,6,$D$14-6))))*(1+L7),0))*$D$7) -> 0 | M11: =(IF(AND($D$8="UNK",M5<=$E$14,M5>=$E$13),$E$8*(M9/12)*(1+M7),SUM(('Staff Salaries'!$A3:$A774='Quick Salary Calc - OPTIONAL'!$D$8)*('Staff Salaries'!$B$3:$B$774='Quick Salary Calc - OPTIONAL'!$D$9)*('Staff Salaries'!$C$3:$C$774=M6)*('Staff Salaries'!$D3:$D774='Quick Salary Calc - OPTIONAL'!M$5-1)*('Staff Salaries'!$F$3:$F$774)/12*(IF(AND(M5=$E$14,$D$14<6),$M$9,IF($E13<M5,6,7-$D$13))*(1+M7)))+MAX(IF(AND($D$8="UNK",M5<=$D$14,M5>=$D$13),$E$8*(1+M7),SUM(('Staff Salaries'!$A3:$A774='Quick Salary Calc - OPTIONAL'!$D$8)*('Staff Salaries'!$B$3:$B$774='Quick Salary Calc - OPTIONAL'!$D$9)*('Staff Salaries'!$C$3:$C$774=M6)*('Staff Salaries'!$D3:$D774='Quick Salary Calc - OPTIONAL'!M$5)*('Staff Salaries'!$F$3:$F$774)/12*(IF($E$14>M$5,6,$D$14-6))))*(1+M7),0))*$D$7) -> 0 | N11: =(IF(AND($D$8="UNK",N5<=$E$14,N5>=$E$13),$E$8*(N9/12)*(1+N7),SUM(('Staff Salaries'!$A3:$A774='Quick Salary Calc - OPTIONAL'!$D$8)*('Staff Salaries'!$B$3:$B$774='Quick Salary Calc - OPTIONAL'!$D$9)*('Staff Salaries'!$C$3:$C$774=N6)*('Staff Salaries'!$D3:$D774='Quick Salary Calc - OPTIONAL'!N$5-1)*('Staff Salaries'!$F$3:$F$774)/12*(IF(AND(N5=$E$14,$D$14<6),$N$9,IF($E13<N5,6,7-$D$13))*(1+N7)))+MAX(IF(AND($D$8="UNK",N5<=$D$14,N5>=$D$13),$E$8*(1+N7),SUM(('Staff Salaries'!$A3:$A774='Quick Salary Calc - OPTIONAL'!$D$8)*('Staff Salaries'!$B$3:$B$774='Quick Salary Calc - OPTIONAL'!$D$9)*('Staff Salaries'!$C$3:$C$774=N6)*('Staff Salaries'!$D3:$D774='Quick Salary Calc - OPTIONAL'!N$5)*('Staff Salaries'!$F$3:$F$774)/12*(IF($E$14>N$5,6,$D$14-6))))*(1+N7),0))*$D$7) -> 0 | O11: =(IF(AND($D$8="UNK",O5<=$E$14,O5>=$E$13),$E$8*(O9/12)*(1+O7),SUM(('Staff Salaries'!$A3:$A774='Quick Salary Calc - OPTIONAL'!$D$8)*('Staff Salaries'!$B$3:$B$774='Quick Salary Calc - OPTIONAL'!$D$9)*('Staff Salaries'!$C$3:$C$774=O6)*('Staff Salaries'!$D3:$D774='Quick Salary Calc - OPTIONAL'!O$5-1)*('Staff Salaries'!$F$3:$F$774)/12*(IF(AND(O5=$E$14,$D$14<6),$O$9,IF($E13<O5,6,7-$D$13))*(1+O7)))+MAX(IF(AND($D$8="UNK",O5<=$D$14,O5>=$D$13),$E$8*(1+O7),SUM(('Staff Salaries'!$A3:$A774='Quick Salary Calc - OPTIONAL'!$D$8)*('Staff Salaries'!$B$3:$B$774='Quick Salary Calc - OPTIONAL'!$D$9)*('Staff Salaries'!$C$3:$C$774=O6)*('Staff Salaries'!$D3:$D774='Quick Salary Calc - OPTIONAL'!O$5)*('Staff Salaries'!$F$3:$F$774)/12*(IF($E$14>O$5,6,$D$14-6))))*(1+O7),0))*$D$7) -> 0 | P11: =(IF(AND($D$8="UNK",P5<=$E$14,P5>=$E$13),$E$8*(P9/12)*(1+P7),SUM(('Staff Salaries'!$A3:$A774='Quick Salary Calc - OPTIONAL'!$D$8)*('Staff Salaries'!$B$3:$B$774='Quick Salary Calc - OPTIONAL'!$D$9)*('Staff Salaries'!$C$3:$C$774=P6)*('Staff Salaries'!$D3:$D774='Quick Salary Calc - OPTIONAL'!P$5-1)*('Staff Salaries'!$F$3:$F$774)/12*(IF(AND(P5=$E$14,$D$14<6),$P$9,IF($E13<P5,6,7-$D$13))*(1+P7)))+MAX(IF(AND($D$8="UNK",P5<=$D$14,P5>=$D$13),$E$8*(1+P7),SUM(('Staff Salaries'!$A3:$A774='Quick Salary Calc - OPTIONAL'!$D$8)*('Staff Salaries'!$B$3:$B$774='Quick Salary Calc - OPTIONAL'!$D$9)*('Staff Salaries'!$C$3:$C$774=P6)*('Staff Salaries'!$D3:$D774='Quick Salary Calc - OPTIONAL'!P$5)*('Staff Salaries'!$F$3:$F$774)/12*(IF($E$14>P$5,6,$D$14-6))))*(1+P7),0))*$D$7) -> 0 | Q11: =(IF(AND($D$8="UNK",Q5<=$E$14,Q5>=$E$13),$E$8*(Q9/12)*(1+Q7),SUM(('Staff Salaries'!$A3:$A774='Quick Salary Calc - OPTIONAL'!$D$8)*('Staff Salaries'!$B$3:$B$774='Quick Salary Calc - OPTIONAL'!$D$9)*('Staff Salaries'!$C$3:$C$774=Q6)*('Staff Salaries'!$D3:$D774='Quick Salary Calc - OPTIONAL'!Q$5-1)*('Staff Salaries'!$F$3:$F$774)/12*(IF(AND(Q5=$E$14,$D$14<6),$Q$9,IF($E13<Q5,6,7-$D$13))*(1+Q7)))+MAX(IF(AND($D$8="UNK",Q5<=$D$14,Q5>=$D$13),$E$8*(1+Q7),SUM(('Staff Salaries'!$A3:$A774='Quick Salary Calc - OPTIONAL'!$D$8)*('Staff Salaries'!$B$3:$B$774='Quick Salary Calc - OPTIONAL'!$D$9)*('Staff Salaries'!$C$3:$C$774=Q6)*('Staff Salaries'!$D3:$D774='Quick Salary Calc - OPTIONAL'!Q$5)*('Staff Salaries'!$F$3:$F$774)/12*(IF($E$14>Q$5,6,$D$14-6))))*(1+Q7),0))*$D$7) -> 0 | R11: 0
C12: Optional Contribution: | K12: Loadings: | L12: =IF($D17=0,0,L10/$D$17*$D$16*$D$17/12) -> 0 | M12: 0 | N12: 0 | O12: 0 | P12: 0 | Q12: 0 | R12: 0
C13: Start: | K13: Super: | L13: =(L11)*$D$11 -> 0 | M13: =(M11+M16)*$D$11 -> 0 | N13: =(N11+N16)*$D$11 -> 0 | O13: =(O11+O16)*$D$11 -> 0 | P13: =(P11+P16)*$D$11 -> 0 | Q13: =(Q11+Q16)*$D$11 -> 0 | R13: 0
C14: Finish: | K14: On Costs: | L14: ='Staff Salaries'!$R$3*(L11+L12+L13+L16)+'Staff Salaries'!$R$4*(L11+L12+L16+L13)+'Staff Salaries'!$R$5*(L11+L12) -> 0 | M14: ='Staff Salaries'!$R$3*(M11+M12+M13+M16)+'Staff Salaries'!$R$4*(M11+M12+M16+M13)+(0%+'Staff Salaries'!$R$5)*('Staff Salaries'!$R$7/'Staff Salaries'!$R$8*(M11+M12)) -> 0 | N14: ='Staff Salaries'!$R$3*(N11+N12+N13+N16)+'Staff Salaries'!$R$4*(N11+N12+N16+N13)+(0%+'Staff Salaries'!$R$5)*('Staff Salaries'!$R$7/'Staff Salaries'!$R$8*(N11+N12)) -> 0 | O14: ='Staff Salaries'!$R$3*(O11+O12+O13+O16)+'Staff Salaries'!$R$4*(O11+O12+O16+O13)+(0%+'Staff Salaries'!$R$5)*('Staff Salaries'!$R$7/'Staff Salaries'!$R$8*(O11+O12)) -> 0 | P14: ='Staff Salaries'!$R$3*(P11+P12+P13+P16)+'Staff Salaries'!$R$4*(P11+P12+P16+P13)+(0%+'Staff Salaries'!$R$5)*('Staff Salaries'!$R$7/'Staff Salaries'!$R$8*(P11+P12)) -> 0 | Q14: ='Staff Salaries'!$R$3*(Q11+Q12+Q13+Q16)+'Staff Salaries'!$R$4*(Q11+Q12+Q16+Q13)+(0%+'Staff Salaries'!$R$5)*('Staff Salaries'!$R$7/'Staff Salaries'!$R$8*(Q11+Q12)) -> 0 | R14: 0
K15: Additional Contributions: | L15: =IF($D$12="Yes",L11*'Staff Salaries'!$R$33,0) -> 0 | M15: =IF($D$12="Yes",M11*2.95%,0) -> 0 | N15: =IF($D$12="Yes",N11*2.95%,0) -> 0 | O15: =IF($D$12="Yes",O11*2.95%,0) -> 0 | P15: =IF($D$12="Yes",P11*2.95%,0) -> 0 | Q15: =IF($D$12="Yes",Q11*2.95%,0) -> 0 | R15: 0
C16: Loadings (Optional): | E16: $ per annum | G16: Salary & Pay Rates | K16: AL Loading: | L16: =IF('Staff Salaries'!$R$11/'Staff Salaries'!$R$12*'Staff Salaries'!$R$13*(L11+L12)>'Staff Salaries'!$R$29*(1+SUM($L$7:L7)),'Staff Salaries'!$R$29*(1+SUM($L$7:L7)),'Staff Salaries'!$R$11/'Staff Salaries'!$R$12*'Staff Salaries'!$R$13*(L11+L12)) -> 0 | M16: =IF('Staff Salaries'!$R$11/'Staff Salaries'!$R$12*'Staff Salaries'!$R$13*(M11+M12)>'Staff Salaries'!$R$29*(1+SUM($L$7:M7)),'Staff Salaries'!$R$29*(1+SUM($L$7:M7)),'Staff Salaries'!$R$11/'Staff Salaries'!$R$12*'Staff Salaries'!$R$13*(M11+M12)) -> 0 | N16: =IF('Staff Salaries'!$R$11/'Staff Salaries'!$R$12*'Staff Salaries'!$R$13*(N11+N12)>'Staff Salaries'!$R$29*(1+SUM($L$7:N7)),'Staff Salaries'!$R$29*(1+SUM($L$7:N7)),'Staff Salaries'!$R$11/'Staff Salaries'!$R$12*'Staff Salaries'!$R$13*(N11+N12)) -> 0 | O16: =IF('Staff Salaries'!$R$11/'Staff Salaries'!$R$12*'Staff Salaries'!$R$13*(O11+O12)>'Staff Salaries'!$R$29*(1+SUM($L$7:O7)),'Staff Salaries'!$R$29*(1+SUM($L$7:O7)),'Staff Salaries'!$R$11/'Staff Salaries'!$R$12*'Staff Salaries'!$R$13*(O11+O12)) -> 0 | P16: =IF('Staff Salaries'!$R$11/'Staff Salaries'!$R$12*'Staff Salaries'!$R$13*(P11+P12)>'Staff Salaries'!$R$29*(1+SUM($L$7:P7)),'Staff Salaries'!$R$29*(1+SUM($L$7:P7)),'Staff Salaries'!$R$11/'Staff Salaries'!$R$12*'Staff Salaries'!$R$13*(P11+P12)) -> 0 | Q16: =IF('Staff Salaries'!$R$11/'Staff Salaries'!$R$12*'Staff Salaries'!$R$13*(Q11+Q12)>'Staff Salaries'!$R$29*(1+SUM($L$7:Q7)),'Staff Salaries'!$R$29*(1+SUM($L$7:Q7)),'Staff Salaries'!$R$11/'Staff Salaries'!$R$12*'Staff Salaries'!$R$13*(Q11+Q12)) -> 0 | R16: 0
C17: Loadings Period: | E17: months | K17: Total: | L17: =+SUM(L11:L16) -> 0 | M17: 0 | N17: 0 | O17: 0 | P17: 0 | Q17: 0 | R17: 0
C20: Estimation | L20: Projected Salary Costs
C21: Position | E21: FTE | F21: Band | G21: Step | H21: Loadings | I21: Super | J21: Start | K21: Finish | L21: =YEAR(TODAY()) -> 2024 | M21: =+L21+1 -> 2025 | N21: =+M21+1 -> 2026 | O21: =+N21+1 -> 2027 | P21: =+O21+1 -> 2028 | Q21: =+P21+1 -> 2029 | R21: Total
B22: 1
B23: 2
B24: 3
B25: 4
B26: 5
L27: =+SUM(L22:L26) -> 0 | M27: 0 | N27: 0 | O27: 0 | P27: 0 | Q27: 0 | R27: 0
C29: Important: The model produces an estimate within 1% accuracy for a current year. If you require more information please send email to finmar@adelaide.edu.au.

Sheet HERDC Info
A1: For Information on Higher Edcuation Research Data Collection Categories, click on link below or refer table for Category 1
A3: Link to HERDC Site -
A4: Higher Education Research Data Collection - Department of Education, Australian Government

Sheet Staff Salaries (hidden)
A2: Code | B2: Grade | C2: Step | D2: Year | E2: Calendar | F2: EB | G2: EB Year | I2: 45108 | J2: 45472 | K2: 45836 | L2: 46201 | M2: 46566 | N2: 46932 | O2: 47299 | Q2: On Costs: | AA2: Grade | AB2: Max
A3: ACA | B3: LEVEL A | C3: 1 | D3: 2023 | E3: =(F605/2)+(F3/2) -> 74358.409 | F3: =F605*(1+$I$3) -> 75887.818 | G3: 2023-24 | I3: 0.042 | J3: 0.035 | K3: 0.035 | L3: 0.035 | M3: 0.035 | N3: 0.035 | O3: 0.035 | Q3: Payroll Tax | R3: 0.0495 | S3: Payroll Tax = 4.95% *(Base Salary + Loadings + Super + AL Loadings) | AA3: LEVEL A | AB3: =MAX(LEVEL_A) -> 8
A4: ACA | B4: LEVEL A | C4: 2 | D4: 2023 | E4: 78461.808 | F4: 80075.616 | G4: 2023-24 | Q4: Workers Compensation | R4: 0.005 | S4: Workcover = 0.5% * (Base Salary + Loadings + Super + AL Loadings) | AA4: LEVEL B | AB4: =MAX(LEVEL_B) -> 6
A5: ACA | B5: LEVEL A | C5: 3 | D5: 2023 | E5: 82557.039 | F5: 84255.078 | G5: 2023-24 | Q5: Long Service Leave Provision | R5: 0.0325 | S5: LSL Provision = 3.25% * (Base Salary + Loadings) | AA5: LEVEL C | AB5: =MAX(LEVEL_C) -> 6
A6: ACA | B6: LEVEL A | C6: 4 | D6: 2023 | E6: 86657.375 | F6: 88439.75 | G6: 2023-24 | AA6: LEVEL D | AB6: =MAX(LEVEL_D) -> 4
A7: ACA | B7: LEVEL A | C7: 5 | D7: 2023 | E7: 89987.877 | F7: 91838.754 | G7: 2023-24 | Q7: Number of working weeks | R7: 48 | AA7: LEVEL E | AB7: =MAX(LEVEL_E) -> 1
A8: ACA | B8: LEVEL A | C8: 6 | D8: 2023 | E8: 93321.442 | F8: 95240.884 | G8: 2023-24 | Q8: Number of annual weeks | R8: 52 | AA8: HEO Level 1 | AB8: =MAX(HEO_Level_1) -> 7
A9: ACA | B9: LEVEL A | C9: 7 | D9: 2023 | E9: 96655.007 | F9: 98643.014 | G9: 2023-24 | V9: =4/52*17.5% -> 0.01346153846 | AA9: HEO Level 2 | AB9: =MAX(HEO_Level_2) -> 7
A10: ACA | B10: LEVEL A | C10: 8 | D10: 2023 | E10: 99983.467 | F10: 102039.934 | G10: 2023-24 | Q10: AL Loading | AA10: HEO Level 3 | AB10: =MAX(HEO_Level_3) -> 8
A11: ACA | B11: LEVEL B | C11: 1 | D11: 2023 | E11: 105113.992 | F11: 107275.984 | G11: 2023-24 | Q11: Number of AL entitlement weeks | R11: 4 | AA11: HEO Level 4 | AB11: =MAX(HEO_Level_4) -> 4
A12: ACA | B12: LEVEL B | C12: 2 | D12: 2023 | E12: 108957.036 | F12: 111198.072 | G12: 2023-24 | Q12: Number of annual weeks | R12: 52 | AA12: HEO Level 5 | AB12: =MAX(HEO_Level_5) -> 4
A13: ACA | B13: LEVEL B | C13: 3 | D13: 2023 | E13: 112795.996 | F13: 115115.992 | G13: 2023-24 | Q13: Annual Leave Loading | R13: 0.195 | AA13: HEO Level 5 6 | AB13: =MAX(HEO_Level_5_6) -> 7
A14: ACA | B14: LEVEL B | C14: 4 | D14: 2023 | E14: 116644.145 | F14: 119043.29 | G14: 2023-24 | AA14: HEO Level 6 | AB14: =MAX(HEO_Level_6) -> 4
A15: ACA | B15: LEVEL B | C15: 5 | D15: 2023 | E15: 120486.168 | F15: 122964.336 | G15: 2023-24 | Q15: USP | AA15: HEO Level 7 | AB15: =MAX(HEO_Level_7) -> 5
A16: ACA | B16: LEVEL B | C16: 6 | D16: 2023 | E16: 124336.359 | F16: 126893.718 | G16: 2023-24 | AA16: HEO Level 8 | AB16: =MAX(HEO_Level_8) -> 5
A17: ACA | B17: LEVEL C | C17: 1 | D17: 2023 | E17: 128173.277 | F17: 130809.554 | G17: 2023-24 | Q17: AL Provision Accrual (17% super) = 0.1027 * (Base Salary + Loadings ) | AA17: HEO Level 9 | AB17: =MAX(HEO_Level_9) -> 3
A18: ACA | B18: LEVEL C | C18: 2 | D18: 2023 | E18: 132019.384 | F18: 134734.768 | G18: 2023-24 | AA18: HEO Level 10 | AB18: =MAX(HEO_Level_10) -> 3
A19: ACA | B19: LEVEL C | C19: 3 | D19: 2023 | E19: 135861.407 | F19: 138655.814 | G19: 2023-24 | Q19: AL Provision Accrual (11% super) = 0.966 * (Base Salary + Loadings) | AA19: SENIOR MANAGER | AB19: =MAX(SENIOR_MANAGER) -> 3
A20: ACA | B20: LEVEL C | C20: 4 | D20: 2023 | E20: 139702.409 | F20: 142575.818 | G20: 2023-24 | AA20: ESTIMATOR SELECTION | AB20: =IFERROR(VLOOKUP('Quick Salary Calc - OPTIONAL'!D9,'Staff Salaries'!AA:AB,2,FALSE),0) -> 0
A21: ACA | B21: LEVEL C | C21: 5 | D21: 2023 | E21: 143547.495 | F21: 146499.99 | G21: 2023-24 | Q21: LSL Provision Accrual = 0.035 * (Base Salary + Loadings)
A22: ACA | B22: LEVEL C | C22: 6 | D22: 2023 | E22: 147399.728 | F22: 150431.456 | G22: 2023-24
A23: ACA | B23: LEVEL D | C23: 1 | D23: 2023 | E23: 153802.419 | F23: 156965.838 | G23: 2023-24 | Q23: Provision Movement = ?
A24: ACA | B24: LEVEL D | C24: 2 | D24: 2023 | E24: 158923.755 | F24: 162192.51 | G24: 2023-24
A25: ACA | B25: LEVEL D | C25: 3 | D25: 2023 | E25: 164058.364 | F25: 167432.728 | G25: 2023-24 | Q25: Calculation of the maximum of AL Loading
A26: ACA | B26: LEVEL D | C26: 4 | D26: 2023 | E26: 169177.658 | F26: 172657.316 | G26: 2023-24
A27: ACA | B27: LEVEL E | C27: 1 | D27: 2023 | E27: 197367.468 | F27: 201426.936 | G27: 2023-24 | Q27: HEO Level 9 Step 1 | R27: =+E79 -> 121384.648
A28: HEO | B28: HEO Level 1 | C28: 1 | D28: 2023 | E28: 37446.196 | F28: 38216.392 | G28: 2023-24 | Q28: Loading | R28: 0.175
A29: HEO | B29: HEO Level 1 | C29: 2 | D29: 2023 | E29: 42920.798 | F29: 43803.596 | G29: 2023-24 | Q29: AL Loading Max | R29: =+R27*R28*4/52 -> 1634.024108
A30: HEO | B30: HEO Level 1 | C30: 3 | D30: 2023 | E30: 47901.236 | F30: 48886.472 | G30: 2023-24
A31: HEO | B31: HEO Level 1 | C31: 4 | D31: 2023 | E31: 52380.363 | F31: 53457.726 | G31: 2023-24 | Q31: Optional Contributions:
A32: HEO | B32: HEO Level 1 | C32: 5 | D32: 2023 | E32: 52940.892 | F32: 54029.784 | G32: 2023-24 | Q32: Contributions (ie parenting leave; fee on payroll/super; contract breaks cover etc)
A33: HEO | B33: HEO Level 1 | C33: 6 | D33: 2023 | E33: 53789.343 | F33: 54895.686 | G33: 2023-24 | Q33: Total: | R33: 0.028
A34: HEO | B34: HEO Level 1 | C34: 7 | D34: 2023 | E34: 54636.773 | F34: 55760.546 | G34: 2023-24
A35: HEO | B35: HEO Level 2 | C35: 1 | D35: 2023 | E35: =(F637/2)+(F35/2) -> 40213.106 | F35: =F637*(1+$I$3) -> 41040.212 | G35: 2023-24
A36: HEO | B36: HEO Level 2 | C36: 2 | D36: 2023 | E36: 46127.759 | F36: 47076.518 | G36: 2023-24
A37: HEO | B37: HEO Level 2 | C37: 3 | D37: 2023 | E37: 51499.24 | F37: 52558.48 | G37: 2023-24
A38: HEO | B38: HEO Level 2 | C38: 4 | D38: 2023 | E38: 56333.675 | F38: 57492.35 | G38: 2023-24
A39: HEO | B39: HEO Level 2 | C39: 5 | D39: 2023 | E39: 57469.027 | F39: 58651.054 | G39: 2023-24
A40: HEO | B40: HEO Level 2 | C40: 6 | D40: 2023 | E40: 58598.253 | F40: 59803.506 | G40: 2023-24
A41: HEO | B41: HEO Level 2 | C41: 7 | D41: 2023 | E41: 59726.458 | F41: 60954.916 | G41: 2023-24
A42: HEO | B42: HEO Level 3 | C42: 1 | D42: 2023 | E42: 42194.867 | F42: 43062.734 | G42: 2023-24
A43: HEO | B43: HEO Level 3 | C43: 2 | D43: 2023 | E43: 48416.841 | F43: 49412.682 | G43: 2023-24
A44: HEO | B44: HEO Level 3 | C44: 3 | D44: 2023 | E44: 54072.16 | F44: 55184.32 | G44: 2023-24
A45: HEO | B45: HEO Level 3 | C45: 4 | D45: 2023 | E45: 59163.887 | F45: 60380.774 | G45: 2023-24
A46: HEO | B46: HEO Level 3 | C46: 5 | D46: 2023 | E46: 61141.564 | F46: 62399.128 | G46: 2023-24
A47: HEO | B47: HEO Level 3 | C47: 6 | D47: 2023 | E47: 63127.409 | F47: 64425.818 | G47: 2023-24
A48: HEO | B48: HEO Level 3 | C48: 7 | D48: 2023 | E48: 65105.086 | F48: 66444.172 | G48: 2023-24
A49: HEO | B49: HEO Level 3 | C49: 8 | D49: 2023 | E49: 67083.784 | F49: 68463.568 | G49: 2023-24
A50: HEO | B50: HEO Level 4 | C50: 1 | D50: 2023 | E50: 67651.46 | F50: 69042.92 | G50: 2023-24
A51: HEO | B51: HEO Level 4 | C51: 2 | D51: 2023 | E51: 69623.011 | F51: 71055.022 | G51: 2023-24
A52: HEO | B52: HEO Level 4 | C52: 3 | D52: 2023 | E52: 71887.589 | F52: 73366.178 | G52: 2023-24
A53: HEO | B53: HEO Level 4 | C53: 4 | D53: 2023 | E53: 74152.167 | F53: 75677.334 | G53: 2023-24
A54: HEO | B54: HEO Level 5 | C54: 1 | D54: 2023 | E54: 75849.069 | F54: 77409.138 | G54: 2023-24
A55: HEO | B55: HEO Level 5 | C55: 2 | D55: 2023 | E55: 78391.359 | F55: 80003.718 | G55: 2023-24
A56: HEO | B56: HEO Level 5 | C56: 3 | D56: 2023 | E56: 81225.655 | F56: 82896.31 | G56: 2023-24
A57: HEO | B57: HEO Level 5 | C57: 4 | D57: 2023 | E57: 84337.663 | F57: 86072.326 | G57: 2023-24
A58: HEO | B58: HEO Level 5 6 | C58: 1 | D58: 2023 | E58: 69908.891 | F58: 71346.782 | G58: 2023-24
A59: HEO | B59: HEO Level 5 6 | C59: 2 | D59: 2023 | E59: 71609.877 | F59: 73082.754 | G59: 2023-24
A60: HEO | B60: HEO Level 5 6 | C60: 3 | D60: 2023 | E60: 73303.716 | F60: 74811.432 | G60: 2023-24
A61: HEO | B61: HEO Level 5 6 | C61: 4 | D61: 2023 | E61: 84619.459 | F61: 86359.918 | G61: 2023-24
A62: HEO | B62: HEO Level 5 6 | C62: 5 | D62: 2023 | E62: 86881.995 | F62: 88668.99 | G62: 2023-24
A63: HEO | B63: HEO Level 5 6 | C63: 6 | D63: 2023 | E63: 89145.552 | F63: 90979.104 | G63: 2023-24
A64: HEO | B64: HEO Level 5 6 | C64: 7 | D64: 2023 | E64: 91405.025 | F64: 93285.05 | G64: 2023-24
A65: HEO | B65: HEO Level 6 | C65: 1 | D65: 2023 | E65: 84619.459 | F65: 86359.918 | G65: 2023-24
A66: HEO | B66: HEO Level 6 | C66: 2 | D66: 2023 | E66: 86881.995 | F66: 88668.99 | G66: 2023-24
A67: HEO | B67: HEO Level 6 | C67: 3 | D67: 2023 | E67: =(F669/2)+(F67/2) -> 89145.552 | F67: =F669*(1+$I$3) -> 90979.104 | G67: 2023-24
A68: HEO | B68: HEO Level 6 | C68: 4 | D68: 2023 | E68: 91405.025 | F68: 93285.05 | G68: 2023-24
A69: HEO | B69: HEO Level 7 | C69: 1 | D69: 2023 | E69: 93101.927 | F69: 95016.854 | G69: 2023-24
A70: HEO | B70: HEO Level 7 | C70: 2 | D70: 2023 | E70: 95645.238 | F70: 97612.476 | G70: 2023-24
A71: HEO | B71: HEO Level 7 | C71: 3 | D71: 2023 | E71: 98473.408 | F71: 100498.816 | G71: 2023-24
A72: HEO | B72: HEO Level 7 | C72: 4 | D72: 2023 | E72: 101306.683 | F72: 103390.366 | G72: 2023-24
A73: HEO | B73: HEO Level 7 | C73: 5 | D73: 2023 | E73: 104128.727 | F73: 106270.454 | G73: 2023-24
A74: HEO | B74: HEO Level 8 | C74: 1 | D74: 2023 | E74: 104413.586 | F74: 106561.172 | G74: 2023-24
A75: HEO | B75: HEO Level 8 | C75: 2 | D75: 2023 | E75: 107243.798 | F75: 109449.596 | G75: 2023-24
A76: HEO | B76: HEO Level 8 | C76: 3 | D76: 2023 | E76: 110072.989 | F76: 112336.978 | G76: 2023-24
A77: HEO | B77: HEO Level 8 | C77: 4 | D77: 2023 | E77: 113460.667 | F77: 115794.334 | G77: 2023-24
A78: HEO | B78: HEO Level 8 | C78: 5 | D78: 2023 | E78: 117140.351 | F78: 119549.702 | G78: 2023-24
A79: HEO | B79: HEO Level 9 | C79: 1 | D79: 2023 | E79: 121384.648 | F79: 123881.296 | G79: 2023-24
A80: HEO | B80: HEO Level 9 | C80: 2 | D80: 2023 | E80: 125340.002 | F80: 127918.004 | G80: 2023-24
A81: HEO | B81: HEO Level 9 | C81: 3 | D81: 2023 | E81: 129863.032 | F81: 132534.064 | G81: 2023-24
A82: HEO | B82: HEO Level 10 | C82: 1 | D82: 2023 | E82: 134063.426 | F82: 136820.852 | G82: 2023-24
A83: HEO | B83: HEO Level 10 | C83: 2 | D83: 2023 | E83: 138402.676 | F83: 141249.352 | G83: 2023-24
A84: HEO | B84: HEO Level 10 | C84: 3 | D84: 2023 | E84: 142883.845 | F84: 145822.69 | G84: 2023-24
A85: HEO | B85: SENIOR MANAGER | C85: 1 | D85: 2023 | E85: 153366.452 | F85: 156520.904 | G85: 2023-24
A86: HEO | B86: SENIOR MANAGER | C86: 2 | D86: 2023 | E86: 171901.686 | F86: 175437.372 | G86: 2023-24
A87: HEO | B87: SENIOR MANAGER | C87: 3 | D87: 2023 | E87: 183480.847 | F87: 187254.694 | G87: 2023-24
A89: ACA | B89: LEVEL A | C89: 1 | D89: 2024 | E89: =(F3/2)+(F89/2) -> 77215.85481 | F89: =F3*(1+$J$3) -> 78543.89163 | G89: 2024-25
A90: ACA | B90: LEVEL A | C90: 2 | D90: 2024 | E90: 81476.93928 | F90: 82878.26256 | G90: 2024-25
A91: ACA | B91: LEVEL A | C91: 3 | D91: 2024 | E91: 85729.54187 | F91: 87204.00573 | G91: 2024-25
A92: ACA | B92: LEVEL A | C92: 4 | D92: 2024 | E92: 89987.44562 | F92: 91535.14125 | G92: 2024-25
A93: ACA | B93: LEVEL A | C93: 5 | D93: 2024 | E93: 93445.9322 | F93: 95053.11039 | G93: 2024-25
A94: ACA | B94: LEVEL A | C94: 6 | D94: 2024 | E94: 96907.59947 | F94: 98574.31494 | G94: 2024-25
A95: ACA | B95: LEVEL A | C95: 7 | D95: 2024 | E95: 100369.2667 | F95: 102095.5195 | G95: 2024-25
A96: ACA | B96: LEVEL A | C96: 8 | D96: 2024 | E96: 103825.6328 | F96: 105611.3317 | G96: 2024-25
A97: ACA | B97: LEVEL B | C97: 1 | D97: 2024 | E97: 109153.3137 | F97: 111030.6434 | G97: 2024-25
A98: ACA | B98: LEVEL B | C98: 2 | D98: 2024 | E98: 113144.0383 | F98: 115090.0045 | G98: 2024-25
A99: ACA | B99: LEVEL B | C99: 3 | D99: 2024 | E99: 117130.5219 | F99: 119145.0517 | G99: 2024-25
A100: ACA | B100: LEVEL B | C100: 4 | D100: 2024 | E100: 121126.5476 | F100: 123209.8052 | G100: 2024-25
A101: ACA | B101: LEVEL B | C101: 5 | D101: 2024 | E101: 125116.2119 | F101: 127268.0878 | G101: 2024-25
A102: ACA | B102: LEVEL B | C102: 6 | D102: 2024 | E102: 129114.3581 | F102: 131334.9981 | G102: 2024-25
A103: ACA | B103: LEVEL C | C103: 1 | D103: 2024 | E103: 133098.7212 | F103: 135387.8884 | G103: 2024-25
A104: ACA | B104: LEVEL C | C104: 2 | D104: 2024 | E104: 137092.6264 | F104: 139450.4849 | G104: 2024-25
A105: ACA | B105: LEVEL C | C105: 3 | D105: 2024 | E105: 141082.2907 | F105: 143508.7675 | G105: 2024-25
A106: ACA | B106: LEVEL C | C106: 4 | D106: 2024 | E106: 145070.8948 | F106: 147565.9716 | G106: 2024-25
A107: ACA | B107: LEVEL C | C107: 5 | D107: 2024 | E107: 149063.7398 | F107: 151627.4896 | G107: 2024-25
A108: ACA | B108: LEVEL C | C108: 6 | D108: 2024 | E108: 153064.0065 | F108: 155696.557 | G108: 2024-25
A109: ACA | B109: LEVEL D | C109: 1 | D109: 2024 | E109: 159712.7402 | F109: 162459.6423 | G109: 2024-25
A110: ACA | B110: LEVEL D | C110: 2 | D110: 2024 | E110: 165030.8789 | F110: 167869.2478 | G110: 2024-25
A111: ACA | B111: LEVEL D | C111: 3 | D111: 2024 | E111: 170362.8007 | F111: 173292.8735 | G111: 2024-25
A112: ACA | B112: LEVEL D | C112: 4 | D112: 2024 | E112: 175678.819 | F112: 178700.3221 | G112: 2024-25
A113: ACA | B113: LEVEL E | C113: 1 | D113: 2024 | E113: 204951.9074 | F113: 208476.8788 | G113: 2024-25
A114: HEO | B114: HEO Level 1 | C114: 1 | D114: 2024 | E114: 38885.17886 | F114: 39553.96572 | G114: 2024-25
A115: HEO | B115: HEO Level 1 | C115: 2 | D115: 2024 | E115: 44570.15893 | F115: 45336.72186 | G115: 2024-25
A116: HEO | B116: HEO Level 1 | C116: 3 | D116: 2024 | E116: 49741.98526 | F116: 50597.49852 | G116: 2024-25
A117: HEO | B117: HEO Level 1 | C117: 4 | D117: 2024 | E117: 54393.23621 | F117: 55328.74641 | G117: 2024-25
A118: HEO | B118: HEO Level 1 | C118: 5 | D118: 2024 | E118: 54975.30522 | F118: 55920.82644 | G118: 2024-25
A119: HEO | B119: HEO Level 1 | C119: 6 | D119: 2024 | E119: 55856.36051 | F119: 56817.03501 | G119: 2024-25
A120: HEO | B120: HEO Level 1 | C120: 7 | D120: 2024 | E120: 56736.35556 | F120: 57712.16511 | G120: 2024-25
A121: HEO | B121: HEO Level 2 | C121: 1 | D121: 2024 | E121: =(F35/2)+(F121/2) -> 41758.41571 | F121: =F35*(1+$J$3) -> 42476.61942 | G121: 2024-25
A122: HEO | B122: HEO Level 2 | C122: 2 | D122: 2024 | E122: 47900.35707 | F122: 48724.19613 | G122: 2024-25
A123: HEO | B123: HEO Level 2 | C123: 3 | D123: 2024 | E123: 53478.2534 | F123: 54398.0268 | G123: 2024-25
A124: HEO | B124: HEO Level 2 | C124: 4 | D124: 2024 | E124: 58498.46612 | F124: 59504.58225 | G124: 2024-25
A125: HEO | B125: HEO Level 2 | C125: 5 | D125: 2024 | E125: 59677.44744 | F125: 60703.84089 | G125: 2024-25
A126: HEO | B126: HEO Level 2 | C126: 6 | D126: 2024 | E126: 60850.06735 | F126: 61896.62871 | G126: 2024-25
A127: HEO | B127: HEO Level 2 | C127: 7 | D127: 2024 | E127: 62021.62703 | F127: 63088.33806 | G127: 2024-25
A128: HEO | B128: HEO Level 3 | C128: 1 | D128: 2024 | E128: 43816.33185 | F128: 44569.92969 | G128: 2024-25
A129: HEO | B129: HEO Level 3 | C129: 2 | D129: 2024 | E129: 50277.40393 | F129: 51142.12587 | G129: 2024-25
A130: HEO | B130: HEO Level 3 | C130: 3 | D130: 2024 | E130: 56150.0456 | F130: 57115.7712 | G130: 2024-25
A131: HEO | B131: HEO Level 3 | C131: 4 | D131: 2024 | E131: 61437.43755 | F131: 62494.10109 | G131: 2024-25
A132: HEO | B132: HEO Level 3 | C132: 5 | D132: 2024 | E132: 63491.11274 | F132: 64583.09748 | G132: 2024-25
A133: HEO | B133: HEO Level 3 | C133: 6 | D133: 2024 | E133: 65553.26982 | F133: 66680.72163 | G133: 2024-25
A134: HEO | B134: HEO Level 3 | C134: 7 | D134: 2024 | E134: 67606.94501 | F134: 68769.71802 | G134: 2024-25
A135: HEO | B135: HEO Level 3 | C135: 8 | D135: 2024 | E135: 69661.68044 | F135: 70859.79288 | G135: 2024-25
A136: HEO | B136: HEO Level 4 | C136: 1 | D136: 2024 | E136: 70251.1711 | F136: 71459.4222 | G136: 2024-25
A137: HEO | B137: HEO Level 4 | C137: 2 | D137: 2024 | E137: 72298.48488 | F137: 73541.94777 | G137: 2024-25
A138: HEO | B138: HEO Level 4 | C138: 3 | D138: 2024 | E138: 74650.08611 | F138: 75933.99423 | G138: 2024-25
A139: HEO | B139: HEO Level 4 | C139: 4 | D139: 2024 | E139: 77001.68734 | F139: 78326.04069 | G139: 2024-25
A140: HEO | B140: HEO Level 5 | C140: 1 | D140: 2024 | E140: 78763.79792 | F140: 80118.45783 | G140: 2024-25
A141: HEO | B141: HEO Level 5 | C141: 2 | D141: 2024 | E141: 81403.78306 | F141: 82803.84813 | G141: 2024-25
A142: HEO | B142: HEO Level 5 | C142: 3 | D142: 2024 | E142: 84346.99543 | F142: 85797.68085 | G142: 2024-25
A143: HEO | B143: HEO Level 5 | C143: 4 | D143: 2024 | E143: 87578.5917 | F143: 89084.85741 | G143: 2024-25
A144: HEO | B144: HEO Level 5 6 | C144: 1 | D144: 2024 | E144: 72595.35069 | F144: 73843.91937 | G144: 2024-25
A145: HEO | B145: HEO Level 5 6 | C145: 2 | D145: 2024 | E145: 74361.70219 | F145: 75640.65039 | G145: 2024-25
A146: HEO | B146: HEO Level 5 6 | C146: 3 | D146: 2024 | E146: 76120.63206 | F146: 77429.83212 | G146: 2024-25
A147: HEO | B147: HEO Level 5 6 | C147: 4 | D147: 2024 | E147: 87871.21657 | F147: 89382.51513 | G147: 2024-25
A148: HEO | B148: HEO Level 5 6 | C148: 5 | D148: 2024 | E148: 90220.69733 | F148: 91772.40465 | G148: 2024-25
A149: HEO | B149: HEO Level 5 6 | C149: 6 | D149: 2024 | E149: 92571.23832 | F149: 94163.37264 | G149: 2024-25
A150: HEO | B150: HEO Level 5 6 | C150: 7 | D150: 2024 | E150: 94917.53838 | F150: 96550.02675 | G150: 2024-25
A151: HEO | B151: HEO Level 6 | C151: 1 | D151: 2024 | E151: 87871.21657 | F151: 89382.51513 | G151: 2024-25
A152: HEO | B152: HEO Level 6 | C152: 2 | D152: 2024 | E152: 90220.69733 | F152: 91772.40465 | G152: 2024-25
A153: HEO | B153: HEO Level 6 | C153: 3 | D153: 2024 | E153: =(F67/2)+(F153/2) -> 92571.23832 | F153: =F67*(1+$J$3) -> 94163.37264 | G153: 2024-25
A154: HEO | B154: HEO Level 6 | C154: 4 | D154: 2024 | E154: 94917.53838 | F154: 96550.02675 | G154: 2024-25
A155: HEO | B155: HEO Level 7 | C155: 1 | D155: 2024 | E155: 96679.64894 | F155: 98342.44389 | G155: 2024-25
A156: HEO | B156: HEO Level 7 | C156: 2 | D156: 2024 | E156: 99320.69433 | F156: 101028.9127 | G156: 2024-25
A157: HEO | B157: HEO Level 7 | C157: 3 | D157: 2024 | E157: 102257.5453 | F157: 104016.2746 | G157: 2024-25
A158: HEO | B158: HEO Level 7 | C158: 4 | D158: 2024 | E158: 105199.6974 | F158: 107009.0288 | G158: 2024-25
A159: HEO | B159: HEO Level 7 | C159: 5 | D159: 2024 | E159: 108130.1869 | F159: 109989.9199 | G159: 2024-25
A160: HEO | B160: HEO Level 8 | C160: 1 | D160: 2024 | E160: 108425.9925 | F160: 110290.813 | G160: 2024-25
A161: HEO | B161: HEO Level 8 | C161: 2 | D161: 2024 | E161: 111364.9639 | F161: 113280.3319 | G161: 2024-25
A162: HEO | B162: HEO Level 8 | C162: 3 | D162: 2024 | E162: 114302.8751 | F162: 116268.7722 | G162: 2024-25
A163: HEO | B163: HEO Level 8 | C163: 4 | D163: 2024 | E163: 117820.7348 | F163: 119847.1357 | G163: 2024-25
A164: HEO | B164: HEO Level 8 | C164: 5 | D164: 2024 | E164: 121641.8218 | F164: 123733.9416 | G164: 2024-25
A165: HEO | B165: HEO Level 9 | C165: 1 | D165: 2024 | E165: 126049.2187 | F165: 128217.1414 | G165: 2024-25
A166: HEO | B166: HEO Level 9 | C166: 2 | D166: 2024 | E166: 130156.5691 | F166: 132395.1341 | G166: 2024-25
A167: HEO | B167: HEO Level 9 | C167: 3 | D167: 2024 | E167: 134853.4101 | F167: 137172.7562 | G167: 2024-25
A168: HEO | B168: HEO Level 10 | C168: 1 | D168: 2024 | E168: 139215.2169 | F168: 141609.5818 | G168: 2024-25
A169: HEO | B169: HEO Level 10 | C169: 2 | D169: 2024 | E169: 143721.2157 | F169: 146193.0793 | G169: 2024-25
A170: HEO | B170: HEO Level 10 | C170: 3 | D170: 2024 | E170: 148374.5871 | F170: 150926.4842 | G170: 2024-25
A171: HEO | B171: SENIOR MANAGER | C171: 1 | D171: 2024 | E171: 159260.0198 | F171: 161999.1356 | G171: 2024-25
A172: HEO | B172: SENIOR MANAGER | C172: 2 | D172: 2024 | E172: 178507.526 | F172: 181577.68 | G172: 2024-25
A173: HEO | B173: SENIOR MANAGER | C173: 3 | D173: 2024 | E173: 190531.6511 | F173: 193808.6083 | G173: 2024-25
A175: ACA | B175: LEVEL A | C175: 1 | D175: 2025 | E175: =(F89/2)+(F175/2) -> 79918.40973 | F175: =F89*(1+$K$3) -> 81292.92784 | G175: 2025-26
A176: ACA | B176: LEVEL A | C176: 2 | D176: 2025 | E176: 84328.63215 | F176: 85779.00175 | G176: 2025-26
A177: ACA | B177: LEVEL A | C177: 3 | D177: 2025 | E177: 88730.07583 | F177: 90256.14593 | G177: 2025-26
A178: ACA | B178: LEVEL A | C178: 4 | D178: 2025 | E178: 93137.00622 | F178: 94738.87119 | G178: 2025-26
A179: ACA | B179: LEVEL A | C179: 5 | D179: 2025 | E179: 96716.53982 | F179: 98379.96925 | G179: 2025-26
A180: ACA | B180: LEVEL A | C180: 6 | D180: 2025 | E180: 100299.3655 | F180: 102024.416 | G180: 2025-26
A181: ACA | B181: LEVEL A | C181: 7 | D181: 2025 | E181: 103882.1911 | F181: 105668.8627 | G181: 2025-26
A182: ACA | B182: LEVEL A | C182: 8 | D182: 2025 | E182: 107459.53 | F182: 109307.7283 | G182: 2025-26
A183: ACA | B183: LEVEL B | C183: 1 | D183: 2025 | E183: 112973.6797 | F183: 114916.716 | G183: 2025-26
A184: ACA | B184: LEVEL B | C184: 2 | D184: 2025 | E184: 117104.0796 | F184: 119118.1547 | G184: 2025-26
A185: ACA | B185: LEVEL B | C185: 3 | D185: 2025 | E185: 121230.0901 | F185: 123315.1285 | G185: 2025-26
A186: ACA | B186: LEVEL B | C186: 4 | D186: 2025 | E186: 125365.9767 | F186: 127522.1483 | G186: 2025-26
A187: ACA | B187: LEVEL B | C187: 5 | D187: 2025 | E187: 129495.2793 | F187: 131722.4708 | G187: 2025-26
A188: ACA | B188: LEVEL B | C188: 6 | D188: 2025 | E188: 133633.3606 | F188: 135931.7231 | G188: 2025-26
A189: ACA | B189: LEVEL C | C189: 1 | D189: 2025 | E189: 137757.1764 | F189: 140126.4645 | G189: 2025-26
A190: ACA | B190: LEVEL C | C190: 2 | D190: 2025 | E190: 141890.8684 | F190: 144331.2519 | G190: 2025-26
A191: ACA | B191: LEVEL C | C191: 3 | D191: 2025 | E191: 146020.1709 | F191: 148531.5744 | G191: 2025-26
A192: ACA | B192: LEVEL C | C192: 4 | D192: 2025 | E192: 150148.3761 | F192: 152730.7806 | G192: 2025-26
A193: ACA | B193: LEVEL C | C193: 5 | D193: 2025 | E193: 154280.9707 | F193: 156934.4518 | G193: 2025-26
A194: ACA | B194: LEVEL C | C194: 6 | D194: 2025 | E194: 158421.2467 | F194: 161145.9365 | G194: 2025-26
A195: ACA | B195: LEVEL D | C195: 1 | D195: 2025 | E195: 165302.6861 | F195: 168145.7298 | G195: 2025-26
A196: ACA | B196: LEVEL D | C196: 2 | D196: 2025 | E196: 170806.9597 | F196: 173744.6715 | G196: 2025-26
A197: ACA | B197: LEVEL D | C197: 3 | D197: 2025 | E197: 176325.4988 | F197: 179358.1241 | G197: 2025-26
A198: ACA | B198: LEVEL D | C198: 4 | D198: 2025 | E198: 181827.5777 | F198: 184954.8333 | G198: 2025-26
A199: ACA | B199: LEVEL E | C199: 1 | D199: 2025 | E199: 212125.2241 | F199: 215773.5695 | G199: 2025-26
A200: HEO | B200: HEO Level 1 | C200: 1 | D200: 2025 | E200: 40246.16012 | F200: 40938.35452 | G200: 2025-26
A201: HEO | B201: HEO Level 1 | C201: 2 | D201: 2025 | E201: 46130.11449 | F201: 46923.50713 | G201: 2025-26
A202: HEO | B202: HEO Level 1 | C202: 3 | D202: 2025 | E202: 51482.95474 | F202: 52368.41097 | G202: 2025-26
A203: HEO | B203: HEO Level 1 | C203: 4 | D203: 2025 | E203: 56296.99947 | F203: 57265.25253 | G203: 2025-26
... 481 more rows

Sheet Drop Down (hidden)
E1: ACA Levels | K1: HEO Levels | Y1: 0.17 | AA1: 1 | AC1: 2024 | AE1: Yes
A2: ACA | B2: LEVEL A | C2: HEO Level 1 | D2: UNK | F2: 1 | G2: 1 | H2: 1 | I2: 1 | J2: 1 | L2: 1 | M2: 1 | N2: 1 | O2: 1 | P2: 1 | Q2: 1 | R2: 1 | S2: 1 | T2: 1 | U2: 1 | V2: 1 | W2: 1 | Y2: 0.1 | AA2: 2 | AC2: 2025 | AE2: No
A3: HEO | B3: LEVEL B | C3: HEO Level 2 | F3: 2 | G3: 2 | H3: 2 | I3: 2 | L3: 2 | M3: 2 | N3: 2 | O3: 2 | P3: 2 | Q3: 2 | R3: 2 | S3: 2 | T3: 2 | U3: 2 | V3: 2 | W3: 2 | AA3: 3 | AC3: 2026
A4: UNK | B4: LEVEL C | C4: HEO Level 3 | F4: 3 | G4: 3 | H4: 3 | I4: 3 | L4: 3 | M4: 3 | N4: 3 | O4: 3 | P4: 3 | Q4: 3 | R4: 3 | S4: 3 | T4: 3 | U4: 3 | V4: 3 | W4: 3 | AA4: 4 | AC4: 2027
B5: LEVEL D | C5: HEO Level 4 | F5: 4 | G5: 4 | H5: 4 | I5: 4 | L5: 4 | M5: 4 | N5: 4 | O5: 4 | P5: 4 | Q5: 4 | R5: 4 | S5: 4 | T5: 4 | AA5: 5 | AC5: 2028
B6: LEVEL E | C6: HEO Level 5 | F6: 5 | G6: 5 | H6: 5 | L6: 5 | M6: 5 | N6: 5 | Q6: 5 | S6: 5 | T6: 5 | AA6: 6 | AC6: 2029
C7: HEO Level 5 6 | F7: 6 | G7: 6 | H7: 6 | L7: 6 | M7: 6 | N7: 6 | Q7: 6 | AA7: 7
C8: HEO Level 6 | F8: 7 | L8: 7 | M8: 7 | N8: 7 | Q8: 7 | AA8: 8
C9: HEO Level 7 | F9: 8 | N9: 8 | AA9: 9
C10: HEO Level 8 | AA10: 10
C11: HEO Level 9 | AA11: 11
C12: HEO Level 10 | AA12: 12
C13: SENIOR MANAGER

Sheet ACAD (hidden)
A1: The University of Adelaide Enterprise Agreement 2017 – 2021 | F1: 0.02 | G1: =#REF! ->  | H1: =#REF! ->  | I1: =#REF! ->  | J1: =#REF! ->  | K1: =#REF! ->  | L1: =#REF! -> 
A2: SCHEDULE 1: ACADEMIC STAFF ANNUAL SALARIES
B3: Salary effective from 3 March 2018 ($2000 uplift) | C3: Salary effective from 2 March 2019 (1.5% increase) | D3: Salary effective from 14 March 2020 (1.5% increase + $400 uplift) | E3: Salary effective from 13 March 2021 (1.5% increase) | F3: 2022 | G3: 2023 | H3: 2024 | I3: 2025 | J3: 2026 | K3: 2027 | L3: 2028
A4: LEVEL A | G4: Yr 1 | H4: Yr 2 | I4: Yr 3 | J4: Yr 4 | K4: Yr 5 | L4: Yr 6
A5: LEVEL A1 | B5: 67894 | C5: 68912 | D5: 70346 | E5: 71401 | F5: =E5*(1+F$1) -> 72829.02 | G5: =F5*(1+G$1) -> 
A6: LEVEL A2 | B6: 71662 | C6: 72737 | D6: 74228 | E6: 75341 | F6: =E6*(1+F$1) -> 76847.82
A7: LEVEL A3 | B7: 75423 | C7: 76554 | D7: 78102 | E7: 79274 | F7: 80859.48
A8: LEVEL A4 | B8: 79187 | C8: 80375 | D8: 81981 | E8: 83211 | F8: 84875.22
A9: LEVEL A5 | B9: 82246 | C9: 83480 | D9: 85132 | E9: 86409 | F9: 88137.18
A10: LEVEL A6 | B10: 85307 | C10: 86587 | D10: 88286 | E10: 89610 | F10: 91402.2
A11: LEVEL A7 | B11: 88368 | C11: 89694 | D11: 91439 | E11: 92811 | F11: 94667.22
A12: LEVEL A8 | B12: 91425 | C12: 92796 | D12: 94588 | E12: 96007 | F12: 97927.14
A13: LEVEL B | F13: 0
A14: LEVEL B1 | B14: 96135 | C14: 97577 | D14: 99441 | E14: 100933 | F14: 102951.66
A15: LEVEL B2 | B15: 99666 | C15: 101161 | D15: 103078 | E15: 104624 | F15: 106716.48
A16: LEVEL B3 | B16: 103190 | C16: 104738 | D16: 106709 | E16: 108310 | F16: 110476.2
A17: LEVEL B4 | B17: 106724 | C17: 108325 | D17: 110350 | E17: 112005 | F17: 114245.1
A18: LEVEL B5 | B18: 110251 | C18: 111905 | D18: 113984 | E18: 115694 | F18: 118007.88
A19: LEVEL B6 | B19: 113788 | C19: 115495 | D19: 117627 | E19: 119391 | F19: 121778.82
A20: LEVEL C | F20: 0
A21: LEVEL C1 | B21: 117310 | C21: 119070 | D21: 121256 | E21: 123075 | F21: 125536.5
A22: LEVEL C2 | B22: 120843 | C22: 122656 | D22: 124896 | E22: 126769 | F22: 129304.38
A23: LEVEL C3 | B23: 124370 | C23: 126236 | D23: 128530 | E23: 130458 | F23: 133067.16
A24: LEVEL C4 | B24: 127899 | C24: 129817 | D24: 132164 | E24: 134146 | F24: 136828.92
A25: LEVEL C5 | B25: 131429 | C25: 133400 | D25: 135801 | E25: 137838 | F25: 140594.76
A26: LEVEL C6 | B26: 134966 | C26: 136990 | D26: 139445 | E26: 141537 | F26: 144367.74
A27: LEVEL D | F27: 0
A28: LEVEL D1 | B28: 140845 | C28: 142958 | D28: 145502 | E28: 147685 | F28: 150638.7
A29: LEVEL D2 | B29: 145549 | C29: 147732 | D29: 150348 | E29: 152603 | F29: 155655.06
A30: LEVEL D3 | B30: 150263 | C30: 152517 | D30: 155205 | E30: 157533 | F30: 160683.66
A31: LEVEL D4 | B31: 154965 | C31: 157289 | D31: 160048 | E31: 162449 | F31: 165697.98
F32: 0
A33: LEVEL E | B33: 180851 | C33: 183564 | D33: 186717 | E33: 189518 | F33: 193308.36
F34: 0
A35: CLINICAL LOADING | B35: 31421 | C35: 31892 | D35: 32380 | E35: 32866 | F35: 33523.32
A36: H01_01 | B36: 33998 | C36: 34508 | D36: 35426 | E36: 35957 | F36: 36676.14
A37: H01_02 | B37: 39026 | C37: 39611 | D37: 40605 | E37: 41214 | F37: 42038.28 | L37: =K37*(1+L$1) -> 
A38: H01_03 | B38: 43598 | C38: 44252 | D38: 45316 | E38: 45996 | F38: 46915.92 | G38: =F38*(1+G$1) -> 
A39: H01_04 | B39: 47712 | C39: 48428 | D39: 49554 | E39: 50297 | F39: 51302.94 | G39: =F39*(1+G$1) -> 
A40: H01_05 | B40: 48227 | C40: 48950 | D40: 50084 | E40: 50835 | F40: 51851.7 | G40: =F40*(1+G$1) -> 
A41: H01_06 | B41: 49006 | C41: 49741 | D41: 50887 | E41: 51650 | F41: 52683 | G41: =F41*(1+G$1) -> 
A42: H01_07 | B42: 49784 | C42: 50531 | D42: 51689 | E42: 52464 | F42: 53513.28 | G42: =F42*(1+G$1) -> 
A43: HEO 2 | F43: 0 | G43: =F43*(1+G$1) -> 
A44: H02_01 | B44: 36539 | C44: 37087 | D44: 38043 | E44: 38614 | F44: 39386.28 | G44: =F44*(1+G$1) -> 
A45: H02_02 | B45: 41969 | C45: 42599 | D45: 43638 | E45: 44293 | F45: 45178.86 | G45: =F45*(1+G$1) -> 
A46: H02_03 | B46: 46902 | C46: 47606 | D46: 48720 | E46: 49451 | F46: 50440.02 | G46: =F46*(1+G$1) -> 
A47: H02_04 | B47: 51342 | C47: 52112 | D47: 53294 | E47: 54093 | F47: 55174.86 | G47: =F47*(1+G$1) -> 
A48: H02_05 | B48: 52383 | C48: 53169 | D48: 54367 | E48: 55183 | F48: 56286.66 | G48: =F48*(1+G$1) -> 
A49: H02_06 | B49: 53422 | C49: 54223 | D49: 55436 | E49: 56268 | F49: 57393.36 | G49: =F49*(1+G$1) -> 
A50: H02_07 | B50: 54457 | C50: 55274 | D50: 56503 | E50: 57351 | F50: 58498.02 | G50: =F50*(1+G$1) -> 
A51: HEO 3 | F51: 0 | G51: =F51*(1+G$1) -> 
A52: H03_01 | B52: 38359 | C52: 38934 | D52: 39918 | E52: 40517 | F52: 41327.34 | G52: =F52*(1+G$1) -> 
A53: H03_02 | B53: 44072 | C53: 44733 | D53: 45804 | E53: 46491 | F53: 47420.82 | G53: =F53*(1+G$1) -> 
A54: H03_03 | B54: 49266 | C54: 50005 | D54: 51155 | E54: 51922 | F54: 52960.44 | G54: =F54*(1+G$1) -> 
A55: H03_04 | B55: 53941 | C55: 54750 | D55: 55971 | E55: 56811 | F55: 57947.22 | G55: =F55*(1+G$1) -> 
A56: H03_05 | B56: 55757 | C56: 56593 | D56: 57842 | E56: 58710 | F56: 59884.2 | G56: =F56*(1+G$1) -> 
A57: H03_06 | B57: 57580 | C57: 58444 | D57: 59721 | E57: 60617 | F57: 61829.34 | G57: =F57*(1+G$1) -> 
A58: H03_07 | B58: 59397 | C58: 60288 | D58: 61592 | E58: 62516 | F58: 63766.32 | G58: =F58*(1+G$1) -> 
A59: H03_08 | B59: 61214 | C59: 62132 | D59: 63464 | E59: 64416 | F59: 65704.32 | G59: =F59*(1+G$1) -> 
A60: HEO 4 | F60: 0 | G60: =F60*(1+G$1) -> 
A61: H04_01 | B61: 61735 | C61: 62661 | D61: 64001 | E61: 64961 | F61: 66260.22 | G61: =F61*(1+G$1) -> 
A62: H04_02 | B62: 63546 | C62: 64499 | D62: 65866 | E62: 66854 | F62: 68191.08 | G62: =F62*(1+G$1) -> 
A63: H04_03 | B63: 65625 | C63: 66609 | D63: 68008 | E63: 69028 | F63: 70408.56 | G63: =F63*(1+G$1) -> 
A64: H04_04 | B64: 67704 | C64: 68720 | D64: 70151 | E64: 71203 | F64: 72627.06 | G64: =F64*(1+G$1) -> 
A65: HEO 5 | F65: 0 | G65: =F65*(1+G$1) -> 
A66: H05_01 | B66: 69262 | C66: 70301 | D66: 71756 | E66: 72832 | F66: 74288.64 | G66: =F66*(1+G$1) -> 
A67: H05_02 | B67: 71598 | C67: 72672 | D67: 74162 | E67: 75274 | F67: 76779.48 | G67: =F67*(1+G$1) -> 
A68: H05_03 | B68: 74199 | C68: 75312 | D68: 76842 | E68: 77995 | F68: 79554.9 | G68: =F68*(1+G$1) -> 
A69: H05_04 | B69: 77057 | C69: 78213 | D69: 79786 | E69: 80983 | F69: 82602.66 | G69: =F69*(1+G$1) -> 
A70: HEO 5/6 | F70: =E70*(1+F$1) -> 0
A71: H05/06_01 | B71: 63808 | C71: 64765 | D71: 66136 | E71: 67128 | F71: 68470.56
A72: H05/06_02 | B72: 65370 | C72: 66351 | D72: 67746 | E72: 68762 | F72: 70137.24
A73: H05/06_03 | B73: 66925 | C73: 67929 | D73: 69348 | E73: 70388 | F73: 71795.76
A74: H05/06_04 | B74: 77316 | C74: 78476 | D74: 80053 | E74: 81254 | F74: 82879.08
A75: H05/06_05 | B75: 79393 | C75: 80584 | D75: 82193 | E75: 83426 | F75: 85094.52
A76: H05/06_06 | B76: 81473 | C76: 82695 | D76: 84335 | E76: 85600 | F76: 87312
A77: H05/06_07 | B77: 83548 | C77: 84801 | D77: 86473 | E77: 87770 | F77: 89525.4
A78: HEO 6 | F78: 0
A79: H06_01 | B79: 77316 | C79: 78476 | D79: 80053 | E79: 81254 | F79: 82879.08
A80: H06_02 | B80: 79393 | C80: 80584 | D80: 82193 | E80: 83426 | F80: 85094.52
A81: H06_03 | B81: 81473 | C81: 82695 | D81: 84335 | E81: 85600 | F81: 87312
A82: H06_04 | B82: 83548 | C82: 84801 | D82: 86473 | E82: 87770 | F82: 89525.4
A83: HEO 7 | F83: 0
A84: H07_01 | B84: 85105 | C84: 86382 | D84: 88078 | E84: 89399 | F84: 91186.98
A85: H07_02 | B85: 87441 | C85: 88753 | D85: 90484 | E85: 91841 | F85: 93677.82
A86: H07_03 | B86: 90038 | C86: 91389 | D86: 93160 | E86: 94557 | F86: 96448.14
A87: H07_04 | B87: 92639 | C87: 94029 | D87: 95839 | E87: 97277 | F87: 99222.54
A88: h07_05 | B88: 95231 | C88: 96659 | D88: 98509 | E88: 99987 | F88: 101986.74
A89: HEO 8 | F89: 0
A90: H08_01 | B90: 95493 | C90: 96925 | D90: 98779 | E90: 100261 | F90: 102266.22
A91: H08_02 | B91: 98092 | C91: 99563 | D91: 101456 | E91: 102978 | F91: 105037.56
A92: H08_03 | B92: 100690 | C92: 102200 | D92: 104133 | E92: 105695 | F92: 107808.9
A93: H08_04 | B93: 103801 | C93: 105358 | D93: 107338 | E93: 108948 | F93: 111126.96
A94: H08_05 | B94: 107179 | C94: 108787 | D94: 110819 | E94: 112481 | F94: 114730.62
A95: HEO 9 | F95: 0
A96: H09_01 | B96: 111077 | C96: 112743 | D96: 114834 | E96: 116557 | F96: 118888.14
A97: H09_02 | B97: 114709 | C97: 116430 | D97: 118576 | E97: 120355 | F97: 122762.1
A98: H09_03 | B98: 118862 | C98: 120645 | D98: 122855 | E98: 124698 | F98: 127191.96
A99: HEO 10
A100: H10_01 | B100: 122720 | C100: 124561 | D100: 126829 | E100: 128731 | F100: 131305.62
A101: H10_02 | B101: 126704 | C101: 128605 | D101: 130934 | E101: 132898 | F101: 135555.96
A102: H10_03 | B102: 130819 | C102: 132781 | D102: 135173 | E102: 137201 | F102: 139945.02

Sheet IO (hidden)
A1: STATUS | F1: Salaries
A2: ACAD | C2: ACAD | D2: PROF | I2: Period | K2: Conversion | L2: Column1 | M2: Column2
A3: PROF | C3: LEVEL A1 | D3: H01_01 | I3: Annually | K3: 1 year | L3: =#REF! ->  | M3: weeks
C4: LEVEL A2 | D4: H01_02 | I4: Weekly | K4: 1 week | L4: 36.75 | M4: Hours
C5: LEVEL A3 | D5: H01_03 | I5: Daily | K5: 1 Day | L5: 7.35 | M5: Hours
C6: LEVEL A4 | D6: H01_04 | I6: Hourly
C7: LEVEL A5 | D7: H01_05 | I7: Casual Hourly
A8: Year | C8: LEVEL A6 | D8: H01_06
A9: 2019 | C9: LEVEL A7 | D9: H01_07 | I9: Levies
A10: 2020 | C10: LEVEL A8 | D10: H02_01 | I10: Type | J10: DVCR | K10: Faculty | L10: School
A11: 2021 | C11: LEVEL B1 | D11: H02_02 | I11: Contract Research | J11: =5/100 -> 0.05 | K11: =10/100 -> 0.1 | L11: =5/100 -> 0.05
A12: 2022 | C12: LEVEL B2 | D12: H02_03 | I12: Consultancy | J12: =6.66/100 -> 0.0666 | K12: =11.67/100 -> 0.1167 | L12: =6.67/100 -> 0.0667
A13: 2023 | C13: LEVEL B3 | D13: H02_04 | I13: Limited Contract Research | J13: 0 | K13: =20/3*2/100 -> 0.1333333333 | L13: =20/3/100 -> 0.06666666667
A14: 2024 | C14: LEVEL B4 | D14: H02_05 | I14: Limited Consultancy | J14: 0 | K14: =25/3*2/100 -> 0.1666666667 | L14: =25/3/100 -> 0.08333333333
A15: 2025 | C15: LEVEL B5 | D15: H02_06 | I15: Grant | J15: 0 | K15: 0 | L15: 0
A16: 2026 | C16: LEVEL B6 | D16: H02_07 | I16: Collaboration Agreement | J16: 0 | K16: 0 | L16: 0
A17: 2027 | C17: LEVEL C1 | D17: H03_01
A18: 2028 | C18: LEVEL C2 | D18: H03_02
C19: LEVEL C3 | D19: H03_03
C20: LEVEL C4 | D20: H03_04
C21: LEVEL C5 | D21: H03_05
C22: LEVEL C6 | D22: H03_06
C23: LEVEL D1 | D23: H03_07
C24: LEVEL D2 | D24: H03_08
C25: LEVEL D3 | D25: H04_01
C26: LEVEL D4 | D26: H04_02
C27: LEVEL E | D27: H04_03
D28: H04_04
D29: H05_01
D30: H05_02
D31: H05_03
D32: H05_04
D33: H05/06_01
D34: H05/06_02
D35: H05/06_03
